Workbook

Sheet Menu
F2: This file contains the excel tables of the rates contained in the published Schedule fo Standard Prices for Eskom tariffs.
F4: 2021/22 SCHEDULE OF STANDARD PRICES FOR ESKOM TARIFFS 1 April 2021 to 31 March 2022 for Non-Local Authority supplies, and 1 July 2021 to 30 June 2022 for Local Authority supplies.
H6: Click on the arrow to select the tariff
H7: Non-local authority (NLA) | J7: Local Authority (Munic)
G8: WEPS | H8: u | J8: u
F9: ê | G9: Megaflex | H9: u | J9: u
F10: ê | G10: Nightsave Large Urban | H10: u | J10: u
F11: ê | G11: Miniflex | H11: u | J11: u
F12: ê | G12: Nightsave Small Urban | H12: u | J12: u
F13: ê | G13: Businessrate | H13: u | J13: u
F14: ê | G14: Public lighting | H14: u | J14: u
F15: ê | G15: Ruraflex | H15: u | J15: u
F16: ê | G16: Nightsave Rural | H16: u | J16: u
F17: ê | G17: Landrate tariffs | H17: u | J17: u
F18: ê | G18: Homepower tariffs | H18: u | J18: u
F19: ê | G19: Homelight tariffs | H19: u | J19: n/a
F20: ê | G20: Excess NCC charges | H20: u | J20: u
F21: ê | G21: Loss factors | H21: u | J21: u
F22: ê | G22: Transmission use of system charges | H22: u | J22: n/a
F23: ê | G23: Distribution use of system charges | H23: u | J23: n/a
F24: ê | G24: Megaflex Gen | H24: u | J24: n/a
F25: ê | G25: Ruraflex Gen | H25: u | J25: n/a
F29: ê
F30: ê

Sheet WEPS NLA
G1: Back to menu
A2: Non-municipal | G2: WEPS – Non-local Authority
J4: Active energy charge [c/kWh] | V4: Transmission network charges [R/kVA/m]
H5: Transmission zone | J5: High demand season [Jun - Aug] | P5: Low demand season [Sep - May]
I6: Voltage | J6: Peak | L6: Standard | N6: Off Peak | P6: Peak | R6: Standard | T6: Off Peak
A7: Tariff | B7: Tariff nameBillcode | C7: Tx zone | D7: Voltage | E7: Billcode | K7: VAT incl | M7: VAT incl | O7: VAT incl | Q7: VAT incl | S7: VAT incl | U7: VAT incl | W7: VAT incl
A8: WEPS | B8: We | C8: 0 | D8: 1 | E8: =B8&C8&D8&IF($A$2="Non-municipal","N",IF($A$2="Municiple","Y","error")) -> We01N | H8: ≤ 300km | I8: < 500V | J8: 417.36 | K8: =ROUND(J8 * (1 + VAT), 2) -> 479.96 | L8: 126.98 | M8: =ROUND(L8 * (1 + VAT), 2) -> 146.03 | N8: 69.34 | O8: =ROUND(N8 * (1 + VAT), 2) -> 79.74 | P8: 136.67 | Q8: =ROUND(P8 * (1 + VAT), 2) -> 157.17 | R8: 94.3 | S8: =ROUND(R8 * (1 + VAT), 2) -> 108.45 | T8: 60.12 | U8: =ROUND(T8 * (1 + VAT), 2) -> 69.14 | V8: 11.94 | W8: =ROUND(V8 * (1 + VAT), 2) -> 13.73
A9: WEPS | B9: We | C9: 0 | D9: 2 | E9: We02N | I9: ≥ 500V & < 66kV | J9: 410.81 | K9: =ROUND(J9 * (1 + VAT), 2) -> 472.43 | L9: 124.45 | M9: 143.12 | N9: 67.59 | O9: 77.73 | P9: 133.99 | Q9: 154.09 | R9: 92.24 | S9: 106.08 | T9: 58.52 | U9: 67.3 | V9: 10.91 | W9: 12.55
A10: WEPS | B10: We | C10: 0 | D10: 3 | E10: We03N | I10: ≥ 66kV & ≤ 132kV | J10: 397.8 | K10: 457.47 | L10: 120.5 | M10: 138.58 | N10: 65.45 | O10: 75.27 | P10: 129.78 | Q10: 149.25 | R10: 89.3 | S10: 102.7 | T10: 56.68 | U10: 65.18 | V10: 10.62 | W10: 12.21
A11: WEPS | B11: We | C11: 0 | D11: 4 | E11: We04N | I11: > 132kV* | J11: 374.91 | K11: 431.15 | L11: 113.56 | M11: 130.59 | N11: 61.68 | O11: 70.93 | P11: 122.33 | Q11: 140.68 | R11: 84.17 | S11: 96.8 | T11: 53.41 | U11: 61.42 | V11: 13.43 | W11: 15.44
A12: WEPS | B12: We | C12: 1 | D12: 1 | E12: We11N | H12: > 300km and ≤ 600km | I12: < 500V | J12: 420.76 | K12: 483.87 | L12: 127.49 | M12: 146.61 | N12: 69.22 | O12: 79.6 | P12: 137.27 | Q12: 157.86 | R12: 94.51 | S12: 108.69 | T12: 59.96 | U12: 68.95 | V12: 12.02 | W12: 13.82
A13: WEPS | B13: We | C13: 1 | D13: 2 | E13: We12N | I13: ≥ 500V & < 66kV | J13: 414.91 | K13: 477.15 | L13: 125.68 | M13: 144.53 | N13: 68.25 | O13: 78.49 | P13: 135.37 | Q13: 155.68 | R13: 93.15 | S13: 107.12 | T13: 59.09 | U13: 67.95 | V13: 11.01 | W13: 12.66
A14: WEPS | B14: We | C14: 1 | D14: 3 | E14: We13N | I14: ≥ 66kV & ≤ 132kV | J14: 401.71 | K14: 461.97 | L14: 121.68 | M14: 139.93 | N14: 66.06 | O14: 75.97 | P14: 131.03 | Q14: 150.68 | R14: 90.18 | S14: 103.71 | T14: 57.22 | U14: 65.8 | V14: 10.7 | W14: 12.31
A15: WEPS | B15: We | C15: 1 | D15: 4 | E15: We14N | I15: > 132kV* | J15: 378.67 | K15: 435.47 | L15: 114.73 | M15: 131.94 | N15: 62.26 | O15: 71.6 | P15: 123.51 | Q15: 142.04 | R15: 84.99 | S15: 97.74 | T15: 53.91 | U15: 62 | V15: 13.55 | W15: 15.58
A16: WEPS | B16: We | C16: 2 | D16: 1 | E16: We21N | H16: > 600km and ≤ 900km | I16: < 500V | J16: 424.95 | K16: 488.69 | L16: 128.73 | M16: 148.04 | N16: 69.88 | O16: 80.36 | P16: 138.62 | Q16: 159.41 | R16: 95.42 | S16: 109.73 | T16: 60.51 | U16: 69.59 | V16: 12.16 | W16: 13.98
A17: WEPS | B17: We | C17: 2 | D17: 2 | E17: We22N | I17: ≥ 500V & < 66kV | J17: 419.08 | K17: 481.94 | L17: 126.97 | M17: 146.02 | N17: 68.94 | O17: 79.28 | P17: 136.7 | Q17: 157.21 | R17: 94.1 | S17: 108.22 | T17: 59.69 | U17: 68.64 | V17: 11.11 | W17: 12.78
A18: WEPS | B18: We | C18: 2 | D18: 3 | E18: We23N | I18: ≥ 66kV & ≤ 132kV | J18: 405.81 | K18: 466.68 | L18: 122.94 | M18: 141.38 | N18: 66.75 | O18: 76.76 | P18: 132.37 | Q18: 152.23 | R18: 91.12 | S18: 104.79 | T18: 57.81 | U18: 66.48 | V18: 10.77 | W18: 12.39
A19: WEPS | B19: We | C19: 2 | D19: 4 | E19: We24N | I19: > 132kV* | J19: 382.48 | K19: 439.85 | L19: 115.85 | M19: 133.23 | N19: 62.95 | O19: 72.39 | P19: 124.76 | Q19: 143.47 | R19: 85.86 | S19: 98.74 | T19: 54.48 | U19: 62.65 | V19: 13.75 | W19: 15.81
A20: WEPS | B20: We | C20: 3 | D20: 1 | E20: We31N | H20: > 900km | I20: < 500V | J20: 429.23 | K20: 493.61 | L20: 130.08 | M20: 149.59 | N20: 70.6 | O20: 81.19 | P20: 140.03 | Q20: 161.03 | R20: 96.36 | S20: 110.81 | T20: 61.15 | U20: 70.32 | V20: 12.24 | W20: 14.08
A21: WEPS | B21: We | C21: 3 | D21: 2 | E21: We32N | I21: ≥ 500V & < 66kV | J21: 423.25 | K21: 486.74 | L21: 128.2 | M21: 147.43 | N21: 69.59 | O21: 80.03 | P21: 138.04 | Q21: 158.75 | R21: 94.99 | S21: 109.24 | T21: 60.28 | U21: 69.32 | V21: 11.24 | W21: 12.93
A22: WEPS | B22: We | C22: 3 | D22: 3 | E22: We33N | I22: ≥ 66kV & ≤ 132kV | J22: 409.88 | K22: 471.36 | L22: 124.15 | M22: 142.77 | N22: 67.41 | O22: 77.52 | P22: 133.69 | Q22: 153.74 | R22: 92.02 | S22: 105.82 | T22: 58.38 | U22: 67.14 | V22: 10.87 | W22: 12.5
A23: WEPS | B23: We | C23: 3 | D23: 4 | E23: We34N | I23: > 132kV* | J23: 386.21 | K23: 444.14 | L23: 117.04 | M23: 134.6 | N23: 63.59 | O23: 73.13 | P23: 126.06 | Q23: 144.97 | R23: 86.8 | S23: 99.82 | T23: 55.09 | U23: 63.35 | V23: 13.85 | W23: 15.93
I24: * 132 kV or Transmission connected
H25: Distribution network charges
H26: Voltage | J26: Network capacity charge [R/kVA/m] | L26: Network demand charge [R/kVA/m] | N26: Urban low voltage subsidy charge [R/kVA/m]
Q27: Voltage | S27: Ancillary service charge [c/kWh]
A28: Tariff | B28: Tariff nameBillcode | C28: Tx zone | D28: Voltage | E28: Billcode | K28: VAT incl | M28: VAT incl | O28: VAT incl | T28: VAT incl
A29: WEPS | B29: We | C29: 0 | D29: 1 | E29: We01N | H29: < 500V | J29: 23.73 | K29: =ROUND(J29 * (1 + VAT), 2) -> 27.29 | L29: 44.99 | M29: =ROUND(L29 * (1 + VAT), 2) -> 51.74 | N29: 0 | O29: =ROUND(N29 * (1 + VAT), 2) -> 0 | Q29: < 500V | S29: 0.55 | T29: =ROUND(S29 * (1 + VAT), 2) -> 0.63
A30: WEPS | B30: We | C30: 0 | D30: 2 | E30: We02N | H30: ≥ 500V & < 66kV | J30: 21.76 | K30: =ROUND(J30 * (1 + VAT), 2) -> 25.02 | L30: 41.27 | M30: =ROUND(L30 * (1 + VAT), 2) -> 47.46 | N30: 0 | O30: =ROUND(N30 * (1 + VAT), 2) -> 0 | Q30: ≥ 500V & < 66kV | S30: 0.54 | T30: =ROUND(S30 * (1 + VAT), 2) -> 0.62
A31: WEPS | B31: We | C31: 0 | D31: 3 | E31: We03N | H31: ≥ 66kV & ≤ 132kV | J31: 7.77 | K31: =ROUND(J31 * (1 + VAT), 2) -> 8.94 | L31: 14.39 | M31: =ROUND(L31 * (1 + VAT), 2) -> 16.55 | N31: 19.17 | O31: =ROUND(N31 * (1 + VAT), 2) -> 22.05 | Q31: ≥ 66kV & ≤ 132kV | S31: 0.52 | T31: =ROUND(S31 * (1 + VAT), 2) -> 0.6
A32: WEPS | B32: We | C32: 0 | D32: 4 | E32: We04N | H32: > 132kV* | J32: 0 | K32: =ROUND(J32 * (1 + VAT), 2) -> 0 | L32: 0 | M32: =ROUND(L32 * (1 + VAT), 2) -> 0 | N32: 19.17 | O32: =ROUND(N32 * (1 + VAT), 2) -> 22.05 | Q32: > 132kV* | S32: 0.48 | T32: =ROUND(S32 * (1 + VAT), 2) -> 0.55
H33: * 132 kV or Transmission connected | Q33: * 132 kV or Transmission connected
H35: Customer categories | J35: Service charge [R/account/day] | L35: Administration charge [R/POD/day] | Q35: Reactive energy charge [c/kVArh]
A37: Tariff | B37: Tariff nameBillcode | C37: Tx zone | D37: Voltage | E37: Billcode | K37: VAT incl | M37: VAT incl | Q37: High season | S37: Low season
A38: WEPS | B38: We | C38: 0 | D38: 1 | E38: We01N | H38: ≤ 100 kVA | J38: 19.39 | K38: =ROUND(J38 * (1 + VAT), 2) -> 22.3 | L38: 4.26 | M38: =ROUND(L38 * (1 + VAT), 2) -> 4.9 | R38: VAT incl | T38: VAT incl
A39: WEPS | B39: We | C39: 0 | D39: 1 | E39: We01N | H39: > 100 kVA & ≤ 500 kVA | J39: 88.53 | K39: =ROUND(J39 * (1 + VAT), 2) -> 101.81 | L39: 24.83 | M39: =ROUND(L39 * (1 + VAT), 2) -> 28.55 | Q39: 19.19 | R39: =ROUND(Q39 * (1 + VAT), 2) -> 22.07 | S39: 0 | T39: =ROUND(S39 * (1 + VAT), 2) -> 0
A40: WEPS | B40: We | C40: 0 | D40: 1 | E40: We01N | H40: > 500 kVA & ≤ 1 MVA | J40: 272.39 | K40: =ROUND(J40 * (1 + VAT), 2) -> 313.25 | L40: 49.3 | M40: =ROUND(L40 * (1 + VAT), 2) -> 56.7
A41: WEPS | B41: We | C41: 0 | D41: 1 | E41: We01N | H41: > 1 MVA | J41: 272.39 | K41: =ROUND(J41 * (1 + VAT), 2) -> 313.25 | L41: 122.76 | M41: =ROUND(L41 * (1 + VAT), 2) -> 141.17
A42: WEPS | B42: We | C42: 0 | D42: 1 | E42: We01N | H42: Key customers | J42: 5337.86 | K42: =ROUND(J42 * (1 + VAT), 2) -> 6138.54 | L42: 170.47 | M42: =ROUND(L42 * (1 + VAT), 2) -> 196.04
H45: Electrification and rural network subsidy charge [c/kWh] | J45: Affordability subsidy charge [c/kWh] Only payable by non-local authority tariffs
A48: Tariff | B48: Tariff nameBillcode | C48: Tx zone | D48: Voltage | E48: Billcode | I48: VAT incl | K48: VAT incl
A49: WEPS | B49: We | C49: 0 | D49: 1 | E49: We01N | H49: 10.61 | I49: =ROUND(H49 * (1 + VAT), 2) -> 12.2 | J49: 4.98 | K49: =ROUND(J49 * (1 + VAT), 2) -> 5.73
H52: Active energy charge excluding losses [c/kWh]
H53: High demand season [Jun - Aug] | N53: Low demand season [Sep - May]
H54: Peak | J54: Standard | L54: Off Peak | N54: Peak | P54: Standard | R54: Off Peak
A55: Tariff | B55: Tariff nameBillcode | C55: Tx zone | D55: Voltage | E55: Billcode | I55: VAT incl | K55: VAT incl | M55: VAT incl | O55: VAT incl | Q55: VAT incl | S55: VAT incl
A56: WEPS | B56: We | C56: 0 | D56: 1 | E56: We01N | H56: =ROUND(J11/'Loss Factors'!$T$6, 2) -> 370.94 | I56: =ROUND(H56 * (1 + VAT), 2) -> 426.58 | J56: =ROUND(L11/'Loss Factors'!$T$6, 2) -> 112.36 | K56: =ROUND(J56 * (1 + VAT), 2) -> 129.21 | L56: =ROUND(N11/'Loss Factors'!$T$6, 2) -> 61.03 | M56: =ROUND(L56 * (1 + VAT), 2) -> 70.18 | N56: =ROUND(P11/'Loss Factors'!$T$6, 2) -> 121.03 | O56: =ROUND(N56 * (1 + VAT), 2) -> 139.18 | P56: =ROUND(R11/'Loss Factors'!$T$6, 2) -> 83.28 | Q56: =ROUND(P56 * (1 + VAT), 2) -> 95.77 | R56: =ROUND(T11/'Loss Factors'!$T$6, 2) -> 52.84 | S56: =ROUND(R56 * (1 + VAT), 2) -> 60.77
H58: Active energy charge excluding losses and enviromental levy [c/kWh]
H59: High demand season [Jun - Aug] | N59: Low demand season [Sep - May]
H60: Peak | J60: Standard | L60: Off Peak | N60: Peak | P60: Standard | R60: Off Peak
A61: Tariff | B61: Tariff nameBillcode | C61: Tx zone | D61: Voltage | E61: Billcode | I61: VAT incl | K61: VAT incl | M61: VAT incl | O61: VAT incl | Q61: VAT incl | S61: VAT incl
A62: WEPS | B62: We | C62: 0 | D62: 1 | E62: We01N | H62: 367.45 | I62: 422.57 | J62: 108.87 | K62: 125.2 | L62: 57.54 | M62: 66.17 | N62: 117.54 | O62: 135.17 | P62: 79.79 | Q62: 91.76 | R62: 49.35 | S62: 56.75

Sheet WEPS Munic
G1: Back to menu
A2: Municiple | G2: WEPS – Local Authority
J4: Active energy charge [c/kWh] | V4: Transmission network charges [R/kVA/m]
H5: Transmission zone | J5: High demand season [Jun - Aug] | P5: Low demand season [Sep - May]
I6: Voltage | J6: Peak | L6: Standard | N6: Off Peak | P6: Peak | R6: Standard | T6: Off Peak
A7: Tariff | B7: Tariff nameBillcode | C7: Tx zone | D7: Voltage | E7: Billcode | K7: VAT incl | M7: VAT incl | O7: VAT incl | Q7: VAT incl | S7: VAT incl | U7: VAT incl | W7: VAT incl
A8: WEPS | B8: We | C8: 0 | D8: 1 | E8: =B8&C8&D8&IF($A$2="Non-municipal","N",IF($A$2="Municiple","Y","error")) -> We01Y | H8: ≤ 300km | I8: < 500V | J8: 437.1 | K8: =ROUND(J8 * (1 + VAT), 2) -> 502.67 | L8: 133.01 | M8: =ROUND(L8 * (1 + VAT), 2) -> 152.96 | N8: 72.58 | O8: =ROUND(N8 * (1 + VAT), 2) -> 83.47 | P8: 143.1 | Q8: =ROUND(P8 * (1 + VAT), 2) -> 164.57 | R8: 98.76 | S8: =ROUND(R8 * (1 + VAT), 2) -> 113.57 | T8: 62.95 | U8: =ROUND(T8 * (1 + VAT), 2) -> 72.39 | V8: 12.18 | W8: =ROUND(V8 * (1 + VAT), 2) -> 14.01
A9: WEPS | B9: We | C9: 0 | D9: 2 | E9: =B9&C9&D9&IF($A$2="Non-municipal","N",IF($A$2="Municiple","Y","error")) -> We02Y | I9: ≥ 500V & < 66kV | J9: 430.21 | K9: 494.74 | L9: 130.35 | M9: 149.9 | N9: 70.79 | O9: 81.41 | P9: 140.34 | Q9: 161.39 | R9: 96.58 | S9: 111.07 | T9: 61.29 | U9: 70.48 | V9: 11.11 | W9: 12.78
A10: WEPS | B10: We | C10: 0 | D10: 3 | E10: We03Y | I10: ≥ 66kV & ≤ 132kV | J10: 416.64 | K10: 479.14 | L10: 126.21 | M10: 145.14 | N10: 68.55 | O10: 78.83 | P10: 135.92 | Q10: 156.31 | R10: 93.56 | S10: 107.59 | T10: 59.34 | U10: 68.24 | V10: 10.81 | W10: 12.43
A11: WEPS | B11: We | C11: 0 | D11: 4 | E11: We04Y | I11: > 132kV* | J11: 392.65 | K11: 451.55 | L11: 118.95 | M11: 136.79 | N11: 64.59 | O11: 74.28 | P11: 128.08 | Q11: 147.29 | R11: 88.15 | S11: 101.37 | T11: 55.92 | U11: 64.31 | V11: 13.69 | W11: 15.74
A12: WEPS | B12: We | C12: 1 | D12: 1 | E12: We11Y | H12: > 300km and ≤ 600km | I12: < 500V | J12: 440.67 | K12: 506.77 | L12: 133.49 | M12: 153.51 | N12: 72.48 | O12: 83.35 | P12: 143.75 | Q12: 165.31 | R12: 98.96 | S12: 113.8 | T12: 62.78 | U12: 72.2 | V12: 12.23 | W12: 14.06
A13: WEPS | B13: We | C13: 1 | D13: 2 | E13: We12Y | I13: ≥ 500V & < 66kV | J13: 434.51 | K13: 499.69 | L13: 131.63 | M13: 151.37 | N13: 71.48 | O13: 82.2 | P13: 141.76 | Q13: 163.02 | R13: 97.56 | S13: 112.19 | T13: 61.88 | U13: 71.16 | V13: 11.24 | W13: 12.93
A14: WEPS | B14: We | C14: 1 | D14: 3 | E14: We13Y | I14: ≥ 66kV & ≤ 132kV | J14: 420.71 | K14: 483.82 | L14: 127.44 | M14: 146.56 | N14: 69.2 | O14: 79.58 | P14: 137.24 | Q14: 157.83 | R14: 94.45 | S14: 108.62 | T14: 59.9 | U14: 68.89 | V14: 10.9 | W14: 12.54
A15: WEPS | B15: We | C15: 1 | D15: 4 | E15: We14Y | I15: > 132kV* | J15: 396.57 | K15: 456.06 | L15: 120.16 | M15: 138.18 | N15: 65.23 | O15: 75.01 | P15: 129.34 | Q15: 148.74 | R15: 89.05 | S15: 102.41 | T15: 56.47 | U15: 64.94 | V15: 13.82 | W15: 15.89
A16: WEPS | B16: We | C16: 2 | D16: 1 | E16: We21Y | H16: > 600km and ≤ 900km | I16: < 500V | J16: 445.06 | K16: 511.82 | L16: 134.83 | M16: 155.05 | N16: 73.2 | O16: 84.18 | P16: 145.16 | Q16: 166.93 | R16: 99.94 | S16: 114.93 | T16: 63.4 | U16: 72.91 | V16: 12.39 | W16: 14.25
A17: WEPS | B17: We | C17: 2 | D17: 2 | E17: We22Y | I17: ≥ 500V & < 66kV | J17: 438.89 | K17: 504.72 | L17: 132.94 | M17: 152.88 | N17: 72.2 | O17: 83.03 | P17: 143.2 | Q17: 164.68 | R17: 98.49 | S17: 113.26 | T17: 62.52 | U17: 71.9 | V17: 11.31 | W17: 13.01
A18: WEPS | B18: We | C18: 2 | D18: 3 | E18: We23Y | I18: ≥ 66kV & ≤ 132kV | J18: 425 | K18: 488.75 | L18: 128.72 | M18: 148.03 | N18: 69.89 | O18: 80.37 | P18: 138.59 | Q18: 159.38 | R18: 95.39 | S18: 109.7 | T18: 60.49 | U18: 69.56 | V18: 10.98 | W18: 12.63
A19: WEPS | B19: We | C19: 2 | D19: 4 | E19: We24Y | I19: > 132kV* | J19: 400.54 | K19: 460.62 | L19: 121.36 | M19: 139.56 | N19: 65.89 | O19: 75.77 | P19: 130.68 | Q19: 150.28 | R19: 89.93 | S19: 103.42 | T19: 57.05 | U19: 65.61 | V19: 14.01 | W19: 16.11
A20: WEPS | B20: We | C20: 3 | D20: 1 | E20: We31Y | H20: > 900km | I20: < 500V | J20: 449.52 | K20: 516.95 | L20: 136.19 | M20: 156.62 | N20: 73.95 | O20: 85.04 | P20: 146.65 | Q20: 168.65 | R20: 100.92 | S20: 116.06 | T20: 64.04 | U20: 73.65 | V20: 12.45 | W20: 14.32
A21: WEPS | B21: We | C21: 3 | D21: 2 | E21: We32Y | I21: ≥ 500V & < 66kV | J21: 443.27 | K21: 509.76 | L21: 134.27 | M21: 154.41 | N21: 72.93 | O21: 83.87 | P21: 144.58 | Q21: 166.27 | R21: 99.51 | S21: 114.44 | T21: 63.11 | U21: 72.58 | V21: 11.44 | W21: 13.16
A22: WEPS | B22: We | C22: 3 | D22: 3 | E22: We33Y | I22: ≥ 66kV & ≤ 132kV | J22: 429.27 | K22: 493.66 | L22: 130.05 | M22: 149.56 | N22: 70.62 | O22: 81.21 | P22: 140.02 | Q22: 161.02 | R22: 96.35 | S22: 110.8 | T22: 61.13 | U22: 70.3 | V22: 11.07 | W22: 12.73
A23: WEPS | B23: We | C23: 3 | D23: 4 | E23: We34Y | I23: > 132kV* | J23: 404.49 | K23: 465.16 | L23: 122.59 | M23: 140.98 | N23: 66.62 | O23: 76.61 | P23: 132.01 | Q23: 151.81 | R23: 90.87 | S23: 104.5 | T23: 57.67 | U23: 66.32 | V23: 14.1 | W23: 16.22
I24: * 132 kV or Transmission connected
H25: Distribution network charges
H26: Voltage | J26: Network capacity charge [R/kVA/m] | L26: Network demand charge [R/kVA/m] | N26: Urban low voltage subsidy charge [R/kVA/m]
Q27: Voltage | S27: Ancillary service charge [c/kWh]
A28: Tariff | B28: Tariff nameBillcode | C28: Tx zone | D28: Voltage | E28: Billcode | K28: VAT incl | M28: VAT incl | O28: VAT incl | T28: VAT incl
A29: WEPS | B29: We | C29: 0 | D29: 1 | E29: =B29&C29&D29&IF($A$2="Non-municipal","N",IF($A$2="Municiple","Y","error")) -> We01Y | H29: < 500V | J29: 24.29 | K29: =ROUND(J29 * (1 + VAT), 2) -> 27.93 | L29: 46.02 | M29: =ROUND(L29 * (1 + VAT), 2) -> 52.92 | N29: 0 | O29: =ROUND(N29 * (1 + VAT), 2) -> 0 | Q29: < 500V | S29: 0.57 | T29: =ROUND(S29 * (1 + VAT), 2) -> 0.66
A30: WEPS | B30: We | C30: 0 | D30: 2 | E30: =B30&C30&D30&IF($A$2="Non-municipal","N",IF($A$2="Municiple","Y","error")) -> We02Y | H30: ≥ 500V & < 66kV | J30: 22.26 | K30: =ROUND(J30 * (1 + VAT), 2) -> 25.6 | L30: 42.21 | M30: =ROUND(L30 * (1 + VAT), 2) -> 48.54 | N30: 0 | O30: =ROUND(N30 * (1 + VAT), 2) -> 0 | Q30: ≥ 500V & < 66kV | S30: 0.55 | T30: =ROUND(S30 * (1 + VAT), 2) -> 0.63
A31: WEPS | B31: We | C31: 0 | D31: 3 | E31: =B31&C31&D31&IF($A$2="Non-municipal","N",IF($A$2="Municiple","Y","error")) -> We03Y | H31: ≥ 66kV & ≤ 132kV | J31: 7.96 | K31: =ROUND(J31 * (1 + VAT), 2) -> 9.15 | L31: 14.73 | M31: =ROUND(L31 * (1 + VAT), 2) -> 16.94 | N31: 19.5 | O31: =ROUND(N31 * (1 + VAT), 2) -> 22.43 | Q31: ≥ 66kV & ≤ 132kV | S31: 0.51 | T31: =ROUND(S31 * (1 + VAT), 2) -> 0.59
A32: WEPS | B32: We | C32: 0 | D32: 4 | E32: =B32&C32&D32&IF($A$2="Non-municipal","N",IF($A$2="Municiple","Y","error")) -> We04Y | H32: > 132kV* | J32: 0 | K32: =ROUND(J32 * (1 + VAT), 2) -> 0 | L32: 0 | M32: =ROUND(L32 * (1 + VAT), 2) -> 0 | N32: 19.5 | O32: =ROUND(N32 * (1 + VAT), 2) -> 22.43 | Q32: > 132kV* | S32: 0.48 | T32: =ROUND(S32 * (1 + VAT), 2) -> 0.55
H33: * 132 kV or Transmission connected | Q33: * 132 kV or Transmission connected
H35: Customer categories | J35: Service charge [R/account/day] | L35: Administration charge [R/POD/day] | Q35: Reactive energy charge [c/kVArh]
A37: Tariff | B37: Tariff nameBillcode | C37: Tx zone | D37: Voltage | E37: Billcode | K37: VAT incl | M37: VAT incl | Q37: High season | S37: Low season
A38: WEPS | B38: We | C38: 0 | D38: 1 | E38: =B38&C38&D38&IF($A$2="Non-municipal","N",IF($A$2="Municiple","Y","error")) -> We01Y | H38: ≤ 100 kVA | J38: 19.72 | K38: =ROUND(J38 * (1 + VAT), 2) -> 22.68 | L38: 4.32 | M38: =ROUND(L38 * (1 + VAT), 2) -> 4.97 | R38: VAT incl | T38: VAT incl
A39: WEPS | B39: We | C39: 0 | D39: 1 | E39: =B39&C39&D39&IF($A$2="Non-municipal","N",IF($A$2="Municiple","Y","error")) -> We01Y | H39: > 100 kVA & ≤ 500 kVA | J39: 90.12 | K39: =ROUND(J39 * (1 + VAT), 2) -> 103.64 | L39: 25.24 | M39: =ROUND(L39 * (1 + VAT), 2) -> 29.03 | Q39: 19.51 | R39: =ROUND(Q39 * (1 + VAT), 2) -> 22.44 | S39: 0 | T39: =ROUND(S39 * (1 + VAT), 2) -> 0
A40: WEPS | B40: We | C40: 0 | D40: 1 | E40: =B40&C40&D40&IF($A$2="Non-municipal","N",IF($A$2="Municiple","Y","error")) -> We01Y | H40: > 500 kVA & ≤ 1 MVA | J40: 277.35 | K40: =ROUND(J40 * (1 + VAT), 2) -> 318.95 | L40: 50.21 | M40: =ROUND(L40 * (1 + VAT), 2) -> 57.74
A41: WEPS | B41: We | C41: 0 | D41: 1 | E41: =B41&C41&D41&IF($A$2="Non-municipal","N",IF($A$2="Municiple","Y","error")) -> We01Y | H41: > 1 MVA | J41: 277.35 | K41: =ROUND(J41 * (1 + VAT), 2) -> 318.95 | L41: 125.02 | M41: =ROUND(L41 * (1 + VAT), 2) -> 143.77
A42: WEPS | B42: We | C42: 0 | D42: 1 | E42: =B42&C42&D42&IF($A$2="Non-municipal","N",IF($A$2="Municiple","Y","error")) -> We01Y | H42: Key customers | J42: 5434.93 | K42: =ROUND(J42 * (1 + VAT), 2) -> 6250.17 | L42: 173.57 | M42: =ROUND(L42 * (1 + VAT), 2) -> 199.61
H45: Electrification and rural network subsidy charge [c/kWh]
A48: Tariff | B48: Tariff nameBillcode | C48: Tx zone | D48: Voltage | E48: Billcode | I48: VAT incl
A49: WEPS | B49: We | C49: 0 | D49: 1 | E49: =B49&C49&D49&IF($A$2="Non-municipal","N",IF($A$2="Municiple","Y","error")) -> We01Y | H49: 10.8 | I49: =ROUND(H49 * (1 + VAT), 2) -> 12.42
H52: Active energy charge excluding losses [c/kWh]
H53: High demand season [Jun - Aug] | N53: Low demand season [Sep - May]
H54: Peak | J54: Standard | L54: Off Peak | N54: Peak | P54: Standard | R54: Off Peak
A55: Tariff | B55: Tariff nameBillcode | C55: Tx zone | D55: Voltage | E55: Billcode | I55: VAT incl | K55: VAT incl | M55: VAT incl | O55: VAT incl | Q55: VAT incl | S55: VAT incl
A56: WEPS | B56: We | C56: 0 | D56: 1 | E56: =B56&C56&D56&IF($A$2="Non-municipal","N",IF($A$2="Municiple","Y","error")) -> We01Y | H56: =ROUND(J11/'Loss Factors'!$T$6, 2) -> 388.49 | I56: =ROUND(H56 * (1 + VAT), 2) -> 446.76 | J56: =ROUND(L11/'Loss Factors'!$T$6, 2) -> 117.69 | K56: =ROUND(J56 * (1 + VAT), 2) -> 135.34 | L56: =ROUND(N11/'Loss Factors'!$T$6, 2) -> 63.91 | M56: =ROUND(L56 * (1 + VAT), 2) -> 73.5 | N56: =ROUND(P11/'Loss Factors'!$T$6, 2) -> 126.72 | O56: =ROUND(N56 * (1 + VAT), 2) -> 145.73 | P56: =ROUND(R11/'Loss Factors'!$T$6, 2) -> 87.22 | Q56: =ROUND(P56 * (1 + VAT), 2) -> 100.3 | R56: =ROUND(T11/'Loss Factors'!$T$6, 2) -> 55.33 | S56: =ROUND(R56 * (1 + VAT), 2) -> 63.63
H58: Active energy charge excluding losses and enviromental levy [c/kWh]
H59: High demand season [Jun - Aug] | N59: Low demand season [Sep - May]
H60: Peak | J60: Standard | L60: Off Peak | N60: Peak | P60: Standard | R60: Off Peak
A61: Tariff | B61: Tariff nameBillcode | C61: Tx zone | D61: Voltage | E61: Billcode | I61: VAT incl | K61: VAT incl | M61: VAT incl | O61: VAT incl | Q61: VAT incl | S61: VAT incl
A62: WEPS | B62: We | C62: 0 | D62: 1 | E62: =B62&C62&D62&IF($A$2="Non-municipal","N",IF($A$2="Municiple","Y","error")) -> We01Y | H62: 385 | I62: =ROUND(H62 * (1 + VAT), 2) -> 442.75 | J62: 114.2 | K62: =ROUND(J62 * (1 + VAT), 2) -> 131.33 | L62: 60.42 | M62: =ROUND(L62 * (1 + VAT), 2) -> 69.48 | N62: 123.23 | O62: =ROUND(N62 * (1 + VAT), 2) -> 141.71 | P62: 83.73 | Q62: =ROUND(P62 * (1 + VAT), 2) -> 96.29 | R62: 51.84 | S62: =ROUND(R62 * (1 + VAT), 2) -> 59.62

Sheet Nightsave Large NLA
H1: Back to menu
A2: Non-municipal | G2: Nightsave Urban Large – Non-local Authority | AG2: check value
J4: Active energy charge [c/kWh] | N4: Energy demand charge [R/kVA/m] | R4: Transmission network charges [R/kVA/m]
H5: Transmission zone | J5: High demand season [Jun - Aug] | L5: Low demand season [Sep - May] | N5: High demand season [Jun - Aug] | P5: Low demand season [Sep - May]
I6: Voltage
A7: Tariff | B7: Tariff nameBillcode | C7: Tx zone | D7: Voltage | E7: Billcode | K7: VAT incl | M7: VAT incl | O7: VAT incl | Q7: VAT incl | S7: VAT incl
A8: Nightsave Large | B8: NL | C8: 0 | D8: 1 | E8: =B8&C8&D8&IF($A$2="Non-municipal","N",IF($A$2="Municiple","Y","error")) -> NL01N | H8: ≤ 300km | I8: < 500V | J8: 103.08 | K8: =ROUND(J8 * (1 + VAT), 2) -> 118.54 | L8: 80.13 | M8: =ROUND(L8 * (1 + VAT), 2) -> 92.15 | N8: 313.65 | O8: =ROUND(N8 * (1 + VAT), 2) -> 360.7 | P8: 43.84 | Q8: =ROUND(P8 * (1 + VAT), 2) -> 50.42 | R8: 11.94 | S8: =ROUND(R8 * (1 + VAT), 2) -> 13.73
A9: Nightsave Large | B9: NL | C9: 0 | D9: 2 | E9: =B9&C9&D9&IF($A$2="Non-municipal","N",IF($A$2="Municiple","Y","error")) -> NL02N | I9: ≥ 500V & < 66kV | J9: 97.61 | K9: 112.25 | L9: 76.19 | M9: 87.62 | N9: 303.57 | O9: 349.11 | P9: 42.43 | Q9: 48.79 | R9: 10.91 | S9: 12.55
A10: Nightsave Large | B10: NL | C10: 0 | D10: 3 | E10: NL03N | I10: ≥ 66kV & ≤ 132kV | J10: 96.89 | K10: 111.42 | L10: 75.28 | M10: 86.57 | N10: 292.52 | O10: 336.4 | P10: 40.89 | Q10: 47.02 | R10: 10.62 | S10: 12.21
A11: Nightsave Large | B11: NL | C11: 0 | D11: 4 | E11: NL04N | I11: > 132kV* | J11: 90.63 | K11: 104.22 | L11: 70.47 | M11: 81.04 | N11: 282.17 | O11: 324.5 | P11: 39.44 | Q11: 45.36 | R11: 13.43 | S11: 15.44
A12: Nightsave Large | B12: NL | C12: 1 | D12: 1 | E12: NL11N | H12: > 300km and ≤ 600km | I12: < 500V | J12: 104.46 | K12: 120.13 | L12: 81.01 | M12: 93.16 | N12: 316.88 | O12: 364.41 | P12: 44.26 | Q12: 50.9 | R12: 12.02 | S12: 13.82
A13: Nightsave Large | B13: NL | C13: 1 | D13: 2 | E13: NL12N | I13: ≥ 500V & < 66kV | J13: 99.66 | K13: 114.61 | L13: 77.75 | M13: 89.41 | N13: 306.66 | O13: 352.66 | P13: 42.81 | Q13: 49.23 | R13: 11.01 | S13: 12.66
A14: Nightsave Large | B14: NL | C14: 1 | D14: 3 | E14: NL13N | I14: ≥ 66kV & ≤ 132kV | J14: 98.92 | K14: 113.76 | L14: 76.81 | M14: 88.33 | N14: 295.41 | O14: 339.72 | P14: 41.27 | Q14: 47.46 | R14: 10.7 | S14: 12.31
A15: Nightsave Large | B15: NL | C15: 1 | D15: 4 | E15: NL14N | I15: > 132kV* | J15: 92.55 | K15: 106.43 | L15: 71.91 | M15: 82.7 | N15: 285.05 | O15: 327.81 | P15: 39.8 | Q15: 45.77 | R15: 13.55 | S15: 15.58
A16: Nightsave Large | B16: NL | C16: 2 | D16: 1 | E16: NL21N | H16: > 600km and ≤ 900km | I16: < 500V | J16: 105.43 | K16: 121.24 | L16: 81.8 | M16: 94.07 | N16: 320.13 | O16: 368.15 | P16: 44.71 | Q16: 51.42 | R16: 12.16 | S16: 13.98
A17: Nightsave Large | B17: NL | C17: 2 | D17: 2 | E17: NL22N | I17: ≥ 500V & < 66kV | J17: 100.65 | K17: 115.75 | L17: 78.55 | M17: 90.33 | N17: 309.73 | O17: 356.19 | P17: 43.29 | Q17: 49.78 | R17: 11.11 | S17: 12.78
A18: Nightsave Large | B18: NL | C18: 2 | D18: 3 | E18: NL23N | I18: ≥ 66kV & ≤ 132kV | J18: 99.88 | K18: 114.86 | L18: 77.57 | M18: 89.21 | N18: 298.39 | O18: 343.15 | P18: 41.69 | Q18: 47.94 | R18: 10.77 | S18: 12.39
A19: Nightsave Large | B19: NL | C19: 2 | D19: 4 | E19: NL24N | I19: > 132kV* | J19: 93.45 | K19: 107.47 | L19: 72.65 | M19: 83.55 | N19: 287.89 | O19: 331.07 | P19: 40.19 | Q19: 46.22 | R19: 13.75 | S19: 15.81
A20: Nightsave Large | B20: NL | C20: 3 | D20: 1 | E20: NL31N | H20: > 900km | I20: < 500V | J20: 106.56 | K20: 122.54 | L20: 82.62 | M20: 95.01 | N20: 323.23 | O20: 371.71 | P20: 45.14 | Q20: 51.91 | R20: 12.24 | S20: 14.08
A21: Nightsave Large | B21: NL | C21: 3 | D21: 2 | E21: NL32N | I21: ≥ 500V & < 66kV | J21: 101.62 | K21: 116.86 | L21: 79.31 | M21: 91.21 | N21: 312.84 | O21: 359.77 | P21: 43.67 | Q21: 50.22 | R21: 11.24 | S21: 12.93
A22: Nightsave Large | B22: NL | C22: 3 | D22: 3 | E22: NL33N | I22: ≥ 66kV & ≤ 132kV | J22: 100.92 | K22: 116.06 | L22: 78.32 | M22: 90.07 | N22: 301.43 | O22: 346.64 | P22: 42.11 | Q22: 48.43 | R22: 10.87 | S22: 12.5
A23: Nightsave Large | B23: NL | C23: 3 | D23: 4 | E23: NL34N | I23: > 132kV* | J23: 94.44 | K23: 108.61 | L23: 73.44 | M23: 84.46 | N23: 290.81 | O23: 334.43 | P23: 40.6 | Q23: 46.69 | R23: 13.85 | S23: 15.93
I24: * 132 kV or Transmission connected
H26: Distribution network charges
H27: Voltage | J27: Network capacity charge [R/kVA/m] | L27: Network demand charge [R/kVA/m] | N27: Urban low voltage subsidy charge [R/kVA/m]
Q28: Voltage | R28: Ancillary service charge [c/kWh]
A29: Tariff | B29: Tariff nameBillcode | C29: Tx zone | D29: Voltage | E29: Billcode | K29: VAT incl | M29: VAT incl | O29: VAT incl | S29: VAT incl
A30: Nightsave Large | B30: NL | C30: 0 | D30: 1 | E30: =B30&C30&D30&IF($A$2="Non-municipal","N",IF($A$2="Municiple","Y","error")) -> NL01N | H30: < 500V | J30: 23.73 | K30: =ROUND(J30 * (1 + VAT), 2) -> 27.29 | L30: 44.99 | M30: =ROUND(L30 * (1 + VAT), 2) -> 51.74 | N30: 0 | O30: =ROUND(N30 * (1 + VAT), 2) -> 0 | Q30: < 500V | R30: 0.55 | S30: =ROUND(R30 * (1 + VAT), 2) -> 0.63
A31: Nightsave Large | B31: NL | C31: 0 | D31: 2 | E31: =B31&C31&D31&IF($A$2="Non-municipal","N",IF($A$2="Municiple","Y","error")) -> NL02N | H31: ≥ 500V & < 66kV | J31: 21.76 | K31: =ROUND(J31 * (1 + VAT), 2) -> 25.02 | L31: 41.27 | M31: =ROUND(L31 * (1 + VAT), 2) -> 47.46 | N31: 0 | O31: =ROUND(N31 * (1 + VAT), 2) -> 0 | Q31: ≥ 500V & < 66kV | R31: 0.54 | S31: =ROUND(R31 * (1 + VAT), 2) -> 0.62
A32: Nightsave Large | B32: NL | C32: 0 | D32: 3 | E32: =B32&C32&D32&IF($A$2="Non-municipal","N",IF($A$2="Municiple","Y","error")) -> NL03N | H32: ≥ 66kV & ≤ 132kV | J32: 7.77 | K32: =ROUND(J32 * (1 + VAT), 2) -> 8.94 | L32: 14.39 | M32: =ROUND(L32 * (1 + VAT), 2) -> 16.55 | N32: 19.17 | O32: =ROUND(N32 * (1 + VAT), 2) -> 22.05 | Q32: ≥ 66kV & ≤ 132kV | R32: 0.52 | S32: =ROUND(R32 * (1 + VAT), 2) -> 0.6
A33: Nightsave Large | B33: NL | C33: 0 | D33: 4 | E33: =B33&C33&D33&IF($A$2="Non-municipal","N",IF($A$2="Municiple","Y","error")) -> NL04N | H33: > 132kV / Transmission connected | J33: 0 | K33: =ROUND(J33 * (1 + VAT), 2) -> 0 | L33: 0 | M33: =ROUND(L33 * (1 + VAT), 2) -> 0 | N33: 19.17 | O33: =ROUND(N33 * (1 + VAT), 2) -> 22.05 | Q33: > 132kV* | R33: 0.48 | S33: =ROUND(R33 * (1 + VAT), 2) -> 0.55
Q34: * 132 kV or Transmission connected
H36: Customer categories | I36: Service charge [R/account/day] | K36: Administration charge [R/POD/day] | N36: Electrification and rural network subsidy charge [c/kWh] | P36: Affordability subsidy charge [c/kWh] Only payable by non-local authority tariffs
A38: Tariff | B38: Tariff nameBillcode | C38: Tx zone | D38: Voltage | E38: Billcode | J38: VAT incl | L38: VAT incl
A39: Nightsave Large | B39: NL | C39: 0 | D39: 1 | E39: =B39&C39&D39&IF($A$2="Non-municipal","N",IF($A$2="Municiple","Y","error")) -> NL01N | H39: >1 MVA | I39: 272.39 | J39: =ROUND(I39 * (1 + VAT), 2) -> 313.25 | K39: 122.76 | L39: =ROUND(K39 * (1 + VAT), 2) -> 141.17 | O39: VAT incl | Q39: VAT incl
A40: Nightsave Large | B40: NL | C40: 0 | D40: 1 | E40: =B40&C40&D40&IF($A$2="Non-municipal","N",IF($A$2="Municiple","Y","error")) -> NL01N | H40: Key customers | I40: 5337.86 | J40: =ROUND(I40 * (1 + VAT), 2) -> 6138.54 | K40: 170.47 | L40: =ROUND(K40 * (1 + VAT), 2) -> 196.04 | N40: 10.61 | O40: =ROUND(N40 * (1 + VAT), 2) -> 12.2 | P40: 4.98 | Q40: =ROUND(P40 * (1 + VAT), 2) -> 5.73
A46: Tariff | B46: Tariff nameBillcode | C46: Tx zone | D46: Voltage | E46: Billcode
A47: Nightsave Large | B47: NL | C47: 0 | D47: 1 | E47: =B47&C47&D47&IF($A$2="Non-municipal","N",IF($A$2="Municiple","Y","error")) -> NL01N

Sheet Nightsave Large Munic
H1: Back to menu
A2: Municiple | G2: Nightsave Urban Large – Local Authority | AG2: check value
J4: Active energy charge [c/kWh] | N4: Energy demand charge [R/kVA/m] | R4: Transmission network charges [R/kVA/m]
H5: Transmission zone | J5: High demand season [Jun - Aug] | L5: Low demand season [Sep - May] | N5: High demand season [Jun - Aug] | P5: Low demand season [Sep - May]
I6: Voltage
A7: Tariff | B7: Tariff nameBillcode | C7: Tx zone | D7: Voltage | E7: Billcode | K7: VAT incl | M7: VAT incl | O7: VAT incl | Q7: VAT incl | S7: VAT incl
A8: Nightsave Large | B8: NL | C8: 0 | D8: 1 | E8: NL01Y | H8: ≤ 300km | I8: < 500V | J8: 107.96 | K8: =ROUND(J8 * (1 + VAT), 2) -> 124.15 | L8: 83.94 | M8: =ROUND(L8 * (1 + VAT), 2) -> 96.53 | N8: 322.32 | O8: =ROUND(N8 * (1 + VAT), 2) -> 370.67 | P8: 45.03 | Q8: =ROUND(P8 * (1 + VAT), 2) -> 51.78 | R8: 12.18 | S8: =ROUND(R8 * (1 + VAT), 2) -> 14.01
A9: Nightsave Large | B9: NL | C9: 0 | D9: 2 | E9: NL02Y | I9: ≥ 500V & < 66kV | J9: 102.23 | K9: 117.56 | L9: 79.8 | M9: 91.77 | N9: 311.97 | O9: 358.77 | P9: 43.62 | Q9: 50.16 | R9: 11.11 | S9: 12.78
A10: Nightsave Large | B10: NL | C10: 0 | D10: 3 | E10: NL03Y | I10: ≥ 66kV & ≤ 132kV | J10: 101.47 | K10: 116.69 | L10: 78.81 | M10: 90.63 | N10: 300.61 | O10: 345.7 | P10: 42.01 | Q10: 48.31 | R10: 10.81 | S10: 12.43
A11: Nightsave Large | B11: NL | C11: 0 | D11: 4 | E11: NL04Y | I11: > 132kV* | J11: 94.94 | K11: 109.18 | L11: 73.81 | M11: 84.88 | N11: 289.99 | O11: 333.49 | P11: 40.51 | Q11: 46.59 | R11: 13.69 | S11: 15.74
A12: Nightsave Large | B12: NL | C12: 1 | D12: 1 | E12: NL11Y | H12: > 300km and ≤ 600km | I12: < 500V | J12: 109.37 | K12: 125.78 | L12: 84.85 | M12: 97.58 | N12: 325.66 | O12: 374.51 | P12: 45.47 | Q12: 52.29 | R12: 12.23 | S12: 14.06
A13: Nightsave Large | B13: NL | C13: 1 | D13: 2 | E13: NL12Y | I13: ≥ 500V & < 66kV | J13: 104.36 | K13: 120.01 | L13: 81.4 | M13: 93.61 | N13: 315.12 | O13: 362.39 | P13: 44 | Q13: 50.6 | R13: 11.24 | S13: 12.93
A14: Nightsave Large | B14: NL | C14: 1 | D14: 3 | E14: NL13Y | I14: ≥ 66kV & ≤ 132kV | J14: 103.59 | K14: 119.13 | L14: 80.46 | M14: 92.53 | N14: 303.61 | O14: 349.15 | P14: 42.42 | Q14: 48.78 | R14: 10.9 | S14: 12.54
A15: Nightsave Large | B15: NL | C15: 1 | D15: 4 | E15: NL14Y | I15: > 132kV* | J15: 96.89 | K15: 111.42 | L15: 75.33 | M15: 86.63 | N15: 292.93 | O15: 336.87 | P15: 40.91 | Q15: 47.05 | R15: 13.82 | S15: 15.89
A16: Nightsave Large | B16: NL | C16: 2 | D16: 1 | E16: NL21Y | H16: > 600km and ≤ 900km | I16: < 500V | J16: 110.41 | K16: 126.97 | L16: 85.65 | M16: 98.5 | N16: 328.96 | O16: 378.3 | P16: 45.95 | Q16: 52.84 | R16: 12.39 | S16: 14.25
A17: Nightsave Large | B17: NL | C17: 2 | D17: 2 | E17: NL22Y | I17: ≥ 500V & < 66kV | J17: 105.41 | K17: 121.22 | L17: 82.25 | M17: 94.59 | N17: 318.32 | O17: 366.07 | P17: 44.48 | Q17: 51.15 | R17: 11.31 | S17: 13.01
A18: Nightsave Large | B18: NL | C18: 2 | D18: 3 | E18: NL23Y | I18: ≥ 66kV & ≤ 132kV | J18: 104.62 | K18: 120.31 | L18: 81.26 | M18: 93.45 | N18: 306.66 | O18: 352.66 | P18: 42.83 | Q18: 49.25 | R18: 10.98 | S18: 12.63
A19: Nightsave Large | B19: NL | C19: 2 | D19: 4 | E19: NL24Y | I19: > 132kV* | J19: 97.86 | K19: 112.54 | L19: 76.09 | M19: 87.5 | N19: 295.89 | O19: 340.27 | P19: 41.35 | Q19: 47.55 | R19: 14.01 | S19: 16.11
A20: Nightsave Large | B20: NL | C20: 3 | D20: 1 | E20: NL31Y | H20: > 900km | I20: < 500V | J20: 111.59 | K20: 128.33 | L20: 86.52 | M20: 99.5 | N20: 332.2 | O20: 382.03 | P20: 46.4 | Q20: 53.36 | R20: 12.45 | S20: 14.32
A21: Nightsave Large | B21: NL | C21: 3 | D21: 2 | E21: NL32Y | I21: ≥ 500V & < 66kV | J21: 106.46 | K21: 122.43 | L21: 83.04 | M21: 95.5 | N21: 321.5 | O21: 369.73 | P21: 44.88 | Q21: 51.61 | R21: 11.44 | S21: 13.16
A22: Nightsave Large | B22: NL | C22: 3 | D22: 3 | E22: NL33Y | I22: ≥ 66kV & ≤ 132kV | J22: 105.67 | K22: 121.52 | L22: 82.05 | M22: 94.36 | N22: 309.76 | O22: 356.22 | P22: 43.29 | Q22: 49.78 | R22: 11.07 | S22: 12.73
A23: Nightsave Large | B23: NL | C23: 3 | D23: 4 | E23: NL34Y | I23: > 132kV* | J23: 98.93 | K23: 113.77 | L23: 76.94 | M23: 88.48 | N23: 298.87 | O23: 343.7 | P23: 41.72 | Q23: 47.98 | R23: 14.1 | S23: 16.22
I24: * 132 kV or Transmission connected
H26: Distribution network charges
H27: Voltage | J27: Network capacity charge [R/kVA/m] | L27: Network demand charge [R/kVA/m] | N27: Urban low voltage subsidy charge [R/kVA/m]
Q28: Voltage | R28: Ancillary service charge [c/kWh]
A29: Tariff | B29: Tariff nameBillcode | C29: Tx zone | D29: Voltage | E29: Billcode | K29: VAT incl | M29: VAT incl | O29: VAT incl | S29: VAT incl
A30: Nightsave Large | B30: NL | C30: 0 | D30: 1 | E30: NL01Y | H30: < 500V | J30: 24.29 | K30: =ROUND(J30 * (1 + VAT), 2) -> 27.93 | L30: 46.02 | M30: =ROUND(L30 * (1 + VAT), 2) -> 52.92 | N30: 0 | O30: =ROUND(N30 * (1 + VAT), 2) -> 0 | Q30: < 500V | R30: 0.57 | S30: =ROUND(R30 * (1 + VAT), 2) -> 0.66
A31: Nightsave Large | B31: NL | C31: 0 | D31: 2 | E31: NL02Y | H31: ≥ 500V & < 66kV | J31: 22.26 | K31: =ROUND(J31 * (1 + VAT), 2) -> 25.6 | L31: 42.21 | M31: =ROUND(L31 * (1 + VAT), 2) -> 48.54 | N31: 0 | O31: =ROUND(N31 * (1 + VAT), 2) -> 0 | Q31: ≥ 500V & < 66kV | R31: 0.55 | S31: =ROUND(R31 * (1 + VAT), 2) -> 0.63
A32: Nightsave Large | B32: NL | C32: 0 | D32: 3 | E32: NL03Y | H32: ≥ 66kV & ≤ 132kV | J32: 7.96 | K32: =ROUND(J32 * (1 + VAT), 2) -> 9.15 | L32: 14.73 | M32: =ROUND(L32 * (1 + VAT), 2) -> 16.94 | N32: 19.5 | O32: =ROUND(N32 * (1 + VAT), 2) -> 22.43 | Q32: ≥ 66kV & ≤ 132kV | R32: 0.51 | S32: =ROUND(R32 * (1 + VAT), 2) -> 0.59
A33: Nightsave Large | B33: NL | C33: 0 | D33: 4 | E33: NL04Y | H33: > 132kV / Transmission connected | J33: 0 | K33: =ROUND(J33 * (1 + VAT), 2) -> 0 | L33: 0 | M33: =ROUND(L33 * (1 + VAT), 2) -> 0 | N33: 19.5 | O33: =ROUND(N33 * (1 + VAT), 2) -> 22.43 | Q33: > 132kV* | R33: 0.48 | S33: =ROUND(R33 * (1 + VAT), 2) -> 0.55
Q34: * 132 kV or Transmission connected
H36: Customer categories | I36: Service charge [R/account/day] | K36: Administration charge [R/POD/day] | N36: Electrification and rural network subsidy charge [c/kWh]
A38: Tariff | B38: Tariff nameBillcode | C38: Tx zone | D38: Voltage | E38: Billcode | J38: VAT incl | L38: VAT incl
A39: Nightsave Large | B39: NL | C39: 0 | D39: 1 | E39: NL01Y | H39: >1 MVA | I39: 277.35 | J39: =ROUND(I39 * (1 + VAT), 2) -> 318.95 | K39: 125.02 | L39: =ROUND(K39 * (1 + VAT), 2) -> 143.77 | O39: VAT incl
A40: Nightsave Large | B40: NL | C40: 0 | D40: 1 | E40: NL01Y | H40: Key customers | I40: 5434.93 | J40: =ROUND(I40 * (1 + VAT), 2) -> 6250.17 | K40: 173.57 | L40: =ROUND(K40 * (1 + VAT), 2) -> 199.61 | N40: 10.8 | O40: =ROUND(N40 * (1 + VAT), 2) -> 12.42
A46: Tariff | B46: Tariff nameBillcode | C46: Tx zone | D46: Voltage | E46: Billcode
A47: Nightsave Large | B47: NL | C47: 0 | D47: 1 | E47: NL01Y

Sheet Nightsave Small NLA
G1: Back to menu
A2: Non-municipal | G2: Nightsave Urban Small – Non-local Authority | AF2: =SUM(#REF!,#REF!,#REF!,#REF!,#REF!,#REF!,#REF!,#REF!,#REF!) ->  | AG2: check value
J4: Active energy charge [c/kWh] | N4: Energy demand charge [R/kVA/m] | R4: Transmission network charges [R/kVA/m]
H5: Transmission zone | J5: High demand season [Jun - Aug] | L5: Low demand season [Sep - May] | N5: High demand season [Jun - Aug] | P5: Low demand season [Sep - May]
I6: Voltage
A7: Tariff | B7: Tariff nameBillcode | C7: Tx zone | D7: Voltage | E7: Billcode | K7: VAT incl | M7: VAT incl | O7: VAT incl | Q7: VAT incl | S7: VAT incl
A8: Nightsave Small | B8: NS | C8: 0 | D8: 1 | E8: =B8&C8&D8&IF($A$2="Non-municipal","N",IF($A$2="Municiple","Y","error")) -> NS01N | H8: ≤ 300km | I8: < 500V | J8: 103.08 | K8: =ROUND(J8 * (1 + VAT), 2) -> 118.54 | L8: 80.13 | M8: =ROUND(L8 * (1 + VAT), 2) -> 92.15 | N8: 220.27 | O8: =ROUND(N8 * (1 + VAT), 2) -> 253.31 | P8: 28.39 | Q8: =ROUND(P8 * (1 + VAT), 2) -> 32.65 | R8: 11.94 | S8: =ROUND(R8 * (1 + VAT), 2) -> 13.73
A9: Nightsave Small | B9: NS | C9: 0 | D9: 2 | E9: =B9&C9&D9&IF($A$2="Non-municipal","N",IF($A$2="Municiple","Y","error")) -> NS02N | I9: ≥ 500V & < 66kV | J9: 97.61 | K9: 112.25 | L9: 76.19 | M9: 87.62 | N9: 213.18 | O9: 245.16 | P9: 27.43 | Q9: 31.54 | R9: 10.91 | S9: 12.55
A10: Nightsave Small | B10: NS | C10: 0 | D10: 3 | E10: NS03N | I10: ≥ 66kV & ≤ 132kV | J10: 96.89 | K10: 111.42 | L10: 75.28 | M10: 86.57 | N10: 205.34 | O10: 236.14 | P10: 26.41 | Q10: 30.37 | R10: 10.62 | S10: 12.21
A11: Nightsave Small | B11: NS | C11: 0 | D11: 4 | E11: NS04N | I11: > 132kV* | J11: 90.63 | K11: 104.22 | L11: 70.47 | M11: 81.04 | N11: 198.16 | O11: 227.88 | P11: 25.49 | Q11: 29.31 | R11: 13.43 | S11: 15.44
A12: Nightsave Small | B12: NS | C12: 1 | D12: 1 | E12: NS11N | H12: > 300km and ≤ 600km | I12: < 500V | J12: 104.46 | K12: 120.13 | L12: 81.01 | M12: 93.16 | N12: 222.53 | O12: 255.91 | P12: 28.62 | Q12: 32.91 | R12: 12.02 | S12: 13.82
A13: Nightsave Small | B13: NS | C13: 1 | D13: 2 | E13: NS12N | I13: ≥ 500V & < 66kV | J13: 99.66 | K13: 114.61 | L13: 77.75 | M13: 89.41 | N13: 215.32 | O13: 247.62 | P13: 27.71 | Q13: 31.87 | R13: 11.01 | S13: 12.66
A14: Nightsave Small | B14: NS | C14: 1 | D14: 3 | E14: NS13N | I14: ≥ 66kV & ≤ 132kV | J14: 98.92 | K14: 113.76 | L14: 76.81 | M14: 88.33 | N14: 207.45 | O14: 238.57 | P14: 26.69 | Q14: 30.69 | R14: 10.7 | S14: 12.31
A15: Nightsave Small | B15: NS | C15: 1 | D15: 4 | E15: NS14N | I15: > 132kV* | J15: 92.55 | K15: 106.43 | L15: 71.91 | M15: 82.7 | N15: 200.14 | O15: 230.16 | P15: 25.75 | Q15: 29.61 | R15: 13.55 | S15: 15.58
A16: Nightsave Small | B16: NS | C16: 2 | D16: 1 | E16: NS21N | H16: > 600km and ≤ 900km | I16: < 500V | J16: 105.43 | K16: 121.24 | L16: 81.8 | M16: 94.07 | N16: 224.71 | O16: 258.42 | P16: 28.88 | Q16: 33.21 | R16: 12.16 | S16: 13.98
A17: Nightsave Small | B17: NS | C17: 2 | D17: 2 | E17: NS22N | I17: ≥ 500V & < 66kV | J17: 100.65 | K17: 115.75 | L17: 78.55 | M17: 90.33 | N17: 217.53 | O17: 250.16 | P17: 27.98 | Q17: 32.18 | R17: 11.11 | S17: 12.78
A18: Nightsave Small | B18: NS | C18: 2 | D18: 3 | E18: NS23N | I18: ≥ 66kV & ≤ 132kV | J18: 99.88 | K18: 114.86 | L18: 77.57 | M18: 89.21 | N18: 209.55 | O18: 240.98 | P18: 26.96 | Q18: 31 | R18: 10.77 | S18: 12.39
A19: Nightsave Small | B19: NS | C19: 2 | D19: 4 | E19: NS24N | I19: > 132kV* | J19: 93.45 | K19: 107.47 | L19: 72.65 | M19: 83.55 | N19: 202.11 | O19: 232.43 | P19: 26 | Q19: 29.9 | R19: 13.75 | S19: 15.81
A20: Nightsave Small | B20: NS | C20: 3 | D20: 1 | E20: NS31N | H20: > 900km | I20: < 500V | J20: 106.56 | K20: 122.54 | L20: 82.62 | M20: 95.01 | N20: 227.01 | O20: 261.06 | P20: 29.19 | Q20: 33.57 | R20: 12.24 | S20: 14.08
A21: Nightsave Small | B21: NS | C21: 3 | D21: 2 | E21: NS32N | I21: ≥ 500V & < 66kV | J21: 101.62 | K21: 116.86 | L21: 79.31 | M21: 91.21 | N21: 219.66 | O21: 252.61 | P21: 28.27 | Q21: 32.51 | R21: 11.24 | S21: 12.93
A22: Nightsave Small | B22: NS | C22: 3 | D22: 3 | E22: NS33N | I22: ≥ 66kV & ≤ 132kV | J22: 100.92 | K22: 116.06 | L22: 78.32 | M22: 90.07 | N22: 211.68 | O22: 243.43 | P22: 27.25 | Q22: 31.34 | R22: 10.87 | S22: 12.5
A23: Nightsave Small | B23: NS | C23: 3 | D23: 4 | E23: NS34N | I23: > 132kV* | J23: 94.44 | K23: 108.61 | L23: 73.44 | M23: 84.46 | N23: 204.23 | O23: 234.86 | P23: 26.3 | Q23: 30.25 | R23: 13.85 | S23: 15.93
I24: * 132 kV or Transmission connected
H26: Distribution network charges
J27: Network capacity charge [R/kVA/m] | L27: Network demand charge [R/kVA/m] | N27: Urban low voltage subsidy charge [R/kVA/m]
H28: Voltage | Q28: Voltage | R28: Ancillary service charge [c/kWh]
A29: Tariff | B29: Tariff nameBillcode | C29: Tx zone | D29: Voltage | E29: Billcode | K29: VAT incl | M29: VAT incl | O29: VAT incl | S29: VAT incl
A30: Nightsave Small | B30: NS | C30: 0 | D30: 1 | E30: =B30&C30&D30&IF($A$2="Non-municipal","N",IF($A$2="Municiple","Y","error")) -> NS01N | H30: < 500V | J30: 23.73 | K30: =ROUND(J30 * (1 + VAT), 2) -> 27.29 | L30: 44.99 | M30: =ROUND(L30 * (1 + VAT), 2) -> 51.74 | N30: 0 | O30: =ROUND(N30 * (1 + VAT), 2) -> 0 | Q30: < 500V | R30: 0.55 | S30: =ROUND(R30 * (1 + VAT), 2) -> 0.63
A31: Nightsave Small | B31: NS | C31: 0 | D31: 2 | E31: =B31&C31&D31&IF($A$2="Non-municipal","N",IF($A$2="Municiple","Y","error")) -> NS02N | H31: ≥ 500V & < 66kV | J31: 21.76 | K31: =ROUND(J31 * (1 + VAT), 2) -> 25.02 | L31: 41.27 | M31: =ROUND(L31 * (1 + VAT), 2) -> 47.46 | N31: 0 | O31: =ROUND(N31 * (1 + VAT), 2) -> 0 | Q31: ≥ 500V & < 66kV | R31: 0.54 | S31: =ROUND(R31 * (1 + VAT), 2) -> 0.62
A32: Nightsave Small | B32: NS | C32: 0 | D32: 3 | E32: =B32&C32&D32&IF($A$2="Non-municipal","N",IF($A$2="Municiple","Y","error")) -> NS03N | H32: ≥ 66kV & ≤ 132kV | J32: 7.77 | K32: =ROUND(J32 * (1 + VAT), 2) -> 8.94 | L32: 14.39 | M32: =ROUND(L32 * (1 + VAT), 2) -> 16.55 | N32: 19.17 | O32: =ROUND(N32 * (1 + VAT), 2) -> 22.05 | Q32: ≥ 66kV & ≤ 132kV | R32: 0.52 | S32: =ROUND(R32 * (1 + VAT), 2) -> 0.6
A33: Nightsave Small | B33: NS | C33: 0 | D33: 4 | E33: =B33&C33&D33&IF($A$2="Non-municipal","N",IF($A$2="Municiple","Y","error")) -> NS04N | H33: > 132kV / Transmission connected | J33: 0 | K33: =ROUND(J33 * (1 + VAT), 2) -> 0 | L33: 0 | M33: =ROUND(L33 * (1 + VAT), 2) -> 0 | N33: 19.17 | O33: =ROUND(N33 * (1 + VAT), 2) -> 22.05 | Q33: > 132kV* | R33: 0.48 | S33: =ROUND(R33 * (1 + VAT), 2) -> 0.55
Q34: * 132 kV or Transmission connected
H36: Customer categories | I36: Service charge [R/account/day] | K36: Administration charge [R/POD/day] | N36: Electrification and rural network subsidy charge [c/kWh] | P36: Affordability subsidy charge [c/kWh] Only payable by non-local authority tariffs
A38: Tariff | B38: Tariff nameBillcode | C38: Tx zone | D38: Voltage | E38: Billcode | J38: VAT incl | L38: VAT incl
A39: Nightsave Small | B39: NS | C39: 0 | D39: 1 | E39: =B39&C39&D39&IF($A$2="Non-municipal","N",IF($A$2="Municiple","Y","error")) -> NS01N | H39: ≤ 100 kVA | I39: 19.39 | J39: =ROUND(I39 * (1 + VAT), 2) -> 22.3 | K39: 4.26 | L39: =ROUND(K39 * (1 + VAT), 2) -> 4.9 | O39: VAT incl | Q39: VAT incl
A40: Nightsave Small | B40: NS | C40: 0 | D40: 1 | E40: =B40&C40&D40&IF($A$2="Non-municipal","N",IF($A$2="Municiple","Y","error")) -> NS01N | H40: > 100 kVA & ≤ 500 kVA | I40: 88.53 | J40: =ROUND(I40 * (1 + VAT), 2) -> 101.81 | K40: 24.83 | L40: =ROUND(K40 * (1 + VAT), 2) -> 28.55 | N40: 10.61 | O40: =ROUND(N40 * (1 + VAT), 2) -> 12.2 | P40: 4.98 | Q40: =ROUND(P40 * (1 + VAT), 2) -> 5.73
A41: Nightsave Small | B41: NS | C41: 0 | D41: 1 | E41: =B41&C41&D41&IF($A$2="Non-municipal","N",IF($A$2="Municiple","Y","error")) -> NS01N | H41: > 500 kVA & ≤ 1 MVA | I41: 272.39 | J41: =ROUND(I41 * (1 + VAT), 2) -> 313.25 | K41: 49.3 | L41: =ROUND(K41 * (1 + VAT), 2) -> 56.7
A42: Nightsave Small | B42: NS | C42: 0 | D42: 1 | E42: =B42&C42&D42&IF($A$2="Non-municipal","N",IF($A$2="Municiple","Y","error")) -> NS01N | H42: Key customers | I42: 5337.86 | J42: =ROUND(I42 * (1 + VAT), 2) -> 6138.54 | K42: 170.47 | L42: =ROUND(K42 * (1 + VAT), 2) -> 196.04
A47: Tariff | B47: Tariff nameBillcode | C47: Tx zone | D47: Voltage | E47: Billcode
A48: Nightsave Small | B48: NS | C48: 0 | D48: 1 | E48: =B48&C48&D48&IF($A$2="Non-municipal","N",IF($A$2="Municiple","Y","error")) -> NS01N

Sheet Nightsave Small Munic
G1: Back to menu
A2: Municiple | G2: Nightsave Urban Small – Local Authority | AF2: =SUM(#REF!,#REF!,#REF!,#REF!,#REF!,#REF!,#REF!,#REF!,#REF!) ->  | AG2: check value
J4: Active energy charge [c/kWh] | N4: Energy demand charge [R/kVA/m] | R4: Transmission network charges [R/kVA/m]
H5: Transmission zone | J5: High demand season [Jun - Aug] | L5: Low demand season [Sep - May] | N5: High demand season [Jun - Aug] | P5: Low demand season [Sep - May]
I6: Voltage
A7: Tariff | B7: Tariff nameBillcode | C7: Tx zone | D7: Voltage | E7: Billcode | K7: VAT incl | M7: VAT incl | O7: VAT incl | Q7: VAT incl | S7: VAT incl
A8: Nightsave Small | B8: NS | C8: 0 | D8: 1 | E8: NS01Y | H8: ≤ 300km | I8: < 500V | J8: 107.96 | K8: =ROUND(J8 * (1 + VAT), 2) -> 124.15 | L8: 83.94 | M8: =ROUND(L8 * (1 + VAT), 2) -> 96.53 | N8: 226.35 | O8: =ROUND(N8 * (1 + VAT), 2) -> 260.3 | P8: 29.19 | Q8: =ROUND(P8 * (1 + VAT), 2) -> 33.57 | R8: 12.18 | S8: =ROUND(R8 * (1 + VAT), 2) -> 14.01
A9: Nightsave Small | B9: NS | C9: 0 | D9: 2 | E9: NS02Y | I9: ≥ 500V & < 66kV | J9: 102.23 | K9: 117.56 | L9: 79.8 | M9: 91.77 | N9: 219.06 | O9: 251.92 | P9: 28.19 | Q9: 32.42 | R9: 11.11 | S9: 12.78
A10: Nightsave Small | B10: NS | C10: 0 | D10: 3 | E10: NS03Y | I10: ≥ 66kV & ≤ 132kV | J10: 101.47 | K10: 116.69 | L10: 78.81 | M10: 90.63 | N10: 211.04 | O10: 242.7 | P10: 27.13 | Q10: 31.2 | R10: 10.81 | S10: 12.43
A11: Nightsave Small | B11: NS | C11: 0 | D11: 4 | E11: NS04Y | I11: > 132kV* | J11: 94.94 | K11: 109.18 | L11: 73.81 | M11: 84.88 | N11: 203.64 | O11: 234.19 | P11: 26.2 | Q11: 30.13 | R11: 13.69 | S11: 15.74
A12: Nightsave Small | B12: NS | C12: 1 | D12: 1 | E12: NS11Y | H12: > 300km and ≤ 600km | I12: < 500V | J12: 109.37 | K12: 125.78 | L12: 84.85 | M12: 97.58 | N12: 228.69 | O12: 262.99 | P12: 29.43 | Q12: 33.84 | R12: 12.23 | S12: 14.06
A13: Nightsave Small | B13: NS | C13: 1 | D13: 2 | E13: NS12Y | I13: ≥ 500V & < 66kV | J13: 104.36 | K13: 120.01 | L13: 81.4 | M13: 93.61 | N13: 221.33 | O13: 254.53 | P13: 28.45 | Q13: 32.72 | R13: 11.24 | S13: 12.93
A14: Nightsave Small | B14: NS | C14: 1 | D14: 3 | E14: NS13Y | I14: ≥ 66kV & ≤ 132kV | J14: 103.59 | K14: 119.13 | L14: 80.46 | M14: 92.53 | N14: 213.22 | O14: 245.2 | P14: 27.4 | Q14: 31.51 | R14: 10.9 | S14: 12.54
A15: Nightsave Small | B15: NS | C15: 1 | D15: 4 | E15: NS14Y | I15: > 132kV* | J15: 96.89 | K15: 111.42 | L15: 75.33 | M15: 86.63 | N15: 205.68 | O15: 236.53 | P15: 26.46 | Q15: 30.43 | R15: 13.82 | S15: 15.89
A16: Nightsave Small | B16: NS | C16: 2 | D16: 1 | E16: NS21Y | H16: > 600km and ≤ 900km | I16: < 500V | J16: 110.41 | K16: 126.97 | L16: 85.65 | M16: 98.5 | N16: 230.97 | O16: 265.62 | P16: 29.7 | Q16: 34.16 | R16: 12.39 | S16: 14.25
A17: Nightsave Small | B17: NS | C17: 2 | D17: 2 | E17: NS22Y | I17: ≥ 500V & < 66kV | J17: 105.41 | K17: 121.22 | L17: 82.25 | M17: 94.59 | N17: 223.53 | O17: 257.06 | P17: 28.77 | Q17: 33.09 | R17: 11.31 | S17: 13.01
A18: Nightsave Small | B18: NS | C18: 2 | D18: 3 | E18: NS23Y | I18: ≥ 66kV & ≤ 132kV | J18: 104.62 | K18: 120.31 | L18: 81.26 | M18: 93.45 | N18: 215.36 | O18: 247.66 | P18: 27.69 | Q18: 31.84 | R18: 10.98 | S18: 12.63
A19: Nightsave Small | B19: NS | C19: 2 | D19: 4 | E19: NS24Y | I19: > 132kV* | J19: 97.86 | K19: 112.54 | L19: 76.09 | M19: 87.5 | N19: 207.72 | O19: 238.88 | P19: 26.71 | Q19: 30.72 | R19: 14.01 | S19: 16.11
A20: Nightsave Small | B20: NS | C20: 3 | D20: 1 | E20: NS31Y | H20: > 900km | I20: < 500V | J20: 111.59 | K20: 128.33 | L20: 86.52 | M20: 99.5 | N20: 233.29 | O20: 268.28 | P20: 29.98 | Q20: 34.48 | R20: 12.45 | S20: 14.32
A21: Nightsave Small | B21: NS | C21: 3 | D21: 2 | E21: NS32Y | I21: ≥ 500V & < 66kV | J21: 106.46 | K21: 122.43 | L21: 83.04 | M21: 95.5 | N21: 225.74 | O21: 259.6 | P21: 29.04 | Q21: 33.4 | R21: 11.44 | S21: 13.16
A22: Nightsave Small | B22: NS | C22: 3 | D22: 3 | E22: NS33Y | I22: ≥ 66kV & ≤ 132kV | J22: 105.67 | K22: 121.52 | L22: 82.05 | M22: 94.36 | N22: 217.53 | O22: 250.16 | P22: 27.98 | Q22: 32.18 | R22: 11.07 | S22: 12.73
A23: Nightsave Small | B23: NS | C23: 3 | D23: 4 | E23: NS34Y | I23: > 132kV* | J23: 98.93 | K23: 113.77 | L23: 76.94 | M23: 88.48 | N23: 209.9 | O23: 241.39 | P23: 27.02 | Q23: 31.07 | R23: 14.1 | S23: 16.22
I24: * 132 kV or Transmission connected
H26: Distribution network charges
J27: Network capacity charge [R/kVA/m] | L27: Network demand charge [R/kVA/m] | N27: Urban low voltage subsidy charge [R/kVA/m]
H28: Voltage | Q28: Voltage | R28: Ancillary service charge [c/kWh]
A29: Tariff | B29: Tariff nameBillcode | C29: Tx zone | D29: Voltage | E29: Billcode | K29: VAT incl | M29: VAT incl | O29: VAT incl | S29: VAT incl
A30: Nightsave Small | B30: NS | C30: 0 | D30: 1 | E30: NS01Y | H30: < 500V | J30: 24.29 | K30: =ROUND(J30 * (1 + VAT), 2) -> 27.93 | L30: 46.02 | M30: =ROUND(L30 * (1 + VAT), 2) -> 52.92 | N30: 0 | O30: =ROUND(N30 * (1 + VAT), 2) -> 0 | Q30: < 500V | R30: 0.57 | S30: =ROUND(R30 * (1 + VAT), 2) -> 0.66
A31: Nightsave Small | B31: NS | C31: 0 | D31: 2 | E31: NS02Y | H31: ≥ 500V & < 66kV | J31: 22.26 | K31: =ROUND(J31 * (1 + VAT), 2) -> 25.6 | L31: 42.21 | M31: =ROUND(L31 * (1 + VAT), 2) -> 48.54 | N31: 0 | O31: =ROUND(N31 * (1 + VAT), 2) -> 0 | Q31: ≥ 500V & < 66kV | R31: 0.55 | S31: =ROUND(R31 * (1 + VAT), 2) -> 0.63
A32: Nightsave Small | B32: NS | C32: 0 | D32: 3 | E32: NS03Y | H32: ≥ 66kV & ≤ 132kV | J32: 7.96 | K32: =ROUND(J32 * (1 + VAT), 2) -> 9.15 | L32: 14.73 | M32: =ROUND(L32 * (1 + VAT), 2) -> 16.94 | N32: 19.5 | O32: =ROUND(N32 * (1 + VAT), 2) -> 22.43 | Q32: ≥ 66kV & ≤ 132kV | R32: 0.51 | S32: =ROUND(R32 * (1 + VAT), 2) -> 0.59
A33: Nightsave Small | B33: NS | C33: 0 | D33: 4 | E33: NS04Y | H33: > 132kV / Transmission connected | J33: 0 | K33: =ROUND(J33 * (1 + VAT), 2) -> 0 | L33: 0 | M33: =ROUND(L33 * (1 + VAT), 2) -> 0 | N33: 19.5 | O33: =ROUND(N33 * (1 + VAT), 2) -> 22.43 | Q33: > 132kV* | R33: 0.48 | S33: =ROUND(R33 * (1 + VAT), 2) -> 0.55
Q34: * 132 kV or Transmission connected
H36: Customer categories | I36: Service charge [R/account/day] | K36: Administration charge [R/POD/day] | N36: Electrification and rural network subsidy charge [c/kWh]
A38: Tariff | B38: Tariff nameBillcode | C38: Tx zone | D38: Voltage | E38: Billcode | J38: VAT incl | L38: VAT incl
A39: Nightsave Small | B39: NS | C39: 0 | D39: 1 | E39: NS01Y | H39: ≤ 100 kVA | I39: 19.72 | J39: =ROUND(I39 * (1 + VAT), 2) -> 22.68 | K39: 4.32 | L39: =ROUND(K39 * (1 + VAT), 2) -> 4.97 | O39: VAT incl
A40: Nightsave Small | B40: NS | C40: 0 | D40: 1 | E40: NS01Y | H40: > 100 kVA & ≤ 500 kVA | I40: 90.12 | J40: =ROUND(I40 * (1 + VAT), 2) -> 103.64 | K40: 25.24 | L40: =ROUND(K40 * (1 + VAT), 2) -> 29.03 | N40: 10.8 | O40: =ROUND(N40 * (1 + VAT), 2) -> 12.42
A41: Nightsave Small | B41: NS | C41: 0 | D41: 1 | E41: NS01Y | H41: > 500 kVA & ≤ 1 MVA | I41: 277.35 | J41: =ROUND(I41 * (1 + VAT), 2) -> 318.95 | K41: 50.21 | L41: =ROUND(K41 * (1 + VAT), 2) -> 57.74
A42: Nightsave Small | B42: NS | C42: 0 | D42: 1 | E42: NS01Y | H42: Key customers | I42: 5434.93 | J42: =ROUND(I42 * (1 + VAT), 2) -> 6250.17 | K42: 173.57 | L42: =ROUND(K42 * (1 + VAT), 2) -> 199.61
A47: Tariff | B47: Tariff nameBillcode | C47: Tx zone | D47: Voltage | E47: Billcode
A48: Nightsave Small | B48: NS | C48: 0 | D48: 1 | E48: NS01Y

Sheet Megaflex NLA
G1: Back to menu
A2: Non-municipal | G2: Megaflex – Non-local Authority | AF2: =SUM(J8:T23,V8:V23,#REF!,#REF!,#REF!,#REF!,H26:J26,L26) ->  | AG2: check value
J4: Active energy charge [c/kWh] | V4: Transmission network charges [R/kVA/m]
H5: Transmission zone | J5: High demand season [Jun - Aug] | P5: Low demand season [Sep - May]
I6: Voltage | J6: Peak | L6: Standard | N6: Off Peak | P6: Peak | R6: Standard | T6: Off Peak
A7: Tariff | B7: Tariff nameBillcode | C7: Tx zone | D7: Voltage | E7: Billcode | K7: VAT incl | M7: VAT incl | O7: VAT incl | Q7: VAT incl | S7: VAT incl | U7: VAT incl | W7: VAT incl
A8: Megaflex | B8: Me | C8: 0 | D8: 1 | E8: =B8&C8&D8&IF($A$2="Non-municipal","N",IF($A$2="Municiple","Y","error")) -> Me01N | H8: ≤ 300km | I8: < 500V | J8: 417.36 | K8: =ROUND(J8 * (1 + VAT), 2) -> 479.96 | L8: 126.98 | M8: =ROUND(L8 * (1 + VAT), 2) -> 146.03 | N8: 69.34 | O8: =ROUND(N8 * (1 + VAT), 2) -> 79.74 | P8: 136.67 | Q8: =ROUND(P8 * (1 + VAT), 2) -> 157.17 | R8: 94.3 | S8: =ROUND(R8 * (1 + VAT), 2) -> 108.45 | T8: 60.12 | U8: =ROUND(T8 * (1 + VAT), 2) -> 69.14 | V8: 11.94 | W8: =ROUND(V8 * (1 + VAT), 2) -> 13.73
A9: Megaflex | B9: Me | C9: 0 | D9: 2 | E9: =B9&C9&D9&IF($A$2="Non-municipal","N",IF($A$2="Municiple","Y","error")) -> Me02N | I9: ≥ 500V & < 66kV | J9: 410.81 | K9: 472.43 | L9: 124.45 | M9: 143.12 | N9: 67.59 | O9: 77.73 | P9: 133.99 | Q9: 154.09 | R9: 92.24 | S9: 106.08 | T9: 58.52 | U9: 67.3 | V9: 10.91 | W9: 12.55
A10: Megaflex | B10: Me | C10: 0 | D10: 3 | E10: Me03N | I10: ≥ 66kV & ≤ 132kV | J10: 397.8 | K10: 457.47 | L10: 120.5 | M10: 138.58 | N10: 65.45 | O10: 75.27 | P10: 129.78 | Q10: 149.25 | R10: 89.3 | S10: 102.7 | T10: 56.68 | U10: 65.18 | V10: 10.62 | W10: 12.21
A11: Megaflex | B11: Me | C11: 0 | D11: 4 | E11: Me04N | I11: > 132kV* | J11: 374.91 | K11: 431.15 | L11: 113.56 | M11: 130.59 | N11: 61.68 | O11: 70.93 | P11: 122.33 | Q11: 140.68 | R11: 84.17 | S11: 96.8 | T11: 53.41 | U11: 61.42 | V11: 13.43 | W11: 15.44
A12: Megaflex | B12: Me | C12: 1 | D12: 1 | E12: Me11N | H12: > 300km and ≤ 600km | I12: < 500V | J12: 420.76 | K12: 483.87 | L12: 127.49 | M12: 146.61 | N12: 69.22 | O12: 79.6 | P12: 137.27 | Q12: 157.86 | R12: 94.51 | S12: 108.69 | T12: 59.96 | U12: 68.95 | V12: 12.02 | W12: 13.82
A13: Megaflex | B13: Me | C13: 1 | D13: 2 | E13: Me12N | I13: ≥ 500V & < 66kV | J13: 414.91 | K13: 477.15 | L13: 125.68 | M13: 144.53 | N13: 68.25 | O13: 78.49 | P13: 135.37 | Q13: 155.68 | R13: 93.15 | S13: 107.12 | T13: 59.09 | U13: 67.95 | V13: 11.01 | W13: 12.66
A14: Megaflex | B14: Me | C14: 1 | D14: 3 | E14: Me13N | I14: ≥ 66kV & ≤ 132kV | J14: 401.71 | K14: 461.97 | L14: 121.68 | M14: 139.93 | N14: 66.06 | O14: 75.97 | P14: 131.03 | Q14: 150.68 | R14: 90.18 | S14: 103.71 | T14: 57.22 | U14: 65.8 | V14: 10.7 | W14: 12.31
A15: Megaflex | B15: Me | C15: 1 | D15: 4 | E15: Me14N | I15: > 132kV* | J15: 378.67 | K15: 435.47 | L15: 114.73 | M15: 131.94 | N15: 62.26 | O15: 71.6 | P15: 123.51 | Q15: 142.04 | R15: 84.99 | S15: 97.74 | T15: 53.91 | U15: 62 | V15: 13.55 | W15: 15.58
A16: Megaflex | B16: Me | C16: 2 | D16: 1 | E16: Me21N | H16: > 600km and ≤ 900km | I16: < 500V | J16: 424.95 | K16: 488.69 | L16: 128.73 | M16: 148.04 | N16: 69.88 | O16: 80.36 | P16: 138.62 | Q16: 159.41 | R16: 95.42 | S16: 109.73 | T16: 60.51 | U16: 69.59 | V16: 12.16 | W16: 13.98
A17: Megaflex | B17: Me | C17: 2 | D17: 2 | E17: Me22N | I17: ≥ 500V & < 66kV | J17: 419.08 | K17: 481.94 | L17: 126.97 | M17: 146.02 | N17: 68.94 | O17: 79.28 | P17: 136.7 | Q17: 157.21 | R17: 94.1 | S17: 108.22 | T17: 59.69 | U17: 68.64 | V17: 11.11 | W17: 12.78
A18: Megaflex | B18: Me | C18: 2 | D18: 3 | E18: Me23N | I18: ≥ 66kV & ≤ 132kV | J18: 405.81 | K18: 466.68 | L18: 122.94 | M18: 141.38 | N18: 66.75 | O18: 76.76 | P18: 132.37 | Q18: 152.23 | R18: 91.12 | S18: 104.79 | T18: 57.81 | U18: 66.48 | V18: 10.77 | W18: 12.39
A19: Megaflex | B19: Me | C19: 2 | D19: 4 | E19: Me24N | I19: > 132kV* | J19: 382.48 | K19: 439.85 | L19: 115.85 | M19: 133.23 | N19: 62.95 | O19: 72.39 | P19: 124.76 | Q19: 143.47 | R19: 85.86 | S19: 98.74 | T19: 54.48 | U19: 62.65 | V19: 13.75 | W19: 15.81
A20: Megaflex | B20: Me | C20: 3 | D20: 1 | E20: Me31N | H20: > 900km | I20: < 500V | J20: 429.23 | K20: 493.61 | L20: 130.08 | M20: 149.59 | N20: 70.6 | O20: 81.19 | P20: 140.03 | Q20: 161.03 | R20: 96.36 | S20: 110.81 | T20: 61.15 | U20: 70.32 | V20: 12.24 | W20: 14.08
A21: Megaflex | B21: Me | C21: 3 | D21: 2 | E21: Me32N | I21: ≥ 500V & < 66kV | J21: 423.25 | K21: 486.74 | L21: 128.2 | M21: 147.43 | N21: 69.59 | O21: 80.03 | P21: 138.04 | Q21: 158.75 | R21: 94.99 | S21: 109.24 | T21: 60.28 | U21: 69.32 | V21: 11.24 | W21: 12.93
A22: Megaflex | B22: Me | C22: 3 | D22: 3 | E22: Me33N | I22: ≥ 66kV & ≤ 132kV | J22: 409.88 | K22: 471.36 | L22: 124.15 | M22: 142.77 | N22: 67.41 | O22: 77.52 | P22: 133.69 | Q22: 153.74 | R22: 92.02 | S22: 105.82 | T22: 58.38 | U22: 67.14 | V22: 10.87 | W22: 12.5
A23: Megaflex | B23: Me | C23: 3 | D23: 4 | E23: Me34N | I23: > 132kV* | J23: 386.21 | K23: 444.14 | L23: 117.04 | M23: 134.6 | N23: 63.59 | O23: 73.13 | P23: 126.06 | Q23: 144.97 | R23: 86.8 | S23: 99.82 | T23: 55.09 | U23: 63.35 | V23: 13.85 | W23: 15.93
I24: * 132 kV or Transmission connected
H26: Distribution network charges
J27: Network capacity charge [R/kVA/m] | L27: Network demand charge [R/kVA/m] | N27: Urban low voltage subsidy charge [R/kVA/m]
H28: Voltage | Q28: Voltage | S28: Ancillary service charge [c/kWh]
A29: Tariff | B29: Tariff nameBillcode | C29: Tx zone | D29: Voltage | E29: Billcode | K29: VAT incl | M29: VAT incl | O29: VAT incl | T29: VAT incl
A30: Megaflex | B30: Me | C30: 0 | D30: 1 | E30: =B30&C30&D30&IF($A$2="Non-municipal","N",IF($A$2="Municiple","Y","error")) -> Me01N | H30: < 500V | J30: 23.73 | K30: =ROUND(J30 * (1 + VAT), 2) -> 27.29 | L30: 44.99 | M30: =ROUND(L30 * (1 + VAT), 2) -> 51.74 | N30: 0 | O30: =ROUND(N30 * (1 + VAT), 2) -> 0 | Q30: < 500V | S30: 0.55 | T30: =ROUND(S30 * (1 + VAT), 2) -> 0.63
A31: Megaflex | B31: Me | C31: 0 | D31: 2 | E31: =B31&C31&D31&IF($A$2="Non-municipal","N",IF($A$2="Municiple","Y","error")) -> Me02N | H31: ≥ 500V & < 66kV | J31: 21.76 | K31: =ROUND(J31 * (1 + VAT), 2) -> 25.02 | L31: 41.27 | M31: =ROUND(L31 * (1 + VAT), 2) -> 47.46 | N31: 0 | O31: =ROUND(N31 * (1 + VAT), 2) -> 0 | Q31: ≥ 500V & < 66kV | S31: 0.54 | T31: =ROUND(S31 * (1 + VAT), 2) -> 0.62
A32: Megaflex | B32: Me | C32: 0 | D32: 3 | E32: =B32&C32&D32&IF($A$2="Non-municipal","N",IF($A$2="Municiple","Y","error")) -> Me03N | H32: ≥ 66kV & ≤ 132kV | J32: 7.77 | K32: =ROUND(J32 * (1 + VAT), 2) -> 8.94 | L32: 14.39 | M32: =ROUND(L32 * (1 + VAT), 2) -> 16.55 | N32: 19.17 | O32: =ROUND(N32 * (1 + VAT), 2) -> 22.05 | Q32: ≥ 66kV & ≤ 132kV | S32: 0.52 | T32: =ROUND(S32 * (1 + VAT), 2) -> 0.6
A33: Megaflex | B33: Me | C33: 0 | D33: 4 | E33: =B33&C33&D33&IF($A$2="Non-municipal","N",IF($A$2="Municiple","Y","error")) -> Me04N | H33: > 132kV* | J33: 0 | K33: =ROUND(J33 * (1 + VAT), 2) -> 0 | L33: 0 | M33: =ROUND(L33 * (1 + VAT), 2) -> 0 | N33: 19.17 | O33: =ROUND(N33 * (1 + VAT), 2) -> 22.05 | Q33: > 132kV* | S33: 0.48 | T33: =ROUND(S33 * (1 + VAT), 2) -> 0.55
H34: * 132 kV or Transmission connected | Q34: * 132 kV or Transmission connected
H36: Customer categories | J36: Service charge [R/account/day] | L36: Administration charge [R/POD/day] | Q36: Reactive energy charge [c/kVArh]
Q37: High season | S37: Low season
A38: Tariff | B38: Tariff nameBillcode | C38: Tx zone | D38: Voltage | E38: Billcode | K38: VAT incl | M38: VAT incl | R38: VAT incl | T38: VAT incl
A39: Megaflex | B39: Me | C39: 0 | D39: 1 | E39: =B39&C39&D39&IF($A$2="Non-municipal","N",IF($A$2="Municiple","Y","error")) -> Me01N | H39: > 1 MVA | J39: 272.39 | K39: =ROUND(J39 * (1 + VAT), 2) -> 313.25 | L39: 122.76 | M39: =ROUND(L39 * (1 + VAT), 2) -> 141.17 | Q39: 19.19 | R39: =ROUND(Q39 * (1 + VAT), 2) -> 22.07 | S39: 0 | T39: =ROUND(S39 * (1 + VAT), 2) -> 0
A40: Megaflex | B40: Me | C40: 0 | D40: 1 | E40: =B40&C40&D40&IF($A$2="Non-municipal","N",IF($A$2="Municiple","Y","error")) -> Me01N | H40: Key customers | J40: 5337.86 | K40: =ROUND(J40 * (1 + VAT), 2) -> 6138.54 | L40: 170.47 | M40: =ROUND(L40 * (1 + VAT), 2) -> 196.04
H42: Electrification and rural network subsidy charge [c/kWh] | J42: Affordability subsidy charge [c/kWh] Only payable by non-local authority tariffs
A45: Tariff | B45: Tariff nameBillcode | C45: Tx zone | D45: Voltage | E45: Billcode | I45: VAT incl | K45: VAT incl
A46: Megaflex | B46: Me | C46: 0 | D46: 1 | E46: =B46&C46&D46&IF($A$2="Non-municipal","N",IF($A$2="Municiple","Y","error")) -> Me01N | H46: 10.61 | I46: =ROUND(H46 * (1 + VAT), 2) -> 12.2 | J46: 4.98 | K46: =ROUND(J46 * (1 + VAT), 2) -> 5.73

Sheet Megaflex Munic
G1: Back to menu
A2: Municiple | G2: Megaflex – Local Authority | AF2: =SUM(J8:T23,V8:V23,#REF!,#REF!,#REF!,#REF!,H26:J26,L26) ->  | AG2: check value
J4: Active energy charge [c/kWh] | V4: Transmission network charges [R/kVA/m]
H5: Transmission zone | J5: High demand season [Jun - Aug] | P5: Low demand season [Sep - May]
I6: Voltage | J6: Peak | L6: Standard | N6: Off Peak | P6: Peak | R6: Standard | T6: Off Peak
A7: Tariff | B7: Tariff nameBillcode | C7: Tx zone | D7: Voltage | E7: Billcode | K7: VAT incl | M7: VAT incl | O7: VAT incl | Q7: VAT incl | S7: VAT incl | U7: VAT incl | W7: VAT incl
A8: Megaflex | B8: Me | C8: 0 | D8: 1 | E8: Me01Y | H8: ≤ 300km | I8: < 500V | J8: 437.1 | K8: =ROUND(J8 * (1 + VAT), 2) -> 502.67 | L8: 133.01 | M8: =ROUND(L8 * (1 + VAT), 2) -> 152.96 | N8: 72.58 | O8: =ROUND(N8 * (1 + VAT), 2) -> 83.47 | P8: 143.1 | Q8: =ROUND(P8 * (1 + VAT), 2) -> 164.57 | R8: 98.76 | S8: =ROUND(R8 * (1 + VAT), 2) -> 113.57 | T8: 62.95 | U8: =ROUND(T8 * (1 + VAT), 2) -> 72.39 | V8: 12.18 | W8: =ROUND(V8 * (1 + VAT), 2) -> 14.01
A9: Megaflex | B9: Me | C9: 0 | D9: 2 | E9: Me02Y | I9: ≥ 500V & < 66kV | J9: 430.21 | K9: 494.74 | L9: 130.35 | M9: 149.9 | N9: 70.79 | O9: 81.41 | P9: 140.34 | Q9: 161.39 | R9: 96.58 | S9: 111.07 | T9: 61.29 | U9: 70.48 | V9: 11.11 | W9: 12.78
A10: Megaflex | B10: Me | C10: 0 | D10: 3 | E10: Me03Y | I10: ≥ 66kV & ≤ 132kV | J10: 416.64 | K10: 479.14 | L10: 126.21 | M10: 145.14 | N10: 68.55 | O10: 78.83 | P10: 135.92 | Q10: 156.31 | R10: 93.56 | S10: 107.59 | T10: 59.34 | U10: 68.24 | V10: 10.81 | W10: 12.43
A11: Megaflex | B11: Me | C11: 0 | D11: 4 | E11: Me04Y | I11: > 132kV* | J11: 392.65 | K11: 451.55 | L11: 118.95 | M11: 136.79 | N11: 64.59 | O11: 74.28 | P11: 128.08 | Q11: 147.29 | R11: 88.15 | S11: 101.37 | T11: 55.92 | U11: 64.31 | V11: 13.69 | W11: 15.74
A12: Megaflex | B12: Me | C12: 1 | D12: 1 | E12: Me11Y | H12: > 300km and ≤ 600km | I12: < 500V | J12: 440.67 | K12: 506.77 | L12: 133.49 | M12: 153.51 | N12: 72.48 | O12: 83.35 | P12: 143.75 | Q12: 165.31 | R12: 98.96 | S12: 113.8 | T12: 62.78 | U12: 72.2 | V12: 12.23 | W12: 14.06
A13: Megaflex | B13: Me | C13: 1 | D13: 2 | E13: Me12Y | I13: ≥ 500V & < 66kV | J13: 434.51 | K13: 499.69 | L13: 131.63 | M13: 151.37 | N13: 71.48 | O13: 82.2 | P13: 141.76 | Q13: 163.02 | R13: 97.56 | S13: 112.19 | T13: 61.88 | U13: 71.16 | V13: 11.24 | W13: 12.93
A14: Megaflex | B14: Me | C14: 1 | D14: 3 | E14: Me13Y | I14: ≥ 66kV & ≤ 132kV | J14: 420.71 | K14: 483.82 | L14: 127.44 | M14: 146.56 | N14: 69.2 | O14: 79.58 | P14: 137.24 | Q14: 157.83 | R14: 94.45 | S14: 108.62 | T14: 59.9 | U14: 68.89 | V14: 10.9 | W14: 12.54
A15: Megaflex | B15: Me | C15: 1 | D15: 4 | E15: Me14Y | I15: > 132kV* | J15: 396.57 | K15: 456.06 | L15: 120.16 | M15: 138.18 | N15: 65.23 | O15: 75.01 | P15: 129.34 | Q15: 148.74 | R15: 89.05 | S15: 102.41 | T15: 56.47 | U15: 64.94 | V15: 13.82 | W15: 15.89
A16: Megaflex | B16: Me | C16: 2 | D16: 1 | E16: Me21Y | H16: > 600km and ≤ 900km | I16: < 500V | J16: 445.06 | K16: 511.82 | L16: 134.83 | M16: 155.05 | N16: 73.2 | O16: 84.18 | P16: 145.16 | Q16: 166.93 | R16: 99.94 | S16: 114.93 | T16: 63.4 | U16: 72.91 | V16: 12.39 | W16: 14.25
A17: Megaflex | B17: Me | C17: 2 | D17: 2 | E17: Me22Y | I17: ≥ 500V & < 66kV | J17: 438.89 | K17: 504.72 | L17: 132.94 | M17: 152.88 | N17: 72.2 | O17: 83.03 | P17: 143.2 | Q17: 164.68 | R17: 98.49 | S17: 113.26 | T17: 62.52 | U17: 71.9 | V17: 11.31 | W17: 13.01
A18: Megaflex | B18: Me | C18: 2 | D18: 3 | E18: Me23Y | I18: ≥ 66kV & ≤ 132kV | J18: 425 | K18: 488.75 | L18: 128.72 | M18: 148.03 | N18: 69.89 | O18: 80.37 | P18: 138.59 | Q18: 159.38 | R18: 95.39 | S18: 109.7 | T18: 60.49 | U18: 69.56 | V18: 10.98 | W18: 12.63
A19: Megaflex | B19: Me | C19: 2 | D19: 4 | E19: Me24Y | I19: > 132kV* | J19: 400.54 | K19: 460.62 | L19: 121.36 | M19: 139.56 | N19: 65.89 | O19: 75.77 | P19: 130.68 | Q19: 150.28 | R19: 89.93 | S19: 103.42 | T19: 57.05 | U19: 65.61 | V19: 14.01 | W19: 16.11
A20: Megaflex | B20: Me | C20: 3 | D20: 1 | E20: Me31Y | H20: > 900km | I20: < 500V | J20: 449.52 | K20: 516.95 | L20: 136.19 | M20: 156.62 | N20: 73.95 | O20: 85.04 | P20: 146.65 | Q20: 168.65 | R20: 100.92 | S20: 116.06 | T20: 64.04 | U20: 73.65 | V20: 12.45 | W20: 14.32
A21: Megaflex | B21: Me | C21: 3 | D21: 2 | E21: Me32Y | I21: ≥ 500V & < 66kV | J21: 443.27 | K21: 509.76 | L21: 134.27 | M21: 154.41 | N21: 72.93 | O21: 83.87 | P21: 144.58 | Q21: 166.27 | R21: 99.51 | S21: 114.44 | T21: 63.11 | U21: 72.58 | V21: 11.44 | W21: 13.16
A22: Megaflex | B22: Me | C22: 3 | D22: 3 | E22: Me33Y | I22: ≥ 66kV & ≤ 132kV | J22: 429.27 | K22: 493.66 | L22: 130.05 | M22: 149.56 | N22: 70.62 | O22: 81.21 | P22: 140.02 | Q22: 161.02 | R22: 96.35 | S22: 110.8 | T22: 61.13 | U22: 70.3 | V22: 11.07 | W22: 12.73
A23: Megaflex | B23: Me | C23: 3 | D23: 4 | E23: Me34Y | I23: > 132kV* | J23: 404.49 | K23: 465.16 | L23: 122.59 | M23: 140.98 | N23: 66.62 | O23: 76.61 | P23: 132.01 | Q23: 151.81 | R23: 90.87 | S23: 104.5 | T23: 57.67 | U23: 66.32 | V23: 14.1 | W23: 16.22
I24: * 132 kV or Transmission connected
H26: Distribution network charges
J27: Network capacity charge [R/kVA/m] | L27: Network demand charge [R/kVA/m] | N27: Urban low voltage subsidy charge [R/kVA/m]
H28: Voltage | Q28: Voltage | S28: Ancillary service charge [c/kWh]
A29: Tariff | B29: Tariff nameBillcode | C29: Tx zone | D29: Voltage | E29: Billcode | K29: VAT incl | M29: VAT incl | O29: VAT incl | T29: VAT incl
A30: Megaflex | B30: Me | C30: 0 | D30: 1 | E30: Me01Y | H30: < 500V | J30: 24.29 | K30: =ROUND(J30 * (1 + VAT), 2) -> 27.93 | L30: 46.02 | M30: =ROUND(L30 * (1 + VAT), 2) -> 52.92 | N30: 0 | O30: =ROUND(N30 * (1 + VAT), 2) -> 0 | Q30: < 500V | S30: 0.57 | T30: =ROUND(S30 * (1 + VAT), 2) -> 0.66
A31: Megaflex | B31: Me | C31: 0 | D31: 2 | E31: Me02Y | H31: ≥ 500V & < 66kV | J31: 22.26 | K31: =ROUND(J31 * (1 + VAT), 2) -> 25.6 | L31: 42.21 | M31: =ROUND(L31 * (1 + VAT), 2) -> 48.54 | N31: 0 | O31: =ROUND(N31 * (1 + VAT), 2) -> 0 | Q31: ≥ 500V & < 66kV | S31: 0.55 | T31: =ROUND(S31 * (1 + VAT), 2) -> 0.63
A32: Megaflex | B32: Me | C32: 0 | D32: 3 | E32: Me03Y | H32: ≥ 66kV & ≤ 132kV | J32: 7.96 | K32: =ROUND(J32 * (1 + VAT), 2) -> 9.15 | L32: 14.73 | M32: =ROUND(L32 * (1 + VAT), 2) -> 16.94 | N32: 19.5 | O32: =ROUND(N32 * (1 + VAT), 2) -> 22.43 | Q32: ≥ 66kV & ≤ 132kV | S32: 0.51 | T32: =ROUND(S32 * (1 + VAT), 2) -> 0.59
A33: Megaflex | B33: Me | C33: 0 | D33: 4 | E33: Me04Y | H33: > 132kV* | J33: 0 | K33: =ROUND(J33 * (1 + VAT), 2) -> 0 | L33: 0 | M33: =ROUND(L33 * (1 + VAT), 2) -> 0 | N33: 19.5 | O33: =ROUND(N33 * (1 + VAT), 2) -> 22.43 | Q33: > 132kV* | S33: 0.48 | T33: =ROUND(S33 * (1 + VAT), 2) -> 0.55
H34: * 132 kV or Transmission connected | Q34: * 132 kV or Transmission connected
H36: Customer categories | J36: Service charge [R/account/day] | L36: Administration charge [R/POD/day] | Q36: Reactive energy charge [c/kVArh]
Q37: High season | S37: Low season
A38: Tariff | B38: Tariff nameBillcode | C38: Tx zone | D38: Voltage | E38: Billcode | K38: VAT incl | M38: VAT incl | R38: VAT incl | T38: VAT incl
A39: Megaflex | B39: Me | C39: 0 | D39: 1 | E39: Me01Y | H39: > 1 MVA | J39: 277.35 | K39: =ROUND(J39 * (1 + VAT), 2) -> 318.95 | L39: 125.02 | M39: =ROUND(L39 * (1 + VAT), 2) -> 143.77 | Q39: 19.51 | R39: =ROUND(Q39 * (1 + VAT), 2) -> 22.44 | S39: 0 | T39: =ROUND(S39 * (1 + VAT), 2) -> 0
A40: Megaflex | B40: Me | C40: 0 | D40: 1 | E40: Me01Y | H40: Key customers | J40: 5434.93 | K40: =ROUND(J40 * (1 + VAT), 2) -> 6250.17 | L40: 173.57 | M40: =ROUND(L40 * (1 + VAT), 2) -> 199.61
H42: Electrification and rural network subsidy charge [c/kWh]
A45: Tariff | B45: Tariff nameBillcode | C45: Tx zone | D45: Voltage | E45: Billcode | I45: VAT incl
A46: Megaflex | B46: Me | C46: 0 | D46: 1 | E46: Me01Y | H46: 10.8 | I46: =ROUND(H46 * (1 + VAT), 2) -> 12.42

Sheet Megaflex Gen NLA
G1: Back to menu
A2: Non-municipal | G2: Megaflex Gen - Non-local authority
J4: Active energy charge for loads [c/kWh] | V4: Transmission network charges [R/kVA/m]
H5: Transmission zone | J5: High demand season [Jun - Aug] | P5: Low demand season [Sep - May]
I6: Voltage | J6: Peak | L6: Standard | N6: Off Peak | P6: Peak | R6: Standard | T6: Off Peak
A7: Tariff | B7: Tariff nameBillcode | C7: Tx zone | D7: Voltage | E7: Billcode | K7: VAT incl | M7: VAT incl | O7: VAT incl | Q7: VAT incl | S7: VAT incl | U7: VAT incl | W7: VAT incl
A8: Genflex urban loads | B8: GU | C8: 0 | D8: 1 | E8: =B8&C8&D8&IF($A$2="Non-municipal","N",IF($A$2="Municiple","Y","error")) -> GU01N | H8: ≤ 300km | I8: < 500V | J8: 417.36 | K8: =ROUND(J8 * (1 + VAT), 2) -> 479.96 | L8: 126.98 | M8: =ROUND(L8 * (1 + VAT), 2) -> 146.03 | N8: 69.34 | O8: =ROUND(N8 * (1 + VAT), 2) -> 79.74 | P8: 136.67 | Q8: =ROUND(P8 * (1 + VAT), 2) -> 157.17 | R8: 94.3 | S8: =ROUND(R8 * (1 + VAT), 2) -> 108.45 | T8: 60.12 | U8: =ROUND(T8 * (1 + VAT), 2) -> 69.14 | V8: 11.94 | W8: =ROUND(V8 * (1 + VAT), 2) -> 13.73
A9: Genflex urban loads | B9: GU | C9: 0 | D9: 2 | E9: =B9&C9&D9&IF($A$2="Non-municipal","N",IF($A$2="Municiple","Y","error")) -> GU02N | I9: ≥ 500V & < 66kV | J9: 410.81 | K9: 472.43 | L9: 124.45 | M9: 143.12 | N9: 67.59 | O9: 77.73 | P9: 133.99 | Q9: 154.09 | R9: 92.24 | S9: 106.08 | T9: 58.52 | U9: 67.3 | V9: 10.91 | W9: 12.55
A10: Genflex urban loads | B10: GU | C10: 0 | D10: 3 | E10: GU03N | I10: ≥ 66kV & ≤ 132kV | J10: 397.8 | K10: 457.47 | L10: 120.5 | M10: 138.58 | N10: 65.45 | O10: 75.27 | P10: 129.78 | Q10: 149.25 | R10: 89.3 | S10: 102.7 | T10: 56.68 | U10: 65.18 | V10: 10.62 | W10: 12.21
A11: Genflex urban loads | B11: GU | C11: 0 | D11: 4 | E11: GU04N | I11: > 132kV* | J11: 374.91 | K11: 431.15 | L11: 113.56 | M11: 130.59 | N11: 61.68 | O11: 70.93 | P11: 122.33 | Q11: 140.68 | R11: 84.17 | S11: 96.8 | T11: 53.41 | U11: 61.42 | V11: 13.43 | W11: 15.44
A12: Genflex urban loads | B12: GU | C12: 1 | D12: 1 | E12: GU11N | H12: > 300km and ≤ 600km | I12: < 500V | J12: 420.76 | K12: 483.87 | L12: 127.49 | M12: 146.61 | N12: 69.22 | O12: 79.6 | P12: 137.27 | Q12: 157.86 | R12: 94.51 | S12: 108.69 | T12: 59.96 | U12: 68.95 | V12: 12.02 | W12: 13.82
A13: Genflex urban loads | B13: GU | C13: 1 | D13: 2 | E13: GU12N | I13: ≥ 500V & < 66kV | J13: 414.91 | K13: 477.15 | L13: 125.68 | M13: 144.53 | N13: 68.25 | O13: 78.49 | P13: 135.37 | Q13: 155.68 | R13: 93.15 | S13: 107.12 | T13: 59.09 | U13: 67.95 | V13: 11.01 | W13: 12.66
A14: Genflex urban loads | B14: GU | C14: 1 | D14: 3 | E14: GU13N | I14: ≥ 66kV & ≤ 132kV | J14: 401.71 | K14: 461.97 | L14: 121.68 | M14: 139.93 | N14: 66.06 | O14: 75.97 | P14: 131.03 | Q14: 150.68 | R14: 90.18 | S14: 103.71 | T14: 57.22 | U14: 65.8 | V14: 10.7 | W14: 12.31
A15: Genflex urban loads | B15: GU | C15: 1 | D15: 4 | E15: GU14N | I15: > 132kV* | J15: 378.67 | K15: 435.47 | L15: 114.73 | M15: 131.94 | N15: 62.26 | O15: 71.6 | P15: 123.51 | Q15: 142.04 | R15: 84.99 | S15: 97.74 | T15: 53.91 | U15: 62 | V15: 13.55 | W15: 15.58
A16: Genflex urban loads | B16: GU | C16: 2 | D16: 1 | E16: GU21N | H16: > 600km and ≤ 900km | I16: < 500V | J16: 424.95 | K16: 488.69 | L16: 128.73 | M16: 148.04 | N16: 69.88 | O16: 80.36 | P16: 138.62 | Q16: 159.41 | R16: 95.42 | S16: 109.73 | T16: 60.51 | U16: 69.59 | V16: 12.16 | W16: 13.98
A17: Genflex urban loads | B17: GU | C17: 2 | D17: 2 | E17: GU22N | I17: ≥ 500V & < 66kV | J17: 419.08 | K17: 481.94 | L17: 126.97 | M17: 146.02 | N17: 68.94 | O17: 79.28 | P17: 136.7 | Q17: 157.21 | R17: 94.1 | S17: 108.22 | T17: 59.69 | U17: 68.64 | V17: 11.11 | W17: 12.78
A18: Genflex urban loads | B18: GU | C18: 2 | D18: 3 | E18: GU23N | I18: ≥ 66kV & ≤ 132kV | J18: 405.81 | K18: 466.68 | L18: 122.94 | M18: 141.38 | N18: 66.75 | O18: 76.76 | P18: 132.37 | Q18: 152.23 | R18: 91.12 | S18: 104.79 | T18: 57.81 | U18: 66.48 | V18: 10.77 | W18: 12.39
A19: Genflex urban loads | B19: GU | C19: 2 | D19: 4 | E19: GU24N | I19: > 132kV* | J19: 382.48 | K19: 439.85 | L19: 115.85 | M19: 133.23 | N19: 62.95 | O19: 72.39 | P19: 124.76 | Q19: 143.47 | R19: 85.86 | S19: 98.74 | T19: 54.48 | U19: 62.65 | V19: 13.75 | W19: 15.81
A20: Genflex urban loads | B20: GU | C20: 3 | D20: 1 | E20: GU31N | H20: > 900km | I20: < 500V | J20: 429.23 | K20: 493.61 | L20: 130.08 | M20: 149.59 | N20: 70.6 | O20: 81.19 | P20: 140.03 | Q20: 161.03 | R20: 96.36 | S20: 110.81 | T20: 61.15 | U20: 70.32 | V20: 12.24 | W20: 14.08
A21: Genflex urban loads | B21: GU | C21: 3 | D21: 2 | E21: GU32N | I21: ≥ 500V & < 66kV | J21: 423.25 | K21: 486.74 | L21: 128.2 | M21: 147.43 | N21: 69.59 | O21: 80.03 | P21: 138.04 | Q21: 158.75 | R21: 94.99 | S21: 109.24 | T21: 60.28 | U21: 69.32 | V21: 11.24 | W21: 12.93
A22: Genflex urban loads | B22: GU | C22: 3 | D22: 3 | E22: GU33N | I22: ≥ 66kV & ≤ 132kV | J22: 409.88 | K22: 471.36 | L22: 124.15 | M22: 142.77 | N22: 67.41 | O22: 77.52 | P22: 133.69 | Q22: 153.74 | R22: 92.02 | S22: 105.82 | T22: 58.38 | U22: 67.14 | V22: 10.87 | W22: 12.5
A23: Genflex urban loads | B23: GU | C23: 3 | D23: 4 | E23: GU34N | I23: > 132kV* | J23: 386.21 | K23: 444.14 | L23: 117.04 | M23: 134.6 | N23: 63.59 | O23: 73.13 | P23: 126.06 | Q23: 144.97 | R23: 86.8 | S23: 99.82 | T23: 55.09 | U23: 63.35 | V23: 13.85 | W23: 15.93
A24: Gen-purchase | B24: NLPurchADJ | C24: 0 | D24: 4 | E24: NLPurchADJ04N | H24: WEPS energy rate excluding losses | J24: 370.940932 | K24: 426.58 | L24: 112.3577718 | M24: =ROUND(L24 * (1 + VAT), 2) -> 129.21 | N24: 61.02701098 | O24: =ROUND(N24 * (1 + VAT), 2) -> 70.18 | P24: 121.0349263 | Q24: =ROUND(P24 * (1 + VAT), 2) -> 139.19 | R24: 83.2789156 | S24: =ROUND(R24 * (1 + VAT), 2) -> 95.77 | T24: 52.84456317 | U24: =ROUND(T24 * (1 + VAT), 2) -> 60.77
A25: TUoS network charges for Transmission connected generators | B25: GenTUOS | C25: Cape | D25: 4 | E25: GenTUOSCape4N | I25: * 132 kV or Transmission connected
A26: TUoS network charges for Transmission connected generators | B26: GenTUOS | C26: Karoo | D26: 4 | E26: GenTUOSKaroo4N
A27: TUoS network charges for Transmission connected generators | B27: GenTUOS | C27: Kwazulu-Natal | D27: 4 | E27: GenTUOSKwazulu-Natal4N | H27: Distribution network charges for loads | Q27: Transmission network charges for generators | U27: Distribution network charges for generators*
A28: TUoS network charges for Transmission connected generators | B28: GenTUOS | C28: Vaal | D28: 4 | E28: GenTUOSVaal4N | J28: Network capacity charge [R/kVA/m] | L28: Network demand charge [R/kVA/m] | N28: Urban low voltage subsidy charge [R/kVA/m]
A29: TUoS network charges for Transmission connected generators | B29: GenTUOS | C29: Waterburg | D29: 4 | E29: GenTUOSWaterburg4N | H29: Voltage | Q29: TUoS [ > 132kV] | S29: Network charge [R/kW] | U29: Voltage | W29: Network capacity charge [R/kW/m]
A30: TUoS network charges for Transmission connected generators | B30: GenTUOS | C30: Mpumalanga | D30: 4 | E30: GenTUOSMpumalanga4N | H30: Voltage | K30: VAT incl | M30: VAT incl | O30: VAT incl | T30: VAT incl
A31: Genflex urban loads | B31: GU | C31: 0 | D31: 1 | E31: =B31&C31&D31&IF($A$2="Non-municipal","N",IF($A$2="Municiple","Y","error")) -> GU01N | H31: < 500V | J31: 23.73 | K31: =ROUND(J31 * (1 + VAT), 2) -> 27.29 | L31: 44.99 | M31: =ROUND(L31 * (1 + VAT), 2) -> 51.74 | N31: 0 | O31: =ROUND(N31 * (1 + VAT), 2) -> 0 | Q31: Cape | S31: 0 | T31: =ROUND(S31 * (1 + VAT), 2) -> 0 | X31: VAT incl
A32: Genflex urban loads | B32: GU | C32: 0 | D32: 2 | E32: =B32&C32&D32&IF($A$2="Non-municipal","N",IF($A$2="Municiple","Y","error")) -> GU02N | H32: ≥ 500V & < 66kV | J32: 21.76 | K32: =ROUND(J32 * (1 + VAT), 2) -> 25.02 | L32: 41.27 | M32: =ROUND(L32 * (1 + VAT), 2) -> 47.46 | N32: 0 | O32: =ROUND(N32 * (1 + VAT), 2) -> 0 | Q32: Karoo | S32: 0 | T32: 0 | U32: < 500V
A33: Genflex urban loads | B33: GU | C33: 0 | D33: 3 | E33: =B33&C33&D33&IF($A$2="Non-municipal","N",IF($A$2="Municiple","Y","error")) -> GU03N | H33: ≥ 66kV & ≤ 132kV | J33: 7.77 | K33: =ROUND(J33 * (1 + VAT), 2) -> 8.94 | L33: 14.39 | M33: =ROUND(L33 * (1 + VAT), 2) -> 16.55 | N33: 19.17 | O33: =ROUND(N33 * (1 + VAT), 2) -> 22.05 | Q33: Kwazulu-Natal | S33: 2.82 | T33: 3.24 | U33: ≥ 500V & < 66kV
A34: Genflex urban loads | B34: GU | C34: 0 | D34: 4 | E34: =B34&C34&D34&IF($A$2="Non-municipal","N",IF($A$2="Municiple","Y","error")) -> GU04N | H34: > 132kV / Transmission connected | J34: 0 | K34: =ROUND(J34 * (1 + VAT), 2) -> 0 | L34: 0 | M34: =ROUND(L34 * (1 + VAT), 2) -> 0 | N34: 19.17 | O34: =ROUND(N34 * (1 + VAT), 2) -> 22.05 | Q34: Vaal | S34: 9.39 | T34: 10.8 | U34: ≥ 66kV & ≤ 132kV | W34: 19.19 | X34: =ROUND(W34 * (1 + VAT), 2) -> 22.07
A35: Gen-DUoS urban | B35: NEGenDUoSU | C35: 0 | D35: 3 | E35: =B35&C35&D35&IF($A$2="Non-municipal","N",IF($A$2="Municiple","Y","error")) -> NEGenDUoSU03N | Q35: Waterberg | S35: 12.02 | T35: 13.82 | U35: * The Distribution network charge will be rebated by the Losses charge, but not beyond extintion
Q36: Mpumalanga | S36: 11.16 | T36: 12.83
H37: Customer categories | J37: Service charge [R/account/day] | L37: Administration charge [R/POD/day]
H38: [kVA or MVA = loads] | Q38: Ancillary service charge for loads and generators
A39: Tariff | B39: Tariff nameBillcode | C39: Tx zone | D39: Voltage | E39: Billcode | H39: [kW or MW = generators] | K39: VAT incl | M39: VAT incl
A40: Genflex urban loads | B40: GU | C40: 0 | D40: 1 | E40: =B40&C40&D40&IF($A$2="Non-municipal","N",IF($A$2="Municiple","Y","error")) -> GU01N | H40: ≤ 100 KVA/ kW | J40: 19.39 | K40: =ROUND(J40 * (1 + VAT), 2) -> 22.3 | L40: 4.26 | M40: =ROUND(L40 * (1 + VAT), 2) -> 4.9 | Q40: Voltage | S40: Ancillary service charge [c/kWh]
A41: Genflex urban loads | B41: GU | C41: 0 | D41: 1 | E41: =B41&C41&D41&IF($A$2="Non-municipal","N",IF($A$2="Municiple","Y","error")) -> GU01N | H41: > 100 kVA/ kW & ≤ 500 kVA/ kW | J41: 88.53 | K41: =ROUND(J41 * (1 + VAT), 2) -> 101.81 | L41: 24.83 | M41: =ROUND(L41 * (1 + VAT), 2) -> 28.55 | T41: VAT incl
A42: Genflex urban loads | B42: GU | C42: 0 | D42: 1 | E42: =B42&C42&D42&IF($A$2="Non-municipal","N",IF($A$2="Municiple","Y","error")) -> GU01N | H42: > 500 kVA/ kW & ≤ 1 MVA/MW | J42: 272.39 | K42: =ROUND(J42 * (1 + VAT), 2) -> 313.25 | L42: 49.3 | M42: =ROUND(L42 * (1 + VAT), 2) -> 56.7 | Q42: < 500V | S42: 0.55 | T42: =ROUND(S42 * (1 + VAT), 2) -> 0.63
A43: Genflex urban loads | B43: GU | C43: 0 | D43: 1 | E43: =B43&C43&D43&IF($A$2="Non-municipal","N",IF($A$2="Municiple","Y","error")) -> GU01N | H43: > 1 MVA/MW | J43: 272.39 | K43: =ROUND(J43 * (1 + VAT), 2) -> 313.25 | L43: 122.76 | M43: =ROUND(L43 * (1 + VAT), 2) -> 141.17 | Q43: ≥ 500V & < 66kV | S43: 0.54 | T43: =ROUND(S43 * (1 + VAT), 2) -> 0.62
A44: Genflex urban loads | B44: GU | C44: 0 | D44: 1 | E44: =B44&C44&D44&IF($A$2="Non-municipal","N",IF($A$2="Municiple","Y","error")) -> GU01N | H44: Key customers or Transmission connected generators | J44: 5337.86 | K44: =ROUND(J44 * (1 + VAT), 2) -> 6138.54 | L44: 170.47 | M44: =ROUND(L44 * (1 + VAT), 2) -> 196.04 | Q44: ≥ 66kV & ≤ 132kV | S44: 0.52 | T44: =ROUND(S44 * (1 + VAT), 2) -> 0.6
Q45: > 132kV | S45: 0.48 | T45: =ROUND(S45 * (1 + VAT), 2) -> 0.55 | Y45: ='Loss Factors'!R10 -> 0
H46: Applicable to loads | Q46: * 132 kV or Transmission connected
H47: Electrification and rural network subsidy charge [c/kWh] | J47: Affordability subsidy charge [c/kWh] Only payable by non-local authority tariffs
M48: Reactive energy charge [c/kVArh] (loads)
M49: High season | O49: Low season
A50: Tariff | B50: Tariff nameBillcode | C50: Tx zone | D50: Voltage | E50: Billcode | I50: VAT incl | K50: VAT incl | N50: VAT incl | P50: VAT incl
A51: Genflex urban loads | B51: GU | C51: 0 | D51: 1 | E51: =B51&C51&D51&IF($A$2="Non-municipal","N",IF($A$2="Municiple","Y","error")) -> GU01N | H51: 10.61 | I51: =ROUND(H51 * (1 + VAT), 2) -> 12.2 | J51: 4.98 | K51: =ROUND(J51 * (1 + VAT), 2) -> 5.73 | M51: 19.19 | N51: =ROUND(M51 * (1 + VAT), 2) -> 22.07 | O51: 0 | P51: =ROUND(O51 * (1 + VAT), 2) -> 0
H54: Losses charge for generators
H55: Distribution connected generators | M55: Transmission connected generators
H56: Formula | M56: Formula
H57: Distribution = - ((Energy produced x WEPS rate excluding losses) x (Distribution loss factor x Transmission loss factor-1)) in each TOU period | M57: Transmission = (Energy produced x WEPS rate excluding losses) x (Transmission loss factor-1/Transmission loss factor) in each TOU period
H58: Transmission loss factors for Distribution connected | K58: Distribution loss factors | M58: Generator loss factor
H59: Distance from Johannesburg | K59: ='Loss Factors'!N5 -> Voltage | M59: =' TUoS NLA'!I38 -> Cape | O59: =' TUoS NLA'!J38 -> 0.971
H60: ='Loss Factors'!R6 -> ≤ 300km | J60: ='Loss Factors'!T6 -> 1.0107 | K60: < 500V | L60: ='Loss Factors'!O6 -> 1.1111 | M60: =' TUoS NLA'!I39 -> Karoo | O60: =' TUoS NLA'!J39 -> 0.995
H61: ='Loss Factors'!R7 -> > 300km & ≤ 600km | J61: ='Loss Factors'!T7 -> 1.0208 | K61: ≥ 500V & < 66kV | L61: ='Loss Factors'!O7 -> 1.0957 | M61: =' TUoS NLA'!I40 -> Kwazulu-Natal | O61: =' TUoS NLA'!J40 -> 1.004
H62: ='Loss Factors'!R8 -> > 600km & ≤ 900km | J62: ='Loss Factors'!T8 -> 1.031 | K62: ≥ 66kV & ≤ 132kV | L62: ='Loss Factors'!O8 -> 1.0611 | M62: =' TUoS NLA'!I41 -> Vaal | O62: =' TUoS NLA'!J41 -> 1.02
H63: ='Loss Factors'!R9 -> > 900km | J63: ='Loss Factors'!T9 -> 1.0413 | K63: > 132kV* | L63: ='Loss Factors'!O9 -> 1 | M63: =' TUoS NLA'!I42 -> Waterberg | O63: =' TUoS NLA'!J42 -> 1.023
H64: * 132 kV or Transmission connected | M64: =' TUoS NLA'!I43 -> Mpumalanga | O64: =' TUoS NLA'!J43 -> 1.021

Sheet Miniflex NLA
G1: Back to menu
A2: Non-municipal | G2: Miniflex - Non-Local Authority
J4: Active energy charge [c/kWh] | V4: Network capacity charge [R/kVA/m]
H5: Transmission zone | J5: High demand season [Jun - Aug] | P5: Low demand season [Sep - May]
I6: Voltage | J6: Peak | L6: Standard | N6: Off Peak | P6: Peak | R6: Standard | T6: Off Peak
A7: Tariff | B7: Tariff nameBillcode | C7: Tx zone | D7: Voltage | E7: Billcode | K7: VAT incl | M7: VAT incl | O7: VAT incl | Q7: VAT incl | S7: VAT incl | U7: VAT incl | W7: VAT incl
A8: Miniflex | B8: Mi | C8: 0 | D8: 1 | E8: =B8&C8&D8&IF($A$2="Non-municipal","N",IF($A$2="Municiple","Y","error")) -> Mi01N | H8: ≤ 300km | I8: < 500V | J8: 417.36 | K8: =ROUND(J8 * (1 + VAT), 2) -> 479.96 | L8: 126.98 | M8: =ROUND(L8 * (1 + VAT), 2) -> 146.03 | N8: 69.34 | O8: =ROUND(N8 * (1 + VAT), 2) -> 79.74 | P8: 136.67 | Q8: =ROUND(P8 * (1 + VAT), 2) -> 157.17 | R8: 94.3 | S8: =ROUND(R8 * (1 + VAT), 2) -> 108.45 | T8: 60.12 | U8: =ROUND(T8 * (1 + VAT), 2) -> 69.14 | V8: 35.62 | W8: =ROUND(V8 * (1 + VAT), 2) -> 40.96
A9: Miniflex | B9: Mi | C9: 0 | D9: 2 | E9: =B9&C9&D9&IF($A$2="Non-municipal","N",IF($A$2="Municiple","Y","error")) -> Mi02N | I9: ≥ 500V & < 66kV | J9: 410.81 | K9: 472.43 | L9: 124.45 | M9: 143.12 | N9: 67.59 | O9: 77.73 | P9: 133.99 | Q9: 154.09 | R9: 92.24 | S9: 106.08 | T9: 58.52 | U9: 67.3 | V9: 32.65 | W9: 37.55
A10: Miniflex | B10: Mi | C10: 0 | D10: 3 | E10: Mi03N | I10: ≥ 66kV & ≤ 132kV | J10: 397.8 | K10: 457.47 | L10: 120.5 | M10: 138.58 | N10: 65.45 | O10: 75.27 | P10: 129.78 | Q10: 149.25 | R10: 89.3 | S10: 102.7 | T10: 56.68 | U10: 65.18 | V10: 18.34 | W10: 21.09
A11: Miniflex | B11: Mi | C11: 0 | D11: 4 | E11: Mi04N | I11: > 132kV* | J11: 374.91 | K11: 431.15 | L11: 113.56 | M11: 130.59 | N11: 61.68 | O11: 70.93 | P11: 122.33 | Q11: 140.68 | R11: 84.17 | S11: 96.8 | T11: 53.41 | U11: 61.42 | V11: 13.37 | W11: 15.38
A12: Miniflex | B12: Mi | C12: 1 | D12: 1 | E12: Mi11N | H12: > 300km and ≤ 600km | I12: < 500V | J12: 420.76 | K12: 483.87 | L12: 127.49 | M12: 146.61 | N12: 69.22 | O12: 79.6 | P12: 137.27 | Q12: 157.86 | R12: 94.51 | S12: 108.69 | T12: 59.96 | U12: 68.95 | V12: 35.71 | W12: 41.07
A13: Miniflex | B13: Mi | C13: 1 | D13: 2 | E13: Mi12N | I13: ≥ 500V & < 66kV | J13: 414.91 | K13: 477.15 | L13: 125.68 | M13: 144.53 | N13: 68.25 | O13: 78.49 | P13: 135.37 | Q13: 155.68 | R13: 93.15 | S13: 107.12 | T13: 59.09 | U13: 67.95 | V13: 32.75 | W13: 37.66
A14: Miniflex | B14: Mi | C14: 1 | D14: 3 | E14: Mi13N | I14: ≥ 66kV & ≤ 132kV | J14: 401.71 | K14: 461.97 | L14: 121.68 | M14: 139.93 | N14: 66.06 | O14: 75.97 | P14: 131.03 | Q14: 150.68 | R14: 90.18 | S14: 103.71 | T14: 57.22 | U14: 65.8 | V14: 18.41 | W14: 21.17
A15: Miniflex | B15: Mi | C15: 1 | D15: 4 | E15: Mi14N | I15: > 132kV* | J15: 378.67 | K15: 435.47 | L15: 114.73 | M15: 131.94 | N15: 62.26 | O15: 71.6 | P15: 123.51 | Q15: 142.04 | R15: 84.99 | S15: 97.74 | T15: 53.91 | U15: 62 | V15: 13.51 | W15: 15.54
A16: Miniflex | B16: Mi | C16: 2 | D16: 1 | E16: Mi21N | H16: > 600km and ≤ 900km | I16: < 500V | J16: 424.95 | K16: 488.69 | L16: 128.73 | M16: 148.04 | N16: 69.88 | O16: 80.36 | P16: 138.62 | Q16: 159.41 | R16: 95.42 | S16: 109.73 | T16: 60.51 | U16: 69.59 | V16: 35.88 | W16: 41.26
A17: Miniflex | B17: Mi | C17: 2 | D17: 2 | E17: Mi22N | I17: ≥ 500V & < 66kV | J17: 419.08 | K17: 481.94 | L17: 126.97 | M17: 146.02 | N17: 68.94 | O17: 79.28 | P17: 136.7 | Q17: 157.21 | R17: 94.1 | S17: 108.22 | T17: 59.69 | U17: 68.64 | V17: 32.85 | W17: 37.78
A18: Miniflex | B18: Mi | C18: 2 | D18: 3 | E18: Mi23N | I18: ≥ 66kV & ≤ 132kV | J18: 405.81 | K18: 466.68 | L18: 122.94 | M18: 141.38 | N18: 66.75 | O18: 76.76 | P18: 132.37 | Q18: 152.23 | R18: 91.12 | S18: 104.79 | T18: 57.81 | U18: 66.48 | V18: 18.52 | W18: 21.3
A19: Miniflex | B19: Mi | C19: 2 | D19: 4 | E19: Mi24N | I19: > 132kV* | J19: 382.48 | K19: 439.85 | L19: 115.85 | M19: 133.23 | N19: 62.95 | O19: 72.39 | P19: 124.76 | Q19: 143.47 | R19: 85.86 | S19: 98.74 | T19: 54.48 | U19: 62.65 | V19: 13.7 | W19: 15.76
A20: Miniflex | B20: Mi | C20: 3 | D20: 1 | E20: Mi31N | H20: > 900km | I20: < 500V | J20: 429.23 | K20: 493.61 | L20: 130.08 | M20: 149.59 | N20: 70.6 | O20: 81.19 | P20: 140.03 | Q20: 161.03 | R20: 96.36 | S20: 110.81 | T20: 61.15 | U20: 70.32 | V20: 35.91 | W20: 41.3
A21: Miniflex | B21: Mi | C21: 3 | D21: 2 | E21: Mi32N | I21: ≥ 500V & < 66kV | J21: 423.25 | K21: 486.74 | L21: 128.2 | M21: 147.43 | N21: 69.59 | O21: 80.03 | P21: 138.04 | Q21: 158.75 | R21: 94.99 | S21: 109.24 | T21: 60.28 | U21: 69.32 | V21: 32.96 | W21: 37.9
A22: Miniflex | B22: Mi | C22: 3 | D22: 3 | E22: Mi33N | I22: ≥ 66kV & ≤ 132kV | J22: 409.88 | K22: 471.36 | L22: 124.15 | M22: 142.77 | N22: 67.41 | O22: 77.52 | P22: 133.69 | Q22: 153.74 | R22: 92.02 | S22: 105.82 | T22: 58.38 | U22: 67.14 | V22: 18.59 | W22: 21.38
A23: Miniflex | B23: Mi | C23: 3 | D23: 4 | E23: Mi34N | I23: > 132kV* | J23: 386.21 | K23: 444.14 | L23: 117.04 | M23: 134.6 | N23: 63.59 | O23: 73.13 | P23: 126.06 | Q23: 144.97 | R23: 86.8 | S23: 99.82 | T23: 55.09 | U23: 63.35 | V23: 13.8 | W23: 15.87
I24: * 132 kV or Transmission connected
H26: Customer categories | J26: Service charge [R/account/day] | L26: Administration charge [R/POD/day]
A28: Tariff | B28: Tariff nameBillcode | C28: Tx zone | D28: Voltage | E28: Billcode | K28: VAT incl | M28: VAT incl | P28: Ancillary service charge [c/kWh] | R28: Network demand charge [c/kWh] [Peak & Standard] | U28: Urban low voltage subsidy charge [R/kVA/m]
A29: Miniflex | B29: Mi | C29: 0 | D29: 1 | E29: =B29&C29&D29&IF($A$2="Non-municipal","N",IF($A$2="Municiple","Y","error")) -> Mi01N | H29: ≤ 100 kVA | J29: 19.39 | K29: =ROUND(J29 * (1 + VAT), 2) -> 22.3 | L29: 4.26 | M29: =ROUND(L29 * (1 + VAT), 2) -> 4.9 | O29: Voltage | Q29: VAT incl | S29: VAT incl | W29: VAT incl
A30: Miniflex | B30: Mi | C30: 0 | D30: 1 | E30: =B30&C30&D30&IF($A$2="Non-municipal","N",IF($A$2="Municiple","Y","error")) -> Mi01N | H30: > 100 kVA & ≤ 500 kVA | J30: 88.53 | K30: =ROUND(J30 * (1 + VAT), 2) -> 101.81 | L30: 24.83 | M30: =ROUND(L30 * (1 + VAT), 2) -> 28.55 | O30: < 500V | P30: 0.55 | Q30: =ROUND(P30 * (1 + VAT), 2) -> 0.63 | R30: 22.05 | S30: =ROUND(R30 * (1 + VAT), 2) -> 25.36 | U30: < 500V | V30: 0 | W30: =ROUND(V30 * (1 + VAT), 2) -> 0
A31: Miniflex | B31: Mi | C31: 0 | D31: 1 | E31: =B31&C31&D31&IF($A$2="Non-municipal","N",IF($A$2="Municiple","Y","error")) -> Mi01N | H31: > 500 kVA & ≤ 1 MVA | J31: 272.39 | K31: =ROUND(J31 * (1 + VAT), 2) -> 313.25 | L31: 49.3 | M31: =ROUND(L31 * (1 + VAT), 2) -> 56.7 | O31: ≥ 500V & < 66kV | P31: 0.54 | Q31: =ROUND(P31 * (1 + VAT), 2) -> 0.62 | R31: 9.24 | S31: =ROUND(R31 * (1 + VAT), 2) -> 10.63 | U31: ≥ 500V & < 66kV | V31: 0 | W31: =ROUND(V31 * (1 + VAT), 2) -> 0
A32: Miniflex | B32: Mi | C32: 0 | D32: 1 | E32: =B32&C32&D32&IF($A$2="Non-municipal","N",IF($A$2="Municiple","Y","error")) -> Mi01N | H32: > 1 MVA | J32: 272.39 | K32: =ROUND(J32 * (1 + VAT), 2) -> 313.25 | L32: 122.76 | M32: =ROUND(L32 * (1 + VAT), 2) -> 141.17 | O32: ≥ 66kV & ≤ 132kV | P32: 0.52 | Q32: =ROUND(P32 * (1 + VAT), 2) -> 0.6 | R32: 3.22 | S32: =ROUND(R32 * (1 + VAT), 2) -> 3.7 | U32: ≥ 66kV & ≤ 132kV | V32: 19.17 | W32: =ROUND(V32 * (1 + VAT), 2) -> 22.05
A33: Miniflex | B33: Mi | C33: 0 | D33: 1 | E33: =B33&C33&D33&IF($A$2="Non-municipal","N",IF($A$2="Municiple","Y","error")) -> Mi01N | H33: Key customers | J33: 5337.86 | K33: =ROUND(J33 * (1 + VAT), 2) -> 6138.54 | L33: 170.47 | M33: =ROUND(L33 * (1 + VAT), 2) -> 196.04 | O33: > 132kV* | P33: 0.48 | Q33: =ROUND(P33 * (1 + VAT), 2) -> 0.55 | R33: 0 | S33: =ROUND(R33 * (1 + VAT), 2) -> 0 | U33: > 132kV* | V33: 19.17 | W33: =ROUND(V33 * (1 + VAT), 2) -> 22.05
O34: * 132 kV or Transmission connected | U34: * 132 kV or Transmission connected
H36: Electrification and rural network subsidy charge [c/kWh] | J36: Affordability subsidy charge [c/kWh] Only payable by non-local authority tariffs | O36: Reactive energy charge [c/kVArh]
O38: High season | Q38: Low season
A39: Tariff | B39: Tariff nameBillcode | C39: Tx zone | D39: Voltage | E39: Billcode | I39: VAT incl | K39: VAT incl | P39: VAT incl | R39: VAT incl
A40: Miniflex | B40: Mi | C40: 0 | D40: 1 | E40: =B40&C40&D40&IF($A$2="Non-municipal","N",IF($A$2="Municiple","Y","error")) -> Mi01N | H40: 10.61 | I40: =ROUND(H40 * (1 + VAT), 2) -> 12.2 | J40: 4.98 | K40: =ROUND(J40 * (1 + VAT), 2) -> 5.73 | O40: 8.36 | P40: =ROUND(O40 * (1 + VAT), 2) -> 9.61 | Q40: 0 | R40: =ROUND(Q40 * (1 + VAT), 2) -> 0
A42: Miniflex | B42: Mi | C42: 0 | D42: 1 | E42: =B42&C42&D42&IF($A$2="Non-municipal","N",IF($A$2="Municiple","Y","error")) -> Mi01N
A43: Miniflex | B43: Mi | C43: 1 | D43: 2 | E43: =B43&C43&D43&IF($A$2="Non-municipal","N",IF($A$2="Municiple","Y","error")) -> Mi12N
A44: Miniflex | B44: Mi | C44: 2 | D44: 3 | E44: =B44&C44&D44&IF($A$2="Non-municipal","N",IF($A$2="Municiple","Y","error")) -> Mi23N
A45: Miniflex | B45: Mi | C45: 3 | D45: 4 | E45: =B45&C45&D45&IF($A$2="Non-municipal","N",IF($A$2="Municiple","Y","error")) -> Mi34N

Sheet Miniflex Munic
G1: Back to menu
A2: Municiple | G2: Miniflex - Local Authority
J4: Active energy charge [c/kWh] | V4: Network capacity charge [R/kVA/m]
H5: Transmission zone | J5: High demand season [Jun - Aug] | P5: Low demand season [Sep - May]
I6: Voltage | J6: Peak | L6: Standard | N6: Off Peak | P6: Peak | R6: Standard | T6: Off Peak
A7: Tariff | B7: Tariff nameBillcode | C7: Tx zone | D7: Voltage | E7: Billcode | K7: VAT incl | M7: VAT incl | O7: VAT incl | Q7: VAT incl | S7: VAT incl | U7: VAT incl | W7: VAT incl
A8: Miniflex | B8: Mi | C8: 0 | D8: 1 | E8: Mi01Y | H8: ≤ 300km | I8: < 500V | J8: 437.1 | K8: =ROUND(J8 * (1 + VAT), 2) -> 502.67 | L8: 133.01 | M8: =ROUND(L8 * (1 + VAT), 2) -> 152.96 | N8: 72.58 | O8: =ROUND(N8 * (1 + VAT), 2) -> 83.47 | P8: 143.1 | Q8: =ROUND(P8 * (1 + VAT), 2) -> 164.57 | R8: 98.76 | S8: =ROUND(R8 * (1 + VAT), 2) -> 113.57 | T8: 62.95 | U8: =ROUND(T8 * (1 + VAT), 2) -> 72.39 | V8: 36.45 | W8: =ROUND(V8 * (1 + VAT), 2) -> 41.92
A9: Miniflex | B9: Mi | C9: 0 | D9: 2 | E9: Mi02Y | I9: ≥ 500V & < 66kV | J9: 430.21 | K9: 494.74 | L9: 130.35 | M9: 149.9 | N9: 70.79 | O9: 81.41 | P9: 140.34 | Q9: 161.39 | R9: 96.58 | S9: 111.07 | T9: 61.29 | U9: 70.48 | V9: 33.38 | W9: 38.39
A10: Miniflex | B10: Mi | C10: 0 | D10: 3 | E10: Mi03Y | I10: ≥ 66kV & ≤ 132kV | J10: 416.64 | K10: 479.14 | L10: 126.21 | M10: 145.14 | N10: 68.55 | O10: 78.83 | P10: 135.92 | Q10: 156.31 | R10: 93.56 | S10: 107.59 | T10: 59.34 | U10: 68.24 | V10: 18.75 | W10: 21.56
A11: Miniflex | B11: Mi | C11: 0 | D11: 4 | E11: Mi04Y | I11: > 132kV* | J11: 392.65 | K11: 451.55 | L11: 118.95 | M11: 136.79 | N11: 64.59 | O11: 74.28 | P11: 128.08 | Q11: 147.29 | R11: 88.15 | S11: 101.37 | T11: 55.92 | U11: 64.31 | V11: 13.69 | W11: 15.74
A12: Miniflex | B12: Mi | C12: 1 | D12: 1 | E12: Mi11Y | H12: > 300km and ≤ 600km | I12: < 500V | J12: 440.67 | K12: 506.77 | L12: 133.49 | M12: 153.51 | N12: 72.48 | O12: 83.35 | P12: 143.75 | Q12: 165.31 | R12: 98.96 | S12: 113.8 | T12: 62.78 | U12: 72.2 | V12: 36.52 | W12: 42
A13: Miniflex | B13: Mi | C13: 1 | D13: 2 | E13: Mi12Y | I13: ≥ 500V & < 66kV | J13: 434.51 | K13: 499.69 | L13: 131.63 | M13: 151.37 | N13: 71.48 | O13: 82.2 | P13: 141.76 | Q13: 163.02 | R13: 97.56 | S13: 112.19 | T13: 61.88 | U13: 71.16 | V13: 33.51 | W13: 38.54
A14: Miniflex | B14: Mi | C14: 1 | D14: 3 | E14: Mi13Y | I14: ≥ 66kV & ≤ 132kV | J14: 420.71 | K14: 483.82 | L14: 127.44 | M14: 146.56 | N14: 69.2 | O14: 79.58 | P14: 137.24 | Q14: 157.83 | R14: 94.45 | S14: 108.62 | T14: 59.9 | U14: 68.89 | V14: 18.85 | W14: 21.68
A15: Miniflex | B15: Mi | C15: 1 | D15: 4 | E15: Mi14Y | I15: > 132kV* | J15: 396.57 | K15: 456.06 | L15: 120.16 | M15: 138.18 | N15: 65.23 | O15: 75.01 | P15: 129.34 | Q15: 148.74 | R15: 89.05 | S15: 102.41 | T15: 56.47 | U15: 64.94 | V15: 13.82 | W15: 15.89
A16: Miniflex | B16: Mi | C16: 2 | D16: 1 | E16: Mi21Y | H16: > 600km and ≤ 900km | I16: < 500V | J16: 445.06 | K16: 511.82 | L16: 134.83 | M16: 155.05 | N16: 73.2 | O16: 84.18 | P16: 145.16 | Q16: 166.93 | R16: 99.94 | S16: 114.93 | T16: 63.4 | U16: 72.91 | V16: 36.71 | W16: 42.22
A17: Miniflex | B17: Mi | C17: 2 | D17: 2 | E17: Mi22Y | I17: ≥ 500V & < 66kV | J17: 438.89 | K17: 504.72 | L17: 132.94 | M17: 152.88 | N17: 72.2 | O17: 83.03 | P17: 143.2 | Q17: 164.68 | R17: 98.49 | S17: 113.26 | T17: 62.52 | U17: 71.9 | V17: 33.6 | W17: 38.64
A18: Miniflex | B18: Mi | C18: 2 | D18: 3 | E18: Mi23Y | I18: ≥ 66kV & ≤ 132kV | J18: 425 | K18: 488.75 | L18: 128.72 | M18: 148.03 | N18: 69.89 | O18: 80.37 | P18: 138.59 | Q18: 159.38 | R18: 95.39 | S18: 109.7 | T18: 60.49 | U18: 69.56 | V18: 18.94 | W18: 21.78
A19: Miniflex | B19: Mi | C19: 2 | D19: 4 | E19: Mi24Y | I19: > 132kV* | J19: 400.54 | K19: 460.62 | L19: 121.36 | M19: 139.56 | N19: 65.89 | O19: 75.77 | P19: 130.68 | Q19: 150.28 | R19: 89.93 | S19: 103.42 | T19: 57.05 | U19: 65.61 | V19: 14.01 | W19: 16.11
A20: Miniflex | B20: Mi | C20: 3 | D20: 1 | E20: Mi31Y | H20: > 900km | I20: < 500V | J20: 449.52 | K20: 516.95 | L20: 136.19 | M20: 156.62 | N20: 73.95 | O20: 85.04 | P20: 146.65 | Q20: 168.65 | R20: 100.92 | S20: 116.06 | T20: 64.04 | U20: 73.65 | V20: 36.73 | W20: 42.24
A21: Miniflex | B21: Mi | C21: 3 | D21: 2 | E21: Mi32Y | I21: ≥ 500V & < 66kV | J21: 443.27 | K21: 509.76 | L21: 134.27 | M21: 154.41 | N21: 72.93 | O21: 83.87 | P21: 144.58 | Q21: 166.27 | R21: 99.51 | S21: 114.44 | T21: 63.11 | U21: 72.58 | V21: 33.74 | W21: 38.8
A22: Miniflex | B22: Mi | C22: 3 | D22: 3 | E22: Mi33Y | I22: ≥ 66kV & ≤ 132kV | J22: 429.27 | K22: 493.66 | L22: 130.05 | M22: 149.56 | N22: 70.62 | O22: 81.21 | P22: 140.02 | Q22: 161.02 | R22: 96.35 | S22: 110.8 | T22: 61.13 | U22: 70.3 | V22: 19 | W22: 21.85
A23: Miniflex | B23: Mi | C23: 3 | D23: 4 | E23: Mi34Y | I23: > 132kV* | J23: 404.49 | K23: 465.16 | L23: 122.59 | M23: 140.98 | N23: 66.62 | O23: 76.61 | P23: 132.01 | Q23: 151.81 | R23: 90.87 | S23: 104.5 | T23: 57.67 | U23: 66.32 | V23: 14.1 | W23: 16.22
I24: * 132 kV or Transmission connected
H26: Customer categories | J26: Service charge [R/account/day] | L26: Administration charge [R/POD/day]
A28: Tariff | B28: Tariff nameBillcode | C28: Tx zone | D28: Voltage | E28: Billcode | K28: VAT incl | M28: VAT incl | P28: Ancillary service charge [c/kWh] | R28: Network demand charge [c/kWh] [Peak & Standard] | U28: Urban low voltage subsidy charge [R/kVA/m]
A29: Miniflex | B29: Mi | C29: 0 | D29: 1 | E29: Mi01Y | H29: ≤ 100 kVA | J29: 19.72 | K29: =ROUND(J29 * (1 + VAT), 2) -> 22.68 | L29: 4.32 | M29: =ROUND(L29 * (1 + VAT), 2) -> 4.97 | O29: Voltage | Q29: VAT incl | S29: VAT incl | W29: VAT incl
A30: Miniflex | B30: Mi | C30: 0 | D30: 1 | E30: Mi01Y | H30: > 100 kVA & ≤ 500 kVA | J30: 90.12 | K30: =ROUND(J30 * (1 + VAT), 2) -> 103.64 | L30: 25.24 | M30: =ROUND(L30 * (1 + VAT), 2) -> 29.03 | O30: < 500V | P30: 0.57 | Q30: =ROUND(P30 * (1 + VAT), 2) -> 0.66 | R30: 22.55 | S30: =ROUND(R30 * (1 + VAT), 2) -> 25.93 | U30: < 500V | V30: 0 | W30: =ROUND(V30 * (1 + VAT), 2) -> 0
A31: Miniflex | B31: Mi | C31: 0 | D31: 1 | E31: Mi01Y | H31: > 500 kVA & ≤ 1 MVA | J31: 277.35 | K31: =ROUND(J31 * (1 + VAT), 2) -> 318.95 | L31: 50.21 | M31: =ROUND(L31 * (1 + VAT), 2) -> 57.74 | O31: ≥ 500V & < 66kV | P31: 0.55 | Q31: =ROUND(P31 * (1 + VAT), 2) -> 0.63 | R31: 9.47 | S31: =ROUND(R31 * (1 + VAT), 2) -> 10.89 | U31: ≥ 500V & < 66kV | V31: 0 | W31: =ROUND(V31 * (1 + VAT), 2) -> 0
A32: Miniflex | B32: Mi | C32: 0 | D32: 1 | E32: Mi01Y | H32: > 1 MVA | J32: 277.35 | K32: =ROUND(J32 * (1 + VAT), 2) -> 318.95 | L32: 125.02 | M32: =ROUND(L32 * (1 + VAT), 2) -> 143.77 | O32: ≥ 66kV & ≤ 132kV | P32: 0.51 | Q32: =ROUND(P32 * (1 + VAT), 2) -> 0.59 | R32: 3.27 | S32: =ROUND(R32 * (1 + VAT), 2) -> 3.76 | U32: ≥ 66kV & ≤ 132kV | V32: 19.5 | W32: =ROUND(V32 * (1 + VAT), 2) -> 22.43
A33: Miniflex | B33: Mi | C33: 0 | D33: 1 | E33: Mi01Y | H33: Key customers | J33: 5434.93 | K33: =ROUND(J33 * (1 + VAT), 2) -> 6250.17 | L33: 173.57 | M33: =ROUND(L33 * (1 + VAT), 2) -> 199.61 | O33: > 132kV* | P33: 0.48 | Q33: =ROUND(P33 * (1 + VAT), 2) -> 0.55 | R33: 0 | S33: =ROUND(R33 * (1 + VAT), 2) -> 0 | U33: > 132kV* | V33: 19.5 | W33: =ROUND(V33 * (1 + VAT), 2) -> 22.43
O34: * 132 kV or Transmission connected | U34: * 132 kV or Transmission connected
H36: Electrification and rural network subsidy charge [c/kWh] | L36: Reactive energy charge [c/kVArh]
L38: High season | N38: Low season
A39: Tariff | B39: Tariff nameBillcode | C39: Tx zone | D39: Voltage | E39: Billcode | I39: VAT incl | M39: VAT incl | O39: VAT incl
A40: Miniflex | B40: Mi | C40: 0 | D40: 1 | E40: Mi01Y | H40: 10.8 | I40: =ROUND(H40 * (1 + VAT), 2) -> 12.42 | L40: 8.55 | M40: =ROUND(L40 * (1 + VAT), 2) -> 9.83 | N40: 0 | O40: =ROUND(N40 * (1 + VAT), 2) -> 0
A42: Miniflex | B42: Mi | C42: 0 | D42: 1 | E42: Mi01Y
A43: Miniflex | B43: Mi | C43: 1 | D43: 2 | E43: Mi12Y
A44: Miniflex | B44: Mi | C44: 2 | D44: 3 | E44: Mi23Y
A45: Miniflex | B45: Mi | C45: 3 | D45: 4 | E45: Mi34Y

Sheet Businessrate NLA
H1: Back to menu
A2: Non-municipal | G2: Businessrate - Non-local Authority
J4: Energy charge [c/kWh] | L4: Ancillary service charge [c/kWh] | N4: Network demand charge [c/kWh] | P4: Network capacity charge [R/POD/day] | R4: Service and administration charge [R/POD/day] | Z4: Electrification and rural network subsidy charge [c/kWh] | AB4: Affordability subsidy charge [c/kWh] payable by non-local authority tariffs
Z6: All seasons | AB6: All seasons
A7: Tariff | B7: Tariff nameBillcode | C7: Tx zone | D7: Voltage | E7: Billcode | K7: VAT incl | M7: VAT incl | O7: VAT incl | Q7: VAT incl | S7: VAT incl | AA7: VAT incl | AC7: VAT incl
A8: Businessrate 1 | B8: B1 | C8: 0 | D8: 1 | E8: =B8&C8&D8&IF($A$2="Non-municipal","N",IF($A$2="Municiple","Y","error")) -> B101N | H8: Businessrate 1 | J8: 142.89 | K8: =ROUND(J8 * (1 + VAT), 2) -> 164.32 | L8: 0.55 | M8: =ROUND(L8 * (1 + VAT), 2) -> 0.63 | N8: 20.17 | O8: =ROUND(N8 * (1 + VAT), 2) -> 23.2 | P8: 28.97 | Q8: =ROUND(P8 * (1 + VAT), 2) -> 33.32 | R8: 25.03 | S8: =ROUND(R8 * (1 + VAT), 2) -> 28.78 | Z8: 0 | AA8: =ROUND(Z8 * (1 + VAT), 2) -> 0 | AB8: 0 | AC8: =ROUND(AB8 * (1 + VAT), 2) -> 0
A9: Businessrate 2 | B9: B2 | C9: 0 | D9: 1 | E9: =B9&C9&D9&IF($A$2="Non-municipal","N",IF($A$2="Municiple","Y","error")) -> B201N | H9: Businessrate 2 | J9: 142.89 | K9: =ROUND(J9 * (1 + VAT), 2) -> 164.32 | L9: 0.55 | M9: =ROUND(L9 * (1 + VAT), 2) -> 0.63 | N9: 20.17 | O9: =ROUND(N9 * (1 + VAT), 2) -> 23.2 | P9: 48.81 | Q9: =ROUND(P9 * (1 + VAT), 2) -> 56.13 | R9: 25.03 | S9: =ROUND(R9 * (1 + VAT), 2) -> 28.78 | Z9: =Z8 -> 0 | AA9: =ROUND(Z9 * (1 + VAT), 2) -> 0 | AB9: =AB8 -> 0 | AC9: =ROUND(AB9 * (1 + VAT), 2) -> 0
A10: Businessrate 3 | B10: B3 | C10: 0 | D10: 1 | E10: =B10&C10&D10&IF($A$2="Non-municipal","N",IF($A$2="Municiple","Y","error")) -> B301N | H10: Businessrate 3 | J10: 142.89 | K10: =ROUND(J10 * (1 + VAT), 2) -> 164.32 | L10: 0.55 | M10: =ROUND(L10 * (1 + VAT), 2) -> 0.63 | N10: 20.17 | O10: =ROUND(N10 * (1 + VAT), 2) -> 23.2 | P10: 84.33 | Q10: =ROUND(P10 * (1 + VAT), 2) -> 96.98 | R10: 25.03 | S10: =ROUND(R10 * (1 + VAT), 2) -> 28.78 | Z10: =Z8 -> 0 | AA10: =ROUND(Z10 * (1 + VAT), 2) -> 0 | AB10: =AB8 -> 0 | AC10: =ROUND(AB10 * (1 + VAT), 2) -> 0
A11: Businessrate 4 | B11: B4 | C11: 0 | D11: 1 | E11: =B11&C11&D11&IF($A$2="Non-municipal","N",IF($A$2="Municiple","Y","error")) -> B401N | H11: Businessrate 4 | J11: 384.54 | K11: =ROUND(J11 * (1 + VAT), 2) -> 442.22 | L11: 0.55 | M11: =ROUND(L11 * (1 + VAT), 2) -> 0.63 | N11: 20.17 | O11: =ROUND(N11 * (1 + VAT), 2) -> 23.2 | Z11: =Z9 -> 0 | AA11: =ROUND(Z11 * (1 + VAT), 2) -> 0 | AB11: =AB9 -> 0 | AC11: =ROUND(AB11 * (1 + VAT), 2) -> 0

Sheet Businessrate Munic
H1: Back to menu
A2: Municiple | G2: Businessrate - Local Authority
J4: Energy charge [c/kWh] | L4: Ancillary service charge [c/kWh] | N4: Network demand charge [c/kWh] | P4: Network capacity charge [R/POD/day] | R4: Service and administration charge [R/POD/day] | Z4: Electrification and rural network subsidy charge [c/kWh] | AB4: Affordability subsidy charge [c/kWh] payable by non-local authority tariffs
Z6: All seasons | AB6: All seasons
A7: Tariff | B7: Tariff nameBillcode | C7: Tx zone | D7: Voltage | E7: Billcode | K7: VAT incl | M7: VAT incl | O7: VAT incl | Q7: VAT incl | S7: VAT incl | AA7: VAT incl | AC7: VAT incl
A8: Businessrate 1 | B8: B1 | C8: 0 | D8: 1 | E8: =B8&C8&D8&IF($A$2="Non-municipal","N",IF($A$2="Municiple","Y","error")) -> B101Y | H8: Businessrate 1 | J8: 149.65 | K8: =ROUND(J8 * (1 + VAT), 2) -> 172.1 | L8: 0.57 | M8: =ROUND(L8 * (1 + VAT), 2) -> 0.66 | N8: 20.74 | O8: =ROUND(N8 * (1 + VAT), 2) -> 23.85 | P8: 29.74 | Q8: =ROUND(P8 * (1 + VAT), 2) -> 34.2 | R8: 25.47 | S8: =ROUND(R8 * (1 + VAT), 2) -> 29.29 | Z8: 0 | AA8: =ROUND(Z8 * (1 + VAT), 2) -> 0 | AB8: 0 | AC8: =ROUND(AB8 * (1 + VAT), 2) -> 0
A9: Businessrate 2 | B9: B2 | C9: 0 | D9: 1 | E9: =B9&C9&D9&IF($A$2="Non-municipal","N",IF($A$2="Municiple","Y","error")) -> B201Y | H9: Businessrate 2 | J9: 149.65 | K9: =ROUND(J9 * (1 + VAT), 2) -> 172.1 | L9: 0.57 | M9: =ROUND(L9 * (1 + VAT), 2) -> 0.66 | N9: 20.74 | O9: =ROUND(N9 * (1 + VAT), 2) -> 23.85 | P9: 50.16 | Q9: =ROUND(P9 * (1 + VAT), 2) -> 57.68 | R9: 25.47 | S9: =ROUND(R9 * (1 + VAT), 2) -> 29.29 | Z9: =Z8 -> 0 | AA9: =ROUND(Z9 * (1 + VAT), 2) -> 0 | AB9: =AB8 -> 0 | AC9: =ROUND(AB9 * (1 + VAT), 2) -> 0
A10: Businessrate 3 | B10: B3 | C10: 0 | D10: 1 | E10: =B10&C10&D10&IF($A$2="Non-municipal","N",IF($A$2="Municiple","Y","error")) -> B301Y | H10: Businessrate 3 | J10: 149.65 | K10: =ROUND(J10 * (1 + VAT), 2) -> 172.1 | L10: 0.57 | M10: =ROUND(L10 * (1 + VAT), 2) -> 0.66 | N10: 20.74 | O10: =ROUND(N10 * (1 + VAT), 2) -> 23.85 | P10: 86.68 | Q10: =ROUND(P10 * (1 + VAT), 2) -> 99.68 | R10: 25.47 | S10: =ROUND(R10 * (1 + VAT), 2) -> 29.29 | Z10: =Z8 -> 0 | AA10: =ROUND(Z10 * (1 + VAT), 2) -> 0 | AB10: =AB8 -> 0 | AC10: =ROUND(AB10 * (1 + VAT), 2) -> 0
A11: Businessrate 4 | B11: B4 | C11: 0 | D11: 1 | E11: =B11&C11&D11&IF($A$2="Non-municipal","N",IF($A$2="Municiple","Y","error")) -> B401Y | H11: Businessrate 4 | J11: 402.72 | K11: =ROUND(J11 * (1 + VAT), 2) -> 463.13 | L11: 0.57 | M11: =ROUND(L11 * (1 + VAT), 2) -> 0.66 | N11: 20.74 | O11: =ROUND(N11 * (1 + VAT), 2) -> 23.85 | Z11: =Z9 -> 0 | AA11: =ROUND(Z11 * (1 + VAT), 2) -> 0 | AB11: =AB9 -> 0 | AC11: =ROUND(AB11 * (1 + VAT), 2) -> 0

Sheet Public Lighting NLA
H1: Back to menu
A2: Non-municipal | G2: Public Lighting - Non-local Authority
K4: All Night | M4: 24 Hours
A5: Tariff | B5: Tariff nameBillcode | C5: Tx zone | D5: Voltage | E5: Billcode | L5: VAT incl | N5: VAT incl
A6: Public lighting 24 hours | B6: Pu | C6: 0 | D6: 1 | E6: =B6&C6&D6&IF($A$2="Non-municipal","N",IF($A$2="Municiple","Y","error")) -> Pu01N | H6: Public Lighting | I6: Energy charge [c/kWh] | K6: 113.71 | L6: =ROUND(K6 * (1 + VAT), 2) -> 130.77 | M6: 152.26 | N6: =ROUND(M6 * (1 + VAT), 2) -> 175.1
A7: Public lighting All Night | B7: Pa | C7: 0 | D7: 1 | E7: =B7&C7&D7&IF($A$2="Non-municipal","N",IF($A$2="Municiple","Y","error")) -> Pa01N | I7: Energy charge [R/100W/month] | K7: 35.58 | L7: =ROUND(K7 * (1 + VAT), 2) -> 40.92 | M7: 102.55 | N7: =ROUND(M7 * (1 + VAT), 2) -> 117.93
A9: Public lighting Urban fixed | B9: Pt | C9: 0 | D9: 1 | E9: =B9&C9&D9&IF($A$2="Non-municipal","N",IF($A$2="Municiple","Y","error")) -> Pt01N | H9: Public Lighting - Urban Fixed | I9: Fixed charge [R/POD/day] | K9: 7.48 | L9: =ROUND(K9 * (1 + VAT), 2) -> 8.6
H11: Maintenance charges | K11: R/month
L12: VAT incl
A13: Public Lighting - Maintenance charge - per lumanaire | B13: Plu | C13: 0 | D13: 1 | E13: =B13&C13&D13&IF($A$2="Non-municipal","N",IF($A$2="Municiple","Y","error")) -> Plu01N | J13: Per lumanaire | K13: 60.3 | L13: =ROUND(K13 * (1 + VAT), 2) -> 69.35
A14: Public Lighting - Maintenance charge - per high-mast lumanaire | B14: Plhm | C14: 0 | D14: 1 | E14: =B14&C14&D14&IF($A$2="Non-municipal","N",IF($A$2="Municiple","Y","error")) -> Plhm01N | J14: Per high-mast lumanaire | K14: 1403.69 | L14: =ROUND(K14 * (1 + VAT), 2) -> 1614.24

Sheet Public Lighting Munic
H1: Back to menu
A2: Municipal | G2: Public Lighting - Local Authority | AB2: =SUM(#REF!) ->  | AC2: check value
K4: All Night | M4: 24 Hours
A5: Tariff | B5: Tariff nameBillcode | C5: Tx zone | D5: Voltage | E5: Billcode | L5: VAT incl | N5: VAT incl
A6: Public lighting 24 hours | B6: Pu | C6: 0 | D6: 1 | E6: =B6&C6&D6&IF($A$2="Non-municipal","N",IF($A$2="Municipal","Y","error")) -> Pu01Y | H6: Public Lighting | I6: Energy charge [c/kWh] | K6: 120.8 | L6: =ROUND(K6 * (1 + VAT), 2) -> 138.92 | M6: 161.75 | N6: =ROUND(M6 * (1 + VAT), 2) -> 186.01
A7: Public lighting All Night | B7: Pa | C7: 0 | D7: 1 | E7: =B7&C7&D7&IF($A$2="Non-municipal","N",IF($A$2="Municipal","Y","error")) -> Pa01Y | I7: Energy charge [R/100W/month] | K7: 36.89 | L7: =ROUND(K7 * (1 + VAT), 2) -> 42.42 | M7: 106.34 | N7: =ROUND(M7 * (1 + VAT), 2) -> 122.29
A9: Public lighting Urban fixed | B9: Pt | C9: 0 | D9: 1 | E9: =B9&C9&D9&IF($A$2="Non-municipal","N",IF($A$2="Municipal","Y","error")) -> Pt01Y | H9: Public Lighting - Urban Fixed | I9: Fixed charge [R/POD/day] | K9: 7.943004994 | L9: =ROUND(K9 * (1 + VAT), 2) -> 9.13
H11: Maintenance charges | K11: R/month
L12: VAT incl
A13: Public Lighting - Maintenance charge - per lumanaire | B13: Plu | C13: 0 | D13: 1 | E13: =B13&C13&D13&IF($A$2="Non-municipal","N",IF($A$2="Municipal","Y","error")) -> Plu01Y | J13: Per lumanaire | K13: 63.74218815 | L13: =ROUND(K13 * (1 + VAT), 2) -> 73.3
A14: Public Lighting - Maintenance charge - per high-mast lumanaire | B14: Plhm | C14: 0 | D14: 1 | E14: =B14&C14&D14&IF($A$2="Non-municipal","N",IF($A$2="Municipal","Y","error")) -> Plhm01Y | J14: Per high-mast lumanaire | K14: 1488.65 | L14: =ROUND(K14 * (1 + VAT), 2) -> 1711.95

Sheet Homepower NLA
H1: Back to menu
A2: Non-municipal | G2: Homepower - Non-local Authority
J5: Energy charge [c/kWh] | N5: Network capacity charge [R/POD/day]
A6: Tariff | B6: Tariff nameBillcode | C6: Tx zone | D6: Voltage | E6: Billcode | J6: Block 1 [>0 - 600 kWh] | K6: VAT incl | L6: Block 2 [>600 kWh] | M6: VAT incl | O6: VAT incl
A7: Homepower 1 | B7: H1 | C7: 0 | D7: 1 | E7: =B7&C7&D7&IF($A$2="Non-municipal","N",IF($A$2="Municiple","Y","error")) -> H101N | H7: Homepower 1 | J7: 167.47 | K7: =ROUND(J7 * (1 + VAT), 2) -> 192.59 | L7: 264.44 | M7: =ROUND(L7 * (1 + VAT), 2) -> 304.11 | N7: 7.17 | O7: =ROUND(N7 * (1 + VAT), 2) -> 8.25
A8: Homepower 2 | B8: H2 | C8: 0 | D8: 1 | E8: =B8&C8&D8&IF($A$2="Non-municipal","N",IF($A$2="Municiple","Y","error")) -> H201N | H8: Homepower 2 | J8: 167.47 | K8: =ROUND(J8 * (1 + VAT), 2) -> 192.59 | L8: 257.84 | M8: =ROUND(L8 * (1 + VAT), 2) -> 296.52 | N8: 13.44 | O8: =ROUND(N8 * (1 + VAT), 2) -> 15.46
A9: Homepower 3 | B9: H3 | C9: 0 | D9: 1 | E9: =B9&C9&D9&IF($A$2="Non-municipal","N",IF($A$2="Municiple","Y","error")) -> H301N | H9: Homepower 3 | J9: 167.47 | K9: =ROUND(J9 * (1 + VAT), 2) -> 192.59 | L9: 257.84 | M9: =ROUND(L9 * (1 + VAT), 2) -> 296.52 | N9: 27.75 | O9: =ROUND(N9 * (1 + VAT), 2) -> 31.91
A10: Homepower 4 | B10: H4 | C10: 0 | D10: 1 | E10: =B10&C10&D10&IF($A$2="Non-municipal","N",IF($A$2="Municiple","Y","error")) -> H401N | H10: Homepower 4 | J10: 167.47 | K10: =ROUND(J10 * (1 + VAT), 2) -> 192.59 | L10: 269.31 | M10: =ROUND(L10 * (1 + VAT), 2) -> 309.71 | N10: 4.38 | O10: =ROUND(N10 * (1 + VAT), 2) -> 5.04
J12: Energy charge [c/kWh] | L12: Network capacity charge [R/kVA]
K13: VAT incl | M13: VAT incl
A14: Homepower Bulk < 500V | B14: HB | C14: 0 | D14: 1 | E14: =B14&C14&D14&IF($A$2="Non-municipal","N",IF($A$2="Municiple","Y","error")) -> HB01N | H14: Homepower Bulk | J14: 219.88 | K14: =ROUND(J14 * (1 + VAT), 2) -> 252.86 | L14: 45.51 | M14: =ROUND(L14 * (1 + VAT), 2) -> 52.34
H15: * The Network capacity charge is based on the NMD or on the maximum demand if measured.

Sheet Homepower Munic
H1: Back to menu
A2: Municiple | G2: Homepower - Local Authority
J4: Energy charge [c/kWh] | L4: Energy charge [c/kWh] | N4: Network capacity charge [R/POD/day]
A5: Tariff | B5: Tariff nameBillcode | C5: Tx zone | D5: Voltage | E5: Billcode | J5: Block 1 [>0 - 600 kWh] | K5: VAT incl | L5: Block 2 [>600 kWh] | M5: VAT incl | O5: VAT incl
A6: Homepower 1 | B6: H1 | C6: 0 | D6: 1 | E6: =B6&C6&D6&IF($A$2="Non-municipal","N",IF($A$2="Municiple","Y","error")) -> H101Y | H6: Homepower 1 | J6: 171.32 | K6: =ROUND(J6 * (1 + VAT), 2) -> 197.02 | L6: 270.5 | M6: =ROUND(L6 * (1 + VAT), 2) -> 311.08 | N6: 7.33 | O6: =ROUND(N6 * (1 + VAT), 2) -> 8.43
A7: Homepower 2 | B7: H2 | C7: 0 | D7: 1 | E7: =B7&C7&D7&IF($A$2="Non-municipal","N",IF($A$2="Municiple","Y","error")) -> H201Y | H7: Homepower 2 | J7: 171.32 | K7: =ROUND(J7 * (1 + VAT), 2) -> 197.02 | L7: 263.72 | M7: =ROUND(L7 * (1 + VAT), 2) -> 303.28 | N7: 13.75 | O7: =ROUND(N7 * (1 + VAT), 2) -> 15.81
A8: Homepower 3 | B8: H3 | C8: 0 | D8: 1 | E8: =B8&C8&D8&IF($A$2="Non-municipal","N",IF($A$2="Municiple","Y","error")) -> H301Y | H8: Homepower 3 | J8: 171.32 | K8: =ROUND(J8 * (1 + VAT), 2) -> 197.02 | L8: 263.72 | M8: =ROUND(L8 * (1 + VAT), 2) -> 303.28 | N8: 28.4 | O8: =ROUND(N8 * (1 + VAT), 2) -> 32.66
A9: Homepower 4 | B9: H4 | C9: 0 | D9: 1 | E9: =B9&C9&D9&IF($A$2="Non-municipal","N",IF($A$2="Municiple","Y","error")) -> H401Y | H9: Homepower 4 | J9: 171.32 | K9: =ROUND(J9 * (1 + VAT), 2) -> 197.02 | L9: 275.48 | M9: =ROUND(L9 * (1 + VAT), 2) -> 316.8 | N9: 4.49 | O9: =ROUND(N9 * (1 + VAT), 2) -> 5.16

Sheet Homelight NLA
H1: Back to menu
A2: Non-municipal | G2: Homelight - Non-local Authority
H4: Homelight 60A | J4: Energy charge [c/kWh]
A5: Tariff | B5: Tariff nameBillcode | C5: Tx zone | D5: Voltage | E5: Billcode | K5: VAT incl
A6: Homelight 1 60A | B6: HL16 | C6: 0 | D6: 1 | E6: =B6&C6&D6&IF($A$2="Non-municipal","N",IF($A$2="Municiple","Y","error")) -> HL1601N | H6: Block 1 [> 0 - 600 kWh] | J6: 158.44 | K6: =ROUND(J6 * (1 + VAT), 2) -> 182.21
A7: Homelight 2 60A | B7: HL26 | C7: 0 | D7: 1 | E7: =B7&C7&D7&IF($A$2="Non-municipal","N",IF($A$2="Municiple","Y","error")) -> HL2601N | H7: Block 2 [>600 kWh] | J7: 269.31 | K7: =ROUND(J7 * (1 + VAT), 2) -> 309.71
H10: Homelight 20A | J10: Energy charge [c/kWh]
K11: VAT incl
A12: Homelight 1 20A | B12: HL12 | C12: 0 | D12: 1 | E12: =B12&C12&D12&IF($A$2="Non-municipal","N",IF($A$2="Municiple","Y","error")) -> HL1201N | H12: Block 1 [> 0 - 350 kWh] | J12: 139.99 | K12: =ROUND(J12 * (1 + VAT), 2) -> 160.99
A13: Homelight 2 20A | B13: HL22 | C13: 0 | D13: 1 | E13: =B13&C13&D13&IF($A$2="Non-municipal","N",IF($A$2="Municiple","Y","error")) -> HL2201N | H13: Block 2 [>350 kWh] | J13: 158.62 | K13: =ROUND(J13 * (1 + VAT), 2) -> 182.41

Sheet Nightsave Rural NLA
G1: Back to menu
A2: Non-municipal | G2: Nightsave Rural - Non-local Authority | AF2: =SUM(#REF!,#REF!,#REF!,#REF!,#REF!,#REF!,#REF!,#REF!,#REF!,#REF!,#REF!,#REF!,#REF!,#REF!,#REF!) ->  | AG2: check value
J4: Active energy charge [c/kWh] | N4: Energy demand charges [R/kVA/m] | R4: Network capacity charges [R/kVA/m]
H5: Transmission zone | J5: High demand season [Jun - Aug] | L5: Low demand season [Sep - May] | N5: High demand season [Jun - Aug] | P5: Low demand season [Sep - May]
I6: Voltage
A7: Tariff | B7: Tariff nameBillcode | C7: Tx zone | D7: Voltage | E7: Billcode | K7: VAT incl | M7: VAT incl | O7: VAT incl | Q7: VAT incl | S7: VAT incl
A8: Nightsave Rural | B8: NR | C8: 0 | D8: 1 | E8: =B8&C8&D8&IF($A$2="Non-municipal","N",IF($A$2="Municiple","Y","error")) -> NR01N | H8: ≤ 300km | I8: < 500V | J8: 105.41 | K8: =ROUND(J8 * (1 + VAT), 2) -> 121.22 | L8: 81.9 | M8: =ROUND(L8 * (1 + VAT), 2) -> 94.19 | N8: 353.18 | O8: =ROUND(N8 * (1 + VAT), 2) -> 406.16 | P8: 186.91 | Q8: =ROUND(P8 * (1 + VAT), 2) -> 214.95 | R8: 17.86 | S8: =ROUND(R8 * (1 + VAT), 2) -> 20.54
A9: Nightsave Rural | B9: NR | C9: 0 | D9: 2 | E9: =B9&C9&D9&IF($A$2="Non-municipal","N",IF($A$2="Municiple","Y","error")) -> NR02N | I9: ≥ 500V & ≤ 22kV | J9: 104.16 | K9: 119.78 | L9: 80.98 | M9: 93.13 | N9: 342.23 | O9: 393.56 | P9: 180.29 | Q9: 207.33 | R9: 16.41 | S9: 18.87
A10: Nightsave Rural | B10: NR | E10: NRN | J10: 0 | L10: 0 | N10: 0 | O10: 0 | P10: 0 | Q10: 0 | R10: 0
A11: Nightsave Rural | B11: NR | E11: NRN | J11: 0 | L11: 0 | N11: 0 | O11: 0 | P11: 0 | Q11: 0 | R11: 0
A12: Nightsave Rural | B12: NR | C12: 1 | D12: 1 | E12: NR11N | H12: > 300km and ≤ 600km | I12: < 500V | J12: 106.44 | K12: 122.41 | L12: 82.73 | M12: 95.14 | N12: 357.43 | O12: 411.04 | P12: 189.53 | Q12: 217.96 | R12: 17.89 | S12: 20.57
A13: Nightsave Rural | B13: NR | C13: 1 | D13: 2 | E13: NR12N | I13: ≥ 500V & ≤ 22kV | J13: 105.23 | K13: 121.01 | L13: 81.8 | M13: 94.07 | N13: 346.41 | O13: 398.37 | P13: 182.8 | Q13: 210.22 | R13: 16.47 | S13: 18.94
A14: Nightsave Rural | B14: NR | E14: NRN | J14: 0 | L14: 0 | N14: 0 | O14: 0 | P14: 0 | Q14: 0 | R14: 0
A15: Nightsave Rural | B15: NR | E15: NRN | J15: 0 | L15: 0 | N15: 0 | O15: 0 | P15: 0 | Q15: 0 | R15: 0
A16: Nightsave Rural | B16: NR | C16: 2 | D16: 1 | E16: NR21N | H16: > 600km and ≤ 900km | I16: < 500V | J16: 107.51 | K16: 123.64 | L16: 83.53 | M16: 96.06 | N16: 361.73 | O16: 415.99 | P16: 192.08 | Q16: 220.89 | R16: 18.06 | S16: 20.77
A17: Nightsave Rural | B17: NR | C17: 2 | D17: 2 | E17: NR22N | I17: ≥ 500V & ≤ 22kV | J17: 106.27 | K17: 122.21 | L17: 82.61 | M17: 95 | N17: 350.56 | O17: 403.14 | P17: 185.32 | Q17: 213.12 | R17: 16.58 | S17: 19.07
A18: Nightsave Rural | B18: NR | E18: NRN | J18: 0 | L18: 0 | N18: 0 | O18: 0 | P18: 0 | Q18: 0 | R18: 0
A19: Nightsave Rural | B19: NR | E19: NRN | J19: 0 | L19: 0 | N19: 0 | O19: 0 | P19: 0 | Q19: 0 | R19: 0
A20: Nightsave Rural | B20: NR | C20: 3 | D20: 1 | E20: NR31N | H20: > 900km | I20: < 500V | J20: 108.58 | K20: 124.87 | L20: 84.37 | M20: 97.03 | N20: 366.12 | O20: =ROUND(N20 * (1 + VAT), 2) -> 421.04 | P20: 194.72 | Q20: =ROUND(P20 * (1 + VAT), 2) -> 223.93 | R20: 18.11 | S20: 20.83
A21: Nightsave Rural | B21: NR | C21: 3 | D21: 2 | E21: NR32N | I21: ≥ 500V & ≤ 22kV | J21: 107.29 | K21: 123.38 | L21: 83.42 | M21: 95.93 | N21: 354.85 | O21: 408.08 | P21: 187.9 | Q21: 216.09 | R21: 16.61 | S21: 19.1
H26: Customer categories | J26: Service charge [R/account/day] | L26: Administration charge [R/POD/day]
A28: Tariff | B28: Tariff nameBillcode | C28: Tx zone | D28: Voltage | E28: Billcode | K28: VAT incl | M28: VAT incl
A29: Nightsave Rural | B29: NR | C29: 0 | D29: 1 | E29: =B29&C29&D29&IF($A$2="Non-municipal","N",IF($A$2="Municiple","Y","error")) -> NR01N | H29: ≤ 100 kVA | J29: 24.55 | K29: =ROUND(J29 * (1 + VAT), 2) -> 28.23 | L29: 6.97 | M29: =ROUND(L29 * (1 + VAT), 2) -> 8.02
A30: Nightsave Rural | B30: NR | C30: 0 | D30: 1 | E30: NR01N | H30: > 100 kVA & ≤ 500 kVA | J30: 83.72 | K30: =ROUND(J30 * (1 + VAT), 2) -> 96.28 | L30: 38.82 | M30: =ROUND(L30 * (1 + VAT), 2) -> 44.64 | P30: Ancillary service charge [c/kWh] | R30: Network demand charge [c/kWh] in all time-of-use periods
A31: Nightsave Rural | B31: NR | C31: 0 | D31: 1 | E31: NR01N | H31: > 500 kVA & ≤ 1 MVA | J31: 257.56 | K31: =ROUND(J31 * (1 + VAT), 2) -> 296.19 | L31: 59.58 | M31: =ROUND(L31 * (1 + VAT), 2) -> 68.52 | O31: Voltage | Q31: VAT incl | S31: VAT incl
A32: Nightsave Rural | B32: NR | C32: 0 | D32: 1 | E32: NR01N | H32: > 1 MVA | J32: 257.56 | K32: =ROUND(J32 * (1 + VAT), 2) -> 296.19 | L32: 110.55 | M32: =ROUND(L32 * (1 + VAT), 2) -> 127.13 | O32: < 500V | P32: 0.55 | Q32: =ROUND(P32 * (1 + VAT), 2) -> 0.63 | R32: 35.53 | S32: =ROUND(R32 * (1 + VAT), 2) -> 40.86
A33: Nightsave Rural | B33: NR | C33: 0 | D33: 1 | E33: NR01N | H33: Key customers | J33: 5047.97 | K33: =ROUND(J33 * (1 + VAT), 2) -> 5805.17 | L33: 110.55 | M33: =ROUND(L33 * (1 + VAT), 2) -> 127.13 | O33: ≥ 500V & ≤ 22kV | P33: 0.55 | Q33: =ROUND(P33 * (1 + VAT), 2) -> 0.63 | R33: 31.15 | S33: =ROUND(R33 * (1 + VAT), 2) -> 35.82
A34: Nightsave Rural | B34: NR | C34: 0 | D34: 2 | E34: NR02N

Sheet Nightsave Rural Munic
G1: Back to menu
A2: Municiple | G2: Nightsave Rural - Local Authority | AF2: =SUM(#REF!,#REF!,#REF!,#REF!,#REF!,#REF!,#REF!,#REF!,#REF!,#REF!,#REF!,#REF!,#REF!,#REF!,#REF!) ->  | AG2: check value
J4: Active energy charge [c/kWh] | N4: Energy demand charges [R/kVA/m] | R4: Network capacity charges [R/kVA/m]
H5: Transmission zone | J5: High demand season [Jun - Aug] | L5: Low demand season [Sep - May] | N5: High demand season [Jun - Aug] | P5: Low demand season [Sep - May]
I6: Voltage
A7: Tariff | B7: Tariff nameBillcode | C7: Tx zone | D7: Voltage | E7: Billcode | K7: VAT incl | M7: VAT incl | O7: VAT incl | Q7: VAT incl | S7: VAT incl
A8: Nightsave Rural | B8: NR | C8: 0 | D8: 1 | E8: =B8&C8&D8&IF($A$2="Non-municipal","N",IF($A$2="Municiple","Y","error")) -> NR01Y | H8: ≤ 300km | I8: < 500V | J8: 110.39 | K8: =ROUND(J8 * (1 + VAT), 2) -> 126.95 | L8: 85.78 | M8: =ROUND(L8 * (1 + VAT), 2) -> 98.65 | N8: 361.25 | O8: =ROUND(N8 * (1 + VAT), 2) -> 415.44 | P8: 191.21 | Q8: =ROUND(P8 * (1 + VAT), 2) -> 219.89 | R8: 18.45 | S8: =ROUND(R8 * (1 + VAT), 2) -> 21.22
A9: Nightsave Rural | B9: NR | C9: 0 | D9: 2 | E9: =B9&C9&D9&IF($A$2="Non-municipal","N",IF($A$2="Municiple","Y","error")) -> NR02Y | I9: ≥ 500V & ≤ 22kV | J9: 109.09 | K9: 125.45 | L9: 84.82 | M9: 97.54 | N9: 350.07 | O9: 402.58 | P9: 184.38 | Q9: 212.04 | R9: 16.94 | S9: 19.48
A10: Nightsave Rural | B10: NR | E10: NRY | J10: 0 | L10: 0 | N10: 0 | O10: 0 | P10: 0 | Q10: 0 | R10: 0
A11: Nightsave Rural | B11: NR | E11: NRY | J11: 0 | L11: 0 | N11: 0 | O11: 0 | P11: 0 | Q11: 0 | R11: 0
A12: Nightsave Rural | B12: NR | C12: 1 | D12: 1 | E12: NR11Y | H12: > 300km and ≤ 600km | I12: < 500V | J12: 111.5 | K12: 128.23 | L12: 86.65 | M12: 99.65 | N12: 365.64 | O12: 420.49 | P12: 193.85 | Q12: 222.93 | R12: 18.48 | S12: 21.25
A13: Nightsave Rural | B13: NR | C13: 1 | D13: 2 | E13: NR12Y | I13: ≥ 500V & ≤ 22kV | J13: 110.18 | K13: 126.71 | L13: 85.65 | M13: 98.5 | N13: 354.35 | O13: 407.5 | P13: 186.96 | Q13: 215 | R13: 17.01 | S13: 19.56
A14: Nightsave Rural | B14: NR | E14: NRY | J14: 0 | L14: 0 | N14: 0 | O14: 0 | P14: 0 | Q14: 0 | R14: 0
A15: Nightsave Rural | B15: NR | E15: NRY | J15: 0 | L15: 0 | N15: 0 | O15: 0 | P15: 0 | Q15: 0 | R15: 0
A16: Nightsave Rural | B16: NR | C16: 2 | D16: 1 | E16: NR21Y | H16: > 600km and ≤ 900km | I16: < 500V | J16: 112.57 | K16: 129.46 | L16: 87.48 | M16: 100.6 | N16: 370.01 | O16: 425.51 | P16: 196.46 | Q16: 225.93 | R16: 18.66 | S16: 21.46
A17: Nightsave Rural | B17: NR | C17: 2 | D17: 2 | E17: NR22Y | I17: ≥ 500V & ≤ 22kV | J17: 111.26 | K17: 127.95 | L17: 86.51 | M17: 99.49 | N17: 358.61 | O17: 412.4 | P17: 189.56 | Q17: 217.99 | R17: 17.12 | S17: 19.69
A18: Nightsave Rural | B18: NR | E18: NRY | J18: 0 | L18: 0 | N18: 0 | O18: 0 | P18: 0 | Q18: 0 | R18: 0
A19: Nightsave Rural | B19: NR | E19: NRY | J19: 0 | L19: 0 | N19: 0 | O19: 0 | P19: 0 | Q19: 0 | R19: 0
A20: Nightsave Rural | B20: NR | C20: 3 | D20: 1 | E20: NR31Y | H20: > 900km | I20: < 500V | J20: 113.71 | K20: 130.77 | L20: 88.34 | M20: 101.59 | N20: 374.5 | O20: 430.68 | P20: 199.16 | Q20: 229.03 | R20: 18.69 | S20: 21.49
A21: Nightsave Rural | B21: NR | C21: 3 | D21: 2 | E21: NR32Y | I21: ≥ 500V & ≤ 22kV | J21: 112.36 | K21: 129.21 | L21: 87.34 | M21: 100.44 | N21: 362.98 | O21: 417.43 | P21: 192.2 | Q21: 221.03 | R21: 17.13 | S21: 19.7
H26: Customer categories | J26: Service charge [R/account/day] | L26: Administration charge [R/POD/day]
A28: Tariff | B28: Tariff nameBillcode | C28: Tx zone | D28: Voltage | E28: Billcode | K28: VAT incl | M28: VAT incl
A29: Nightsave Rural | B29: NR | C29: 0 | D29: 1 | E29: =B29&C29&D29&IF($A$2="Non-municipal","N",IF($A$2="Municiple","Y","error")) -> NR01Y | H29: ≤ 100 kVA | J29: 25 | K29: =ROUND(J29 * (1 + VAT), 2) -> 28.75 | L29: 7.09 | M29: =ROUND(L29 * (1 + VAT), 2) -> 8.15
A30: Nightsave Rural | B30: NR | C30: 0 | D30: 1 | E30: =B30&C30&D30&IF($A$2="Non-municipal","N",IF($A$2="Municiple","Y","error")) -> NR01Y | H30: > 100 kVA & ≤ 500 kVA | J30: 85.25 | K30: =ROUND(J30 * (1 + VAT), 2) -> 98.04 | L30: 39.52 | M30: =ROUND(L30 * (1 + VAT), 2) -> 45.45 | P30: Ancillary service charge [c/kWh] | R30: Network demand charge [c/kWh] in all time-of-use periods
A31: Nightsave Rural | B31: NR | C31: 0 | D31: 1 | E31: =B31&C31&D31&IF($A$2="Non-municipal","N",IF($A$2="Municiple","Y","error")) -> NR01Y | H31: > 500 kVA & ≤ 1 MVA | J31: 262.27 | K31: =ROUND(J31 * (1 + VAT), 2) -> 301.61 | L31: 60.64 | M31: =ROUND(L31 * (1 + VAT), 2) -> 69.74 | O31: Voltage | Q31: VAT incl | S31: VAT incl
A32: Nightsave Rural | B32: NR | C32: 0 | D32: 1 | E32: =B32&C32&D32&IF($A$2="Non-municipal","N",IF($A$2="Municiple","Y","error")) -> NR01Y | H32: > 1 MVA | J32: 262.27 | K32: =ROUND(J32 * (1 + VAT), 2) -> 301.61 | L32: 112.56 | M32: =ROUND(L32 * (1 + VAT), 2) -> 129.44 | O32: < 500V | P32: 0.57 | Q32: =ROUND(P32 * (1 + VAT), 2) -> 0.66 | R32: 36.71 | S32: =ROUND(R32 * (1 + VAT), 2) -> 42.22
A33: Nightsave Rural | B33: NR | C33: 0 | D33: 1 | E33: =B33&C33&D33&IF($A$2="Non-municipal","N",IF($A$2="Municiple","Y","error")) -> NR01Y | H33: Key customers | J33: 5139.74 | K33: =ROUND(J33 * (1 + VAT), 2) -> 5910.7 | L33: 112.56 | M33: =ROUND(L33 * (1 + VAT), 2) -> 129.44 | O33: ≥ 500V & ≤ 22kV | P33: 0.57 | Q33: =ROUND(P33 * (1 + VAT), 2) -> 0.66 | R33: 32.12 | S33: =ROUND(R33 * (1 + VAT), 2) -> 36.94

Sheet Ruraflex NLA
G1: Back to menu
A2: Non-municipal | G2: Ruraflex - Non-local Authority | AF2: =SUM(#REF!,#REF!,#REF!,#REF!,#REF!,#REF!,#REF!,#REF!,#REF!,#REF!,#REF!,#REF!) ->  | AG2: check value
J4: Active energy charge [c/kWh] | V4: Network capacity charges [R/kVA/m]
H5: Transmission zone | J5: High demand season [Jun - Aug] | P5: Low demand season [Sep - May]
I6: Voltage | J6: Peak | L6: Standard | N6: Off Peak | P6: Peak | R6: Standard | T6: Off Peak
A7: Tariff | B7: Tariff nameBillcode | C7: Tx zone | D7: Voltage | E7: Billcode | K7: VAT incl | M7: VAT incl | O7: VAT incl | Q7: VAT incl | S7: VAT incl | U7: VAT incl | W7: VAT incl
A8: Ruraflex | B8: Ru | C8: 0 | D8: 1 | E8: =B8&C8&D8&IF($A$2="Non-municipal","N",IF($A$2="Municiple","Y","error")) -> Ru01N | H8: ≤ 300km | I8: < 500V | J8: 432.14 | K8: =ROUND(J8 * (1 + VAT), 2) -> 496.96 | L8: 130.92 | M8: =ROUND(L8 * (1 + VAT), 2) -> 150.56 | N8: 71.11 | O8: =ROUND(N8 * (1 + VAT), 2) -> 81.78 | P8: 140.97 | Q8: =ROUND(P8 * (1 + VAT), 2) -> 162.12 | R8: 97.01 | S8: =ROUND(R8 * (1 + VAT), 2) -> 111.56 | T8: 61.55 | U8: =ROUND(T8 * (1 + VAT), 2) -> 70.78 | V8: 24.96 | W8: =ROUND(V8 * (1 + VAT), 2) -> 28.7
A9: Ruraflex | B9: Ru | C9: 0 | D9: 2 | E9: =B9&C9&D9&IF($A$2="Non-municipal","N",IF($A$2="Municiple","Y","error")) -> Ru02N | I9: ≥ 500V & ≤ 22kV | J9: 427.87 | K9: 492.05 | L9: 129.63 | M9: 149.07 | N9: 70.38 | O9: 80.94 | P9: 139.59 | Q9: 160.53 | R9: 96.05 | S9: 110.46 | T9: 60.91 | U9: 70.05 | V9: 22.87 | W9: 26.3
A10: Ruraflex | B10: Ru | E10: RuN | J10: 0 | L10: 0 | N10: 0 | P10: 0 | R10: 0 | T10: 0 | V10: 0
A11: Ruraflex | B11: Ru | E11: RuN | J11: 0 | L11: 0 | N11: 0 | P11: 0 | R11: 0 | T11: 0 | V11: 0
A12: Ruraflex | B12: Ru | C12: 1 | D12: 1 | E12: Ru11N | H12: > 300km and ≤ 600km | I12: < 500V | J12: 436.48 | K12: 501.95 | L12: 132.23 | M12: 152.06 | N12: 71.81 | O12: 82.58 | P12: 142.38 | Q12: 163.74 | R12: 98 | S12: 112.7 | T12: 62.18 | U12: 71.51 | V12: 25.03 | W12: 28.78
A13: Ruraflex | B13: Ru | C13: 1 | D13: 2 | E13: Ru12N | I13: ≥ 500V & ≤ 22kV | J13: 432.13 | K13: 496.95 | L13: 130.9 | M13: 150.54 | N13: 71.11 | O13: 81.78 | P13: 140.97 | Q13: 162.12 | R13: 97 | S13: 111.55 | T13: 61.55 | U13: 70.78 | V13: 23.01 | W13: 26.46
A14: Ruraflex | B14: Ru | E14: RuN | J14: 0 | L14: 0 | N14: 0 | P14: 0 | R14: 0 | T14: 0 | V14: 0
A15: Ruraflex | B15: Ru | E15: RuN | J15: 0 | L15: 0 | N15: 0 | P15: 0 | R15: 0 | T15: 0 | V15: 0
A16: Ruraflex | B16: Ru | C16: 2 | D16: 1 | E16: Ru21N | H16: > 600km and ≤ 900km | I16: < 500V | J16: 440.85 | K16: 506.98 | L16: 133.56 | M16: 153.59 | N16: 72.52 | O16: 83.4 | P16: 143.81 | Q16: 165.38 | R16: 98.96 | S16: 113.8 | T16: 62.8 | U16: 72.22 | V16: 25.16 | W16: 28.93
A17: Ruraflex | B17: Ru | C17: 2 | D17: 2 | E17: Ru22N | I17: ≥ 500V & ≤ 22kV | J17: 436.46 | K17: 501.93 | L17: 132.2 | M17: 152.03 | N17: 71.81 | O17: 82.58 | P17: 142.38 | Q17: 163.74 | R17: 98 | S17: 112.7 | T17: 62.18 | U17: 71.51 | V17: 23.12 | W17: 26.59
A18: Ruraflex | B18: Ru | E18: RuN | J18: 0 | L18: 0 | N18: 0 | P18: 0 | R18: 0 | T18: 0 | V18: 0
A19: Ruraflex | B19: Ru | E19: RuN | J19: 0 | L19: 0 | N19: 0 | P19: 0 | R19: 0 | T19: 0 | V19: 0
A20: Ruraflex | B20: Ru | C20: 3 | D20: 1 | E20: Ru31N | H20: > 900km | I20: < 500V | J20: 445.25 | K20: 512.04 | L20: 134.88 | M20: 155.11 | N20: 73.24 | O20: 84.23 | P20: 145.19 | Q20: 166.97 | R20: 99.95 | S20: 114.94 | T20: 63.42 | U20: 72.93 | V20: 25.27 | W20: 29.06
A21: Ruraflex | B21: Ru | C21: 3 | D21: 2 | E21: Ru32N | I21: ≥ 500V & ≤ 22kV | J21: 440.84 | K21: 506.97 | L21: 133.56 | M21: 153.59 | N21: 72.52 | O21: 83.4 | P21: 143.81 | Q21: 165.38 | R21: 98.96 | S21: 113.8 | T21: 62.8 | U21: 72.22 | V21: 23.13 | W21: 26.6
N22: 0
N23: 0
H26: Customer categories | J26: Service charge [R/account/day] | L26: Administration charge [R/POD/day] | Q26: Ancillary service charge [c/kWh] | S26: Network demand charge [c/kWh] in all time-of-use periods
O27: Voltage | R27: VAT incl | T27: VAT incl
A28: Tariff | B28: Tariff nameBillcode | C28: Tx zone | D28: Voltage | E28: Billcode | K28: VAT incl | M28: VAT incl | O28: < 500V | Q28: 0.55 | R28: =ROUND(Q28 * (1 + VAT), 2) -> 0.63 | S28: 35.53 | T28: =ROUND(S28 * (1 + VAT), 2) -> 40.86
A29: Ruraflex | B29: Ru | C29: 0 | D29: 1 | E29: =B29&C29&D29&IF($A$2="Non-municipal","N",IF($A$2="Municiple","Y","error")) -> Ru01N | H29: ≤ 100 kVA | J29: 24.55 | K29: =ROUND(J29 * (1 + VAT), 2) -> 28.23 | L29: 6.97 | M29: =ROUND(L29 * (1 + VAT), 2) -> 8.02 | O29: ≥ 500V & < 22kV | Q29: 0.55 | R29: =ROUND(Q29 * (1 + VAT), 2) -> 0.63 | S29: 31.15 | T29: =ROUND(S29 * (1 + VAT), 2) -> 35.82
A30: Ruraflex | B30: Ru | C30: 0 | D30: 1 | E30: =B30&C30&D30&IF($A$2="Non-municipal","N",IF($A$2="Municiple","Y","error")) -> Ru01N | H30: > 100 kVA & ≤ 500 kVA | J30: 83.72 | K30: =ROUND(J30 * (1 + VAT), 2) -> 96.28 | L30: 38.82 | M30: =ROUND(L30 * (1 + VAT), 2) -> 44.64
A31: Ruraflex | B31: Ru | C31: 0 | D31: 1 | E31: =B31&C31&D31&IF($A$2="Non-municipal","N",IF($A$2="Municiple","Y","error")) -> Ru01N | H31: > 500 kVA & ≤ 1 MVA | J31: 257.56 | K31: =ROUND(J31 * (1 + VAT), 2) -> 296.19 | L31: 59.58 | M31: =ROUND(L31 * (1 + VAT), 2) -> 68.52 | O31: Reactive energy charge [c/kVArh]
A32: Ruraflex | B32: Ru | C32: 0 | D32: 1 | E32: =B32&C32&D32&IF($A$2="Non-municipal","N",IF($A$2="Municiple","Y","error")) -> Ru01N | H32: > 1 MVA | J32: 257.56 | K32: =ROUND(J32 * (1 + VAT), 2) -> 296.19 | L32: 110.55 | M32: =ROUND(L32 * (1 + VAT), 2) -> 127.13 | O32: High season | Q32: Low season
A33: Ruraflex | B33: Ru | C33: 0 | D33: 1 | E33: =B33&C33&D33&IF($A$2="Non-municipal","N",IF($A$2="Municiple","Y","error")) -> Ru01N | H33: Key customers | J33: 5047.97 | K33: =ROUND(J33 * (1 + VAT), 2) -> 5805.17 | L33: 110.55 | M33: =ROUND(L33 * (1 + VAT), 2) -> 127.13 | P33: VAT incl | R33: VAT incl
O34: 12 | P34: =ROUND(O34 * (1 + VAT), 2) -> 13.8 | Q34: 0 | R34: =ROUND(Q34 * (1 + VAT), 2) -> 0

Sheet Ruraflex Munic
G1: Back to menu
A2: Municiple | G2: Ruraflex - Local Authority | AF2: =SUM(#REF!,#REF!,#REF!,#REF!,#REF!,#REF!,#REF!,#REF!,#REF!,#REF!,#REF!,#REF!) ->  | AG2: check value
J4: Active energy charge [c/kWh] | V4: Network capacity charges [R/kVA/m]
H5: Transmission zone | J5: High demand season [Jun - Aug] | P5: Low demand season [Sep - May]
I6: Voltage | J6: Peak | L6: Standard | N6: Off Peak | P6: Peak | R6: Standard | T6: Off Peak
A7: Tariff | B7: Tariff nameBillcode | C7: Tx zone | D7: Voltage | E7: Billcode | K7: VAT incl | M7: VAT incl | O7: VAT incl | Q7: VAT incl | S7: VAT incl | U7: VAT incl | W7: VAT incl
A8: Ruraflex | B8: Ru | C8: 0 | D8: 1 | E8: =B8&C8&D8&IF($A$2="Non-municipal","N",IF($A$2="Municiple","Y","error")) -> Ru01Y | H8: ≤ 300km | I8: < 500V | J8: 452.6 | K8: =ROUND(J8 * (1 + VAT), 2) -> 520.49 | L8: 137.1 | M8: =ROUND(L8 * (1 + VAT), 2) -> 157.67 | N8: 74.46 | O8: =ROUND(N8 * (1 + VAT), 2) -> 85.63 | P8: 147.65 | Q8: =ROUND(P8 * (1 + VAT), 2) -> 169.8 | R8: 101.61 | S8: =ROUND(R8 * (1 + VAT), 2) -> 116.85 | T8: 64.46 | U8: =ROUND(T8 * (1 + VAT), 2) -> 74.13 | V8: 25.74 | W8: =ROUND(V8 * (1 + VAT), 2) -> 29.6
A9: Ruraflex | B9: Ru | C9: 0 | D9: 2 | E9: =B9&C9&D9&IF($A$2="Non-municipal","N",IF($A$2="Municiple","Y","error")) -> Ru02Y | I9: ≥ 500V & ≤ 22kV | J9: 448.1 | K9: 515.32 | L9: 135.75 | M9: 156.11 | N9: 73.71 | O9: 84.77 | P9: 146.2 | Q9: 168.13 | R9: 100.58 | S9: 115.67 | T9: 63.81 | U9: 73.38 | V9: 23.62 | W9: 27.16
A10: Ruraflex | B10: Ru | E10: RuY | J10: 0 | L10: 0 | N10: 0 | P10: 0 | R10: 0 | T10: 0 | V10: 0
A11: Ruraflex | B11: Ru | E11: RuY | J11: 0 | L11: 0 | N11: 0 | P11: 0 | R11: 0 | T11: 0 | V11: 0
A12: Ruraflex | B12: Ru | C12: 1 | D12: 1 | E12: Ru11Y | H12: > 300km and ≤ 600km | I12: < 500V | J12: 457.1 | K12: 525.67 | L12: 138.5 | M12: 159.28 | N12: 75.17 | O12: 86.45 | P12: 149.09 | Q12: 171.45 | R12: 102.63 | S12: 118.02 | T12: 65.12 | U12: 74.89 | V12: 25.85 | W12: 29.73
A13: Ruraflex | B13: Ru | C13: 1 | D13: 2 | E13: Ru12Y | I13: ≥ 500V & ≤ 22kV | J13: 452.59 | K13: 520.48 | L13: 137.07 | M13: 157.63 | N13: 74.46 | O13: 85.63 | P13: 147.65 | Q13: 169.8 | R13: 101.59 | S13: 116.83 | T13: 64.46 | U13: 74.13 | V13: 23.75 | W13: 27.31
A14: Ruraflex | B14: Ru | E14: RuY | J14: 0 | L14: 0 | N14: 0 | P14: 0 | R14: 0 | T14: 0 | V14: 0
A15: Ruraflex | B15: Ru | E15: RuY | J15: 0 | L15: 0 | N15: 0 | P15: 0 | R15: 0 | T15: 0 | V15: 0
A16: Ruraflex | B16: Ru | C16: 2 | D16: 1 | E16: Ru21Y | H16: > 600km and ≤ 900km | I16: < 500V | J16: 461.69 | K16: 530.94 | L16: 139.84 | M16: 160.82 | N16: 75.95 | O16: 87.34 | P16: 150.58 | Q16: 173.17 | R16: 103.62 | S16: 119.16 | T16: 65.77 | U16: 75.64 | V16: 25.99 | W16: 29.89
A17: Ruraflex | B17: Ru | C17: 2 | D17: 2 | E17: Ru22Y | I17: ≥ 500V & ≤ 22kV | J17: 457.08 | K17: 525.64 | L17: 138.47 | M17: 159.24 | N17: 75.17 | O17: 86.45 | P17: 149.09 | Q17: 171.45 | R17: 102.63 | S17: 118.02 | T17: 65.12 | U17: 74.89 | V17: 23.87 | W17: 27.45
A18: Ruraflex | B18: Ru | E18: RuY | J18: 0 | L18: 0 | N18: 0 | P18: 0 | R18: 0 | T18: 0 | V18: 0
A19: Ruraflex | B19: Ru | E19: RuY | J19: 0 | L19: 0 | N19: 0 | P19: 0 | R19: 0 | T19: 0 | V19: 0
A20: Ruraflex | B20: Ru | C20: 3 | D20: 1 | E20: Ru31Y | H20: > 900km | I20: < 500V | J20: 466.3 | K20: 536.25 | L20: 141.29 | M20: 162.48 | N20: 76.66 | O20: 88.16 | P20: 152.07 | Q20: 174.88 | R20: 104.7 | S20: 120.41 | T20: 66.42 | U20: 76.38 | V20: 26.07 | W20: 29.98
A21: Ruraflex | B21: Ru | C21: 3 | D21: 2 | E21: Ru32Y | I21: ≥ 500V & ≤ 22kV | J21: 461.68 | K21: 530.93 | L21: 139.84 | M21: 160.82 | N21: 75.95 | O21: 87.34 | P21: 150.58 | Q21: 173.17 | R21: 103.62 | S21: 119.16 | T21: 65.77 | U21: 75.64 | V21: 23.88 | W21: 27.46
N22: 0
N23: 0
H26: Customer categories | J26: Service charge [R/account/day] | L26: Administration charge [R/POD/day] | Q26: Ancillary service charge [c/kWh] | S26: Network demand charge [c/kWh] in all time-of-use periods
O27: Voltage | R27: VAT incl | T27: VAT incl
A28: Tariff | B28: Tariff nameBillcode | C28: Tx zone | D28: Voltage | E28: Billcode | K28: VAT incl | M28: VAT incl | O28: < 500V | Q28: 0.57 | R28: =ROUND(Q28 * (1 + VAT), 2) -> 0.66 | S28: 36.71 | T28: =ROUND(S28 * (1 + VAT), 2) -> 42.22
A29: Ruraflex | B29: Ru | C29: 0 | D29: 1 | E29: =B29&C29&D29&IF($A$2="Non-municipal","N",IF($A$2="Municiple","Y","error")) -> Ru01Y | H29: ≤ 100 kVA | J29: 25 | K29: =ROUND(J29 * (1 + VAT), 2) -> 28.75 | L29: 7.09 | M29: =ROUND(L29 * (1 + VAT), 2) -> 8.15 | O29: ≥ 500V & < 22kV | Q29: 0.57 | R29: =ROUND(Q29 * (1 + VAT), 2) -> 0.66 | S29: 32.12 | T29: =ROUND(S29 * (1 + VAT), 2) -> 36.94
A30: Ruraflex | B30: Ru | C30: 0 | D30: 1 | E30: =B30&C30&D30&IF($A$2="Non-municipal","N",IF($A$2="Municiple","Y","error")) -> Ru01Y | H30: > 100 kVA & ≤ 500 kVA | J30: 85.25 | K30: =ROUND(J30 * (1 + VAT), 2) -> 98.04 | L30: 39.52 | M30: =ROUND(L30 * (1 + VAT), 2) -> 45.45
A31: Ruraflex | B31: Ru | C31: 0 | D31: 1 | E31: =B31&C31&D31&IF($A$2="Non-municipal","N",IF($A$2="Municiple","Y","error")) -> Ru01Y | H31: > 500 kVA & ≤ 1 MVA | J31: 262.27 | K31: =ROUND(J31 * (1 + VAT), 2) -> 301.61 | L31: 60.64 | M31: =ROUND(L31 * (1 + VAT), 2) -> 69.74 | O31: Reactive energy charge [c/kVArh]
A32: Ruraflex | B32: Ru | C32: 0 | D32: 1 | E32: =B32&C32&D32&IF($A$2="Non-municipal","N",IF($A$2="Municiple","Y","error")) -> Ru01Y | H32: > 1 MVA | J32: 262.27 | K32: =ROUND(J32 * (1 + VAT), 2) -> 301.61 | L32: 112.56 | M32: =ROUND(L32 * (1 + VAT), 2) -> 129.44 | O32: High season | Q32: Low season
A33: Ruraflex | B33: Ru | C33: 0 | D33: 1 | E33: =B33&C33&D33&IF($A$2="Non-municipal","N",IF($A$2="Municiple","Y","error")) -> Ru01Y | H33: Key customers | J33: 5139.74 | K33: =ROUND(J33 * (1 + VAT), 2) -> 5910.7 | L33: 112.56 | M33: =ROUND(L33 * (1 + VAT), 2) -> 129.44 | P33: VAT incl | R33: VAT incl
O34: 12.2 | P34: =ROUND(O34 * (1 + VAT), 2) -> 14.03 | Q34: 0 | R34: =ROUND(Q34 * (1 + VAT), 2) -> 0

Sheet Ruraflex Gen NLA
G1: Back to menu
A2: Non-municipal | G2: Ruraflex Gen - Non-Local Authority | AF2: =SUM(#REF!,#REF!,#REF!,#REF!,#REF!,#REF!,#REF!,#REF!,#REF!,#REF!,#REF!,#REF!) ->  | AG2: check value
J4: Active energy charge for loads [c/kWh] | V4: Network capacity charges [R/kVA/m]
H5: Transmission zone | J5: High demand season [Jun - Aug] | P5: Low demand season [Sep - May]
I6: Voltage | J6: Peak | L6: Standard | N6: Off Peak | P6: Peak | R6: Standard | T6: Off Peak
A7: Tariff | B7: Tariff nameBillcode | C7: Tx zone | D7: Voltage | E7: Billcode | K7: VAT incl | M7: VAT incl | O7: VAT incl | Q7: VAT incl | S7: VAT incl | U7: VAT incl | W7: VAT incl
A8: Genflex rural | B8: GR | C8: 0 | D8: 1 | E8: =B8&C8&D8&IF($A$2="Non-municipal","N",IF($A$2="Municiple","Y","error")) -> GR01N | H8: ≤ 300km | I8: < 500V | J8: 432.14 | K8: =ROUND(J8 * (1 + VAT), 2) -> 496.96 | L8: 130.92 | M8: =ROUND(L8 * (1 + VAT), 2) -> 150.56 | N8: 71.11 | O8: =ROUND(N8 * (1 + VAT), 2) -> 81.78 | P8: 140.97 | Q8: =ROUND(P8 * (1 + VAT), 2) -> 162.12 | R8: 97.01 | S8: =ROUND(R8 * (1 + VAT), 2) -> 111.56 | T8: 61.55 | U8: =ROUND(T8 * (1 + VAT), 2) -> 70.78 | V8: 24.96 | W8: =ROUND(V8 * (1 + VAT), 2) -> 28.7
A9: Genflex rural | B9: GR | C9: 0 | D9: 2 | E9: =B9&C9&D9&IF($A$2="Non-municipal","N",IF($A$2="Municiple","Y","error")) -> GR02N | I9: ≥ 500V & ≤ 22kV | J9: 427.87 | K9: 492.05 | L9: 129.63 | M9: 149.07 | N9: 70.38 | O9: 80.94 | P9: 139.59 | Q9: 160.53 | R9: 96.05 | S9: 110.46 | T9: 60.91 | U9: 70.05 | V9: 22.87 | W9: 26.3
A10: Genflex rural | B10: GR | E10: GRN | J10: 0 | L10: 0 | N10: 0 | P10: 0 | R10: 0 | T10: 0 | V10: 0
A11: Genflex rural | B11: GR | E11: GRN | J11: 0 | L11: 0 | N11: 0 | P11: 0 | R11: 0 | T11: 0 | V11: 0
A12: Genflex rural | B12: GR | C12: 1 | D12: 1 | E12: GR11N | H12: > 300km and ≤ 600km | I12: < 500V | J12: 436.48 | K12: 501.95 | L12: 132.23 | M12: 152.06 | N12: 71.81 | O12: 82.58 | P12: 142.38 | Q12: 163.74 | R12: 98 | S12: 112.7 | T12: 62.18 | U12: 71.51 | V12: 25.03 | W12: 28.78
A13: Genflex rural | B13: GR | C13: 1 | D13: 2 | E13: GR12N | I13: ≥ 500V & ≤ 22kV | J13: 432.13 | K13: 496.95 | L13: 130.9 | M13: 150.54 | N13: 71.11 | O13: 81.78 | P13: 140.97 | Q13: 162.12 | R13: 97 | S13: 111.55 | T13: 61.55 | U13: 70.78 | V13: 23.01 | W13: 26.46
A14: Genflex rural | B14: GR | E14: GRN | J14: 0 | L14: 0 | N14: 0 | P14: 0 | R14: 0 | T14: 0 | V14: 0
A15: Genflex rural | B15: GR | E15: GRN | J15: 0 | L15: 0 | N15: 0 | P15: 0 | R15: 0 | T15: 0 | V15: 0
A16: Genflex rural | B16: GR | C16: 2 | D16: 1 | E16: GR21N | H16: > 600km and ≤ 900km | I16: < 500V | J16: 440.85 | K16: 506.98 | L16: 133.56 | M16: 153.59 | N16: 72.52 | O16: 83.4 | P16: 143.81 | Q16: 165.38 | R16: 98.96 | S16: 113.8 | T16: 62.8 | U16: 72.22 | V16: 25.16 | W16: 28.93
A17: Genflex rural | B17: GR | C17: 2 | D17: 2 | E17: GR22N | I17: ≥ 500V & ≤ 22kV | J17: 436.46 | K17: 501.93 | L17: 132.2 | M17: 152.03 | N17: 71.81 | O17: 82.58 | P17: 142.38 | Q17: 163.74 | R17: 98 | S17: 112.7 | T17: 62.18 | U17: 71.51 | V17: 23.12 | W17: 26.59
A18: Genflex rural | B18: GR | E18: GRN | J18: 0 | L18: 0 | N18: 0 | P18: 0 | R18: 0 | T18: 0 | V18: 0
A19: Genflex rural | B19: GR | E19: GRN | J19: 0 | L19: 0 | N19: 0 | P19: 0 | R19: 0 | T19: 0 | V19: 0
A20: Genflex rural | B20: GR | C20: 3 | D20: 1 | E20: GR31N | H20: > 900km | I20: < 500V | J20: 445.25 | K20: 512.04 | L20: 134.88 | M20: 155.11 | N20: 73.24 | O20: 84.23 | P20: 145.19 | Q20: 166.97 | R20: 99.95 | S20: 114.94 | T20: 63.42 | U20: 72.93 | V20: 25.27 | W20: 29.06
A21: Genflex rural | B21: GR | C21: 3 | D21: 2 | E21: GR32N | I21: ≥ 500V & ≤ 22kV | J21: 440.84 | K21: 506.97 | L21: 133.56 | M21: 153.59 | N21: 72.52 | O21: 83.4 | P21: 143.81 | Q21: 165.38 | R21: 98.96 | S21: 113.8 | T21: 62.8 | U21: 72.22 | V21: 23.13 | W21: 26.6
N22: 0
N23: 0
A24: Gen-purchase | B24: NLPurchADJ | C24: 0 | D24: 4 | E24: =B24&C24&D24&IF($A$2="Non-municipal","N",IF($A$2="Municiple","Y","error")) -> NLPurchADJ04N
H28: Customer categories | J28: Service charge [R/account/day] | L28: Administration charge [R/POD/day] | O28: Voltage | Q28: Ancillary service charge for loads and generators [c/kWh] | S28: Network demand charge [c/kWh] for loads in all time-of-use periods
H29: [kVA or MVA = loads] | R29: VAT incl | T29: VAT incl
A30: Tariff | B30: Tariff nameBillcode | C30: Tx zone | D30: Voltage | E30: Billcode | H30: [kW or MW = generators] | K30: VAT incl | M30: VAT incl | O30: < 500V | Q30: 0.55 | R30: =ROUND(Q30 * (1 + VAT), 2) -> 0.63 | S30: 35.53 | T30: =ROUND(S30 * (1 + VAT), 2) -> 40.86
A31: Genflex rural | B31: GR | C31: 0 | D31: 1 | E31: =B31&C31&D31&IF($A$2="Non-municipal","N",IF($A$2="Municiple","Y","error")) -> GR01N | H31: ≤ 100 kVA/kW | J31: 24.55 | K31: =ROUND(J31 * (1 + VAT), 2) -> 28.23 | L31: 6.97 | M31: =ROUND(L31 * (1 + VAT), 2) -> 8.02 | O31: ≥ 500V & < 22kV | Q31: 0.55 | R31: =ROUND(Q31 * (1 + VAT), 2) -> 0.63 | S31: 31.15 | T31: =ROUND(S31 * (1 + VAT), 2) -> 35.82
A32: Genflex rural | B32: GR | C32: 0 | D32: 1 | E32: =B32&C32&D32&IF($A$2="Non-municipal","N",IF($A$2="Municiple","Y","error")) -> GR01N | H32: > 100 KVA/kW & ≤ 500 kVA/kW | J32: 83.72 | K32: =ROUND(J32 * (1 + VAT), 2) -> 96.28 | L32: 38.82 | M32: =ROUND(L32 * (1 + VAT), 2) -> 44.64
A33: Genflex rural | B33: GR | C33: 0 | D33: 1 | E33: =B33&C33&D33&IF($A$2="Non-municipal","N",IF($A$2="Municiple","Y","error")) -> GR01N | H33: > 500 kVA/kW & ≤ 1 MVA/MW | J33: 257.56 | K33: =ROUND(J33 * (1 + VAT), 2) -> 296.19 | L33: 59.58 | M33: =ROUND(L33 * (1 + VAT), 2) -> 68.52 | O33: Reactive energy charge [c/kVArh]
A34: Genflex rural | B34: GR | C34: 0 | D34: 1 | E34: =B34&C34&D34&IF($A$2="Non-municipal","N",IF($A$2="Municiple","Y","error")) -> GR01N | H34: > 1 MVA/MW | J34: 257.56 | K34: =ROUND(J34 * (1 + VAT), 2) -> 296.19 | L34: 110.55 | M34: =ROUND(L34 * (1 + VAT), 2) -> 127.13 | O34: High season | Q34: Low season
A35: Genflex rural | B35: GR | C35: 0 | D35: 1 | E35: =B35&C35&D35&IF($A$2="Non-municipal","N",IF($A$2="Municiple","Y","error")) -> GR01N | H35: Key customers | J35: 5047.97 | K35: =ROUND(J35 * (1 + VAT), 2) -> 5805.17 | L35: 110.55 | M35: =ROUND(L35 * (1 + VAT), 2) -> 127.13 | P35: VAT incl | R35: VAT incl
O36: 12 | P36: =ROUND(O36 * (1 + VAT), 2) -> 13.8 | Q36: 0 | R36: =ROUND(Q36 * (1 + VAT), 2) -> 0

Sheet Landrate NLA
H1: Back to menu
A2: Non-municipal | G2: Landrate - Non-local Authority
J4: Energy charge [c/kWh] | L4: Ancillary service charge [c/kWh] | N4: Network demand charge [c/kWh] | P4: Network capacity charge [R/POD/day] | R4: Service charge [R/POD/day]
A5: Tariff | B5: Tariff nameBillcode | C5: Tx zone | D5: Voltage | E5: Billcode | K5: VAT incl | M5: VAT incl | O5: VAT incl | Q5: VAT incl | S5: VAT incl
A6: Landrate 1 | B6: L1 | C6: 0 | D6: 1 | E6: =B6&C6&D6&IF($A$2="Non-municipal","N",IF($A$2="Municiple","Y","error")) -> L101N | H6: Landrate 1 | J6: 142.19 | K6: =ROUND(J6 * (1 + VAT), 2) -> 163.52 | L6: 0.55 | M6: =ROUND(L6 * (1 + VAT), 2) -> 0.63 | N6: 35.53 | O6: =ROUND(N6 * (1 + VAT), 2) -> 40.86 | P6: 37.98 | Q6: =ROUND(P6 * (1 + VAT), 2) -> 43.68 | R6: 31.54 | S6: =ROUND(R6 * (1 + VAT), 2) -> 36.27
A7: Landrate 2 | B7: L2 | C7: 0 | D7: 1 | E7: =B7&C7&D7&IF($A$2="Non-municipal","N",IF($A$2="Municiple","Y","error")) -> L201N | H7: Landrate 2 | J7: 142.19 | K7: 163.52 | L7: 0.55 | M7: =ROUND(L7 * (1 + VAT), 2) -> 0.63 | N7: 35.53 | O7: =ROUND(N7 * (1 + VAT), 2) -> 40.86 | P7: 58.38 | Q7: =ROUND(P7 * (1 + VAT), 2) -> 67.14 | R7: 31.54 | S7: =ROUND(R7 * (1 + VAT), 2) -> 36.27
A8: Landrate 3 | B8: L3 | C8: 0 | D8: 1 | E8: L301N | H8: Landrate 3 | J8: 142.19 | K8: 163.52 | L8: 0.55 | M8: =ROUND(L8 * (1 + VAT), 2) -> 0.63 | N8: 35.53 | O8: =ROUND(N8 * (1 + VAT), 2) -> 40.86 | P8: 93.33 | Q8: =ROUND(P8 * (1 + VAT), 2) -> 107.33 | R8: 31.54 | S8: =ROUND(R8 * (1 + VAT), 2) -> 36.27
A9: Landrate 4 | B9: L4 | C9: 0 | D9: 1 | E9: L401N | H9: Landrate 4 | J9: 307.12 | K9: 353.19 | L9: 0.55 | M9: =ROUND(L9 * (1 + VAT), 2) -> 0.63 | N9: 35.53 | O9: =ROUND(N9 * (1 + VAT), 2) -> 40.86 | P9: 30.24 | Q9: =ROUND(P9 * (1 + VAT), 2) -> 34.78 | R9: 0 | S9: =ROUND(R9 * (1 + VAT), 2) -> 0
A10: Landlight | B10: Lt | C10: 0 | D10: 1 | E10: =B10&C10&D10&IF($A$2="Non-municipal","N",IF($A$2="Municiple","Y","error")) -> Lt01N | H10: Landlight 20A | J10: 408.87 | K10: 470.2
B11: Lt60 | C11: 0 | D11: 1 | E11: =B11&C11&D11&IF($A$2="Non-municipal","N",IF($A$2="Municiple","Y","error")) -> Lt6001N | H11: Landlight 60A | J11: 527.08 | K11: 606.14
A12: Landrate Dx | B12: Ld | C12: 0 | D12: 1 | E12: Ld01N | H12: Landrate Dx* | R12: 67.6409 | S12: =ROUND(R12 * (1 + VAT), 2) -> 77.79
H13: *R/day fixed charge inclusive of the following charges; energy, ancillary service, network demand, network capacity and service charge.

Sheet Landrate Munic
H1: Back to menu
A2: Municiple | G2: Landrate - Local Authority
J4: Energy charge [c/kWh] | L4: Ancillary service charge [c/kWh] | N4: Network demand charge [c/kWh] | P4: Network capacity charge [R/POD/day] | R4: Service charge [R/POD/day]
A5: Tariff | B5: Tariff nameBillcode | C5: Tx zone | D5: Voltage | E5: Billcode | K5: VAT incl | M5: VAT incl | O5: VAT incl | Q5: VAT incl | S5: VAT incl
A6: Landrate 1 | B6: L1 | C6: 0 | D6: 1 | E6: =B6&C6&D6&IF($A$2="Non-municipal","N",IF($A$2="Municiple","Y","error")) -> L101Y | H6: Landrate 1 | J6: 148.91 | K6: =ROUND(J6 * (1 + VAT), 2) -> 171.25 | L6: 0.57 | M6: =ROUND(L6 * (1 + VAT), 2) -> 0.66 | N6: 36.71 | O6: =ROUND(N6 * (1 + VAT), 2) -> 42.22 | P6: 39.2 | Q6: =ROUND(P6 * (1 + VAT), 2) -> 45.08 | R6: 32.09 | S6: =ROUND(R6 * (1 + VAT), 2) -> 36.9
A7: Landrate 2 | B7: L2 | C7: 0 | D7: 1 | E7: =B7&C7&D7&IF($A$2="Non-municipal","N",IF($A$2="Municiple","Y","error")) -> L201Y | H7: Landrate 2 | J7: 148.91 | K7: =ROUND(J7 * (1 + VAT), 2) -> 171.25 | L7: 0.57 | M7: =ROUND(L7 * (1 + VAT), 2) -> 0.66 | N7: 36.71 | O7: =ROUND(N7 * (1 + VAT), 2) -> 42.22 | P7: 60.25 | Q7: =ROUND(P7 * (1 + VAT), 2) -> 69.29 | R7: 32.09 | S7: =ROUND(R7 * (1 + VAT), 2) -> 36.9
A8: Landrate 3 | B8: L3 | C8: 0 | D8: 1 | E8: =B8&C8&D8&IF($A$2="Non-municipal","N",IF($A$2="Municiple","Y","error")) -> L301Y | H8: Landrate 3 | J8: 148.91 | K8: =ROUND(J8 * (1 + VAT), 2) -> 171.25 | L8: 0.57 | M8: =ROUND(L8 * (1 + VAT), 2) -> 0.66 | N8: 36.71 | O8: =ROUND(N8 * (1 + VAT), 2) -> 42.22 | P8: 96.35 | Q8: =ROUND(P8 * (1 + VAT), 2) -> 110.8 | R8: 32.09 | S8: =ROUND(R8 * (1 + VAT), 2) -> 36.9
A9: Landrate 4 | B9: L4 | C9: 0 | D9: 1 | E9: =B9&C9&D9&IF($A$2="Non-municipal","N",IF($A$2="Municiple","Y","error")) -> L401Y | H9: Landrate 4 | J9: 321.63 | K9: =ROUND(J9 * (1 + VAT), 2) -> 369.87 | L9: 0.57 | M9: =ROUND(L9 * (1 + VAT), 2) -> 0.66 | N9: 36.71 | O9: =ROUND(N9 * (1 + VAT), 2) -> 42.22 | P9: 31.22 | Q9: =ROUND(P9 * (1 + VAT), 2) -> 35.9
A10: Landrate Dx | B10: Ld | C10: 0 | D10: 1 | E10: =B10&C10&D10&IF($A$2="Non-municipal","N",IF($A$2="Municiple","Y","error")) -> Ld01Y | H10: Landrate Dx* | R10: 69.4313 | S10: =ROUND(R10 * (1 + VAT), 2) -> 79.85
H11: *R/day fixed charge inclusive of the following charges; energy, ancillary service, network demand, network capacity and service charge.

Sheet TOuS Original (hidden)
B4: Reliability service charge urban | D4: Charge [c/kWh]
E5: VAT incl
B6: < 500V | D6: 0.27 | E6: =ROUND(D6 * (1 + VAT), 2) -> 0.31
B7: ≥ 500V & < 66kV | D7: 0.26 | E7: =ROUND(D7 * (1 + VAT), 2) -> 0.3
B8: ≥ 66kV & ≤ 132kV | D8: 0.25 | E8: =ROUND(D8 * (1 + VAT), 2) -> 0.29
B9: > 132kV | D9: 0.23 | E9: =ROUND(D9 * (1 + VAT), 2) -> 0.26
B12: Reliability service charge rural | D12: Charge [c/kWh]
E13: VAT incl
B14: < 500V | D14: 0.27 | E14: =ROUND(D14 * (1 + VAT), 2) -> 0.31
B15: ≥ 500V & ≤ 22kV | D15: 0.27 | E15: =ROUND(D15 * (1 + VAT), 2) -> 0.31
C18: Transmission zone | D18: Voltage | E18: R/kVA
F19: VAT incl
B20: ETUoS urban | C20: ≤ 300km | D20: < 500V | E20: 11.36438596 | F20: =ROUND(E20 * (1 + VAT), 2) -> 13.07
D21: ≥ 500V & < 66kV | E21: 11.19400536 | F21: 12.87
D22: ≥ 66kV & ≤ 132kV | E22: 10.8362061 | F22: 12.46
C23: > 300km & ≤ 600km | D23: < 500V | E23: 11.46661432 | F23: 13.19
D24: ≥ 500V & < 66kV | E24: 11.31327178 | F24: 13.01
D25: ≥ 66kV & ≤ 132kV | E25: 10.95547252 | F25: 12.6
C26: > 600km & ≤ 900km | D26: < 500V | E26: 11.58588074 | F26: 13.32
D27: ≥ 500V & < 66kV | E27: 11.4325382 | F27: 13.15
D28: ≥ 66kV & ≤ 132kV | E28: 11.05770088 | F28: 12.72
C29: > 900km | D29: < 500V | E29: 11.70514716 | F29: 13.46
D30: ≥ 500V & < 66kV | E30: 11.55180462 | F30: 13.28
D31: ≥ 66kV & ≤ 132kV | E31: 11.1769673 | F31: 12.85
C34: Transmission zone | D34: Voltage | E34: R/kVA
F35: VAT incl
B36: ETUoS rural | C36: ≤ 300km | D36: < 500V | E36: 11.7732994 | F36: =ROUND(E36 * (1 + VAT), 2) -> 13.54
D37: ≥ 500V & < 66kV | E37: 11.67107104 | F37: 13.42
C38: > 300km & ≤ 600km | D38: < 500V | E38: 11.89256582 | F38: 13.68
D39: ≥ 500V & < 66kV | E39: 11.79033746 | F39: 13.56
C40: > 600km & ≤ 900km | D40: < 500V | E40: 12.01183224 | F40: 13.81
D41: ≥ 500V & < 66kV | E41: 11.90960388 | F41: 13.7
C42: > 900km | D42: < 500V | E42: 12.13109866 | F42: 13.95
D43: ≥ 500V & < 66kV | E43: 12.0288703 | F43: 13.83
B46: Distribution network charges urban
D47: Network access charge [R/kVA/m] | F47: Network demand charge [R/kVA/m] | H47: Urban low voltage subsidy charge [R/kVA/m]
B49: Voltage | E49: VAT incl | G49: VAT incl | I49: VAT incl
B50: < 500V | D50: =#REF! ->  | E50: =ROUND(D50 * (1 + VAT), 2) ->  | F50: =#REF! ->  | G50: =ROUND(F50 * (1 + VAT), 2) ->  | H50: =#REF! ->  | I50: =ROUND(H50 * (1 + VAT), 2) -> 
B51: ≥ 500V & < 66kV | D51: =#REF! ->  | E51: =ROUND(D51 * (1 + VAT), 2) ->  | F51: =#REF! ->  | G51: =ROUND(F51 * (1 + VAT), 2) ->  | H51: =#REF! ->  | I51: =ROUND(H51 * (1 + VAT), 2) -> 
B52: ≥ 66kV & ≤ 132kV | D52: =#REF! ->  | E52: =ROUND(D52 * (1 + VAT), 2) ->  | F52: =#REF! ->  | G52: =ROUND(F52 * (1 + VAT), 2) ->  | H52: =#REF! ->  | I52: =ROUND(H52 * (1 + VAT), 2) -> 
B53: > 132kV | D53: =#REF! ->  | E53: =ROUND(D53 * (1 + VAT), 2) ->  | F53: =#REF! ->  | G53: =ROUND(F53 * (1 + VAT), 2) ->  | H53: =#REF! ->  | I53: =ROUND(H53 * (1 + VAT), 2) -> 
B56: Distribution network charges rural
D57: Network access charge [R/kVA/m] | F57: Network demand charge [c/kWh]
B59: Voltage | E59: VAT incl | G59: VAT incl
B60: < 500V | D60: 6.201664795 | E60: =ROUND(D60 * (1 + VAT), 2) -> 7.13 | F60: 19.67324725 | G60: =ROUND(F60 * (1 + VAT), 2) -> 22.62
B61: ≥ 500V & ≤ 22kV | D61: 2.297555913 | E61: =ROUND(D61 * (1 + VAT), 2) -> 2.64 | F61: 17.23886725 | G61: =ROUND(F61 * (1 + VAT), 2) -> 19.82
B64: Distribution network charges for Generators
D65: Network access charge [R/MW/m]
B67: Voltage | E67: VAT incl
B68: < 500V
B69: ≥ 500V & < 66kV
B70: ≥ 66kV & ≤ 132kV | D70: 9.4 | E70: =ROUND(D70 * (1 + VAT), 2) -> 10.81
B73: Electrification and rural network subsidy charge [c/kWh]
D74: Rural network subsidy charge [c/kWh] | F74: Electrification networks subsidy charge [c/kWh] | H74: Total electrification and rural network subsidy charge [c/kWh]
B76: Tariff | E76: VAT incl | G76: VAT incl | I76: VAT incl
B77: Megaflex, Miniflex, Nightsave Urban Large, Nightsave Urban Small, Businessrate
D78: 2.68 | E78: =ROUND(D78 * (1 + VAT), 2) -> 3.08 | F78: 0.91 | G78: =ROUND(F78 * (1 + VAT), 2) -> 1.05 | H78: 3.59 | I78: =ROUND(H78 * (1 + VAT), 2) -> 4.13
B83: Service and admin charges
B84: Customer categories | D84: Service charge [R/account/day] | F84: Administration charge [R/POD/day]
E86: VAT incl | G86: VAT incl
B87: ≤ 100 kVA | D87: 9.49 | E87: =ROUND(D87 * (1 + VAT), 2) -> 10.91 | F87: 2.08 | G87: =ROUND(F87 * (1 + VAT), 2) -> 2.39
B88: > 100 kVA & ≤ 500 kVA | D88: 43.38 | E88: =ROUND(D88 * (1 + VAT), 2) -> 49.89 | F88: 12.16 | G88: =ROUND(F88 * (1 + VAT), 2) -> 13.98
B89: > 500 kVA & ≤ 1 MVA | D89: 133.5 | E89: =ROUND(D89 * (1 + VAT), 2) -> 153.53 | F89: 24.17 | G89: =ROUND(F89 * (1 + VAT), 2) -> 27.8
B90: > 1 MVA | D90: 133.5 | E90: =ROUND(D90 * (1 + VAT), 2) -> 153.53 | F90: 60.17 | G90: =ROUND(F90 * (1 + VAT), 2) -> 69.2
B91: Key customers | D91: 2616.06 | E91: =ROUND(D91 * (1 + VAT), 2) -> 3008.47 | F91: 83.55 | G91: =ROUND(F91 * (1 + VAT), 2) -> 96.08
B94: Distribution loss factors | F94: Transmission loss factors for loads
B95: Voltage | C95: Urban loss factor | D95: Rural loss factor | F95: Distance from Johannesburg | G95: Zone | H95: Loss factor
B96: < 500V | C96: ='Loss Factors'!O6 -> 1.1111 | D96: ='Loss Factors'!P6 -> 1.1527 | F96: 0 to 300 km | G96: 0 | H96: ='Loss Factors'!T6 -> 1.0107
B97: ≥ 500V & < 66kV | C97: ='Loss Factors'!O7 -> 1.0957 | D97: ='Loss Factors'!P7 -> 1.1412 | F97: 301 to 600 km | G97: 1 | H97: ='Loss Factors'!T7 -> 1.0208
B98: ≥ 66kV & ≤ 132kV | C98: ='Loss Factors'!O8 -> 1.0611 | F98: 601 to 900 km | G98: 2 | H98: ='Loss Factors'!T8 -> 1.031
B99: > 132kV | C99: ='Loss Factors'!O9 -> 1 | F99: > 900 km | G99: 3 | H99: ='Loss Factors'!T9 -> 1.0413
K104: TUoS [ > 132kV] | M104: Charge R/kVA
N105: VAT incl
L106: ≤ 300km | M106: =#REF! ->  | N106: =ROUND(M106 * (1 + VAT), 2) -> 
L107: > 300km & ≤ 600km | M107: =#REF! ->  | N107: =ROUND(M107 * (1 + VAT), 2) -> 
L108: > 600km & ≤ 900km | M108: =#REF! ->  | N108: =ROUND(M108 * (1 + VAT), 2) -> 
L109: > 900km | M109: =#REF! ->  | N109: =ROUND(M109 * (1 + VAT), 2) -> 

Sheet TUoS NLA
H1: Back to menu
A2: Non-municipal
H3: TUoS (Transmission use of system) charges (> 132 KV or direct Transmission connected) network charge for loads
H6: Electrification and rural network subsidy charge [c/kWh]
J7: Electrification and rural network subsidy charge [c/kWh]
A9: Tariff | B9: Tariff nameBillcode | C9: Tx zone | D9: Voltage | E9: Billcode | H9: Tariff | K9: VAT incl
H10: Megaflex, Miniflex, Nightsave Urban Large, Nightsave Urban Small, Businessrate
A11: Megaflex | B11: Me | C11: 0 | D11: 1 | E11: =B11&C11&D11&IF($A$2="Non-municipal","N",IF($A$2="Municiple","Y","error")) -> Me01N | J11: 10.61 | K11: =ROUND(J11 * (1 + VAT), 2) -> 12.2
H15: Service and admin charges
H16: Utilised capacity/maximum export capacity | J16: Service charge [R/account/day] | L16: Administration charge [R/POD/day]
H19: [kVA/MVA = loads]
A20: Tariff | B20: Tariff nameBillcode | C20: Tx zone | D20: Voltage | E20: Billcode | H20: [kW/MW = generators] | K20: VAT incl | M20: VAT incl
A21: Miniflex | B21: Mi | C21: 0 | D21: 1 | E21: =B21&C21&D21&IF($B$28="Non-municipal","N",IF($B$28="Municiple","Y","error")) -> Mi01N | H21: ≤ 100 kVA/kW | J21: 19.39 | K21: =ROUND(J21 * (1+ VAT), 2) -> 22.3 | L21: 4.26 | M21: =ROUND(L21 * (1+ VAT), 2) -> 4.9
A22: Miniflex | B22: Mi | C22: 0 | D22: 1 | E22: =B22&C22&D22&IF($B$28="Non-municipal","N",IF($B$28="Municiple","Y","error")) -> Mi01N | H22: > 100 kVA/kW & ≤ 500 kVA/kW | J22: 88.53 | K22: =ROUND(J22 * (1+ VAT), 2) -> 101.81 | L22: 24.83 | M22: =ROUND(L22 * (1+ VAT), 2) -> 28.55
A23: Miniflex | B23: Mi | C23: 0 | D23: 1 | E23: =B23&C23&D23&IF($B$28="Non-municipal","N",IF($B$28="Municiple","Y","error")) -> Mi01N | H23: > 500 kVA/kW & ≤ 1 MVA/MW | J23: 272.39 | K23: =ROUND(J23 * (1+ VAT), 2) -> 313.25 | L23: 49.3 | M23: =ROUND(L23 * (1+ VAT), 2) -> 56.7
A24: Miniflex | B24: Mi | C24: 0 | D24: 1 | E24: =B24&C24&D24&IF($B$28="Non-municipal","N",IF($B$28="Municiple","Y","error")) -> Mi01N | H24: > 1 MVA/MW | J24: 272.39 | K24: =ROUND(J24 * (1+ VAT), 2) -> 313.25 | L24: 122.76 | M24: =ROUND(L24 * (1+ VAT), 2) -> 141.17
A25: Miniflex | B25: Mi | C25: 0 | D25: 1 | E25: =B25&C25&D25&IF($B$28="Non-municipal","N",IF($B$28="Municiple","Y","error")) -> Mi01N | H25: Key customers or Transmission connected generators | J25: 5337.86 | K25: =ROUND(J25 * (1+ VAT), 2) -> 6138.54 | L25: 170.47 | M25: =ROUND(L25 * (1+ VAT), 2) -> 196.04
B28: Non-municipal | H28: Transmission loss factors for loads
A29: Tariff | B29: Tariff nameBillcode | C29: Tx zone | D29: Voltage | E29: Billcode | H29: Distance from Johannesburg | I29: Zone | J29: Loss factor
A30: Transmission loss factor | B30: TxLoss | C30: 0 | D30: 4 | E30: =B30&C30&D30&IF($B$28="Non-municipal","N",IF($B$28="Municiple","Y","error")) -> TxLoss04N | H30: ≤ 300km | I30: 0 | J30: 1.0107
A31: Transmission loss factor | B31: TxLoss | C31: 1 | D31: 4 | E31: =B31&C31&D31&IF($B$28="Non-municipal","N",IF($B$28="Municiple","Y","error")) -> TxLoss14N | H31: > 300km & ≤ 600km | I31: 1 | J31: 1.0208
A32: Transmission loss factor | B32: TxLoss | C32: 2 | D32: 4 | E32: =B32&C32&D32&IF($B$28="Non-municipal","N",IF($B$28="Municiple","Y","error")) -> TxLoss24N | H32: > 600km & ≤ 900km | I32: 2 | J32: 1.031
A33: Transmission loss factor | B33: TxLoss | C33: 3 | D33: 4 | E33: =B33&C33&D33&IF($B$28="Non-municipal","N",IF($B$28="Municiple","Y","error")) -> TxLoss34N | H33: > 900km | I33: 3 | J33: 1.0413
H36: Loss factors for Transmission connected generators | J36: Loss factor
A37: Tariff | B37: Tariff nameBillcode | C37: Tx zone | D37: Voltage | E37: Billcode
A38: TUoS network charges for Transmission connected generators | B38: GenTUOS | C38: Cape | D38: 4 | E38: =B38&C38&D38&IF($A$2="Non-municipal","N",IF($A$2="Municiple","Y","error")) -> GenTUOSCape4N | I38: Cape | J38: ='Loss Factors'!P14 -> 0.971
A39: TUoS network charges for Transmission connected generators | B39: GenTUOS | C39: Karoo | D39: 4 | E39: GenTUOSKaroo4N | I39: Karoo | J39: ='Loss Factors'!P15 -> 0.995
A40: TUoS network charges for Transmission connected generators | B40: GenTUOS | C40: Kwazulu-Natal | D40: 4 | E40: GenTUOSKwazulu-Natal4N | I40: Kwazulu-Natal | J40: ='Loss Factors'!P16 -> 1.004
A41: TUoS network charges for Transmission connected generators | B41: GenTUOS | C41: Vaal | D41: 4 | E41: GenTUOSVaal4N | I41: Vaal | J41: ='Loss Factors'!P17 -> 1.02
A42: TUoS network charges for Transmission connected generators | B42: GenTUOS | C42: Waterburg | D42: 4 | E42: GenTUOSWaterburg4N | I42: Waterberg | J42: ='Loss Factors'!P18 -> 1.023
A43: TUoS network charges for Transmission connected generators | B43: GenTUOS | C43: Mpumalanga | D43: 4 | E43: GenTUOSMpumalanga4N | I43: Mpumalanga | J43: ='Loss Factors'!P19 -> 1.021
H46: TUoS network charge for Transmission connected loads | J46: Network capacity charge [R/kVA]
A47: Tariff | B47: Tariff nameBillcode | C47: Tx zone | D47: Voltage | E47: Billcode | K47: VAT incl
A48: WEPS | B48: We | C48: 0 | D48: 1 | E48: =B48&C48&D48&IF($A$2="Non-municipal","N",IF($A$2="Municiple","Y","error")) -> We01N | I48: ≤ 300km | J48: 13.43 | K48: =ROUND(J48 * (1+ VAT), 2) -> 15.44
A49: WEPS | B49: We | C49: 0 | D49: 2 | E49: =B49&C49&D49&IF($A$2="Non-municipal","N",IF($A$2="Municiple","Y","error")) -> We02N | I49: > 300km & ≤ 600km | J49: 13.55 | K49: =ROUND(J49 * (1+ VAT), 2) -> 15.58
A50: WEPS | B50: We | C50: 0 | D50: 3 | E50: =B50&C50&D50&IF($A$2="Non-municipal","N",IF($A$2="Municiple","Y","error")) -> We03N | I50: > 600km & ≤ 900km | J50: 13.75 | K50: =ROUND(J50 * (1+ VAT), 2) -> 15.81
A51: WEPS | B51: We | C51: 0 | D51: 4 | E51: =B51&C51&D51&IF($A$2="Non-municipal","N",IF($A$2="Municiple","Y","error")) -> We04N | I51: > 900km | J51: 13.85 | K51: =ROUND(J51 * (1+ VAT), 2) -> 15.93
H54: TUoS network charges for Transmission connected generators | J54: Network charge [R/kW]
A55: Tariff | B55: Tariff nameBillcode | C55: Tx zone | D55: Voltage | E55: Billcode | K55: VAT incl
A56: TUoS network charges for Transmission connected generators | B56: GenTUOS | C56: Cape | D56: 4 | E56: =B56&C56&D56&IF($A$2="Non-municipal","N",IF($A$2="Municiple","Y","error")) -> GenTUOSCape4N | I56: Cape | J56: 0 | K56: =ROUND(J56 * (1+ VAT), 2) -> 0
A57: TUoS network charges for Transmission connected generators | B57: GenTUOS | C57: Karoo | D57: 4 | E57: GenTUOSKaroo4N | I57: Karoo | J57: 0 | K57: 0
A58: TUoS network charges for Transmission connected generators | B58: GenTUOS | C58: Kwazulu-Natal | D58: 4 | E58: GenTUOSKwazulu-Natal4N | I58: Kwazulu-Natal | J58: 2.82 | K58: 3.24
A59: TUoS network charges for Transmission connected generators | B59: GenTUOS | C59: Vaal | D59: 4 | E59: GenTUOSVaal4N | I59: Vaal | J59: 9.39 | K59: 10.8
A60: TUoS network charges for Transmission connected generators | B60: GenTUOS | C60: Waterburg | D60: 4 | E60: GenTUOSWaterburg4N | I60: Waterberg | J60: 12.02 | K60: 13.82
A61: TUoS network charges for Transmission connected generators | B61: GenTUOS | C61: Mpumalanga | D61: 4 | E61: GenTUOSMpumalanga4N | I61: Mpumalanga | J61: 11.16 | K61: 12.83
H64: TUoS ancillary service charge for Transmission connected loads and generators | J64: Ancillary service charge [c/kWh]
A66: Tariff | B66: Tariff nameBillcode | C66: Tx zone | D66: Voltage | E66: Billcode | K66: VAT incl
A67: TUoS network charges for Transmission connected generators | B67: GenTUOS | C67: Cape | D67: 4 | E67: =B67&C67&D67&IF($A$2="Non-municipal","N",IF($A$2="Municiple","Y","error")) -> GenTUOSCape4N | H67: Generators | J67: 0.48 | K67: =ROUND(J67 * (1+ VAT), 2) -> 0.55
A68: TUoS network charges for Transmission connected generators | B68: GenTUOS | C68: Cape | D68: 4 | E68: =B68&C68&D68&IF($A$2="Non-municipal","N",IF($A$2="Municiple","Y","error")) -> GenTUOSCape4N | H68: Loads | J68: 0.48 | K68: =ROUND(J68 * (1+ VAT), 2) -> 0.55

Sheet DUoS NLA
A2: Non-Municipal | H2: Back to menu
H4: DUoS (Distribution use of system) charges
H7: DUoS ancillary service charge Urbanp | J7: Charge [c/kWh]
A8: Tariff | B8: Tariff nameBillcode | C8: Tx zone | D8: Voltage | E8: Billcode | K8: VAT incl
A9: Gen-DUoS urban | B9: NEGenDUoSU | C9: 0 | D9: 1 | E9: =B9&C9&D9&IF($A$2="Non-municipal","N",IF($A$2="Municiple","Y","error")) -> NEGenDUoSU01N | H9: < 500V | J9: 0.55 | K9: =ROUND(J9 * (1 + VAT), 2) -> 0.63
A10: Gen-DUoS urban | B10: NEGenDUoSU | C10: 0 | D10: 2 | E10: =B10&C10&D10&IF($A$2="Non-municipal","N",IF($A$2="Municiple","Y","error")) -> NEGenDUoSU02N | H10: ≥ 500V & < 66kV | J10: 0.54 | K10: =ROUND(J10 * (1 + VAT), 2) -> 0.62
A11: Gen-DUoS urban | B11: NEGenDUoSU | C11: 0 | D11: 3 | E11: =B11&C11&D11&IF($A$2="Non-municipal","N",IF($A$2="Municiple","Y","error")) -> NEGenDUoSU03N | H11: ≥ 66kV & ≤ 132kV | J11: 0.52 | K11: =ROUND(J11 * (1 + VAT), 2) -> 0.6
H15: DUoS ancillary service charge Ruralp | J15: Charge [c/kWh]
A16: Tariff | B16: Tariff nameBillcode | C16: Tx zone | D16: Voltage | E16: Billcode | K16: VAT incl
A17: Gen-DUoS rural | B17: NEGenDUoSR | C17: 0 | D17: 1 | E17: =B17&C17&D17&IF($A$2="Non-municipal","N",IF($A$2="Municiple","Y","error")) -> NEGenDUoSR01N | H17: < 500V | J17: 0.55 | K17: =ROUND(J17 * (1 + VAT), 2) -> 0.63
A18: Gen-DUoS rural | B18: NEGenDUoSR | C18: 0 | D18: 2 | E18: =B18&C18&D18&IF($A$2="Non-municipal","N",IF($A$2="Municiple","Y","error")) -> NEGenDUoSR02N | H18: ≥ 500V & ≤ 22kV | J18: 0.55 | K18: =ROUND(J18 * (1 + VAT), 2) -> 0.63
I21: Transmission zone | J21: Voltage | K21: [R/kVA]
A22: Tariff | B22: Tariff nameBillcode | C22: Tx zone | D22: Voltage | E22: Billcode | L22: VAT incl
H23: ETUoS urban | I23: ≤ 300km | J23: < 500V | K23: 11.94 | L23: =ROUND(K23 * (1 + VAT), 2) -> 13.73
J24: ≥ 500V & < 66kV | K24: 10.91 | L24: 12.55
J25: ≥ 66kV & ≤ 132kV | K25: 10.62 | L25: 12.21
I26: > 300km & ≤ 600km | J26: < 500V | K26: 12.02 | L26: 13.82
J27: ≥ 500V & < 66kV | K27: 11.01 | L27: 12.66
J28: ≥ 66kV & ≤ 132kV | K28: 10.7 | L28: 12.31
I29: > 600km & ≤ 900km | J29: < 500V | K29: 12.16 | L29: 13.98
J30: ≥ 500V & < 66kV | K30: 11.11 | L30: 12.78
J31: ≥ 66kV & ≤ 132kV | K31: 10.77 | L31: 12.39
I32: > 900km | J32: < 500V | K32: 12.24 | L32: 14.08
J33: ≥ 500V & < 66kV | K33: 11.24 | L33: 12.93
J34: ≥ 66kV & ≤ 132kV | K34: 10.87 | L34: 12.5
I37: Transmission zone | J37: Voltage | K37: [R/kVA]
A38: Tariff | B38: Tariff nameBillcode | C38: Tx zone | D38: Voltage | E38: Billcode | L38: VAT incl
H39: ETUoS rural | I39: ≤ 300km | J39: < 500V | K39: 24.96 | L39: =ROUND(K39 * (1 + VAT), 2) -> 28.7
J40: ≥ 500V & < 66kV | K40: 22.87 | L40: 26.3
I41: > 300km & ≤ 600km | J41: < 500V | K41: 25.03 | L41: 28.78
J42: ≥ 500V & < 66kV | K42: 23.01 | L42: 26.46
I43: > 600km & ≤ 900km | J43: < 500V | K43: 25.16 | L43: 28.93
J44: ≥ 500V & < 66kV | K44: 23.12 | L44: 26.59
I45: > 900km | J45: < 500V | K45: 25.27 | L45: 29.06
J46: ≥ 500V & < 66kV | K46: 23.13 | L46: 26.6
H49: DUoS network charges for urbanp loads
J50: Network capacity charge [R/kVA/m] | L50: Network demand charge [R/kVA/m] | N50: Urban low voltage subsidy charge [R/kVA/m]
A52: Tariff | B52: Tariff nameBillcode | C52: Tx zone | D52: Voltage | E52: Billcode | H52: Voltage | K52: VAT incl | M52: VAT incl | O52: VAT incl
A53: Gen-DUoS urban | B53: NEGenDUoSU | C53: 0 | D53: 1 | E53: =B53&C53&D53&IF($A$2="Non-municipal","N",IF($A$2="Municiple","Y","error")) -> NEGenDUoSU01N | H53: < 500V | J53: 23.73 | K53: =ROUND(J53 * (1 + VAT), 2) -> 27.29 | L53: 44.99 | M53: =ROUND(L53 * (1 + VAT), 2) -> 51.74 | N53: 0 | O53: =ROUND(N53 * (1 + VAT), 2) -> 0
A54: Gen-DUoS urban | B54: NEGenDUoSU | C54: 0 | D54: 2 | E54: =B54&C54&D54&IF($A$2="Non-municipal","N",IF($A$2="Municiple","Y","error")) -> NEGenDUoSU02N | H54: ≥ 500V & < 66kV | J54: 21.76 | K54: =ROUND(J54 * (1 + VAT), 2) -> 25.02 | L54: 41.27 | M54: =ROUND(L54 * (1 + VAT), 2) -> 47.46 | N54: 0 | O54: =ROUND(N54 * (1 + VAT), 2) -> 0
A55: Gen-DUoS urban | B55: NEGenDUoSU | C55: 0 | D55: 3 | E55: =B55&C55&D55&IF($A$2="Non-municipal","N",IF($A$2="Municiple","Y","error")) -> NEGenDUoSU03N | H55: ≥ 66kV & ≤ 132kV | J55: 7.77 | K55: =ROUND(J55 * (1 + VAT), 2) -> 8.94 | L55: 14.39 | M55: =ROUND(L55 * (1 + VAT), 2) -> 16.55 | N55: 19.17 | O55: =ROUND(N55 * (1 + VAT), 2) -> 22.05
A56: Gen-DUoS urban | B56: NEGenDUoSU | C56: 0 | D56: 4 | E56: =B56&C56&D56&IF($A$2="Non-municipal","N",IF($A$2="Municiple","Y","error")) -> NEGenDUoSU04N | H56: > 132kV | J56: 0 | K56: =ROUND(J56 * (1 + VAT), 2) -> 0 | L56: 0 | M56: =ROUND(L56 * (1 + VAT), 2) -> 0 | N56: 19.17 | O56: =ROUND(N56 * (1 + VAT), 2) -> 22.05
H59: DUoS network charges ruralp loads
J60: Network capacity charge [R/kVA/m] | L60: Network demand charge [c/kWh]
A62: Tariff | B62: Tariff nameBillcode | C62: Tx zone | D62: Voltage | E62: Billcode | H62: Voltage | K62: VAT incl | M62: VAT incl
A63: Gen-DUoS rural | B63: NEGenDUoSR | C63: 0 | D63: 1 | E63: =B63&C63&D63&IF($A$2="Non-municipal","N",IF($A$2="Municiple","Y","error")) -> NEGenDUoSR01N | H63: < 500V | J63: 24.96 | K63: =ROUND(J63 * (1 + VAT), 2) -> 28.7 | L63: 35.53 | M63: =ROUND(L63 * (1 + VAT), 2) -> 40.86
A64: Gen-DUoS rural | B64: NEGenDUoSR | C64: 0 | D64: 2 | E64: =B64&C64&D64&IF($A$2="Non-municipal","N",IF($A$2="Municiple","Y","error")) -> NEGenDUoSR02N | H64: ≥ 500V & ≤ 22kV | J64: 22.87 | K64: =ROUND(J64 * (1 + VAT), 2) -> 26.3 | L64: 31.15 | M64: =ROUND(L64 * (1 + VAT), 2) -> 35.82
H67: DUoS network charges for generators
J68: Network capacity charge [R/kW/m]
A70: Tariff | B70: Tariff nameBillcode | C70: Tx zone | D70: Voltage | E70: Billcode | H70: Voltage | K70: VAT incl
A71: Gen-DUoS urban | B71: NEGenDUoSU | C71: 0 | D71: 1 | E71: =B71&C71&D71&IF($A$2="Non-municipal","N",IF($A$2="Municiple","Y","error")) -> NEGenDUoSU01N | H71: < 500V
A72: Gen-DUoS urban | B72: NEGenDUoSU | C72: 0 | D72: 2 | E72: =B72&C72&D72&IF($A$2="Non-municipal","N",IF($A$2="Municiple","Y","error")) -> NEGenDUoSU02N | H72: ≥ 500V & < 66kV
A73: Gen-DUoS urban | B73: NEGenDUoSU | C73: 0 | D73: 3 | E73: =B73&C73&D73&IF($A$2="Non-municipal","N",IF($A$2="Municiple","Y","error")) -> NEGenDUoSU03N | H73: ≥ 66kV & ≤ 132kV | J73: 19.19 | K73: =ROUND(J73 * (1 + VAT), 2) -> 22.07
H75: DUoS electrification and rural network subsidy charge [c/kWh] | R75: DUoS electrification and rural network subsidy charge [c/kWh]
J77: Rural network subsidy charge [c/kWh] | L77: Electrification networks subsidy charge [c/kWh] | N77: Total electrification and rural network subsidy charge [c/kWh] | R77: Tariff | T77: Electrification and rural network subsidy charge [c/kWh]
A79: Tariff | B79: Tariff nameBillcode | C79: Tx zone | D79: Voltage | E79: Billcode | H79: Tariff | K79: VAT incl | M79: VAT incl | O79: VAT incl | U79: VAT incl
H80: Megaflex, Miniflex, Nightsave Urban Large, Nightsave Urban Small, Businessrate | R80: Megaflex, Miniflex, Nightsave Urban Large, Nightsave Urban Small, Businessrate
A81: Megaflex | B81: Me | C81: 0 | D81: 1 | E81: =B81&C81&D81&IF($A$2="Non-municipal","N",IF($A$2="Municiple","Y","error")) -> Me01N | J81: 7.04 | K81: =ROUND(J81 * (1 + VAT), 2) -> 8.1 | L81: 3.57 | M81: =ROUND(L81 * (1 + VAT), 2) -> 4.11 | N81: =SUM(J81, L81) -> 10.61 | O81: =ROUND(N81 * (1 + VAT), 2) -> 12.2 | T81: 10.61 | U81: =ROUND(T81 * (1 + VAT), 2) -> 12.2
A82: 0.6637010676
A83: 0.3362989324
H86: DUoS service and administration charges (urbanp )
H87: Customer categories utilised capacity / maximum export capacity | J87: Service charge [R/account/day] | L87: Administration charge [R/POD/day]
H90: [kVA or MVA = loads]
A91: Tariff | B91: Tariff nameBillcode | C91: Tx zone | D91: Voltage | E91: Billcode | H91: [kW or MW = generators] | K91: VAT incl | M91: VAT incl
A92: Miniflex | B92: Mi | C92: 0 | D92: 1 | E92: =B92&C92&D92&IF($A$2="Non-municipal","N",IF($A$2="Municiple","Y","error")) -> Mi01N | H92: ≤ 100 kVA/kW | J92: 19.39 | K92: =ROUND(J92 * (1 + VAT), 2) -> 22.3 | L92: 4.26 | M92: =ROUND(L92 * (1 + VAT), 2) -> 4.9
A93: Miniflex | B93: Mi | C93: 0 | D93: 1 | E93: =B93&C93&D93&IF($A$2="Non-municipal","N",IF($A$2="Municiple","Y","error")) -> Mi01N | H93: > 100 kVA/kW & ≤ 500 kVA/kW | J93: 88.53 | K93: =ROUND(J93 * (1 + VAT), 2) -> 101.81 | L93: 24.83 | M93: =ROUND(L93 * (1 + VAT), 2) -> 28.55
A94: Miniflex | B94: Mi | C94: 0 | D94: 1 | E94: =B94&C94&D94&IF($A$2="Non-municipal","N",IF($A$2="Municiple","Y","error")) -> Mi01N | H94: > 500 kVA/kW & ≤ 1 MVA/MW | J94: 272.39 | K94: =ROUND(J94 * (1 + VAT), 2) -> 313.25 | L94: 49.3 | M94: =ROUND(L94 * (1 + VAT), 2) -> 56.7
A95: Miniflex | B95: Mi | C95: 0 | D95: 1 | E95: =B95&C95&D95&IF($A$2="Non-municipal","N",IF($A$2="Municiple","Y","error")) -> Mi01N | H95: > 1 MVA/MW | J95: 272.39 | K95: =ROUND(J95 * (1 + VAT), 2) -> 313.25 | L95: 122.76 | M95: =ROUND(L95 * (1 + VAT), 2) -> 141.17
A96: Miniflex | B96: Mi | C96: 0 | D96: 1 | E96: =B96&C96&D96&IF($A$2="Non-municipal","N",IF($A$2="Municiple","Y","error")) -> Mi01N | H96: Key customers or Transmission connected | J96: 5337.86 | K96: =ROUND(J96 * (1 + VAT), 2) -> 6138.54 | L96: 170.47 | M96: =ROUND(L96 * (1 + VAT), 2) -> 196.04
H99: DUoS service and administration charges (ruralp)
H100: Customer categories utilised capacity / maximum export capacity | J100: Service charge [R/account/day] | L100: Administration charge [R/POD/day]
H103: [kVA or MVA = loads]
A104: Tariff | B104: Tariff nameBillcode | C104: Tx zone | D104: Voltage | E104: Billcode | H104: [kW or MW = generators] | K104: VAT incl | M104: VAT incl
A105: Ruraflex | B105: Ru | C105: 0 | D105: 1 | E105: =B105&C105&D105&IF($A$2="Non-municipal","N",IF($A$2="Municiple","Y","error")) -> Ru01N | H105: ≤ 100 kVA/kW | J105: 24.55 | K105: =ROUND(J105 * (1 + VAT), 2) -> 28.23 | L105: 6.97 | M105: =ROUND(L105 * (1 + VAT), 2) -> 8.02
A106: Ruraflex | B106: Ru | C106: 0 | D106: 1 | E106: =B106&C106&D106&IF($A$2="Non-municipal","N",IF($A$2="Municiple","Y","error")) -> Ru01N | H106: > 100 kVA/kW & ≤ 500 kVA/kW | J106: 83.72 | K106: =ROUND(J106 * (1 + VAT), 2) -> 96.28 | L106: 38.82 | M106: =ROUND(L106 * (1 + VAT), 2) -> 44.64
A107: Ruraflex | B107: Ru | C107: 0 | D107: 1 | E107: =B107&C107&D107&IF($A$2="Non-municipal","N",IF($A$2="Municiple","Y","error")) -> Ru01N | H107: > 500 kVA/kW & ≤ 1 MVA/MW | J107: 257.56 | K107: =ROUND(J107 * (1 + VAT), 2) -> 296.19 | L107: 59.58 | M107: =ROUND(L107 * (1 + VAT), 2) -> 68.52
A108: Ruraflex | B108: Ru | C108: 0 | D108: 1 | E108: =B108&C108&D108&IF($A$2="Non-municipal","N",IF($A$2="Municiple","Y","error")) -> Ru01N | H108: > 1 MVA/MW | J108: 257.56 | K108: =ROUND(J108 * (1 + VAT), 2) -> 296.19 | L108: 110.55 | M108: =ROUND(L108 * (1 + VAT), 2) -> 127.13
A109: Ruraflex | B109: Ru | C109: 0 | D109: 1 | E109: =B109&C109&D109&IF($A$2="Non-municipal","N",IF($A$2="Municiple","Y","error")) -> Ru01N | H109: Key customers | J109: 5047.97 | K109: =ROUND(J109 * (1 + VAT), 2) -> 5805.17 | L109: 110.55 | M109: =ROUND(L109 * (1 + VAT), 2) -> 127.13
H111: Distribution loss factors | L111: Transmission loss factors for loads
A112: Tariff | B112: Tariff nameBillcode | C112: Tx zone | D112: Voltage | E112: Billcode | H112: Voltage | I112: Urbanp loss factor | J112: Ruralp loss factor | L112: Distance from Johannesburg | M112: Zone | N112: Loss factor
A113: Distribution loss factor - Urban | B113: DxLossUrb | C113: 0 | D113: 1 | E113: =B113&C113&D113&IF($A$2="Non-municipal","N",IF($A$2="Municiple","Y","error")) -> DxLossUrb01N | H113: < 500V | I113: 1.1111 | J113: 1.1527 | L113: ≤ 300km | M113: 0 | N113: 1.0107
A114: Distribution loss factor - Urban | B114: DxLossUrb | C114: 0 | D114: 2 | E114: =B114&C114&D114&IF($A$2="Non-municipal","N",IF($A$2="Municiple","Y","error")) -> DxLossUrb02N | H114: ≥ 500V & < 66kV | I114: 1.0957 | J114: 1.1412 | L114: > 300km & ≤ 600km | M114: 1 | N114: 1.0208
A115: Distribution loss factor - Urban | B115: DxLossUrb | C115: 0 | D115: 3 | E115: =B115&C115&D115&IF($A$2="Non-municipal","N",IF($A$2="Municiple","Y","error")) -> DxLossUrb03N | H115: ≥ 66kV & ≤ 132kV | I115: 1.0611 | L115: > 600km & ≤ 900km | M115: 2 | N115: 1.031
A116: Distribution loss factor - Urban | B116: DxLossUrb | C116: 0 | D116: 4 | E116: =B116&C116&D116&IF($A$2="Non-municipal","N",IF($A$2="Municiple","Y","error")) -> DxLossUrb04N | H116: > 132kV | I116: 1 | L116: > 900km | M116: 3 | N116: 1.0413
A118: Distribution loss factor - Rural | B118: DxLossRur | C118: 0 | D118: 1 | E118: =B118&C118&D118&IF($A$2="Non-municipal","N",IF($A$2="Municiple","Y","error")) -> DxLossRur01N
A119: Distribution loss factor - Rural | B119: DxLossRur | C119: 0 | D119: 2 | E119: =B119&C119&D119&IF($A$2="Non-municipal","N",IF($A$2="Municiple","Y","error")) -> DxLossRur02N
A122: Transmission loss factor | B122: TxLoss | C122: 0 | D122: 4 | E122: =B122&C122&D122&IF($A$2="Non-municipal","N",IF($A$2="Municiple","Y","error")) -> TxLoss04N
A123: Transmission loss factor | B123: TxLoss | C123: 1 | D123: 4 | E123: =B123&C123&D123&IF($A$2="Non-municipal","N",IF($A$2="Municiple","Y","error")) -> TxLoss14N
A124: Transmission loss factor | B124: TxLoss | C124: 2 | D124: 4 | E124: =B124&C124&D124&IF($A$2="Non-municipal","N",IF($A$2="Municiple","Y","error")) -> TxLoss24N
A125: Transmission loss factor | B125: TxLoss | C125: 3 | D125: 4 | E125: =B125&C125&D125&IF($A$2="Non-municipal","N",IF($A$2="Municiple","Y","error")) -> TxLoss34N

Sheet Loss Factors
N1: Back to menu | AL1: 0.15
N2: Loss factors
A3: Non-municipal
N4: Distribution loss factors | R4: Transmission loss factors for loads
A5: Tariff | B5: Tariff nameBillcode | C5: Tx zone | D5: Voltage | E5: Billcode | G5: Tariff | H5: Tariff nameBillcode | I5: Tx zone | J5: Voltage | K5: Billcode | N5: Voltage | O5: Urban loss factor | P5: Rural loss factor | R5: Distance from Johannesburg | S5: Zone | T5: Loss factor
A6: Distribution loss factor - Urban | B6: DxLossUrb | C6: 0 | D6: 1 | E6: =B6&C6&D6&IF($A$3="Non-municipal","N",IF($A$3="Municiple","Y","error")) -> DxLossUrb01N | G6: Transmission loss factor | H6: TxLoss | I6: 0 | J6: 4 | K6: =H6&I6&J6&IF($A$3="Non-municipal","N",IF($A$3="Municiple","Y","error")) -> TxLoss04N | N6: < 500V | O6: 1.1111 | P6: 1.1527 | R6: ≤ 300km | S6: 0 | T6: 1.0107
A7: Distribution loss factor - Urban | B7: DxLossUrb | C7: 0 | D7: 2 | E7: =B7&C7&D7&IF($A$3="Non-municipal","N",IF($A$3="Municiple","Y","error")) -> DxLossUrb02N | G7: Transmission loss factor | H7: TxLoss | I7: 1 | J7: 4 | K7: =H7&I7&J7&IF($A$3="Non-municipal","N",IF($A$3="Municiple","Y","error")) -> TxLoss14N | N7: ≥ 500V & < 66kV | O7: 1.0957 | P7: 1.1412 | R7: > 300km & ≤ 600km | S7: 1 | T7: 1.0208
A8: Distribution loss factor - Urban | B8: DxLossUrb | C8: 0 | D8: 3 | E8: =B8&C8&D8&IF($A$3="Non-municipal","N",IF($A$3="Municiple","Y","error")) -> DxLossUrb03N | G8: Transmission loss factor | H8: TxLoss | I8: 2 | J8: 4 | K8: =H8&I8&J8&IF($A$3="Non-municipal","N",IF($A$3="Municiple","Y","error")) -> TxLoss24N | N8: ≥ 66kV & ≤ 132kV | O8: 1.0611 | R8: > 600km & ≤ 900km | S8: 2 | T8: 1.031
A9: Distribution loss factor - Urban | B9: DxLossUrb | C9: 0 | D9: 4 | E9: =B9&C9&D9&IF($A$3="Non-municipal","N",IF($A$3="Municiple","Y","error")) -> DxLossUrb04N | G9: Transmission loss factor | H9: TxLoss | I9: 3 | J9: 4 | K9: =H9&I9&J9&IF($A$3="Non-municipal","N",IF($A$3="Municiple","Y","error")) -> TxLoss34N | N9: > 132kV/Transmission connected | O9: 1 | R9: > 900km | S9: 3 | T9: 1.0413
A11: Distribution loss factor - Rural | B11: DxLossRur | C11: 0 | D11: 1 | E11: =B11&C11&D11&IF($A$3="Non-municipal","N",IF($A$3="Municiple","Y","error")) -> DxLossRur01N
A12: Distribution loss factor - Rural | B12: DxLossRur | C12: 0 | D12: 2 | E12: =B12&C12&D12&IF($A$3="Non-municipal","N",IF($A$3="Municiple","Y","error")) -> DxLossRur02N | N12: Loss factors for Transmission connected generators | P12: Loss factor
A13: Tariff | B13: Tariff nameBillcode | C13: Tx zone | D13: Voltage | E13: Billcode
A14: TUoS network charges for Transmission connected generators | B14: GenTUOS | C14: Cape | D14: 4 | E14: =B14&C14&D14&IF($A$3="Non-municipal","N",IF($A$3="Municiple","Y","error")) -> GenTUOSCape4N | O14: Cape | P14: 0.971
A15: TUoS network charges for Transmission connected generators | B15: GenTUOS | C15: Karoo | D15: 4 | E15: GenTUOSKaroo4N | O15: Karoo | P15: 0.995
A16: TUoS network charges for Transmission connected generators | B16: GenTUOS | C16: Kwazulu-Natal | D16: 4 | E16: GenTUOSKwazulu-Natal4N | O16: Kwazulu-Natal | P16: 1.004
A17: TUoS network charges for Transmission connected generators | B17: GenTUOS | C17: Vaal | D17: 4 | E17: GenTUOSVaal4N | O17: Vaal | P17: 1.02
A18: TUoS network charges for Transmission connected generators | B18: GenTUOS | C18: Waterburg | D18: 4 | E18: GenTUOSWaterburg4N | O18: Waterburg | P18: 1.023
A19: TUoS network charges for Transmission connected generators | B19: GenTUOS | C19: Mpumalanga | D19: 4 | E19: GenTUOSMpumalanga4N | O19: Mpumalanga | P19: 1.021

Sheet Excess NCC NLA
S1: Back to menu
R2: Excess network capacity charges (NCC) - Non-Local Authority
A4: Non-municipal | S4: Urban - Excess NCC Megaflex/Megaflex Gen [non local authorities] | X4: Urban - Excess NCC Nightsave Urban Large [non local authorities] | AD4: Urban - Excess NCC Miniflex [non local authorities] | AK4: Urban - Excess NCC WEPS [non local authorities]
U6: Excess NCC[R/kVA/m] | AA6: Excess NCC[R/kVA/m] | AG6: Excess NCC[R/kVA/m] | AM6: Excess NCC[R/kVA/m]
S7: Transmission zone | Y7: Transmission zone | AE7: Transmission zone | AK7: Transmission zone
T8: Voltage | Z8: Voltage | AF8: Voltage | AL8: Voltage
A9: Tariff | B9: Tariff nameBillcode | C9: Tx zone | D9: Voltage | E9: Billcode | G9: Tariff | H9: Tariff nameBillcode | I9: Tx zone | J9: Voltage | K9: Billcode | M9: Tariff | N9: Tariff nameBillcode | O9: Tx zone | P9: Voltage | Q9: Billcode | V9: VAT incl | AB9: VAT incl | AH9: VAT incl | AN9: VAT incl
A10: Excess NAC Megaflex | B10: ExNACMe | C10: 0 | D10: 1 | E10: =B10&C10&D10&IF($A$4="Non-municipal","N",IF($A$4="Municiple","Y","error")) -> ExNACMe01N | G10: Excess NAC Nightsave Large | H10: ExNACNL | I10: 0 | J10: 1 | K10: =H10&I10&J10&IF($A$4="Non-municipal","N",IF($A$4="Municiple","Y","error")) -> ExNACNL01N | M10: Excess NAC Miniflex | N10: ExNACMi | O10: 0 | P10: 1 | Q10: =N10&O10&P10&IF($A$4="Non-municipal","N",IF($A$4="Municiple","Y","error")) -> ExNACMi01N | S10: ≤ 300km | T10: < 500V | U10: 35.67 | V10: =ROUND(U10 * (1 + VAT), 2) -> 41.02 | Y10: ≤ 300km | Z10: < 500V | AA10: 35.67 | AB10: =ROUND(AA10 * (1 + VAT), 2) -> 41.02 | AE10: ≤ 300km | AF10: < 500V | AG10: 35.62 | AH10: =ROUND(AG10 * (1 + VAT), 2) -> 40.96 | AK10: ≤ 300km | AL10: < 500V | AM10: 35.67 | AN10: =ROUND(AM10 * (1 + VAT), 2) -> 41.02
A11: Excess NAC Megaflex | B11: ExNACMe | C11: 0 | D11: 2 | E11: =B11&C11&D11&IF($A$4="Non-municipal","N",IF($A$4="Municiple","Y","error")) -> ExNACMe02N | G11: Excess NAC Nightsave Large | H11: ExNACNL | I11: 0 | J11: 2 | K11: =H11&I11&J11&IF($A$4="Non-municipal","N",IF($A$4="Municiple","Y","error")) -> ExNACNL02N | M11: Excess NAC Miniflex | N11: ExNACMi | O11: 0 | P11: 2 | Q11: =N11&O11&P11&IF($A$4="Non-municipal","N",IF($A$4="Municiple","Y","error")) -> ExNACMi02N | T11: ≥ 500V & < 66kV | U11: 32.67 | V11: 37.57 | Z11: ≥ 500V & < 66kV | AA11: 32.67 | AB11: 37.57 | AF11: ≥ 500V & < 66kV | AG11: 32.65 | AH11: 37.55 | AL11: ≥ 500V & < 66kV | AM11: 32.67 | AN11: 37.57
A12: Excess NAC Megaflex | B12: ExNACMe | C12: 0 | D12: 3 | E12: ExNACMe03N | G12: Excess NAC Nightsave Large | H12: ExNACNL | I12: 0 | J12: 3 | K12: ExNACNL03N | M12: Excess NAC Miniflex | N12: ExNACMi | O12: 0 | P12: 3 | Q12: ExNACMi03N | T12: ≥ 66kV & ≤ 132kV | U12: 37.56 | V12: 43.19 | Z12: ≥ 66kV & ≤ 132kV | AA12: 37.56 | AB12: 43.19 | AF12: ≥ 66kV & ≤ 132kV | AG12: 37.51 | AH12: 43.14 | AL12: ≥ 66kV & ≤ 132kV | AM12: 37.56 | AN12: 43.19
A13: Excess NAC Megaflex | B13: ExNACMe | C13: 0 | D13: 4 | E13: ExNACMe04N | G13: Excess NAC Nightsave Large | H13: ExNACNL | I13: 0 | J13: 4 | K13: ExNACNL04N | M13: Excess NAC Miniflex | N13: ExNACMi | O13: 0 | P13: 4 | Q13: ExNACMi04N | T13: > 132kV* | U13: 32.6 | V13: 37.49 | Z13: > 132kV* | AA13: 32.6 | AB13: 37.49 | AF13: > 132kV* | AG13: 32.54 | AH13: 37.42 | AL13: > 132kV* | AM13: 32.6 | AN13: 37.49
A14: Excess NAC Megaflex | B14: ExNACMe | C14: 1 | D14: 1 | E14: ExNACMe11N | G14: Excess NAC Nightsave Large | H14: ExNACNL | I14: 1 | J14: 1 | K14: ExNACNL11N | M14: Excess NAC Miniflex | N14: ExNACMi | O14: 1 | P14: 1 | Q14: ExNACMi11N | S14: > 300km and ≤ 600km | T14: < 500V | U14: 35.75 | V14: 41.11 | Y14: > 300km and ≤ 600km | Z14: < 500V | AA14: 35.75 | AB14: 41.11 | AE14: > 300km and ≤ 600km | AF14: < 500V | AG14: 35.71 | AH14: 41.07 | AK14: > 300km and ≤ 600km | AL14: < 500V | AM14: 35.75 | AN14: 41.11
A15: Excess NAC Megaflex | B15: ExNACMe | C15: 1 | D15: 2 | E15: ExNACMe12N | G15: Excess NAC Nightsave Large | H15: ExNACNL | I15: 1 | J15: 2 | K15: ExNACNL12N | M15: Excess NAC Miniflex | N15: ExNACMi | O15: 1 | P15: 2 | Q15: ExNACMi12N | T15: ≥ 500V & < 66kV | U15: 32.77 | V15: 37.69 | Z15: ≥ 500V & < 66kV | AA15: 32.77 | AB15: 37.69 | AF15: ≥ 500V & < 66kV | AG15: 32.75 | AH15: 37.66 | AL15: ≥ 500V & < 66kV | AM15: 32.77 | AN15: 37.69
A16: Excess NAC Megaflex | B16: ExNACMe | C16: 1 | D16: 3 | E16: ExNACMe13N | G16: Excess NAC Nightsave Large | H16: ExNACNL | I16: 1 | J16: 3 | K16: ExNACNL13N | M16: Excess NAC Miniflex | N16: ExNACMi | O16: 1 | P16: 3 | Q16: ExNACMi13N | T16: ≥ 66kV & ≤ 132kV | U16: 37.64 | V16: 43.29 | Z16: ≥ 66kV & ≤ 132kV | AA16: 37.64 | AB16: 43.29 | AF16: ≥ 66kV & ≤ 132kV | AG16: 37.58 | AH16: 43.22 | AL16: ≥ 66kV & ≤ 132kV | AM16: 37.64 | AN16: 43.29
A17: Excess NAC Megaflex | B17: ExNACMe | C17: 1 | D17: 4 | E17: ExNACMe14N | G17: Excess NAC Nightsave Large | H17: ExNACNL | I17: 1 | J17: 4 | K17: ExNACNL14N | M17: Excess NAC Miniflex | N17: ExNACMi | O17: 1 | P17: 4 | Q17: ExNACMi14N | T17: > 132kV* | U17: 32.72 | V17: 37.63 | Z17: > 132kV* | AA17: 32.72 | AB17: 37.63 | AF17: > 132kV* | AG17: 32.68 | AH17: 37.58 | AL17: > 132kV* | AM17: 32.72 | AN17: 37.63
A18: Excess NAC Megaflex | B18: ExNACMe | C18: 2 | D18: 1 | E18: ExNACMe21N | G18: Excess NAC Nightsave Large | H18: ExNACNL | I18: 2 | J18: 1 | K18: ExNACNL21N | M18: Excess NAC Miniflex | N18: ExNACMi | O18: 2 | P18: 1 | Q18: ExNACMi21N | S18: > 600km and ≤ 900km | T18: < 500V | U18: 35.89 | V18: 41.27 | Y18: > 600km and ≤ 900km | Z18: < 500V | AA18: 35.89 | AB18: 41.27 | AE18: > 600km and ≤ 900km | AF18: < 500V | AG18: 35.88 | AH18: 41.26 | AK18: > 600km and ≤ 900km | AL18: < 500V | AM18: 35.89 | AN18: 41.27
A19: Excess NAC Megaflex | B19: ExNACMe | C19: 2 | D19: 2 | E19: ExNACMe22N | G19: Excess NAC Nightsave Large | H19: ExNACNL | I19: 2 | J19: 2 | K19: ExNACNL22N | M19: Excess NAC Miniflex | N19: ExNACMi | O19: 2 | P19: 2 | Q19: ExNACMi22N | T19: ≥ 500V & < 66kV | U19: 32.87 | V19: 37.8 | Z19: ≥ 500V & < 66kV | AA19: 32.87 | AB19: 37.8 | AF19: ≥ 500V & < 66kV | AG19: 32.85 | AH19: 37.78 | AL19: ≥ 500V & < 66kV | AM19: 32.87 | AN19: 37.8
A20: Excess NAC Megaflex | B20: ExNACMe | C20: 2 | D20: 3 | E20: ExNACMe23N | G20: Excess NAC Nightsave Large | H20: ExNACNL | I20: 2 | J20: 3 | K20: ExNACNL23N | M20: Excess NAC Miniflex | N20: ExNACMi | O20: 2 | P20: 3 | Q20: ExNACMi23N | T20: ≥ 66kV & ≤ 132kV | U20: 37.71 | V20: 43.37 | Z20: ≥ 66kV & ≤ 132kV | AA20: 37.71 | AB20: 43.37 | AF20: ≥ 66kV & ≤ 132kV | AG20: 37.69 | AH20: 43.34 | AL20: ≥ 66kV & ≤ 132kV | AM20: 37.71 | AN20: 43.37
A21: Excess NAC Megaflex | B21: ExNACMe | C21: 2 | D21: 4 | E21: ExNACMe24N | G21: Excess NAC Nightsave Large | H21: ExNACNL | I21: 2 | J21: 4 | K21: ExNACNL24N | M21: Excess NAC Miniflex | N21: ExNACMi | O21: 2 | P21: 4 | Q21: ExNACMi24N | T21: > 132kV* | U21: 32.92 | V21: 37.86 | Z21: > 132kV* | AA21: 32.92 | AB21: 37.86 | AF21: > 132kV* | AG21: 32.87 | AH21: 37.8 | AL21: > 132kV* | AM21: 32.92 | AN21: 37.86
A22: Excess NAC Megaflex | B22: ExNACMe | C22: 3 | D22: 1 | E22: ExNACMe31N | G22: Excess NAC Nightsave Large | H22: ExNACNL | I22: 3 | J22: 1 | K22: ExNACNL31N | M22: Excess NAC Miniflex | N22: ExNACMi | O22: 3 | P22: 1 | Q22: ExNACMi31N | S22: > 900km | T22: < 500V | U22: 35.97 | V22: 41.37 | Y22: > 900km | Z22: < 500V | AA22: 35.97 | AB22: 41.37 | AE22: > 900km | AF22: < 500V | AG22: 35.91 | AH22: 41.3 | AK22: > 900km | AL22: < 500V | AM22: 35.97 | AN22: 41.37
A23: Excess NAC Megaflex | B23: ExNACMe | C23: 3 | D23: 2 | E23: ExNACMe32N | G23: Excess NAC Nightsave Large | H23: ExNACNL | I23: 3 | J23: 2 | K23: ExNACNL32N | M23: Excess NAC Miniflex | N23: ExNACMi | O23: 3 | P23: 2 | Q23: ExNACMi32N | T23: ≥ 500V & < 66kV | U23: 33 | V23: 37.95 | Z23: ≥ 500V & < 66kV | AA23: 33 | AB23: 37.95 | AF23: ≥ 500V & < 66kV | AG23: 32.96 | AH23: 37.9 | AL23: ≥ 500V & < 66kV | AM23: 33 | AN23: 37.95
A24: Excess NAC Megaflex | B24: ExNACMe | C24: 3 | D24: 3 | E24: ExNACMe33N | G24: Excess NAC Nightsave Large | H24: ExNACNL | I24: 3 | J24: 3 | K24: ExNACNL33N | M24: Excess NAC Miniflex | N24: ExNACMi | O24: 3 | P24: 3 | Q24: ExNACMi33N | T24: ≥ 66kV & ≤ 132kV | U24: 37.81 | V24: 43.48 | Z24: ≥ 66kV & ≤ 132kV | AA24: 37.81 | AB24: 43.48 | AF24: ≥ 66kV & ≤ 132kV | AG24: 37.76 | AH24: 43.42 | AL24: ≥ 66kV & ≤ 132kV | AM24: 37.81 | AN24: 43.48
A25: Excess NAC Megaflex | B25: ExNACMe | C25: 3 | D25: 4 | E25: ExNACMe34N | G25: Excess NAC Nightsave Large | H25: ExNACNL | I25: 3 | J25: 4 | K25: ExNACNL34N | M25: Excess NAC Miniflex | N25: ExNACMi | O25: 3 | P25: 4 | Q25: ExNACMi34N | T25: > 132kV* | U25: 33.02 | V25: 37.97 | Z25: > 132kV* | AA25: 33.02 | AB25: 37.97 | AF25: > 132kV* | AG25: 32.97 | AH25: 37.92 | AL25: > 132kV* | AM25: 33.02 | AN25: 37.97
T26: * 132 kV or Transmission connected | Z26: * 132 kV or Transmission connected | AF26: * 132 kV or Transmission connected | AL26: * 132 kV or Transmission connected
S28: Urban - Excess NCC Nightsave Urban Small [non local authorities] | X28: Rural - Excess NCC Nightsave Rural [non local authorities] | AD28: Rural - Excess NCC Ruraflex/Ruraflex Gen [non local authorities]
U30: Excess NCC[R/kVA/m] | AA30: Excess NCC[R/kVA/m] | AG30: Excess NCC[R/kVA/m]
S31: Transmission zone | Y31: Transmission zone | AE31: Transmission zone
T32: Voltage | Z32: Voltage | AF32: Voltage
A33: Tariff | B33: Tariff nameBillcode | C33: Tx zone | D33: Voltage | E33: Billcode | G33: Tariff | H33: Tariff nameBillcode | I33: Tx zone | J33: Voltage | K33: Billcode | M33: Tariff | N33: Tariff nameBillcode | O33: Tx zone | P33: Voltage | Q33: Billcode | V33: VAT incl | AB33: VAT incl | AH33: VAT incl
A34: Excess NAC Nightsave Small | B34: ExNACNS | C34: 0 | D34: 1 | E34: =B34&C34&D34&IF($A$4="Non-municipal","N",IF($A$4="Municiple","Y","error")) -> ExNACNS01N | G34: Excess NAC Nightsave Rural | H34: ExNACNR | I34: 0 | J34: 1 | K34: =H34&I34&J34&IF($A$4="Non-municipal","N",IF($A$4="Municiple","Y","error")) -> ExNACNR01N | M34: Excess NAC Ruraflex | N34: ExNACRu | O34: 0 | P34: 1 | Q34: =N34&O34&P34&IF($A$4="Non-municipal","N",IF($A$4="Municiple","Y","error")) -> ExNACRu01N | S34: ≤ 300km | T34: < 500V | U34: 35.67 | V34: =ROUND(U34 * (1 + VAT), 2) -> 41.02 | Y34: ≤ 300km | Z34: < 500V | AA34: 17.86 | AB34: =ROUND(AA34 * (1 + VAT), 2) -> 20.54 | AE34: ≤ 300km | AF34: < 500V | AG34: 24.96 | AH34: =ROUND(AG34 * (1 + VAT), 2) -> 28.7
A35: Excess NAC Nightsave Small | B35: ExNACNS | C35: 0 | D35: 2 | E35: =B35&C35&D35&IF($A$4="Non-municipal","N",IF($A$4="Municiple","Y","error")) -> ExNACNS02N | G35: Excess NAC Nightsave Rural | H35: ExNACNR | I35: 0 | J35: 2 | K35: =H35&I35&J35&IF($A$4="Non-municipal","N",IF($A$4="Municiple","Y","error")) -> ExNACNR02N | M35: Excess NAC Ruraflex | N35: ExNACRu | O35: 0 | P35: 2 | Q35: =N35&O35&P35&IF($A$4="Non-municipal","N",IF($A$4="Municiple","Y","error")) -> ExNACRu02N | T35: ≥ 500V & < 66kV | U35: 32.67 | V35: 37.57 | Z35: ≥ 500V & ≤ 22kV | AA35: 16.41 | AB35: 18.87 | AF35: ≥ 500V & ≤ 22kV | AG35: 22.87 | AH35: 26.3
A36: Excess NAC Nightsave Small | B36: ExNACNS | C36: 0 | D36: 3 | E36: ExNACNS03N | G36: Excess NAC Nightsave Rural | H36: ExNACNR | I36: 0 | J36: 3 | K36: ExNACNR03N | M36: Excess NAC Ruraflex | N36: ExNACRu | O36: 0 | P36: 3 | Q36: ExNACRu03N | T36: ≥ 66kV & ≤ 132kV | U36: 37.56 | V36: 43.19
A37: Excess NAC Nightsave Small | B37: ExNACNS | C37: 0 | D37: 4 | E37: ExNACNS04N | G37: Excess NAC Nightsave Rural | H37: ExNACNR | I37: 0 | J37: 4 | K37: ExNACNR04N | M37: Excess NAC Ruraflex | N37: ExNACRu | O37: 0 | P37: 4 | Q37: ExNACRu04N | T37: > 132kV* | U37: 32.6 | V37: 37.49
A38: Excess NAC Nightsave Small | B38: ExNACNS | C38: 1 | D38: 1 | E38: ExNACNS11N | G38: Excess NAC Nightsave Rural | H38: ExNACNR | I38: 1 | J38: 1 | K38: ExNACNR11N | M38: Excess NAC Ruraflex | N38: ExNACRu | O38: 1 | P38: 1 | Q38: ExNACRu11N | S38: > 300km and ≤ 600km | T38: < 500V | U38: 35.75 | V38: 41.11 | Y38: > 300km and ≤ 600km | Z38: < 500V | AA38: 17.89 | AB38: =ROUND(AA38 * (1 + VAT), 2) -> 20.57 | AE38: > 300km and ≤ 600km | AF38: < 500V | AG38: 25.03 | AH38: =ROUND(AG38 * (1 + VAT), 2) -> 28.78
A39: Excess NAC Nightsave Small | B39: ExNACNS | C39: 1 | D39: 2 | E39: ExNACNS12N | G39: Excess NAC Nightsave Rural | H39: ExNACNR | I39: 1 | J39: 2 | K39: ExNACNR12N | M39: Excess NAC Ruraflex | N39: ExNACRu | O39: 1 | P39: 2 | Q39: ExNACRu12N | T39: ≥ 500V & < 66kV | U39: 32.77 | V39: 37.69 | Z39: ≥ 500V & ≤ 22kV | AA39: 16.47 | AB39: 18.94 | AF39: ≥ 500V & ≤ 22kV | AG39: 23.01 | AH39: 26.46
A40: Excess NAC Nightsave Small | B40: ExNACNS | C40: 1 | D40: 3 | E40: ExNACNS13N | G40: Excess NAC Nightsave Rural | H40: ExNACNR | I40: 1 | J40: 3 | K40: ExNACNR13N | M40: Excess NAC Ruraflex | N40: ExNACRu | O40: 1 | P40: 3 | Q40: ExNACRu13N | T40: ≥ 66kV & ≤ 132kV | U40: 37.64 | V40: 43.29
A41: Excess NAC Nightsave Small | B41: ExNACNS | C41: 1 | D41: 4 | E41: ExNACNS14N | G41: Excess NAC Nightsave Rural | H41: ExNACNR | I41: 1 | J41: 4 | K41: ExNACNR14N | M41: Excess NAC Ruraflex | N41: ExNACRu | O41: 1 | P41: 4 | Q41: ExNACRu14N | T41: > 132kV* | U41: 32.72 | V41: 37.63
A42: Excess NAC Nightsave Small | B42: ExNACNS | C42: 2 | D42: 1 | E42: ExNACNS21N | G42: Excess NAC Nightsave Rural | H42: ExNACNR | I42: 2 | J42: 1 | K42: ExNACNR21N | M42: Excess NAC Ruraflex | N42: ExNACRu | O42: 2 | P42: 1 | Q42: ExNACRu21N | S42: > 600km and ≤ 900km | T42: < 500V | U42: 35.89 | V42: 41.27 | Y42: > 600km and ≤ 900km | Z42: < 500V | AA42: 18.06 | AB42: =ROUND(AA42 * (1 + VAT), 2) -> 20.77 | AE42: > 600km and ≤ 900km | AF42: < 500V | AG42: 25.16 | AH42: =ROUND(AG42 * (1 + VAT), 2) -> 28.93
A43: Excess NAC Nightsave Small | B43: ExNACNS | C43: 2 | D43: 2 | E43: ExNACNS22N | G43: Excess NAC Nightsave Rural | H43: ExNACNR | I43: 2 | J43: 2 | K43: ExNACNR22N | M43: Excess NAC Ruraflex | N43: ExNACRu | O43: 2 | P43: 2 | Q43: ExNACRu22N | T43: ≥ 500V & < 66kV | U43: 32.87 | V43: 37.8 | Z43: ≥ 500V & ≤ 22kV | AA43: 16.58 | AB43: 19.07 | AF43: ≥ 500V & ≤ 22kV | AG43: 23.12 | AH43: 26.59
A44: Excess NAC Nightsave Small | B44: ExNACNS | C44: 2 | D44: 3 | E44: ExNACNS23N | G44: Excess NAC Nightsave Rural | H44: ExNACNR | I44: 2 | J44: 3 | K44: ExNACNR23N | M44: Excess NAC Ruraflex | N44: ExNACRu | O44: 2 | P44: 3 | Q44: ExNACRu23N | T44: ≥ 66kV & ≤ 132kV | U44: 37.71 | V44: 43.37
A45: Excess NAC Nightsave Small | B45: ExNACNS | C45: 2 | D45: 4 | E45: ExNACNS24N | G45: Excess NAC Nightsave Rural | H45: ExNACNR | I45: 2 | J45: 4 | K45: ExNACNR24N | M45: Excess NAC Ruraflex | N45: ExNACRu | O45: 2 | P45: 4 | Q45: ExNACRu24N | T45: > 132kV* | U45: 32.92 | V45: 37.86
A46: Excess NAC Nightsave Small | B46: ExNACNS | C46: 3 | D46: 1 | E46: ExNACNS31N | G46: Excess NAC Nightsave Rural | H46: ExNACNR | I46: 3 | J46: 1 | K46: ExNACNR31N | M46: Excess NAC Ruraflex | N46: ExNACRu | O46: 3 | P46: 1 | Q46: ExNACRu31N | S46: > 900km | T46: < 500V | U46: 35.97 | V46: 41.37 | Y46: > 900km | Z46: < 500V | AA46: 18.11 | AB46: =ROUND(AA46 * (1 + VAT), 2) -> 20.83 | AE46: > 900km | AF46: < 500V | AG46: 25.27 | AH46: =ROUND(AG46 * (1 + VAT), 2) -> 29.06
A47: Excess NAC Nightsave Small | B47: ExNACNS | C47: 3 | D47: 2 | E47: ExNACNS32N | G47: Excess NAC Nightsave Rural | H47: ExNACNR | I47: 3 | J47: 2 | K47: ExNACNR32N | M47: Excess NAC Ruraflex | N47: ExNACRu | O47: 3 | P47: 2 | Q47: ExNACRu32N | T47: ≥ 500V & < 66kV | U47: 33 | V47: 37.95 | Z47: ≥ 500V & ≤ 22kV | AA47: 16.61 | AB47: 19.1 | AF47: ≥ 500V & ≤ 22kV | AG47: 23.13 | AH47: 26.6
A48: Excess NAC Nightsave Small | B48: ExNACNS | C48: 3 | D48: 3 | E48: ExNACNS33N | G48: Excess NAC Nightsave Rural | H48: ExNACNR | I48: 3 | J48: 3 | K48: ExNACNR33N | M48: Excess NAC Ruraflex | N48: ExNACRu | O48: 3 | P48: 3 | Q48: ExNACRu33N | T48: ≥ 66kV & ≤ 132kV | U48: 37.81 | V48: 43.48
A49: Excess NAC Nightsave Small | B49: ExNACNS | C49: 3 | D49: 4 | E49: ExNACNS34N | G49: Excess NAC Nightsave Rural | H49: ExNACNR | I49: 3 | J49: 4 | K49: ExNACNR34N | M49: Excess NAC Ruraflex | N49: ExNACRu | O49: 3 | P49: 4 | Q49: ExNACRu34N | T49: > 132kV* | U49: 33.02 | V49: 37.97
T50: * 132 kV or Transmission connected
S53: Excess MEC- Transmission connected generators | Y53: Excess MEC- Distribution connected Generators
T55: Excess Network capacity charge[R/kW/m] | Z55: Excess Network capacity charge[R/kW/m]
U56: VAT incl | AA56: VAT incl
S57: Cape | T57: =T58 -> 2.82 | U57: =ROUND(T57 * (1 + VAT), 2) -> 3.24 | Y57: Voltage
S58: Karoo | T58: =T59 -> 2.82 | U58: 3.24 | Y58: < 500V | Z58: 0 | AA58: =ROUND(Z58 * (1 + VAT), 2) -> 0
S59: Kwazulu-Natal | T59: =' TUoS NLA'!J58 -> 2.82 | U59: 3.24 | Y59: ≥ 500V & < 66kV | Z59: =Z60 -> 19.19 | AA59: =ROUND(Z59 * (1 + VAT), 2) -> 22.07
S60: Vaal | T60: =' TUoS NLA'!J59 -> 9.39 | U60: 10.8 | Y60: ≥ 66kV & ≤ 132kV | Z60: ='DUoS NLA'!J73 -> 19.19 | AA60: =ROUND(Z60 * (1 + VAT), 2) -> 22.07
S61: Waterberg | T61: =' TUoS NLA'!J60 -> 12.02 | U61: 13.82
S62: Mpumalanga | T62: =' TUoS NLA'!J61 -> 11.16 | U62: 12.83

Sheet Excess NCC Munic
S1: Back to menu
R2: Excess network capacity charges (NCC) Local Authority
A4: Municiple | S4: Urban - Excess NCC Megaflex [Local authorities] | X4: Urban - Excess NCC Nightsave Urban Large [Local authorities] | AD4: Urban - Excess NCC Miniflex [Local authorities] | AK4: Urban - Excess NCC WEPS [Local authorities]
U6: Excess NCC[R/kVA/m] | AA6: Excess NCC[R/kVA/m] | AG6: Excess NCC[R/kVA/m] | AM6: Excess NCC[R/kVA/m]
S7: Transmission zone | Y7: Transmission zone | AE7: Transmission zone | AK7: Transmission zone
T8: Voltage | Z8: Voltage | AF8: Voltage | AL8: Voltage
A9: Tariff | B9: Tariff nameBillcode | C9: Tx zone | D9: Voltage | E9: Billcode | G9: Tariff | H9: Tariff nameBillcode | I9: Tx zone | J9: Voltage | K9: Billcode | M9: Tariff | N9: Tariff nameBillcode | O9: Tx zone | P9: Voltage | Q9: Billcode | V9: VAT incl | AB9: VAT incl | AH9: VAT incl | AN9: VAT incl
A10: Excess NAC Megaflex | B10: ExNACMe | C10: 0 | D10: 1 | E10: =B10&C10&D10&IF($A$4="Non-municipal","N",IF($A$4="Municiple","Y","error")) -> ExNACMe01Y | G10: Excess NAC Nightsave Large | H10: ExNACNL | I10: 0 | J10: 1 | K10: =H10&I10&J10&IF($A$4="Non-municipal","N",IF($A$4="Municiple","Y","error")) -> ExNACNL01Y | M10: Excess NAC Miniflex | N10: ExNACMi | O10: 0 | P10: 1 | Q10: =N10&O10&P10&IF($A$4="Non-municipal","N",IF($A$4="Municiple","Y","error")) -> ExNACMi01Y | S10: ≤ 300km | T10: < 500V | U10: 36.47 | V10: =ROUND(U10 * (1 + VAT), 2) -> 41.94 | Y10: ≤ 300km | Z10: < 500V | AA10: 36.47 | AB10: =ROUND(AA10 * (1 + VAT), 2) -> 41.94 | AE10: ≤ 300km | AF10: < 500V | AG10: 36.45 | AH10: =ROUND(AG10 * (1 + VAT), 2) -> 41.92 | AK10: ≤ 300km | AL10: < 500V | AM10: 36.47 | AN10: =ROUND(AM10 * (1 + VAT), 2) -> 41.94
A11: Excess NAC Megaflex | B11: ExNACMe | C11: 0 | D11: 2 | E11: =B11&C11&D11&IF($A$4="Non-municipal","N",IF($A$4="Municiple","Y","error")) -> ExNACMe02Y | G11: Excess NAC Nightsave Large | H11: ExNACNL | I11: 0 | J11: 2 | K11: =H11&I11&J11&IF($A$4="Non-municipal","N",IF($A$4="Municiple","Y","error")) -> ExNACNL02Y | M11: Excess NAC Miniflex | N11: ExNACMi | O11: 0 | P11: 2 | Q11: =N11&O11&P11&IF($A$4="Non-municipal","N",IF($A$4="Municiple","Y","error")) -> ExNACMi02Y | T11: ≥ 500V & < 66kV | U11: 33.37 | V11: 38.38 | Z11: ≥ 500V & < 66kV | AA11: 33.37 | AB11: 38.38 | AF11: ≥ 500V & < 66kV | AG11: 33.38 | AH11: 38.39 | AL11: ≥ 500V & < 66kV | AM11: 33.37 | AN11: 38.38
A12: Excess NAC Megaflex | B12: ExNACMe | C12: 0 | D12: 3 | E12: ExNACMe03Y | G12: Excess NAC Nightsave Large | H12: ExNACNL | I12: 0 | J12: 3 | K12: ExNACNL03Y | M12: Excess NAC Miniflex | N12: ExNACMi | O12: 0 | P12: 3 | Q12: ExNACMi03Y | T12: ≥ 66kV & ≤ 132kV | U12: 38.27 | V12: 44.01 | Z12: ≥ 66kV & ≤ 132kV | AA12: 38.27 | AB12: 44.01 | AF12: ≥ 66kV & ≤ 132kV | AG12: 38.25 | AH12: 43.99 | AL12: ≥ 66kV & ≤ 132kV | AM12: 38.27 | AN12: 44.01
A13: Excess NAC Megaflex | B13: ExNACMe | C13: 0 | D13: 4 | E13: ExNACMe04Y | G13: Excess NAC Nightsave Large | H13: ExNACNL | I13: 0 | J13: 4 | K13: ExNACNL04Y | M13: Excess NAC Miniflex | N13: ExNACMi | O13: 0 | P13: 4 | Q13: ExNACMi04Y | T13: > 132kV* | U13: 33.19 | V13: 38.17 | Z13: > 132kV* | AA13: 33.19 | AB13: 38.17 | AF13: > 132kV* | AG13: 33.19 | AH13: 38.17 | AL13: > 132kV* | AM13: 33.19 | AN13: 38.17
A14: Excess NAC Megaflex | B14: ExNACMe | C14: 1 | D14: 1 | E14: ExNACMe11Y | G14: Excess NAC Nightsave Large | H14: ExNACNL | I14: 1 | J14: 1 | K14: ExNACNL11Y | M14: Excess NAC Miniflex | N14: ExNACMi | O14: 1 | P14: 1 | Q14: ExNACMi11Y | S14: > 300km and ≤ 600km | T14: < 500V | U14: 36.52 | V14: 42 | Y14: > 300km and ≤ 600km | Z14: < 500V | AA14: 36.52 | AB14: 42 | AE14: > 300km and ≤ 600km | AF14: < 500V | AG14: 36.52 | AH14: 42 | AK14: > 300km and ≤ 600km | AL14: < 500V | AM14: 36.52 | AN14: 42
A15: Excess NAC Megaflex | B15: ExNACMe | C15: 1 | D15: 2 | E15: ExNACMe12Y | G15: Excess NAC Nightsave Large | H15: ExNACNL | I15: 1 | J15: 2 | K15: ExNACNL12Y | M15: Excess NAC Miniflex | N15: ExNACMi | O15: 1 | P15: 2 | Q15: ExNACMi12Y | T15: ≥ 500V & < 66kV | U15: 33.5 | V15: 38.53 | Z15: ≥ 500V & < 66kV | AA15: 33.5 | AB15: 38.53 | AF15: ≥ 500V & < 66kV | AG15: 33.51 | AH15: 38.54 | AL15: ≥ 500V & < 66kV | AM15: 33.5 | AN15: 38.53
A16: Excess NAC Megaflex | B16: ExNACMe | C16: 1 | D16: 3 | E16: ExNACMe13Y | G16: Excess NAC Nightsave Large | H16: ExNACNL | I16: 1 | J16: 3 | K16: ExNACNL13Y | M16: Excess NAC Miniflex | N16: ExNACMi | O16: 1 | P16: 3 | Q16: ExNACMi13Y | T16: ≥ 66kV & ≤ 132kV | U16: 38.36 | V16: 44.11 | Z16: ≥ 66kV & ≤ 132kV | AA16: 38.36 | AB16: 44.11 | AF16: ≥ 66kV & ≤ 132kV | AG16: 38.35 | AH16: 44.1 | AL16: ≥ 66kV & ≤ 132kV | AM16: 38.36 | AN16: 44.11
A17: Excess NAC Megaflex | B17: ExNACMe | C17: 1 | D17: 4 | E17: ExNACMe14Y | G17: Excess NAC Nightsave Large | H17: ExNACNL | I17: 1 | J17: 4 | K17: ExNACNL14Y | M17: Excess NAC Miniflex | N17: ExNACMi | O17: 1 | P17: 4 | Q17: ExNACMi14Y | T17: > 132kV* | U17: 33.32 | V17: 38.32 | Z17: > 132kV* | AA17: 33.32 | AB17: 38.32 | AF17: > 132kV* | AG17: 33.32 | AH17: 38.32 | AL17: > 132kV* | AM17: 33.32 | AN17: 38.32
A18: Excess NAC Megaflex | B18: ExNACMe | C18: 2 | D18: 1 | E18: ExNACMe21Y | G18: Excess NAC Nightsave Large | H18: ExNACNL | I18: 2 | J18: 1 | K18: ExNACNL21Y | M18: Excess NAC Miniflex | N18: ExNACMi | O18: 2 | P18: 1 | Q18: ExNACMi21Y | S18: > 600km and ≤ 900km | T18: < 500V | U18: 36.68 | V18: 42.18 | Y18: > 600km and ≤ 900km | Z18: < 500V | AA18: 36.68 | AB18: 42.18 | AE18: > 600km and ≤ 900km | AF18: < 500V | AG18: 36.71 | AH18: 42.22 | AK18: > 600km and ≤ 900km | AL18: < 500V | AM18: 36.68 | AN18: 42.18
A19: Excess NAC Megaflex | B19: ExNACMe | C19: 2 | D19: 2 | E19: ExNACMe22Y | G19: Excess NAC Nightsave Large | H19: ExNACNL | I19: 2 | J19: 2 | K19: ExNACNL22Y | M19: Excess NAC Miniflex | N19: ExNACMi | O19: 2 | P19: 2 | Q19: ExNACMi22Y | T19: ≥ 500V & < 66kV | U19: 33.57 | V19: 38.61 | Z19: ≥ 500V & < 66kV | AA19: 33.57 | AB19: 38.61 | AF19: ≥ 500V & < 66kV | AG19: 33.6 | AH19: 38.64 | AL19: ≥ 500V & < 66kV | AM19: 33.57 | AN19: 38.61
A20: Excess NAC Megaflex | B20: ExNACMe | C20: 2 | D20: 3 | E20: ExNACMe23Y | G20: Excess NAC Nightsave Large | H20: ExNACNL | I20: 2 | J20: 3 | K20: ExNACNL23Y | M20: Excess NAC Miniflex | N20: ExNACMi | O20: 2 | P20: 3 | Q20: ExNACMi23Y | T20: ≥ 66kV & ≤ 132kV | U20: 38.44 | V20: 44.21 | Z20: ≥ 66kV & ≤ 132kV | AA20: 38.44 | AB20: 44.21 | AF20: ≥ 66kV & ≤ 132kV | AG20: 38.44 | AH20: 44.21 | AL20: ≥ 66kV & ≤ 132kV | AM20: 38.44 | AN20: 44.21
A21: Excess NAC Megaflex | B21: ExNACMe | C21: 2 | D21: 4 | E21: ExNACMe24Y | G21: Excess NAC Nightsave Large | H21: ExNACNL | I21: 2 | J21: 4 | K21: ExNACNL24Y | M21: Excess NAC Miniflex | N21: ExNACMi | O21: 2 | P21: 4 | Q21: ExNACMi24Y | T21: > 132kV* | U21: 33.51 | V21: 38.54 | Z21: > 132kV* | AA21: 33.51 | AB21: 38.54 | AF21: > 132kV* | AG21: 33.51 | AH21: 38.54 | AL21: > 132kV* | AM21: 33.51 | AN21: 38.54
A22: Excess NAC Megaflex | B22: ExNACMe | C22: 3 | D22: 1 | E22: ExNACMe31Y | G22: Excess NAC Nightsave Large | H22: ExNACNL | I22: 3 | J22: 1 | K22: ExNACNL31Y | M22: Excess NAC Miniflex | N22: ExNACMi | O22: 3 | P22: 1 | Q22: ExNACMi31Y | S22: > 900km | T22: < 500V | U22: 36.74 | V22: 42.25 | Y22: > 900km | Z22: < 500V | AA22: 36.74 | AB22: 42.25 | AE22: > 900km | AF22: < 500V | AG22: 36.73 | AH22: 42.24 | AK22: > 900km | AL22: < 500V | AM22: 36.74 | AN22: 42.25
A23: Excess NAC Megaflex | B23: ExNACMe | C23: 3 | D23: 2 | E23: ExNACMe32Y | G23: Excess NAC Nightsave Large | H23: ExNACNL | I23: 3 | J23: 2 | K23: ExNACNL32Y | M23: Excess NAC Miniflex | N23: ExNACMi | O23: 3 | P23: 2 | Q23: ExNACMi32Y | T23: ≥ 500V & < 66kV | U23: 33.7 | V23: 38.76 | Z23: ≥ 500V & < 66kV | AA23: 33.7 | AB23: 38.76 | AF23: ≥ 500V & < 66kV | AG23: 33.74 | AH23: 38.8 | AL23: ≥ 500V & < 66kV | AM23: 33.7 | AN23: 38.76
A24: Excess NAC Megaflex | B24: ExNACMe | C24: 3 | D24: 3 | E24: ExNACMe33Y | G24: Excess NAC Nightsave Large | H24: ExNACNL | I24: 3 | J24: 3 | K24: ExNACNL33Y | M24: Excess NAC Miniflex | N24: ExNACMi | O24: 3 | P24: 3 | Q24: ExNACMi33Y | T24: ≥ 66kV & ≤ 132kV | U24: 38.53 | V24: 44.31 | Z24: ≥ 66kV & ≤ 132kV | AA24: 38.53 | AB24: 44.31 | AF24: ≥ 66kV & ≤ 132kV | AG24: 38.5 | AH24: 44.28 | AL24: ≥ 66kV & ≤ 132kV | AM24: 38.53 | AN24: 44.31
A25: Excess NAC Megaflex | B25: ExNACMe | C25: 3 | D25: 4 | E25: ExNACMe34Y | G25: Excess NAC Nightsave Large | H25: ExNACNL | I25: 3 | J25: 4 | K25: ExNACNL34Y | M25: Excess NAC Miniflex | N25: ExNACMi | O25: 3 | P25: 4 | Q25: ExNACMi34Y | T25: > 132kV* | U25: 33.6 | V25: 38.64 | Z25: > 132kV* | AA25: 33.6 | AB25: 38.64 | AF25: > 132kV* | AG25: 33.6 | AH25: 38.64 | AL25: > 132kV* | AM25: 33.6 | AN25: 38.64
T26: * 132 kV or Transmission connected | Z26: * 132 kV or Transmission connected | AF26: * 132 kV or Transmission connected | AL26: * 132 kV or Transmission connected
S28: Urban - Excess NCC Nightsave Urban Small [Local authorities] | X28: Rural - Excess NCC Nightsave Rural [Local authorities] | AD28: Rural - Excess NCC Ruraflex [Local authorities]
U30: Excess NCC[R/kVA/m] | AA30: Excess NCC[R/kVA/m] | AG30: Excess NCC[R/kVA/m]
S31: Transmission zone | Y31: Transmission zone | AE31: Transmission zone
T32: Voltage | Z32: Voltage | AF32: Voltage
A33: Tariff | B33: Tariff nameBillcode | C33: Tx zone | D33: Voltage | E33: Billcode | G33: Tariff | H33: Tariff nameBillcode | I33: Tx zone | J33: Voltage | K33: Billcode | M33: Tariff | N33: Tariff nameBillcode | O33: Tx zone | P33: Voltage | Q33: Billcode | V33: VAT incl | AB33: VAT incl | AH33: VAT incl
A34: Excess NAC Nightsave Small | B34: ExNACNS | C34: 0 | D34: 1 | E34: =B34&C34&D34&IF($A$4="Non-municipal","N",IF($A$4="Municiple","Y","error")) -> ExNACNS01Y | G34: Excess NAC Nightsave Rural | H34: ExNACNR | I34: 0 | J34: 1 | K34: =H34&I34&J34&IF($A$4="Non-municipal","N",IF($A$4="Municiple","Y","error")) -> ExNACNR01Y | M34: Excess NAC Ruraflex | N34: ExNACRu | O34: 0 | P34: 1 | Q34: =N34&O34&P34&IF($A$4="Non-municipal","N",IF($A$4="Municiple","Y","error")) -> ExNACRu01Y | S34: ≤ 300km | T34: < 500V | U34: 36.47 | V34: =ROUND(U34 * (1 + VAT), 2) -> 41.94 | Y34: ≤ 300km | Z34: < 500V | AA34: 18.45 | AB34: =ROUND(AA34 * (1 + VAT), 2) -> 21.22 | AE34: ≤ 300km | AF34: < 500V | AG34: 25.74 | AH34: =ROUND(AG34 * (1 + VAT), 2) -> 29.6
A35: Excess NAC Nightsave Small | B35: ExNACNS | C35: 0 | D35: 2 | E35: =B35&C35&D35&IF($A$4="Non-municipal","N",IF($A$4="Municiple","Y","error")) -> ExNACNS02Y | G35: Excess NAC Nightsave Rural | H35: ExNACNR | I35: 0 | J35: 2 | K35: =H35&I35&J35&IF($A$4="Non-municipal","N",IF($A$4="Municiple","Y","error")) -> ExNACNR02Y | M35: Excess NAC Ruraflex | N35: ExNACRu | O35: 0 | P35: 2 | Q35: =N35&O35&P35&IF($A$4="Non-municipal","N",IF($A$4="Municiple","Y","error")) -> ExNACRu02Y | T35: ≥ 500V & < 66kV | U35: 33.37 | V35: 38.38 | Z35: ≥ 500V & ≤ 22kV | AA35: 16.94 | AB35: 19.48 | AF35: ≥ 500V & ≤ 22kV | AG35: 23.62 | AH35: 27.16
A36: Excess NAC Nightsave Small | B36: ExNACNS | C36: 0 | D36: 3 | E36: ExNACNS03Y | G36: Excess NAC Nightsave Rural | H36: ExNACNR | I36: 0 | J36: 3 | K36: ExNACNR03Y | M36: Excess NAC Ruraflex | N36: ExNACRu | O36: 0 | P36: 3 | Q36: ExNACRu03Y | T36: ≥ 66kV & ≤ 132kV | U36: 38.27 | V36: 44.01
A37: Excess NAC Nightsave Small | B37: ExNACNS | C37: 0 | D37: 4 | E37: ExNACNS04Y | G37: Excess NAC Nightsave Rural | H37: ExNACNR | I37: 0 | J37: 4 | K37: ExNACNR04Y | M37: Excess NAC Ruraflex | N37: ExNACRu | O37: 0 | P37: 4 | Q37: ExNACRu04Y | T37: > 132kV* | U37: 33.19 | V37: 38.17
A38: Excess NAC Nightsave Small | B38: ExNACNS | C38: 1 | D38: 1 | E38: ExNACNS11Y | G38: Excess NAC Nightsave Rural | H38: ExNACNR | I38: 1 | J38: 1 | K38: ExNACNR11Y | M38: Excess NAC Ruraflex | N38: ExNACRu | O38: 1 | P38: 1 | Q38: ExNACRu11Y | S38: > 300km and ≤ 600km | T38: < 500V | U38: 36.52 | V38: 42 | Y38: > 300km and ≤ 600km | Z38: < 500V | AA38: 18.48 | AB38: =ROUND(AA38 * (1 + VAT), 2) -> 21.25 | AE38: > 300km and ≤ 600km | AF38: < 500V | AG38: 25.85 | AH38: =ROUND(AG38 * (1 + VAT), 2) -> 29.73
A39: Excess NAC Nightsave Small | B39: ExNACNS | C39: 1 | D39: 2 | E39: ExNACNS12Y | G39: Excess NAC Nightsave Rural | H39: ExNACNR | I39: 1 | J39: 2 | K39: ExNACNR12Y | M39: Excess NAC Ruraflex | N39: ExNACRu | O39: 1 | P39: 2 | Q39: ExNACRu12Y | T39: ≥ 500V & < 66kV | U39: 33.5 | V39: 38.53 | Z39: ≥ 500V & ≤ 22kV | AA39: 17.01 | AB39: 19.56 | AF39: ≥ 500V & ≤ 22kV | AG39: 23.75 | AH39: 27.31
A40: Excess NAC Nightsave Small | B40: ExNACNS | C40: 1 | D40: 3 | E40: ExNACNS13Y | G40: Excess NAC Nightsave Rural | H40: ExNACNR | I40: 1 | J40: 3 | K40: ExNACNR13Y | M40: Excess NAC Ruraflex | N40: ExNACRu | O40: 1 | P40: 3 | Q40: ExNACRu13Y | T40: ≥ 66kV & ≤ 132kV | U40: 38.36 | V40: 44.11
A41: Excess NAC Nightsave Small | B41: ExNACNS | C41: 1 | D41: 4 | E41: ExNACNS14Y | G41: Excess NAC Nightsave Rural | H41: ExNACNR | I41: 1 | J41: 4 | K41: ExNACNR14Y | M41: Excess NAC Ruraflex | N41: ExNACRu | O41: 1 | P41: 4 | Q41: ExNACRu14Y | T41: > 132kV* | U41: 33.32 | V41: 38.32
A42: Excess NAC Nightsave Small | B42: ExNACNS | C42: 2 | D42: 1 | E42: ExNACNS21Y | G42: Excess NAC Nightsave Rural | H42: ExNACNR | I42: 2 | J42: 1 | K42: ExNACNR21Y | M42: Excess NAC Ruraflex | N42: ExNACRu | O42: 2 | P42: 1 | Q42: ExNACRu21Y | S42: > 600km and ≤ 900km | T42: < 500V | U42: 36.68 | V42: 42.18 | Y42: > 600km and ≤ 900km | Z42: < 500V | AA42: 18.66 | AB42: =ROUND(AA42 * (1 + VAT), 2) -> 21.46 | AE42: > 600km and ≤ 900km | AF42: < 500V | AG42: 25.99 | AH42: =ROUND(AG42 * (1 + VAT), 2) -> 29.89
A43: Excess NAC Nightsave Small | B43: ExNACNS | C43: 2 | D43: 2 | E43: ExNACNS22Y | G43: Excess NAC Nightsave Rural | H43: ExNACNR | I43: 2 | J43: 2 | K43: ExNACNR22Y | M43: Excess NAC Ruraflex | N43: ExNACRu | O43: 2 | P43: 2 | Q43: ExNACRu22Y | T43: ≥ 500V & < 66kV | U43: 33.57 | V43: 38.61 | Z43: ≥ 500V & ≤ 22kV | AA43: 17.12 | AB43: 19.69 | AF43: ≥ 500V & ≤ 22kV | AG43: 23.87 | AH43: 27.45
A44: Excess NAC Nightsave Small | B44: ExNACNS | C44: 2 | D44: 3 | E44: ExNACNS23Y | G44: Excess NAC Nightsave Rural | H44: ExNACNR | I44: 2 | J44: 3 | K44: ExNACNR23Y | M44: Excess NAC Ruraflex | N44: ExNACRu | O44: 2 | P44: 3 | Q44: ExNACRu23Y | T44: ≥ 66kV & ≤ 132kV | U44: 38.44 | V44: 44.21
A45: Excess NAC Nightsave Small | B45: ExNACNS | C45: 2 | D45: 4 | E45: ExNACNS24Y | G45: Excess NAC Nightsave Rural | H45: ExNACNR | I45: 2 | J45: 4 | K45: ExNACNR24Y | M45: Excess NAC Ruraflex | N45: ExNACRu | O45: 2 | P45: 4 | Q45: ExNACRu24Y | T45: > 132kV* | U45: 33.51 | V45: 38.54
A46: Excess NAC Nightsave Small | B46: ExNACNS | C46: 3 | D46: 1 | E46: ExNACNS31Y | G46: Excess NAC Nightsave Rural | H46: ExNACNR | I46: 3 | J46: 1 | K46: ExNACNR31Y | M46: Excess NAC Ruraflex | N46: ExNACRu | O46: 3 | P46: 1 | Q46: ExNACRu31Y | S46: > 900km | T46: < 500V | U46: 36.74 | V46: 42.25 | Y46: > 900km | Z46: < 500V | AA46: 18.69 | AB46: =ROUND(AA46 * (1 + VAT), 2) -> 21.49 | AE46: > 900km | AF46: < 500V | AG46: 26.07 | AH46: =ROUND(AG46 * (1 + VAT), 2) -> 29.98
A47: Excess NAC Nightsave Small | B47: ExNACNS | C47: 3 | D47: 2 | E47: ExNACNS32Y | G47: Excess NAC Nightsave Rural | H47: ExNACNR | I47: 3 | J47: 2 | K47: ExNACNR32Y | M47: Excess NAC Ruraflex | N47: ExNACRu | O47: 3 | P47: 2 | Q47: ExNACRu32Y | T47: ≥ 500V & < 66kV | U47: 33.7 | V47: 38.76 | Z47: ≥ 500V & ≤ 22kV | AA47: 17.13 | AB47: 19.7 | AF47: ≥ 500V & ≤ 22kV | AG47: 23.88 | AH47: 27.46
A48: Excess NAC Nightsave Small | B48: ExNACNS | C48: 3 | D48: 3 | E48: ExNACNS33Y | G48: Excess NAC Nightsave Rural | H48: ExNACNR | I48: 3 | J48: 3 | K48: ExNACNR33Y | M48: Excess NAC Ruraflex | N48: ExNACRu | O48: 3 | P48: 3 | Q48: ExNACRu33Y | T48: ≥ 66kV & ≤ 132kV | U48: 38.53 | V48: 44.31
A49: Excess NAC Nightsave Small | B49: ExNACNS | C49: 3 | D49: 4 | E49: ExNACNS34Y | G49: Excess NAC Nightsave Rural | H49: ExNACNR | I49: 3 | J49: 4 | K49: ExNACNR34Y | M49: Excess NAC Ruraflex | N49: ExNACRu | O49: 3 | P49: 4 | Q49: ExNACRu34Y | T49: > 132kV* | U49: 33.6 | V49: 38.64
T50: * 132 kV or Transmission connected

Sheet Gen Reconciliatons
B2: Generator reconciliations
C4: Gen-wheeling tariff | G4: Gen-purchase tariff
C5: Tariff name | D5: Tariff rate | E5: Source | G5: Tariff name | H5: Tariff rate | I5: Source
C6: Gen-wheeling non Munic urban | D6: Energy: (credit) | E6: WEPS energy rate excluding losses | G6: Gen-purchase- urban | H6: Energy: | I6: WEPS energy rate excluding losses
D7: Affordability subsidy: (credit) | E7: same as WEPS | H7: Affordability subsidy: | I7: same as WEPS
D8: Admin charge: | E8: same as WEPS | H8: Admin charge: | I8: same as WEPS
D9: Other components: | E9: not applicable | H9: Other components: | I9: not applicable
C10: Gen-wheeling non Munic rural | D10: Energy: (credit) | E10: WEPS energy rate excluding losses | G10: Gen-purchase-rural | H10: Energy: | I10: WEPS energy rate excluding losses
D11: Admin charge: | E11: same as Ruraflex | H11: Admin charge: | I11: same as Ruraflex
D12: Other components: | E12: not applicable | H12: Other components: | I12: not applicable
C13: Gen-wheeling Munic urban | D13: Energy (Local): (credit) | E13: WEPS energy rate excluding losses (Local) | G13: Gen-purchase Munic urban | H13: Energy: | I13: WEPS energy rate excluding losses(Local)
D14: Admin charge: | E14: same as WEPS (local) | H14: Admin charge: | I14: same as WEPS (Local)
D15: Other components: | E15: not applicable | H15: Other components: | I15: not applicable
C16: Gen-wheeling Munic rural | D16: Energy (Local): (credit) | E16: WEPS energy rate excluding losses (Local) | G16: Gen-purchase Munic rural | H16: Energy: | I16: WEPS energy rate excluding losses(Local)
D17: Admin charge: | E17: same as Ruraflex (local) | H17: Admin charge: | I17: same as Ruraflex (Local)
D18: Other components: | E18: not applicable | H18: Other components: | I18: not applicable
C21: Gen-offset tariff
C22: Tariff name | D22: Tariff rate | E22: Source
C23: Gen-offset urban | D23: Energy: (credit) | E23: WEPS energy rate including losses (per Tx and voltage zone)
D24: Ancilliary service charge (credit): | E24: same as WEPS
D25: Affordability subsidy: | E25: same as WEPS
D26: Admin charge: | E26: same as WEPS
D27: Other components: | E27: not applicable
C28: Gen-offset rural | D28: Energy: (credit) | E28: Ruraflex energy rate (per Tx and voltage zone)
D29: Ancilliary service charge (credit): | E29: same as Ruraflex
D30: Admin charge: | E30: same as Ruraflex
D31: Other components: | E31: not applicable

Sheet Ruraflex 8h for 50dy CPP C (hidden)
G1: Back to menu
A2: Non-municipal | G2: Ruraflex - Non-local Authority | AF2: =SUM(#REF!,#REF!,#REF!,#REF!,#REF!,#REF!,#REF!,#REF!,#REF!,#REF!,#REF!,#REF!) ->  | AG2: check value
V4: Network capacity charges [R/kVA/m]
H5: Transmission zone
I6: Voltage
A7: Tariff | B7: Tariff nameBillcode | C7: Tx zone | D7: Voltage | E7: Billcode | W7: VAT incl
A8: Ruraflex - CPP: 50 days / 8 hours (6:00-14:00) 400 critical peak hours per year NON-CRITICAL Peak Day rates for NORMAL days | B8: RuCPPf2 | C8: 0 | D8: 1 | E8: =B8&C8&D8&IF($A$2="Non-municipal","N",IF($A$2="Municiple","Y","error")) -> RuCPPf201N | H8: ≤ 300km | I8: < 500V | V8: 24.96 | W8: =ROUND(V8 * (1 + VAT), 2) -> 28.7
A9: Ruraflex - CPP: 50 days / 8 hours (6:00-14:00) 400 critical peak hours per year NON-CRITICAL Peak Day rates for NORMAL days | B9: RuCPPf2 | C9: 0 | D9: 2 | E9: =B9&C9&D9&IF($A$2="Non-municipal","N",IF($A$2="Municiple","Y","error")) -> RuCPPf202N | I9: ≥ 500V & ≤ 22kV | V9: 22.87 | W9: 26.3
A10: Ruraflex - CPP: 50 days / 8 hours (6:00-14:00) 400 critical peak hours per year NON-CRITICAL Peak Day rates for NORMAL days | B10: RuCPPn2 | E10: RuCPPn2N | V10: 0
A11: Ruraflex - CPP: 50 days / 8 hours (6:00-14:00) 400 critical peak hours per year NON-CRITICAL Peak Day rates for NORMAL days | B11: RuCPPn2 | E11: RuCPPn2N | V11: 0
A12: Ruraflex - CPP: 50 days / 8 hours (6:00-14:00) 400 critical peak hours per year CRITICAL PEAK DAY rates for CRITICAL PEAK days | B12: RuCPPf2 | C12: 1 | D12: 1 | E12: RuCPPf211N | H12: > 300km and ≤ 600km | I12: < 500V | V12: 25.03 | W12: 28.78
A13: Ruraflex - CPP: 50 days / 8 hours (6:00-14:00) 400 critical peak hours per year CRITICAL PEAK DAY rates for CRITICAL PEAK days | B13: RuCPPf2 | C13: 1 | D13: 2 | E13: RuCPPf212N | I13: ≥ 500V & ≤ 22kV | V13: 23.01 | W13: 26.46
A14: Ruraflex - CPP: 50 days / 8 hours (6:00-14:00) 400 critical peak hours per year CRITICAL PEAK DAY rates for CRITICAL PEAK days | B14: RuCPPf2 | E14: RuCPPf2N | V14: 0
A15: Ruraflex - CPP: 50 days / 8 hours (6:00-14:00) 400 critical peak hours per year CRITICAL PEAK DAY rates for CRITICAL PEAK days | B15: RuCPPf2 | E15: RuCPPf2N | V15: 0
A16: Ruraflex - CPP: 50 days / 8 hours (6:00-14:00) 400 critical peak hours per year CRITICAL PEAK DAY rates for CRITICAL PEAK days | B16: RuCPPf2 | C16: 2 | D16: 1 | E16: RuCPPf221N | H16: > 600km and ≤ 900km | I16: < 500V | V16: 25.16 | W16: 28.93
A17: Ruraflex - CPP: 50 days / 8 hours (6:00-14:00) 400 critical peak hours per year CRITICAL PEAK DAY rates for CRITICAL PEAK days | B17: RuCPPf2 | C17: 2 | D17: 2 | E17: RuCPPf222N | I17: ≥ 500V & ≤ 22kV | V17: 23.12 | W17: 26.59
A18: Ruraflex - CPP: 50 days / 8 hours (6:00-14:00) 400 critical peak hours per year CRITICAL PEAK DAY rates for CRITICAL PEAK days | B18: RuCPPf2 | E18: RuCPPf2N | V18: 0
A19: Ruraflex - CPP: 50 days / 8 hours (6:00-14:00) 400 critical peak hours per year CRITICAL PEAK DAY rates for CRITICAL PEAK days | B19: RuCPPf2 | E19: RuCPPf2N | V19: 0
A20: Ruraflex - CPP: 50 days / 8 hours (6:00-14:00) 400 critical peak hours per year CRITICAL PEAK DAY rates for CRITICAL PEAK days | B20: RuCPPf2 | C20: 3 | D20: 1 | E20: RuCPPf231N | H20: > 900km | I20: < 500V | V20: 25.27 | W20: 29.06
A21: Ruraflex - CPP: 50 days / 8 hours (6:00-14:00) 400 critical peak hours per year CRITICAL PEAK DAY rates for CRITICAL PEAK days | B21: RuCPPf2 | C21: 3 | D21: 2 | E21: RuCPPf232N | I21: ≥ 500V & ≤ 22kV | V21: 23.13 | W21: 26.6
N22: 0
N23: 0
H26: Customer categories | J26: Service charge [R/account/day] | L26: Administration charge [R/POD/day] | Q26: Ancillary service charge [c/kWh] | S26: Network demand charge [c/kWh] in all time-of-use periods
O27: Voltage | R27: VAT incl | T27: VAT incl
A28: Tariff | B28: Tariff nameBillcode | C28: Tx zone | D28: Voltage | E28: Billcode | K28: VAT incl | M28: VAT incl | O28: < 500V | Q28: 0.55 | R28: =ROUND(Q28 * (1 + VAT), 2) -> 0.63 | S28: 35.53 | T28: =ROUND(S28 * (1 + VAT), 2) -> 40.86
A29: Ruraflex - CPP: 50 days / 8 hours (6:00-14:00) 400 critical peak hours per year CRITICAL PEAK DAY rates for CRITICAL PEAK days | B29: RuCPPf2 | C29: 0 | D29: 1 | E29: =B29&C29&D29&IF($A$2="Non-municipal","N",IF($A$2="Municiple","Y","error")) -> RuCPPf201N | H29: ≤ 100 kVA | J29: 24.55 | K29: =ROUND(J29 * (1 + VAT), 2) -> 28.23 | L29: 6.97 | M29: =ROUND(L29 * (1 + VAT), 2) -> 8.02 | O29: ≥ 500V & < 22kV | Q29: 0.55 | R29: =ROUND(Q29 * (1 + VAT), 2) -> 0.63 | S29: 31.15 | T29: =ROUND(S29 * (1 + VAT), 2) -> 35.82
A30: Ruraflex - CPP: 50 days / 8 hours (6:00-14:00) 400 critical peak hours per year CRITICAL PEAK DAY rates for CRITICAL PEAK days | B30: RuCPPf2 | C30: 0 | D30: 1 | E30: =B30&C30&D30&IF($A$2="Non-municipal","N",IF($A$2="Municiple","Y","error")) -> RuCPPf201N | H30: > 100 kVA & ≤ 500 kVA | J30: 83.72 | K30: =ROUND(J30 * (1 + VAT), 2) -> 96.28 | L30: 38.82 | M30: =ROUND(L30 * (1 + VAT), 2) -> 44.64
A31: Ruraflex - CPP: 50 days / 8 hours (6:00-14:00) 400 critical peak hours per year CRITICAL PEAK DAY rates for CRITICAL PEAK days | B31: RuCPPf2 | C31: 0 | D31: 1 | E31: =B31&C31&D31&IF($A$2="Non-municipal","N",IF($A$2="Municiple","Y","error")) -> RuCPPf201N | H31: > 500 kVA & ≤ 1 MVA | J31: 257.56 | K31: =ROUND(J31 * (1 + VAT), 2) -> 296.19 | L31: 59.58 | M31: =ROUND(L31 * (1 + VAT), 2) -> 68.52 | O31: Reactive energy charge [c/kVArh]
A32: Ruraflex - CPP: 50 days / 8 hours (6:00-14:00) 400 critical peak hours per year CRITICAL PEAK DAY rates for CRITICAL PEAK days | B32: RuCPPf2 | C32: 0 | D32: 1 | E32: =B32&C32&D32&IF($A$2="Non-municipal","N",IF($A$2="Municiple","Y","error")) -> RuCPPf201N | H32: > 1 MVA | J32: 257.56 | K32: =ROUND(J32 * (1 + VAT), 2) -> 296.19 | L32: 110.55 | M32: =ROUND(L32 * (1 + VAT), 2) -> 127.13 | O32: High season | Q32: Low season
A33: Ruraflex - CPP: 50 days / 8 hours (6:00-14:00) 400 critical peak hours per year CRITICAL PEAK DAY rates for CRITICAL PEAK days | B33: RuCPPf2 | C33: 0 | D33: 1 | E33: =B33&C33&D33&IF($A$2="Non-municipal","N",IF($A$2="Municiple","Y","error")) -> RuCPPf201N | H33: Key customers | J33: 5047.97 | K33: =ROUND(J33 * (1 + VAT), 2) -> 5805.17 | L33: 110.55 | M33: =ROUND(L33 * (1 + VAT), 2) -> 127.13 | P33: VAT incl | R33: VAT incl
O34: 12 | P34: =ROUND(O34 * (1 + VAT), 2) -> 13.8 | Q34: 0 | R34: =ROUND(Q34 * (1 + VAT), 2) -> 0

Sheet Ruraflex 16h for 25dy CPP C (hidden)
G1: Back to menu
A2: Non-municipal | G2: Ruraflex - Non-local Authority | AF2: =SUM(#REF!,#REF!,#REF!,#REF!,#REF!,#REF!,#REF!,#REF!,#REF!,#REF!,#REF!,#REF!) ->  | AG2: check value
V4: Network capacity charges [R/kVA/m]
H5: Transmission zone
I6: Voltage
A7: Tariff | B7: Tariff nameBillcode | C7: Tx zone | D7: Voltage | E7: Billcode | W7: VAT incl
A8: Ruraflex - CPP: 25 days / 16 hours (6:00-22:00) 400 critical peak hours per year CRITICAL PEAK DAY rates for CRITICAL PEAK days | B8: RuCPPf | C8: 0 | D8: 1 | E8: =B8&C8&D8&IF($A$2="Non-municipal","N",IF($A$2="Municiple","Y","error")) -> RuCPPf01N | H8: ≤ 300km | I8: < 500V | V8: 24.96 | W8: =ROUND(V8 * (1 + VAT), 2) -> 28.7
A9: Ruraflex - CPP: 25 days / 16 hours (6:00-22:00) 400 critical peak hours per year CRITICAL PEAK DAY rates for CRITICAL PEAK days | B9: RuCPPf | C9: 0 | D9: 2 | E9: =B9&C9&D9&IF($A$2="Non-municipal","N",IF($A$2="Municiple","Y","error")) -> RuCPPf02N | I9: ≥ 500V & ≤ 22kV | V9: 22.87 | W9: 26.3
A10: Ruraflex - CPP: 25 days / 16 hours (6:00-22:00) 400 critical peak hours per year CRITICAL PEAK DAY rates for CRITICAL PEAK days | B10: RuCPPf | E10: RuCPPfN | V10: 0
A11: Ruraflex - CPP: 25 days / 16 hours (6:00-22:00) 400 critical peak hours per year CRITICAL PEAK DAY rates for CRITICAL PEAK days | B11: RuCPPf | E11: RuCPPfN | V11: 0
A12: Ruraflex - CPP: 25 days / 16 hours (6:00-22:00) 400 critical peak hours per year CRITICAL PEAK DAY rates for CRITICAL PEAK days | B12: RuCPPf | C12: 1 | D12: 1 | E12: RuCPPf11N | H12: > 300km and ≤ 600km | I12: < 500V | V12: 25.03 | W12: 28.78
A13: Ruraflex - CPP: 25 days / 16 hours (6:00-22:00) 400 critical peak hours per year CRITICAL PEAK DAY rates for CRITICAL PEAK days | B13: RuCPPf | C13: 1 | D13: 2 | E13: RuCPPf12N | I13: ≥ 500V & ≤ 22kV | V13: 23.01 | W13: 26.46
A14: Ruraflex - CPP: 25 days / 16 hours (6:00-22:00) 400 critical peak hours per year CRITICAL PEAK DAY rates for CRITICAL PEAK days | B14: RuCPPf | E14: RuCPPfN | V14: 0
A15: Ruraflex - CPP: 25 days / 16 hours (6:00-22:00) 400 critical peak hours per year CRITICAL PEAK DAY rates for CRITICAL PEAK days | B15: RuCPPf | E15: RuCPPfN | V15: 0
A16: Ruraflex - CPP: 25 days / 16 hours (6:00-22:00) 400 critical peak hours per year CRITICAL PEAK DAY rates for CRITICAL PEAK days | B16: RuCPPf | C16: 2 | D16: 1 | E16: RuCPPf21N | H16: > 600km and ≤ 900km | I16: < 500V | V16: 25.16 | W16: 28.93
A17: Ruraflex - CPP: 25 days / 16 hours (6:00-22:00) 400 critical peak hours per year CRITICAL PEAK DAY rates for CRITICAL PEAK days | B17: RuCPPf | C17: 2 | D17: 2 | E17: RuCPPf22N | I17: ≥ 500V & ≤ 22kV | V17: 23.12 | W17: 26.59
A18: Ruraflex - CPP: 25 days / 16 hours (6:00-22:00) 400 critical peak hours per year CRITICAL PEAK DAY rates for CRITICAL PEAK days | B18: RuCPPf | E18: RuCPPfN | V18: 0
A19: Ruraflex - CPP: 25 days / 16 hours (6:00-22:00) 400 critical peak hours per year CRITICAL PEAK DAY rates for CRITICAL PEAK days | B19: RuCPPf | E19: RuCPPfN | V19: 0
A20: Ruraflex - CPP: 25 days / 16 hours (6:00-22:00) 400 critical peak hours per year CRITICAL PEAK DAY rates for CRITICAL PEAK days | B20: RuCPPf | C20: 3 | D20: 1 | E20: RuCPPf31N | H20: > 900km | I20: < 500V | V20: 25.27 | W20: 29.06
A21: Ruraflex - CPP: 25 days / 16 hours (6:00-22:00) 400 critical peak hours per year CRITICAL PEAK DAY rates for CRITICAL PEAK days | B21: RuCPPf | C21: 3 | D21: 2 | E21: RuCPPf32N | I21: ≥ 500V & ≤ 22kV | V21: 23.13 | W21: 26.6
N22: 0
N23: 0
H26: Customer categories | J26: Service charge [R/account/day] | L26: Administration charge [R/POD/day] | Q26: Ancillary service charge [c/kWh] | S26: Network demand charge [c/kWh] in all time-of-use periods
O27: Voltage | R27: VAT incl | T27: VAT incl
A28: Tariff | B28: Tariff nameBillcode | C28: Tx zone | D28: Voltage | E28: Billcode | K28: VAT incl | M28: VAT incl | O28: < 500V | Q28: 0.55 | R28: =ROUND(Q28 * (1 + VAT), 2) -> 0.63 | S28: 35.53 | T28: =ROUND(S28 * (1 + VAT), 2) -> 40.86
A29: Ruraflex - CPP: 25 days / 16 hours (6:00-22:00) 400 critical peak hours per year CRITICAL PEAK DAY rates for CRITICAL PEAK days | B29: RuCPPf | C29: 0 | D29: 1 | E29: =B29&C29&D29&IF($A$2="Non-municipal","N",IF($A$2="Municiple","Y","error")) -> RuCPPf01N | H29: ≤ 100 kVA | J29: 24.55 | K29: =ROUND(J29 * (1 + VAT), 2) -> 28.23 | L29: 6.97 | M29: =ROUND(L29 * (1 + VAT), 2) -> 8.02 | O29: ≥ 500V & < 22kV | Q29: 0.55 | R29: =ROUND(Q29 * (1 + VAT), 2) -> 0.63 | S29: 31.15 | T29: =ROUND(S29 * (1 + VAT), 2) -> 35.82
A30: Ruraflex - CPP: 25 days / 16 hours (6:00-22:00) 400 critical peak hours per year CRITICAL PEAK DAY rates for CRITICAL PEAK days | B30: RuCPPf | C30: 0 | D30: 1 | E30: =B30&C30&D30&IF($A$2="Non-municipal","N",IF($A$2="Municiple","Y","error")) -> RuCPPf01N | H30: > 100 kVA & ≤ 500 kVA | J30: 83.72 | K30: =ROUND(J30 * (1 + VAT), 2) -> 96.28 | L30: 38.82 | M30: =ROUND(L30 * (1 + VAT), 2) -> 44.64
A31: Ruraflex - CPP: 25 days / 16 hours (6:00-22:00) 400 critical peak hours per year CRITICAL PEAK DAY rates for CRITICAL PEAK days | B31: RuCPPf | C31: 0 | D31: 1 | E31: =B31&C31&D31&IF($A$2="Non-municipal","N",IF($A$2="Municiple","Y","error")) -> RuCPPf01N | H31: > 500 kVA & ≤ 1 MVA | J31: 257.56 | K31: =ROUND(J31 * (1 + VAT), 2) -> 296.19 | L31: 59.58 | M31: =ROUND(L31 * (1 + VAT), 2) -> 68.52 | O31: Reactive energy charge [c/kVArh]
A32: Ruraflex - CPP: 25 days / 16 hours (6:00-22:00) 400 critical peak hours per year CRITICAL PEAK DAY rates for CRITICAL PEAK days | B32: RuCPPf | C32: 0 | D32: 1 | E32: =B32&C32&D32&IF($A$2="Non-municipal","N",IF($A$2="Municiple","Y","error")) -> RuCPPf01N | H32: > 1 MVA | J32: 257.56 | K32: =ROUND(J32 * (1 + VAT), 2) -> 296.19 | L32: 110.55 | M32: =ROUND(L32 * (1 + VAT), 2) -> 127.13 | O32: High season | Q32: Low season
A33: Ruraflex - CPP: 25 days / 16 hours (6:00-22:00) 400 critical peak hours per year CRITICAL PEAK DAY rates for CRITICAL PEAK days | B33: RuCPPf | C33: 0 | D33: 1 | E33: =B33&C33&D33&IF($A$2="Non-municipal","N",IF($A$2="Municiple","Y","error")) -> RuCPPf01N | H33: Key customers | J33: 5047.97 | K33: =ROUND(J33 * (1 + VAT), 2) -> 5805.17 | L33: 110.55 | M33: =ROUND(L33 * (1 + VAT), 2) -> 127.13 | P33: VAT incl | R33: VAT incl
O34: 12 | P34: =ROUND(O34 * (1 + VAT), 2) -> 13.8 | Q34: 0 | R34: =ROUND(Q34 * (1 + VAT), 2) -> 0

Sheet Ruraflex Gen 8h for 50dy CPP C (hidden)
G1: Back to menu
A2: Non-municipal | G2: Ruraflex Gen - Non-Local Authority | AF2: =SUM(#REF!,#REF!,#REF!,#REF!,#REF!,#REF!,#REF!,#REF!,#REF!,#REF!,#REF!,#REF!) ->  | AG2: check value
V4: Network capacity charges [R/kVA/m]
H5: Transmission zone
I6: Voltage
A7: Tariff | B7: Tariff nameBillcode | C7: Tx zone | D7: Voltage | E7: Billcode | W7: VAT incl
A8: Ruraflex Gen - CPP: 50 days / 8 hours (6:00-14:00) 400 critical peak hours per year CRITICAL PEAK DAY rates for CRITICAL PEAK days | B8: GRCPPf2 | C8: 0 | D8: 1 | E8: =B8&C8&D8&IF($A$2="Non-municipal","N",IF($A$2="Municiple","Y","error")) -> GRCPPf201N | H8: ≤ 300km | I8: < 500V | V8: 24.96 | W8: =ROUND(V8 * (1 + VAT), 2) -> 28.7
A9: Ruraflex Gen - CPP: 50 days / 8 hours (6:00-14:00) 400 critical peak hours per year CRITICAL PEAK DAY rates for CRITICAL PEAK days | B9: GRCPPf2 | C9: 0 | D9: 2 | E9: =B9&C9&D9&IF($A$2="Non-municipal","N",IF($A$2="Municiple","Y","error")) -> GRCPPf202N | I9: ≥ 500V & ≤ 22kV | V9: 22.87 | W9: 26.3
A10: Ruraflex Gen - CPP: 50 days / 8 hours (6:00-14:00) 400 critical peak hours per year CRITICAL PEAK DAY rates for CRITICAL PEAK days | B10: GRCPPf2 | E10: GRCPPf2N | V10: 0
A11: Ruraflex Gen - CPP: 50 days / 8 hours (6:00-14:00) 400 critical peak hours per year CRITICAL PEAK DAY rates for CRITICAL PEAK days | B11: GRCPPf2 | E11: GRCPPf2N | V11: 0
A12: Ruraflex Gen - CPP: 50 days / 8 hours (6:00-14:00) 400 critical peak hours per year CRITICAL PEAK DAY rates for CRITICAL PEAK days | B12: GRCPPf2 | C12: 1 | D12: 1 | E12: GRCPPf211N | H12: > 300km and ≤ 600km | I12: < 500V | V12: 25.03 | W12: 28.78
A13: Ruraflex Gen - CPP: 50 days / 8 hours (6:00-14:00) 400 critical peak hours per year CRITICAL PEAK DAY rates for CRITICAL PEAK days | B13: GRCPPf2 | C13: 1 | D13: 2 | E13: GRCPPf212N | I13: ≥ 500V & ≤ 22kV | V13: 23.01 | W13: 26.46
A14: Ruraflex Gen - CPP: 50 days / 8 hours (6:00-14:00) 400 critical peak hours per year CRITICAL PEAK DAY rates for CRITICAL PEAK days | B14: GRCPPf2 | E14: GRCPPf2N | V14: 0
A15: Ruraflex Gen - CPP: 50 days / 8 hours (6:00-14:00) 400 critical peak hours per year CRITICAL PEAK DAY rates for CRITICAL PEAK days | B15: GRCPPf2 | E15: GRCPPf2N | V15: 0
A16: Ruraflex Gen - CPP: 50 days / 8 hours (6:00-14:00) 400 critical peak hours per year CRITICAL PEAK DAY rates for CRITICAL PEAK days | B16: GRCPPf2 | C16: 2 | D16: 1 | E16: GRCPPf221N | H16: > 600km and ≤ 900km | I16: < 500V | V16: 25.16 | W16: 28.93
A17: Ruraflex Gen - CPP: 50 days / 8 hours (6:00-14:00) 400 critical peak hours per year CRITICAL PEAK DAY rates for CRITICAL PEAK days | B17: GRCPPf2 | C17: 2 | D17: 2 | E17: GRCPPf222N | I17: ≥ 500V & ≤ 22kV | V17: 23.12 | W17: 26.59
A18: Ruraflex Gen - CPP: 50 days / 8 hours (6:00-14:00) 400 critical peak hours per year CRITICAL PEAK DAY rates for CRITICAL PEAK days | B18: GRCPPf2 | E18: GRCPPf2N | V18: 0
A19: Ruraflex Gen - CPP: 50 days / 8 hours (6:00-14:00) 400 critical peak hours per year CRITICAL PEAK DAY rates for CRITICAL PEAK days | B19: GRCPPf2 | E19: GRCPPf2N | V19: 0
A20: Ruraflex Gen - CPP: 50 days / 8 hours (6:00-14:00) 400 critical peak hours per year CRITICAL PEAK DAY rates for CRITICAL PEAK days | B20: GRCPPf2 | C20: 3 | D20: 1 | E20: GRCPPf231N | H20: > 900km | I20: < 500V | V20: 25.27 | W20: 29.06
A21: Ruraflex Gen - CPP: 50 days / 8 hours (6:00-14:00) 400 critical peak hours per year CRITICAL PEAK DAY rates for CRITICAL PEAK days | B21: GRCPPf2 | C21: 3 | D21: 2 | E21: GRCPPf232N | I21: ≥ 500V & ≤ 22kV | V21: 23.13 | W21: 26.6
N22: 0
N23: 0
A24: Gen-purchase | B24: NLPurchADJ | C24: 0 | D24: 4 | E24: =B24&C24&D24&IF($A$2="Non-municipal","N",IF($A$2="Municiple","Y","error")) -> NLPurchADJ04N
Q26: Ancillary service charge for loads and generators
H28: Customer categories | J28: Service charge [R/account/day] | L28: Administration charge [R/POD/day] | O28: Voltage | Q28: [c/kWh]
H29: [kVA or MVA = loads] | R29: VAT incl
A30: Tariff | B30: Tariff nameBillcode | C30: Tx zone | D30: Voltage | E30: Billcode | H30: [kW or MW = generators] | K30: VAT incl | M30: VAT incl | O30: < 500V | Q30: 0.55 | R30: =ROUND(Q30 * (1 + VAT), 2) -> 0.63
A31: Ruraflex Gen - CPP: 50 days / 8 hours (6:00-14:00) 400 critical peak hours per year CRITICAL PEAK DAY rates for CRITICAL PEAK days | B31: GRCPPf2 | C31: 0 | D31: 1 | E31: =B31&C31&D31&IF($A$2="Non-municipal","N",IF($A$2="Municiple","Y","error")) -> GRCPPf201N | H31: ≤ 100 kVA/kW | J31: 24.55 | K31: =ROUND(J31 * (1 + VAT), 2) -> 28.23 | L31: 6.97 | M31: =ROUND(L31 * (1 + VAT), 2) -> 8.02 | O31: ≥ 500V & < 22kV | Q31: 0.55 | R31: =ROUND(Q31 * (1 + VAT), 2) -> 0.63
A32: Ruraflex Gen - CPP: 50 days / 8 hours (6:00-14:00) 400 critical peak hours per year CRITICAL PEAK DAY rates for CRITICAL PEAK days | B32: GRCPPf2 | C32: 0 | D32: 1 | E32: =B32&C32&D32&IF($A$2="Non-municipal","N",IF($A$2="Municiple","Y","error")) -> GRCPPf201N | H32: > 100 KVA/kW & ≤ 500 kVA/kW | J32: 83.72 | K32: =ROUND(J32 * (1 + VAT), 2) -> 96.28 | L32: 38.82 | M32: =ROUND(L32 * (1 + VAT), 2) -> 44.64
A33: Ruraflex Gen - CPP: 50 days / 8 hours (6:00-14:00) 400 critical peak hours per year CRITICAL PEAK DAY rates for CRITICAL PEAK days | B33: GRCPPf2 | C33: 0 | D33: 1 | E33: =B33&C33&D33&IF($A$2="Non-municipal","N",IF($A$2="Municiple","Y","error")) -> GRCPPf201N | H33: > 500 kVA/kW & ≤ 1 MVA/MW | J33: 257.56 | K33: =ROUND(J33 * (1 + VAT), 2) -> 296.19 | L33: 59.58 | M33: =ROUND(L33 * (1 + VAT), 2) -> 68.52 | O33: Reactive energy charge [c/kVArh] | S33: Network demand charge [c/kWh] for loads in all time-of-use periods
A34: Ruraflex Gen - CPP: 50 days / 8 hours (6:00-14:00) 400 critical peak hours per year CRITICAL PEAK DAY rates for CRITICAL PEAK days | B34: GRCPPf2 | C34: 0 | D34: 1 | E34: =B34&C34&D34&IF($A$2="Non-municipal","N",IF($A$2="Municiple","Y","error")) -> GRCPPf201N | H34: > 1 MVA/MW | J34: 257.56 | K34: =ROUND(J34 * (1 + VAT), 2) -> 296.19 | L34: 110.55 | M34: =ROUND(L34 * (1 + VAT), 2) -> 127.13 | O34: High season | Q34: Low season | T34: VAT incl
A35: Ruraflex Gen - CPP: 50 days / 8 hours (6:00-14:00) 400 critical peak hours per year CRITICAL PEAK DAY rates for CRITICAL PEAK days | B35: GRCPPf2 | C35: 0 | D35: 1 | E35: =B35&C35&D35&IF($A$2="Non-municipal","N",IF($A$2="Municiple","Y","error")) -> GRCPPf201N | H35: Key customers | J35: 5047.97 | K35: =ROUND(J35 * (1 + VAT), 2) -> 5805.17 | L35: 110.55 | M35: =ROUND(L35 * (1 + VAT), 2) -> 127.13 | P35: VAT incl | R35: VAT incl | S35: 35.53 | T35: =ROUND(S35 * (1 + VAT), 2) -> 40.86
O36: 12 | P36: =ROUND(O36 * (1 + VAT), 2) -> 13.8 | Q36: 0 | R36: =ROUND(Q36 * (1 + VAT), 2) -> 0 | S36: 31.15 | T36: =ROUND(S36 * (1 + VAT), 2) -> 35.82

Sheet Ruraflex Gen 16h for 25dy CPP C (hidden)
G1: Back to menu
A2: Non-municipal | G2: Ruraflex Gen - Non-Local Authority | AF2: =SUM(#REF!,#REF!,#REF!,#REF!,#REF!,#REF!,#REF!,#REF!,#REF!,#REF!,#REF!,#REF!) ->  | AG2: check value
V4: Network capacity charges [R/kVA/m]
H5: Transmission zone
I6: Voltage
A7: Tariff | B7: Tariff nameBillcode | C7: Tx zone | D7: Voltage | E7: Billcode | W7: VAT incl
A8: Ruraflex Gen - CPP: 25 days / 16 hours (6:00-22:00) 400 critical peak hours per year CRITICAL PEAK DAY rates for CRITICAL PEAK days | B8: GRCPPf | C8: 0 | D8: 1 | E8: =B8&C8&D8&IF($A$2="Non-municipal","N",IF($A$2="Municiple","Y","error")) -> GRCPPf01N | H8: ≤ 300km | I8: < 500V | V8: 24.96 | W8: =ROUND(V8 * (1 + VAT), 2) -> 28.7
A9: Ruraflex Gen - CPP: 25 days / 16 hours (6:00-22:00) 400 critical peak hours per year CRITICAL PEAK DAY rates for CRITICAL PEAK days | B9: GRCPPf | C9: 0 | D9: 2 | E9: =B9&C9&D9&IF($A$2="Non-municipal","N",IF($A$2="Municiple","Y","error")) -> GRCPPf02N | I9: ≥ 500V & ≤ 22kV | V9: 22.87 | W9: 26.3
A10: Ruraflex Gen - CPP: 25 days / 16 hours (6:00-22:00) 400 critical peak hours per year CRITICAL PEAK DAY rates for CRITICAL PEAK days | B10: GRCPPf | E10: GRCPPfN | V10: 0
A11: Ruraflex Gen - CPP: 25 days / 16 hours (6:00-22:00) 400 critical peak hours per year CRITICAL PEAK DAY rates for CRITICAL PEAK days | B11: GRCPPf | E11: GRCPPfN | V11: 0
A12: Ruraflex Gen - CPP: 25 days / 16 hours (6:00-22:00) 400 critical peak hours per year CRITICAL PEAK DAY rates for CRITICAL PEAK days | B12: GRCPPf | C12: 1 | D12: 1 | E12: GRCPPf11N | H12: > 300km and ≤ 600km | I12: < 500V | V12: 25.03 | W12: 28.78
A13: Ruraflex Gen - CPP: 25 days / 16 hours (6:00-22:00) 400 critical peak hours per year CRITICAL PEAK DAY rates for CRITICAL PEAK days | B13: GRCPPf | C13: 1 | D13: 2 | E13: GRCPPf12N | I13: ≥ 500V & ≤ 22kV | V13: 23.01 | W13: 26.46
A14: Ruraflex Gen - CPP: 25 days / 16 hours (6:00-22:00) 400 critical peak hours per year CRITICAL PEAK DAY rates for CRITICAL PEAK days | B14: GRCPPf | E14: GRCPPfN | V14: 0
A15: Ruraflex Gen - CPP: 25 days / 16 hours (6:00-22:00) 400 critical peak hours per year CRITICAL PEAK DAY rates for CRITICAL PEAK days | B15: GRCPPf | E15: GRCPPfN | V15: 0
A16: Ruraflex Gen - CPP: 25 days / 16 hours (6:00-22:00) 400 critical peak hours per year CRITICAL PEAK DAY rates for CRITICAL PEAK days | B16: GRCPPf | C16: 2 | D16: 1 | E16: GRCPPf21N | H16: > 600km and ≤ 900km | I16: < 500V | V16: 25.16 | W16: 28.93
A17: Ruraflex Gen - CPP: 25 days / 16 hours (6:00-22:00) 400 critical peak hours per year CRITICAL PEAK DAY rates for CRITICAL PEAK days | B17: GRCPPf | C17: 2 | D17: 2 | E17: GRCPPf22N | I17: ≥ 500V & ≤ 22kV | V17: 23.12 | W17: 26.59
A18: Ruraflex Gen - CPP: 25 days / 16 hours (6:00-22:00) 400 critical peak hours per year CRITICAL PEAK DAY rates for CRITICAL PEAK days | B18: GRCPPf | E18: GRCPPfN | V18: 0
A19: Ruraflex Gen - CPP: 25 days / 16 hours (6:00-22:00) 400 critical peak hours per year CRITICAL PEAK DAY rates for CRITICAL PEAK days | B19: GRCPPf | E19: GRCPPfN | V19: 0
A20: Ruraflex Gen - CPP: 25 days / 16 hours (6:00-22:00) 400 critical peak hours per year CRITICAL PEAK DAY rates for CRITICAL PEAK days | B20: GRCPPf | C20: 3 | D20: 1 | E20: GRCPPf31N | H20: > 900km | I20: < 500V | V20: 25.27 | W20: 29.06
A21: Ruraflex Gen - CPP: 25 days / 16 hours (6:00-22:00) 400 critical peak hours per year CRITICAL PEAK DAY rates for CRITICAL PEAK days | B21: GRCPPf | C21: 3 | D21: 2 | E21: GRCPPf32N | I21: ≥ 500V & ≤ 22kV | V21: 23.13 | W21: 26.6
N22: 0
N23: 0
A24: Gen-purchase | B24: NLPurchADJ | C24: 0 | D24: 4 | E24: =B24&C24&D24&IF($A$2="Non-municipal","N",IF($A$2="Municiple","Y","error")) -> NLPurchADJ04N
Q26: Ancillary service charge for loads and generators
H28: Customer categories | J28: Service charge [R/account/day] | L28: Administration charge [R/POD/day] | O28: Voltage | Q28: [c/kWh]
H29: [kVA or MVA = loads] | R29: VAT incl
A30: Tariff | B30: Tariff nameBillcode | C30: Tx zone | D30: Voltage | E30: Billcode | H30: [kW or MW = generators] | K30: VAT incl | M30: VAT incl | O30: < 500V | Q30: 0.55 | R30: =ROUND(Q30 * (1 + VAT), 2) -> 0.63
A31: Ruraflex Gen - CPP: 25 days / 16 hours (6:00-22:00) 400 critical peak hours per year CRITICAL PEAK DAY rates for CRITICAL PEAK days | B31: GRCPPf | C31: 0 | D31: 1 | E31: =B31&C31&D31&IF($A$2="Non-municipal","N",IF($A$2="Municiple","Y","error")) -> GRCPPf01N | H31: ≤ 100 kVA/kW | J31: 24.55 | K31: =ROUND(J31 * (1 + VAT), 2) -> 28.23 | L31: 6.97 | M31: =ROUND(L31 * (1 + VAT), 2) -> 8.02 | O31: ≥ 500V & < 22kV | Q31: 0.55 | R31: =ROUND(Q31 * (1 + VAT), 2) -> 0.63
A32: Ruraflex Gen - CPP: 25 days / 16 hours (6:00-22:00) 400 critical peak hours per year CRITICAL PEAK DAY rates for CRITICAL PEAK days | B32: GRCPPf | C32: 0 | D32: 1 | E32: =B32&C32&D32&IF($A$2="Non-municipal","N",IF($A$2="Municiple","Y","error")) -> GRCPPf01N | H32: > 100 KVA/kW & ≤ 500 kVA/kW | J32: 83.72 | K32: =ROUND(J32 * (1 + VAT), 2) -> 96.28 | L32: 38.82 | M32: =ROUND(L32 * (1 + VAT), 2) -> 44.64
A33: Ruraflex Gen - CPP: 25 days / 16 hours (6:00-22:00) 400 critical peak hours per year CRITICAL PEAK DAY rates for CRITICAL PEAK days | B33: GRCPPf | C33: 0 | D33: 1 | E33: =B33&C33&D33&IF($A$2="Non-municipal","N",IF($A$2="Municiple","Y","error")) -> GRCPPf01N | H33: > 500 kVA/kW & ≤ 1 MVA/MW | J33: 257.56 | K33: =ROUND(J33 * (1 + VAT), 2) -> 296.19 | L33: 59.58 | M33: =ROUND(L33 * (1 + VAT), 2) -> 68.52 | O33: Reactive energy charge [c/kVArh] | S33: Network demand charge [c/kWh] for loads in all time-of-use periods
A34: Ruraflex Gen - CPP: 25 days / 16 hours (6:00-22:00) 400 critical peak hours per year CRITICAL PEAK DAY rates for CRITICAL PEAK days | B34: GRCPPf | C34: 0 | D34: 1 | E34: =B34&C34&D34&IF($A$2="Non-municipal","N",IF($A$2="Municiple","Y","error")) -> GRCPPf01N | H34: > 1 MVA/MW | J34: 257.56 | K34: =ROUND(J34 * (1 + VAT), 2) -> 296.19 | L34: 110.55 | M34: =ROUND(L34 * (1 + VAT), 2) -> 127.13 | O34: High season | Q34: Low season | T34: VAT incl
A35: Ruraflex Gen - CPP: 25 days / 16 hours (6:00-22:00) 400 critical peak hours per year CRITICAL PEAK DAY rates for CRITICAL PEAK days | B35: GRCPPf | C35: 0 | D35: 1 | E35: =B35&C35&D35&IF($A$2="Non-municipal","N",IF($A$2="Municiple","Y","error")) -> GRCPPf01N | H35: Key customers | J35: 5047.97 | K35: =ROUND(J35 * (1 + VAT), 2) -> 5805.17 | L35: 110.55 | M35: =ROUND(L35 * (1 + VAT), 2) -> 127.13 | P35: VAT incl | R35: VAT incl | S35: 35.53 | T35: =ROUND(S35 * (1 + VAT), 2) -> 40.86
O36: 12 | P36: =ROUND(O36 * (1 + VAT), 2) -> 13.8 | Q36: 0 | R36: =ROUND(Q36 * (1 + VAT), 2) -> 0 | S36: 31.15 | T36: =ROUND(S36 * (1 + VAT), 2) -> 35.82

Sheet Megaflex Gen 8h for 50dy CPP C (hidden)
G1: Back to menu
A2: Non-municipal | G2: Megaflex Gen - Non-local authority
V4: Transmission network charges [R/kVA/m]
H5: Transmission zone
I6: Voltage
A7: Tariff | B7: Tariff nameBillcode | C7: Tx zone | D7: Voltage | E7: Billcode | W7: VAT incl
A8: Megaflex Gen - CPP: 50 days / 8 hours (6:00-14:00) 400 critical peak hours per year CRITICAL PEAK DAY rates for CRITICAL PEAK days | B8: GUCPPf2 | C8: 0 | D8: 1 | E8: =B8&C8&D8&IF($A$2="Non-municipal","N",IF($A$2="Municiple","Y","error")) -> GUCPPf201N | H8: ≤ 300km | I8: < 500V | V8: 11.94 | W8: =ROUND(V8 * (1 + VAT), 2) -> 13.73
A9: Megaflex Gen - CPP: 50 days / 8 hours (6:00-14:00) 400 critical peak hours per year CRITICAL PEAK DAY rates for CRITICAL PEAK days | B9: GUCPPf2 | C9: 0 | D9: 2 | E9: GUCPPf202N | I9: ≥ 500V & < 66kV | V9: 10.91 | W9: 12.55
A10: Megaflex Gen - CPP: 50 days / 8 hours (6:00-14:00) 400 critical peak hours per year CRITICAL PEAK DAY rates for CRITICAL PEAK days | B10: GUCPPf2 | C10: 0 | D10: 3 | E10: GUCPPf203N | I10: ≥ 66kV & ≤ 132kV | V10: 10.62 | W10: 12.21
A11: Megaflex Gen - CPP: 50 days / 8 hours (6:00-14:00) 400 critical peak hours per year CRITICAL PEAK DAY rates for CRITICAL PEAK days | B11: GUCPPf2 | C11: 0 | D11: 4 | E11: GUCPPf204N | I11: > 132kV* | V11: 13.43 | W11: 15.44
A12: Megaflex Gen - CPP: 50 days / 8 hours (6:00-14:00) 400 critical peak hours per year CRITICAL PEAK DAY rates for CRITICAL PEAK days | B12: GUCPPf2 | C12: 1 | D12: 1 | E12: GUCPPf211N | H12: > 300km and ≤ 600km | I12: < 500V | V12: 12.02 | W12: 13.82
A13: Megaflex Gen - CPP: 50 days / 8 hours (6:00-14:00) 400 critical peak hours per year CRITICAL PEAK DAY rates for CRITICAL PEAK days | B13: GUCPPf2 | C13: 1 | D13: 2 | E13: GUCPPf212N | I13: ≥ 500V & < 66kV | V13: 11.01 | W13: 12.66
A14: Megaflex Gen - CPP: 50 days / 8 hours (6:00-14:00) 400 critical peak hours per year CRITICAL PEAK DAY rates for CRITICAL PEAK days | B14: GUCPPf2 | C14: 1 | D14: 3 | E14: GUCPPf213N | I14: ≥ 66kV & ≤ 132kV | V14: 10.7 | W14: 12.31
A15: Megaflex Gen - CPP: 50 days / 8 hours (6:00-14:00) 400 critical peak hours per year CRITICAL PEAK DAY rates for CRITICAL PEAK days | B15: GUCPPf2 | C15: 1 | D15: 4 | E15: GUCPPf214N | I15: > 132kV* | V15: 13.55 | W15: 15.58
A16: Megaflex Gen - CPP: 50 days / 8 hours (6:00-14:00) 400 critical peak hours per year CRITICAL PEAK DAY rates for CRITICAL PEAK days | B16: GUCPPf2 | C16: 2 | D16: 1 | E16: GUCPPf221N | H16: > 600km and ≤ 900km | I16: < 500V | V16: 12.16 | W16: 13.98
A17: Megaflex Gen - CPP: 50 days / 8 hours (6:00-14:00) 400 critical peak hours per year CRITICAL PEAK DAY rates for CRITICAL PEAK days | B17: GUCPPf2 | C17: 2 | D17: 2 | E17: GUCPPf222N | I17: ≥ 500V & < 66kV | V17: 11.11 | W17: 12.78
A18: Megaflex Gen - CPP: 50 days / 8 hours (6:00-14:00) 400 critical peak hours per year CRITICAL PEAK DAY rates for CRITICAL PEAK days | B18: GUCPPf2 | C18: 2 | D18: 3 | E18: GUCPPf223N | I18: ≥ 66kV & ≤ 132kV | V18: 10.77 | W18: 12.39
A19: Megaflex Gen - CPP: 50 days / 8 hours (6:00-14:00) 400 critical peak hours per year CRITICAL PEAK DAY rates for CRITICAL PEAK days | B19: GUCPPf2 | C19: 2 | D19: 4 | E19: GUCPPf224N | I19: > 132kV* | V19: 13.75 | W19: 15.81
A20: Megaflex Gen - CPP: 50 days / 8 hours (6:00-14:00) 400 critical peak hours per year CRITICAL PEAK DAY rates for CRITICAL PEAK days | B20: GUCPPf2 | C20: 3 | D20: 1 | E20: GUCPPf231N | H20: > 900km | I20: < 500V | V20: 12.24 | W20: 14.08
A21: Megaflex Gen - CPP: 50 days / 8 hours (6:00-14:00) 400 critical peak hours per year CRITICAL PEAK DAY rates for CRITICAL PEAK days | B21: GUCPPf2 | C21: 3 | D21: 2 | E21: GUCPPf232N | I21: ≥ 500V & < 66kV | V21: 11.24 | W21: 12.93
A22: Megaflex Gen - CPP: 50 days / 8 hours (6:00-14:00) 400 critical peak hours per year CRITICAL PEAK DAY rates for CRITICAL PEAK days | B22: GUCPPf2 | C22: 3 | D22: 3 | E22: GUCPPf233N | I22: ≥ 66kV & ≤ 132kV | V22: 10.87 | W22: 12.5
A23: Megaflex Gen - CPP: 50 days / 8 hours (6:00-14:00) 400 critical peak hours per year CRITICAL PEAK DAY rates for CRITICAL PEAK days | B23: GUCPPf2 | C23: 3 | D23: 4 | E23: GUCPPf234N | I23: > 132kV* | V23: 13.85 | W23: 15.93
A24: Gen-purchase | B24: NLPurchADJ | C24: 0 | D24: 4 | E24: NLPurchADJ04N | H24: WEPS energy rate excluding losses
A25: TUoS network charges for Transmission connected generators | B25: GenTUOS | C25: Cape | D25: 4 | E25: GenTUOSCape4N | I25: * 132 kV or Transmission connected
A26: TUoS network charges for Transmission connected generators | B26: GenTUOS | C26: Karoo | D26: 4 | E26: GenTUOSKaroo4N
A27: TUoS network charges for Transmission connected generators | B27: GenTUOS | C27: Kwazulu-Natal | D27: 4 | E27: GenTUOSKwazulu-Natal4N | H27: Distribution network charges for loads | Q27: Transmission network charges for generators | U27: Distribution network charges for generators*
A28: TUoS network charges for Transmission connected generators | B28: GenTUOS | C28: Vaal | D28: 4 | E28: GenTUOSVaal4N | J28: Network capacity charge [R/kVA/m] | L28: Network demand charge [R/kVA/m] | N28: Urban low voltage subsidy charge [R/kVA/m]
A29: TUoS network charges for Transmission connected generators | B29: GenTUOS | C29: Waterburg | D29: 4 | E29: GenTUOSWaterburg4N | H29: Voltage | Q29: TUoS [ > 132kV] | S29: Network charge [R/kW] | U29: Voltage | W29: Network capacity charge [R/kW/m]
A30: TUoS network charges for Transmission connected generators | B30: GenTUOS | C30: Mpumalanga | D30: 4 | E30: GenTUOSMpumalanga4N | H30: Voltage | K30: VAT incl | M30: VAT incl | O30: VAT incl | T30: VAT incl
A31: Megaflex Gen - CPP: 50 days / 8 hours (6:00-14:00) 400 critical peak hours per year CRITICAL PEAK DAY rates for CRITICAL PEAK days | B31: GUCPPf2 | C31: 0 | D31: 1 | E31: GUCPPf201N | H31: < 500V | J31: 23.73 | K31: =ROUND(J31 * (1 + VAT), 2) -> 27.29 | L31: 44.99 | M31: =ROUND(L31 * (1 + VAT), 2) -> 51.74 | N31: 0 | O31: =ROUND(N31 * (1 + VAT), 2) -> 0 | Q31: Cape | S31: 0 | T31: =ROUND(S31 * (1 + VAT), 2) -> 0 | X31: VAT incl
A32: Megaflex Gen - CPP: 50 days / 8 hours (6:00-14:00) 400 critical peak hours per year CRITICAL PEAK DAY rates for CRITICAL PEAK days | B32: GUCPPf2 | C32: 0 | D32: 2 | E32: GUCPPf202N | H32: ≥ 500V & < 66kV | J32: 21.76 | K32: =ROUND(J32 * (1 + VAT), 2) -> 25.02 | L32: 41.27 | M32: =ROUND(L32 * (1 + VAT), 2) -> 47.46 | N32: 0 | O32: =ROUND(N32 * (1 + VAT), 2) -> 0 | Q32: Karoo | S32: 0 | T32: 0 | U32: < 500V
A33: Megaflex Gen - CPP: 50 days / 8 hours (6:00-14:00) 400 critical peak hours per year CRITICAL PEAK DAY rates for CRITICAL PEAK days | B33: GUCPPf2 | C33: 0 | D33: 3 | E33: GUCPPf203N | H33: ≥ 66kV & ≤ 132kV | J33: 7.77 | K33: =ROUND(J33 * (1 + VAT), 2) -> 8.94 | L33: 14.39 | M33: =ROUND(L33 * (1 + VAT), 2) -> 16.55 | N33: 19.17 | O33: =ROUND(N33 * (1 + VAT), 2) -> 22.05 | Q33: Kwazulu-Natal | S33: 2.82 | T33: 3.24 | U33: ≥ 500V & < 66kV
A34: Megaflex Gen - CPP: 50 days / 8 hours (6:00-14:00) 400 critical peak hours per year CRITICAL PEAK DAY rates for CRITICAL PEAK days | B34: GUCPPf2 | C34: 0 | D34: 4 | E34: GUCPPf204N | H34: > 132kV / Transmission connected | J34: 0 | K34: =ROUND(J34 * (1 + VAT), 2) -> 0 | L34: 0 | M34: =ROUND(L34 * (1 + VAT), 2) -> 0 | N34: 19.17 | O34: =ROUND(N34 * (1 + VAT), 2) -> 22.05 | Q34: Vaal | S34: 9.39 | T34: 10.8 | U34: ≥ 66kV & ≤ 132kV | W34: 19.19 | X34: =ROUND(W34 * (1 + VAT), 2) -> 22.07
A35: Gen-DUoS urban | B35: NEGenDUoSU | C35: 0 | D35: 3 | E35: NEGenDUoSU03N | Q35: Waterberg | S35: 12.02 | T35: 13.82 | U35: * The Distribution network charge will be rebated by the Losses charge, but not beyond extintion
Q36: Mpumalanga | S36: 11.16 | T36: 12.83
H37: Customer categories | J37: Service charge [R/account/day] | L37: Administration charge [R/POD/day]
H38: [kVA or MVA = loads] | Q38: Ancillary service charge for loads and generators
A39: Tariff | B39: Tariff nameBillcode | C39: Tx zone | D39: Voltage | E39: Billcode | H39: [kW or MW = generators] | K39: VAT incl | M39: VAT incl
A40: Megaflex Gen - CPP: 50 days / 8 hours (6:00-14:00) 400 critical peak hours per year CRITICAL PEAK DAY rates for CRITICAL PEAK days | B40: GUCPPf2 | C40: 0 | D40: 1 | E40: =B40&C40&D40&IF($A$2="Non-municipal","N",IF($A$2="Municiple","Y","error")) -> GUCPPf201N | H40: ≤ 100 KVA/ kW | J40: 19.39 | K40: =ROUND(J40 * (1 + VAT), 2) -> 22.3 | L40: 4.26 | M40: =ROUND(L40 * (1 + VAT), 2) -> 4.9 | Q40: Voltage | S40: Ancillary service charge [c/kWh]
A41: Megaflex Gen - CPP: 50 days / 8 hours (6:00-14:00) 400 critical peak hours per year CRITICAL PEAK DAY rates for CRITICAL PEAK days | B41: GUCPPf2 | C41: 0 | D41: 1 | E41: =B41&C41&D41&IF($A$2="Non-municipal","N",IF($A$2="Municiple","Y","error")) -> GUCPPf201N | H41: > 100 kVA/ kW & ≤ 500 kVA/ kW | J41: 88.53 | K41: =ROUND(J41 * (1 + VAT), 2) -> 101.81 | L41: 24.83 | M41: =ROUND(L41 * (1 + VAT), 2) -> 28.55 | T41: VAT incl
A42: Megaflex Gen - CPP: 50 days / 8 hours (6:00-14:00) 400 critical peak hours per year CRITICAL PEAK DAY rates for CRITICAL PEAK days | B42: GUCPPf2 | C42: 0 | D42: 1 | E42: =B42&C42&D42&IF($A$2="Non-municipal","N",IF($A$2="Municiple","Y","error")) -> GUCPPf201N | H42: > 500 kVA/ kW & ≤ 1 MVA/MW | J42: 272.39 | K42: =ROUND(J42 * (1 + VAT), 2) -> 313.25 | L42: 49.3 | M42: =ROUND(L42 * (1 + VAT), 2) -> 56.7 | Q42: < 500V | S42: 0.55 | T42: =ROUND(S42 * (1 + VAT), 2) -> 0.63
A43: Megaflex Gen - CPP: 50 days / 8 hours (6:00-14:00) 400 critical peak hours per year CRITICAL PEAK DAY rates for CRITICAL PEAK days | B43: GUCPPf2 | C43: 0 | D43: 1 | E43: =B43&C43&D43&IF($A$2="Non-municipal","N",IF($A$2="Municiple","Y","error")) -> GUCPPf201N | H43: > 1 MVA/MW | J43: 272.39 | K43: =ROUND(J43 * (1 + VAT), 2) -> 313.25 | L43: 122.76 | M43: =ROUND(L43 * (1 + VAT), 2) -> 141.17 | Q43: ≥ 500V & < 66kV | S43: 0.54 | T43: =ROUND(S43 * (1 + VAT), 2) -> 0.62
A44: Megaflex Gen - CPP: 50 days / 8 hours (6:00-14:00) 400 critical peak hours per year CRITICAL PEAK DAY rates for CRITICAL PEAK days | B44: GUCPPf2 | C44: 0 | D44: 1 | E44: =B44&C44&D44&IF($A$2="Non-municipal","N",IF($A$2="Municiple","Y","error")) -> GUCPPf201N | H44: Key customers or Transmission connected generators | J44: 5337.86 | K44: =ROUND(J44 * (1 + VAT), 2) -> 6138.54 | L44: 170.47 | M44: =ROUND(L44 * (1 + VAT), 2) -> 196.04 | Q44: ≥ 66kV & ≤ 132kV | S44: 0.52 | T44: =ROUND(S44 * (1 + VAT), 2) -> 0.6
Q45: > 132kV | S45: 0.48 | T45: =ROUND(S45 * (1 + VAT), 2) -> 0.55 | Y45: ='Loss Factors'!R10 -> 0
H46: Applicable to loads | Q46: * 132 kV or Transmission connected
H47: Electrification and rural network subsidy charge [c/kWh] | J47: Affordability subsidy charge [c/kWh] Only payable by non-local authority tariffs
M48: Reactive energy charge [c/kVArh] (loads)
M49: High season | O49: Low season
A50: Tariff | B50: Tariff nameBillcode | C50: Tx zone | D50: Voltage | E50: Billcode | I50: VAT incl | K50: VAT incl | N50: VAT incl | P50: VAT incl
A51: Megaflex Gen - CPP: 50 days / 8 hours (6:00-14:00) 400 critical peak hours per year CRITICAL PEAK DAY rates for CRITICAL PEAK days | B51: GUCPPf2 | C51: 0 | D51: 1 | E51: =B51&C51&D51&IF($A$2="Non-municipal","N",IF($A$2="Municiple","Y","error")) -> GUCPPf201N | H51: 10.61 | I51: =ROUND(H51 * (1 + VAT), 2) -> 12.2 | J51: 4.98 | K51: =ROUND(J51 * (1 + VAT), 2) -> 5.73 | M51: 19.19 | N51: =ROUND(M51 * (1 + VAT), 2) -> 22.07 | O51: 0 | P51: =ROUND(O51 * (1 + VAT), 2) -> 0
H54: Losses charge for generators
H55: Distribution connected generators | M55: Transmission connected generators
H56: Formula | M56: Formula
H57: Distribution = - ((Energy produced x WEPS rate excluding losses) x (Distribution loss factor x Transmission loss factor-1)) in each TOU period | M57: Transmission = (Energy produced x WEPS rate excluding losses) x (Transmission loss factor-1/Transmission loss factor) in each TOU period
H58: Transmission loss factors for Distribution connected | K58: Distribution loss factors | M58: Generator loss factor
H59: Distance from Johannesburg | K59: ='Loss Factors'!N5 -> Voltage | M59: =' TUoS NLA'!I38 -> Cape | O59: =' TUoS NLA'!J38 -> 0.971
H60: ='Loss Factors'!R6 -> ≤ 300km | J60: ='Loss Factors'!T6 -> 1.0107 | K60: < 500V | L60: ='Loss Factors'!O6 -> 1.1111 | M60: =' TUoS NLA'!I39 -> Karoo | O60: =' TUoS NLA'!J39 -> 0.995
H61: ='Loss Factors'!R7 -> > 300km & ≤ 600km | J61: ='Loss Factors'!T7 -> 1.0208 | K61: ≥ 500V & < 66kV | L61: ='Loss Factors'!O7 -> 1.0957 | M61: =' TUoS NLA'!I40 -> Kwazulu-Natal | O61: =' TUoS NLA'!J40 -> 1.004
H62: ='Loss Factors'!R8 -> > 600km & ≤ 900km | J62: ='Loss Factors'!T8 -> 1.031 | K62: ≥ 66kV & ≤ 132kV | L62: ='Loss Factors'!O8 -> 1.0611 | M62: =' TUoS NLA'!I41 -> Vaal | O62: =' TUoS NLA'!J41 -> 1.02
H63: ='Loss Factors'!R9 -> > 900km | J63: ='Loss Factors'!T9 -> 1.0413 | K63: > 132kV* | L63: ='Loss Factors'!O9 -> 1 | M63: =' TUoS NLA'!I42 -> Waterberg | O63: =' TUoS NLA'!J42 -> 1.023
H64: * 132 kV or Transmission connected | M64: =' TUoS NLA'!I43 -> Mpumalanga | O64: =' TUoS NLA'!J43 -> 1.021

Sheet Megaflex Gen 16h for 25dy CPP C (hidden)
G1: Back to menu
A2: Non-municipal | G2: Megaflex Gen - Non-local authority
V4: Transmission network charges [R/kVA/m]
H5: Transmission zone
I6: Voltage
A7: Tariff | B7: Tariff nameBillcode | C7: Tx zone | D7: Voltage | E7: Billcode | W7: VAT incl
A8: Megaflex Gen - CPP: 25 days / 16 hours (6:00-22:00) 400 critical peak hours per year CRITICAL PEAK DAY rates for CRITICAL PEAK days | B8: GUCPPf | C8: 0 | D8: 1 | E8: =B8&C8&D8&IF($A$2="Non-municipal","N",IF($A$2="Municiple","Y","error")) -> GUCPPf01N | H8: ≤ 300km | I8: < 500V | V8: 11.94 | W8: =ROUND(V8 * (1 + VAT), 2) -> 13.73
A9: Megaflex Gen - CPP: 25 days / 16 hours (6:00-22:00) 400 critical peak hours per year CRITICAL PEAK DAY rates for CRITICAL PEAK days | B9: GUCPPf | C9: 0 | D9: 2 | E9: GUCPPf02N | I9: ≥ 500V & < 66kV | V9: 10.91 | W9: 12.55
A10: Megaflex Gen - CPP: 25 days / 16 hours (6:00-22:00) 400 critical peak hours per year CRITICAL PEAK DAY rates for CRITICAL PEAK days | B10: GUCPPf | C10: 0 | D10: 3 | E10: GUCPPf03N | I10: ≥ 66kV & ≤ 132kV | V10: 10.62 | W10: 12.21
A11: Megaflex Gen - CPP: 25 days / 16 hours (6:00-22:00) 400 critical peak hours per year CRITICAL PEAK DAY rates for CRITICAL PEAK days | B11: GUCPPf | C11: 0 | D11: 4 | E11: GUCPPf04N | I11: > 132kV* | V11: 13.43 | W11: 15.44
A12: Megaflex Gen - CPP: 25 days / 16 hours (6:00-22:00) 400 critical peak hours per year CRITICAL PEAK DAY rates for CRITICAL PEAK days | B12: GUCPPf | C12: 1 | D12: 1 | E12: GUCPPf11N | H12: > 300km and ≤ 600km | I12: < 500V | V12: 12.02 | W12: 13.82
A13: Megaflex Gen - CPP: 25 days / 16 hours (6:00-22:00) 400 critical peak hours per year CRITICAL PEAK DAY rates for CRITICAL PEAK days | B13: GUCPPf | C13: 1 | D13: 2 | E13: GUCPPf12N | I13: ≥ 500V & < 66kV | V13: 11.01 | W13: 12.66
A14: Megaflex Gen - CPP: 25 days / 16 hours (6:00-22:00) 400 critical peak hours per year CRITICAL PEAK DAY rates for CRITICAL PEAK days | B14: GUCPPf | C14: 1 | D14: 3 | E14: GUCPPf13N | I14: ≥ 66kV & ≤ 132kV | V14: 10.7 | W14: 12.31
A15: Megaflex Gen - CPP: 25 days / 16 hours (6:00-22:00) 400 critical peak hours per year CRITICAL PEAK DAY rates for CRITICAL PEAK days | B15: GUCPPf | C15: 1 | D15: 4 | E15: GUCPPf14N | I15: > 132kV* | V15: 13.55 | W15: 15.58
A16: Megaflex Gen - CPP: 25 days / 16 hours (6:00-22:00) 400 critical peak hours per year CRITICAL PEAK DAY rates for CRITICAL PEAK days | B16: GUCPPf | C16: 2 | D16: 1 | E16: GUCPPf21N | H16: > 600km and ≤ 900km | I16: < 500V | V16: 12.16 | W16: 13.98
A17: Megaflex Gen - CPP: 25 days / 16 hours (6:00-22:00) 400 critical peak hours per year CRITICAL PEAK DAY rates for CRITICAL PEAK days | B17: GUCPPf | C17: 2 | D17: 2 | E17: GUCPPf22N | I17: ≥ 500V & < 66kV | V17: 11.11 | W17: 12.78
A18: Megaflex Gen - CPP: 25 days / 16 hours (6:00-22:00) 400 critical peak hours per year CRITICAL PEAK DAY rates for CRITICAL PEAK days | B18: GUCPPf | C18: 2 | D18: 3 | E18: GUCPPf23N | I18: ≥ 66kV & ≤ 132kV | V18: 10.77 | W18: 12.39
A19: Megaflex Gen - CPP: 25 days / 16 hours (6:00-22:00) 400 critical peak hours per year CRITICAL PEAK DAY rates for CRITICAL PEAK days | B19: GUCPPf | C19: 2 | D19: 4 | E19: GUCPPf24N | I19: > 132kV* | V19: 13.75 | W19: 15.81
A20: Megaflex Gen - CPP: 25 days / 16 hours (6:00-22:00) 400 critical peak hours per year CRITICAL PEAK DAY rates for CRITICAL PEAK days | B20: GUCPPf | C20: 3 | D20: 1 | E20: GUCPPf31N | H20: > 900km | I20: < 500V | V20: 12.24 | W20: 14.08
A21: Megaflex Gen - CPP: 25 days / 16 hours (6:00-22:00) 400 critical peak hours per year CRITICAL PEAK DAY rates for CRITICAL PEAK days | B21: GUCPPf | C21: 3 | D21: 2 | E21: GUCPPf32N | I21: ≥ 500V & < 66kV | V21: 11.24 | W21: 12.93
A22: Megaflex Gen - CPP: 25 days / 16 hours (6:00-22:00) 400 critical peak hours per year CRITICAL PEAK DAY rates for CRITICAL PEAK days | B22: GUCPPf | C22: 3 | D22: 3 | E22: GUCPPf33N | I22: ≥ 66kV & ≤ 132kV | V22: 10.87 | W22: 12.5
A23: Megaflex Gen - CPP: 25 days / 16 hours (6:00-22:00) 400 critical peak hours per year CRITICAL PEAK DAY rates for CRITICAL PEAK days | B23: GUCPPf | C23: 3 | D23: 4 | E23: GUCPPf34N | I23: > 132kV* | V23: 13.85 | W23: 15.93
A24: Gen-purchase | B24: NLPurchADJ | C24: 0 | D24: 4 | E24: NLPurchADJ04N | H24: WEPS energy rate excluding losses
A25: TUoS network charges for Transmission connected generators | B25: GenTUOS | C25: Cape | D25: 4 | E25: GenTUOSCape4N | I25: * 132 kV or Transmission connected
A26: TUoS network charges for Transmission connected generators | B26: GenTUOS | C26: Karoo | D26: 4 | E26: GenTUOSKaroo4N
A27: TUoS network charges for Transmission connected generators | B27: GenTUOS | C27: Kwazulu-Natal | D27: 4 | E27: GenTUOSKwazulu-Natal4N | H27: Distribution network charges for loads | Q27: Transmission network charges for generators | U27: Distribution network charges for generators*
A28: TUoS network charges for Transmission connected generators | B28: GenTUOS | C28: Vaal | D28: 4 | E28: GenTUOSVaal4N | J28: Network capacity charge [R/kVA/m] | L28: Network demand charge [R/kVA/m] | N28: Urban low voltage subsidy charge [R/kVA/m]
A29: TUoS network charges for Transmission connected generators | B29: GenTUOS | C29: Waterburg | D29: 4 | E29: GenTUOSWaterburg4N | H29: Voltage | Q29: TUoS [ > 132kV] | S29: Network charge [R/kW] | U29: Voltage | W29: Network capacity charge [R/kW/m]
A30: TUoS network charges for Transmission connected generators | B30: GenTUOS | C30: Mpumalanga | D30: 4 | E30: GenTUOSMpumalanga4N | H30: Voltage | K30: VAT incl | M30: VAT incl | O30: VAT incl | T30: VAT incl
A31: Megaflex Gen - CPP: 25 days / 16 hours (6:00-22:00) 400 critical peak hours per year CRITICAL PEAK DAY rates for CRITICAL PEAK days | B31: GUCPPf | C31: 0 | D31: 1 | E31: GUCPPf01N | H31: < 500V | J31: 23.73 | K31: =ROUND(J31 * (1 + VAT), 2) -> 27.29 | L31: 44.99 | M31: =ROUND(L31 * (1 + VAT), 2) -> 51.74 | N31: 0 | O31: =ROUND(N31 * (1 + VAT), 2) -> 0 | Q31: Cape | S31: 0 | T31: =ROUND(S31 * (1 + VAT), 2) -> 0 | X31: VAT incl
A32: Megaflex Gen - CPP: 25 days / 16 hours (6:00-22:00) 400 critical peak hours per year CRITICAL PEAK DAY rates for CRITICAL PEAK days | B32: GUCPPf | C32: 0 | D32: 2 | E32: GUCPPf02N | H32: ≥ 500V & < 66kV | J32: 21.76 | K32: =ROUND(J32 * (1 + VAT), 2) -> 25.02 | L32: 41.27 | M32: =ROUND(L32 * (1 + VAT), 2) -> 47.46 | N32: 0 | O32: =ROUND(N32 * (1 + VAT), 2) -> 0 | Q32: Karoo | S32: 0 | T32: 0 | U32: < 500V
A33: Megaflex Gen - CPP: 25 days / 16 hours (6:00-22:00) 400 critical peak hours per year CRITICAL PEAK DAY rates for CRITICAL PEAK days | B33: GUCPPf | C33: 0 | D33: 3 | E33: GUCPPf03N | H33: ≥ 66kV & ≤ 132kV | J33: 7.77 | K33: =ROUND(J33 * (1 + VAT), 2) -> 8.94 | L33: 14.39 | M33: =ROUND(L33 * (1 + VAT), 2) -> 16.55 | N33: 19.17 | O33: =ROUND(N33 * (1 + VAT), 2) -> 22.05 | Q33: Kwazulu-Natal | S33: 2.82 | T33: 3.24 | U33: ≥ 500V & < 66kV
A34: Megaflex Gen - CPP: 25 days / 16 hours (6:00-22:00) 400 critical peak hours per year CRITICAL PEAK DAY rates for CRITICAL PEAK days | B34: GUCPPf | C34: 0 | D34: 4 | E34: GUCPPf04N | H34: > 132kV / Transmission connected | J34: 0 | K34: =ROUND(J34 * (1 + VAT), 2) -> 0 | L34: 0 | M34: =ROUND(L34 * (1 + VAT), 2) -> 0 | N34: 19.17 | O34: =ROUND(N34 * (1 + VAT), 2) -> 22.05 | Q34: Vaal | S34: 9.39 | T34: 10.8 | U34: ≥ 66kV & ≤ 132kV | W34: 19.19 | X34: =ROUND(W34 * (1 + VAT), 2) -> 22.07
A35: Gen-DUoS urban | B35: NEGenDUoSU | C35: 0 | D35: 3 | E35: NEGenDUoSU03N | Q35: Waterberg | S35: 12.02 | T35: 13.82 | U35: * The Distribution network charge will be rebated by the Losses charge, but not beyond extintion
Q36: Mpumalanga | S36: 11.16 | T36: 12.83
H37: Customer categories | J37: Service charge [R/account/day] | L37: Administration charge [R/POD/day]
H38: [kVA or MVA = loads] | Q38: Ancillary service charge for loads and generators
A39: Tariff | B39: Tariff nameBillcode | C39: Tx zone | D39: Voltage | E39: Billcode | H39: [kW or MW = generators] | K39: VAT incl | M39: VAT incl
A40: Megaflex Gen - CPP: 25 days / 16 hours (6:00-22:00) 400 critical peak hours per year CRITICAL PEAK DAY rates for CRITICAL PEAK days | B40: GUCPPf | C40: 0 | D40: 1 | E40: =B40&C40&D40&IF($A$2="Non-municipal","N",IF($A$2="Municiple","Y","error")) -> GUCPPf01N | H40: ≤ 100 KVA/ kW | J40: 19.39 | K40: =ROUND(J40 * (1 + VAT), 2) -> 22.3 | L40: 4.26 | M40: =ROUND(L40 * (1 + VAT), 2) -> 4.9 | Q40: Voltage | S40: Ancillary service charge [c/kWh]
A41: Megaflex Gen - CPP: 25 days / 16 hours (6:00-22:00) 400 critical peak hours per year CRITICAL PEAK DAY rates for CRITICAL PEAK days | B41: GUCPPf | C41: 0 | D41: 1 | E41: =B41&C41&D41&IF($A$2="Non-municipal","N",IF($A$2="Municiple","Y","error")) -> GUCPPf01N | H41: > 100 kVA/ kW & ≤ 500 kVA/ kW | J41: 88.53 | K41: =ROUND(J41 * (1 + VAT), 2) -> 101.81 | L41: 24.83 | M41: =ROUND(L41 * (1 + VAT), 2) -> 28.55 | T41: VAT incl
A42: Megaflex Gen - CPP: 25 days / 16 hours (6:00-22:00) 400 critical peak hours per year CRITICAL PEAK DAY rates for CRITICAL PEAK days | B42: GUCPPf | C42: 0 | D42: 1 | E42: =B42&C42&D42&IF($A$2="Non-municipal","N",IF($A$2="Municiple","Y","error")) -> GUCPPf01N | H42: > 500 kVA/ kW & ≤ 1 MVA/MW | J42: 272.39 | K42: =ROUND(J42 * (1 + VAT), 2) -> 313.25 | L42: 49.3 | M42: =ROUND(L42 * (1 + VAT), 2) -> 56.7 | Q42: < 500V | S42: 0.55 | T42: =ROUND(S42 * (1 + VAT), 2) -> 0.63
A43: Megaflex Gen - CPP: 25 days / 16 hours (6:00-22:00) 400 critical peak hours per year CRITICAL PEAK DAY rates for CRITICAL PEAK days | B43: GUCPPf | C43: 0 | D43: 1 | E43: =B43&C43&D43&IF($A$2="Non-municipal","N",IF($A$2="Municiple","Y","error")) -> GUCPPf01N | H43: > 1 MVA/MW | J43: 272.39 | K43: =ROUND(J43 * (1 + VAT), 2) -> 313.25 | L43: 122.76 | M43: =ROUND(L43 * (1 + VAT), 2) -> 141.17 | Q43: ≥ 500V & < 66kV | S43: 0.54 | T43: =ROUND(S43 * (1 + VAT), 2) -> 0.62
A44: Megaflex Gen - CPP: 25 days / 16 hours (6:00-22:00) 400 critical peak hours per year CRITICAL PEAK DAY rates for CRITICAL PEAK days | B44: GUCPPf | C44: 0 | D44: 1 | E44: =B44&C44&D44&IF($A$2="Non-municipal","N",IF($A$2="Municiple","Y","error")) -> GUCPPf01N | H44: Key customers or Transmission connected generators | J44: 5337.86 | K44: =ROUND(J44 * (1 + VAT), 2) -> 6138.54 | L44: 170.47 | M44: =ROUND(L44 * (1 + VAT), 2) -> 196.04 | Q44: ≥ 66kV & ≤ 132kV | S44: 0.52 | T44: =ROUND(S44 * (1 + VAT), 2) -> 0.6
Q45: > 132kV | S45: 0.48 | T45: =ROUND(S45 * (1 + VAT), 2) -> 0.55 | Y45: ='Loss Factors'!R10 -> 0
H46: Applicable to loads | Q46: * 132 kV or Transmission connected
H47: Electrification and rural network subsidy charge [c/kWh] | J47: Affordability subsidy charge [c/kWh] Only payable by non-local authority tariffs
M48: Reactive energy charge [c/kVArh] (loads)
M49: High season | O49: Low season
A50: Tariff | B50: Tariff nameBillcode | C50: Tx zone | D50: Voltage | E50: Billcode | I50: VAT incl | K50: VAT incl | N50: VAT incl | P50: VAT incl
A51: Megaflex Gen - CPP: 25 days / 16 hours (6:00-22:00) 400 critical peak hours per year CRITICAL PEAK DAY rates for CRITICAL PEAK days | B51: GUCPPf | C51: 0 | D51: 1 | E51: =B51&C51&D51&IF($A$2="Non-municipal","N",IF($A$2="Municiple","Y","error")) -> GUCPPf01N | H51: 10.61 | I51: =ROUND(H51 * (1 + VAT), 2) -> 12.2 | J51: 4.98 | K51: =ROUND(J51 * (1 + VAT), 2) -> 5.73 | M51: 19.19 | N51: =ROUND(M51 * (1 + VAT), 2) -> 22.07 | O51: 0 | P51: =ROUND(O51 * (1 + VAT), 2) -> 0
H54: Losses charge for generators
H55: Distribution connected generators | M55: Transmission connected generators
H56: Formula | M56: Formula
H57: Distribution = - ((Energy produced x WEPS rate excluding losses) x (Distribution loss factor x Transmission loss factor-1)) in each TOU period | M57: Transmission = (Energy produced x WEPS rate excluding losses) x (Transmission loss factor-1/Transmission loss factor) in each TOU period
H58: Transmission loss factors for Distribution connected | K58: Distribution loss factors | M58: Generator loss factor
H59: Distance from Johannesburg | K59: ='Loss Factors'!N5 -> Voltage | M59: =' TUoS NLA'!I38 -> Cape | O59: =' TUoS NLA'!J38 -> 0.971
H60: ='Loss Factors'!R6 -> ≤ 300km | J60: ='Loss Factors'!T6 -> 1.0107 | K60: < 500V | L60: ='Loss Factors'!O6 -> 1.1111 | M60: =' TUoS NLA'!I39 -> Karoo | O60: =' TUoS NLA'!J39 -> 0.995
H61: ='Loss Factors'!R7 -> > 300km & ≤ 600km | J61: ='Loss Factors'!T7 -> 1.0208 | K61: ≥ 500V & < 66kV | L61: ='Loss Factors'!O7 -> 1.0957 | M61: =' TUoS NLA'!I40 -> Kwazulu-Natal | O61: =' TUoS NLA'!J40 -> 1.004
H62: ='Loss Factors'!R8 -> > 600km & ≤ 900km | J62: ='Loss Factors'!T8 -> 1.031 | K62: ≥ 66kV & ≤ 132kV | L62: ='Loss Factors'!O8 -> 1.0611 | M62: =' TUoS NLA'!I41 -> Vaal | O62: =' TUoS NLA'!J41 -> 1.02
H63: ='Loss Factors'!R9 -> > 900km | J63: ='Loss Factors'!T9 -> 1.0413 | K63: > 132kV* | L63: ='Loss Factors'!O9 -> 1 | M63: =' TUoS NLA'!I42 -> Waterberg | O63: =' TUoS NLA'!J42 -> 1.023
H64: * 132 kV or Transmission connected | M64: =' TUoS NLA'!I43 -> Mpumalanga | O64: =' TUoS NLA'!J43 -> 1.021

Sheet Miniflex 8hrs for 50day CPP C (hidden)
G1: Back to menu
A2: Non-municipal | G2: Miniflex - Non-Local Authority
V4: Network capacity charge [R/kVA/m]
H5: Transmission zone
I6: Voltage
A7: Tariff | B7: Tariff nameBillcode | C7: Tx zone | D7: Voltage | E7: Billcode | W7: VAT incl
A8: Miniflex - CPP: 50 days / 8 hours (6:00-14:00) 400 critical peak hours per year CRITICAL PEAK DAY rates for CRITICAL PEAK days | B8: MiCPPf2 | C8: 0 | D8: 1 | E8: =B8&C8&D8&IF($A$2="Non-municipal","N",IF($A$2="Municiple","Y","error")) -> MiCPPf201N | H8: ≤ 300km | I8: < 500V | V8: 35.62 | W8: =ROUND(V8 * (1 + VAT), 2) -> 40.96
A9: Miniflex - CPP: 50 days / 8 hours (6:00-14:00) 400 critical peak hours per year CRITICAL PEAK DAY rates for CRITICAL PEAK days | B9: MiCPPf2 | C9: 0 | D9: 2 | E9: =B9&C9&D9&IF($A$2="Non-municipal","N",IF($A$2="Municiple","Y","error")) -> MiCPPf202N | I9: ≥ 500V & < 66kV | V9: 32.65 | W9: 37.55
A10: Miniflex - CPP: 50 days / 8 hours (6:00-14:00) 400 critical peak hours per year CRITICAL PEAK DAY rates for CRITICAL PEAK days | B10: MiCPPf2 | C10: 0 | D10: 3 | E10: MiCPPf203N | I10: ≥ 66kV & ≤ 132kV | V10: 18.34 | W10: 21.09
A11: Miniflex - CPP: 50 days / 8 hours (6:00-14:00) 400 critical peak hours per year CRITICAL PEAK DAY rates for CRITICAL PEAK days | B11: MiCPPf2 | C11: 0 | D11: 4 | E11: MiCPPf204N | I11: > 132kV* | V11: 13.37 | W11: 15.38
A12: Miniflex - CPP: 50 days / 8 hours (6:00-14:00) 400 critical peak hours per year CRITICAL PEAK DAY rates for CRITICAL PEAK days | B12: MiCPPf2 | C12: 1 | D12: 1 | E12: MiCPPf211N | H12: > 300km and ≤ 600km | I12: < 500V | V12: 35.71 | W12: 41.07
A13: Miniflex - CPP: 50 days / 8 hours (6:00-14:00) 400 critical peak hours per year CRITICAL PEAK DAY rates for CRITICAL PEAK days | B13: MiCPPf2 | C13: 1 | D13: 2 | E13: MiCPPf212N | I13: ≥ 500V & < 66kV | V13: 32.75 | W13: 37.66
A14: Miniflex - CPP: 50 days / 8 hours (6:00-14:00) 400 critical peak hours per year CRITICAL PEAK DAY rates for CRITICAL PEAK days | B14: MiCPPf2 | C14: 1 | D14: 3 | E14: MiCPPf213N | I14: ≥ 66kV & ≤ 132kV | V14: 18.41 | W14: 21.17
A15: Miniflex - CPP: 50 days / 8 hours (6:00-14:00) 400 critical peak hours per year CRITICAL PEAK DAY rates for CRITICAL PEAK days | B15: MiCPPf2 | C15: 1 | D15: 4 | E15: MiCPPf214N | I15: > 132kV* | V15: 13.51 | W15: 15.54
A16: Miniflex - CPP: 50 days / 8 hours (6:00-14:00) 400 critical peak hours per year CRITICAL PEAK DAY rates for CRITICAL PEAK days | B16: MiCPPf2 | C16: 2 | D16: 1 | E16: MiCPPf221N | H16: > 600km and ≤ 900km | I16: < 500V | V16: 35.88 | W16: 41.26
A17: Miniflex - CPP: 50 days / 8 hours (6:00-14:00) 400 critical peak hours per year CRITICAL PEAK DAY rates for CRITICAL PEAK days | B17: MiCPPf2 | C17: 2 | D17: 2 | E17: MiCPPf222N | I17: ≥ 500V & < 66kV | V17: 32.85 | W17: 37.78
A18: Miniflex - CPP: 50 days / 8 hours (6:00-14:00) 400 critical peak hours per year CRITICAL PEAK DAY rates for CRITICAL PEAK days | B18: MiCPPf2 | C18: 2 | D18: 3 | E18: MiCPPf223N | I18: ≥ 66kV & ≤ 132kV | V18: 18.52 | W18: 21.3
A19: Miniflex - CPP: 50 days / 8 hours (6:00-14:00) 400 critical peak hours per year CRITICAL PEAK DAY rates for CRITICAL PEAK days | B19: MiCPPf2 | C19: 2 | D19: 4 | E19: MiCPPf224N | I19: > 132kV* | V19: 13.7 | W19: 15.76
A20: Miniflex - CPP: 50 days / 8 hours (6:00-14:00) 400 critical peak hours per year CRITICAL PEAK DAY rates for CRITICAL PEAK days | B20: MiCPPf2 | C20: 3 | D20: 1 | E20: MiCPPf231N | H20: > 900km | I20: < 500V | V20: 35.91 | W20: 41.3
A21: Miniflex - CPP: 50 days / 8 hours (6:00-14:00) 400 critical peak hours per year CRITICAL PEAK DAY rates for CRITICAL PEAK days | B21: MiCPPf2 | C21: 3 | D21: 2 | E21: MiCPPf232N | I21: ≥ 500V & < 66kV | V21: 32.96 | W21: 37.9
A22: Miniflex - CPP: 50 days / 8 hours (6:00-14:00) 400 critical peak hours per year CRITICAL PEAK DAY rates for CRITICAL PEAK days | B22: MiCPPf2 | C22: 3 | D22: 3 | E22: MiCPPf233N | I22: ≥ 66kV & ≤ 132kV | V22: 18.59 | W22: 21.38
A23: Miniflex - CPP: 50 days / 8 hours (6:00-14:00) 400 critical peak hours per year CRITICAL PEAK DAY rates for CRITICAL PEAK days | B23: MiCPPf2 | C23: 3 | D23: 4 | E23: MiCPPf234N | I23: > 132kV* | V23: 13.8 | W23: 15.87
I24: * 132 kV or Transmission connected
H26: Customer categories | J26: Service charge [R/account/day] | L26: Administration charge [R/POD/day]
A28: Tariff | B28: Tariff nameBillcode | C28: Tx zone | D28: Voltage | E28: Billcode | K28: VAT incl | M28: VAT incl | P28: Ancillary service charge [c/kWh] | R28: Network demand charge [c/kWh] [Peak & Standard] | U28: Urban low voltage subsidy charge [R/kVA/m]
A29: Miniflex - CPP: 50 days / 8 hours (6:00-14:00) 400 critical peak hours per year CRITICAL PEAK DAY rates for CRITICAL PEAK days | B29: MiCPPf2 | C29: 0 | D29: 1 | E29: =B29&C29&D29&IF($A$2="Non-municipal","N",IF($A$2="Municiple","Y","error")) -> MiCPPf201N | H29: ≤ 100 kVA | J29: 19.39 | K29: =ROUND(J29 * (1 + VAT), 2) -> 22.3 | L29: 4.26 | M29: =ROUND(L29 * (1 + VAT), 2) -> 4.9 | O29: Voltage | Q29: VAT incl | S29: VAT incl | W29: VAT incl
A30: Miniflex - CPP: 50 days / 8 hours (6:00-14:00) 400 critical peak hours per year CRITICAL PEAK DAY rates for CRITICAL PEAK days | B30: MiCPPf2 | C30: 0 | D30: 1 | E30: =B30&C30&D30&IF($A$2="Non-municipal","N",IF($A$2="Municiple","Y","error")) -> MiCPPf201N | H30: > 100 kVA & ≤ 500 kVA | J30: 88.53 | K30: =ROUND(J30 * (1 + VAT), 2) -> 101.81 | L30: 24.83 | M30: =ROUND(L30 * (1 + VAT), 2) -> 28.55 | O30: < 500V | P30: 0.52 | Q30: =ROUND(P30 * (1 + VAT), 2) -> 0.6 | R30: 22.05 | S30: =ROUND(R30 * (1 + VAT), 2) -> 25.36 | U30: < 500V | V30: 19.17 | W30: =ROUND(V30 * (1 + VAT), 2) -> 22.05
A31: Miniflex - CPP: 50 days / 8 hours (6:00-14:00) 400 critical peak hours per year CRITICAL PEAK DAY rates for CRITICAL PEAK days | B31: MiCPPf2 | C31: 0 | D31: 1 | E31: =B31&C31&D31&IF($A$2="Non-municipal","N",IF($A$2="Municiple","Y","error")) -> MiCPPf201N | H31: > 500 kVA & ≤ 1 MVA | J31: 272.39 | K31: =ROUND(J31 * (1 + VAT), 2) -> 313.25 | L31: 49.3 | M31: =ROUND(L31 * (1 + VAT), 2) -> 56.7 | O31: ≥ 500V & < 66kV | P31: 0.48 | Q31: =ROUND(P31 * (1 + VAT), 2) -> 0.55 | R31: 9.24 | S31: =ROUND(R31 * (1 + VAT), 2) -> 10.63 | U31: ≥ 500V & < 66kV | V31: 19.17 | W31: =ROUND(V31 * (1 + VAT), 2) -> 22.05
A32: Miniflex - CPP: 50 days / 8 hours (6:00-14:00) 400 critical peak hours per year CRITICAL PEAK DAY rates for CRITICAL PEAK days | B32: MiCPPf2 | C32: 0 | D32: 1 | E32: =B32&C32&D32&IF($A$2="Non-municipal","N",IF($A$2="Municiple","Y","error")) -> MiCPPf201N | H32: > 1 MVA | J32: 272.39 | K32: =ROUND(J32 * (1 + VAT), 2) -> 313.25 | L32: 122.76 | M32: =ROUND(L32 * (1 + VAT), 2) -> 141.17 | O32: ≥ 66kV & ≤ 132kV | P32: 0.55 | Q32: =ROUND(P32 * (1 + VAT), 2) -> 0.63 | R32: 3.22 | S32: =ROUND(R32 * (1 + VAT), 2) -> 3.7 | U32: ≥ 66kV & ≤ 132kV | V32: 0 | W32: =ROUND(V32 * (1 + VAT), 2) -> 0
A33: Miniflex - CPP: 50 days / 8 hours (6:00-14:00) 400 critical peak hours per year CRITICAL PEAK DAY rates for CRITICAL PEAK days | B33: MiCPPf2 | C33: 0 | D33: 1 | E33: =B33&C33&D33&IF($A$2="Non-municipal","N",IF($A$2="Municiple","Y","error")) -> MiCPPf201N | H33: Key customers | J33: 5337.86 | K33: =ROUND(J33 * (1 + VAT), 2) -> 6138.54 | L33: 170.47 | M33: =ROUND(L33 * (1 + VAT), 2) -> 196.04 | O33: > 132kV* | P33: 0.54 | Q33: =ROUND(P33 * (1 + VAT), 2) -> 0.62 | R33: 0 | S33: =ROUND(R33 * (1 + VAT), 2) -> 0 | U33: > 132kV* | V33: 0 | W33: =ROUND(V33 * (1 + VAT), 2) -> 0
O34: * 132 kV or Transmission connected | U34: * 132 kV or Transmission connected
H36: Electrification and rural network subsidy charge [c/kWh] | J36: Affordability subsidy charge [c/kWh] Only payable by non-local authority tariffs | O36: Reactive energy charge [c/kVArh]
O38: High season | Q38: Low season
A39: Tariff | B39: Tariff nameBillcode | C39: Tx zone | D39: Voltage | E39: Billcode | I39: VAT incl | K39: VAT incl | P39: VAT incl | R39: VAT incl
A40: Miniflex - CPP: 50 days / 8 hours (6:00-14:00) 400 critical peak hours per year CRITICAL PEAK DAY rates for CRITICAL PEAK days | B40: MiCPPf2 | C40: 0 | D40: 1 | E40: =B40&C40&D40&IF($A$2="Non-municipal","N",IF($A$2="Municiple","Y","error")) -> MiCPPf201N | H40: 10.61 | I40: =ROUND(H40 * (1 + VAT), 2) -> 12.2 | J40: 4.98 | K40: =ROUND(J40 * (1 + VAT), 2) -> 5.73 | O40: 8.36 | P40: =ROUND(O40 * (1 + VAT), 2) -> 9.61 | Q40: 0 | R40: =ROUND(Q40 * (1 + VAT), 2) -> 0
A42: Miniflex - CPP: 50 days / 8 hours (6:00-14:00) 400 critical peak hours per year CRITICAL PEAK DAY rates for CRITICAL PEAK days | B42: MiCPPf2 | C42: 0 | D42: 1 | E42: =B42&C42&D42&IF($A$2="Non-municipal","N",IF($A$2="Municiple","Y","error")) -> MiCPPf201N
A43: Miniflex - CPP: 50 days / 8 hours (6:00-14:00) 400 critical peak hours per year CRITICAL PEAK DAY rates for CRITICAL PEAK days | B43: MiCPPf2 | C43: 1 | D43: 2 | E43: =B43&C43&D43&IF($A$2="Non-municipal","N",IF($A$2="Municiple","Y","error")) -> MiCPPf212N
A44: Miniflex - CPP: 50 days / 8 hours (6:00-14:00) 400 critical peak hours per year CRITICAL PEAK DAY rates for CRITICAL PEAK days | B44: MiCPPf2 | C44: 2 | D44: 3 | E44: =B44&C44&D44&IF($A$2="Non-municipal","N",IF($A$2="Municiple","Y","error")) -> MiCPPf223N
A45: Miniflex - CPP: 50 days / 8 hours (6:00-14:00) 400 critical peak hours per year CRITICAL PEAK DAY rates for CRITICAL PEAK days | B45: MiCPPf2 | C45: 3 | D45: 4 | E45: =B45&C45&D45&IF($A$2="Non-municipal","N",IF($A$2="Municiple","Y","error")) -> MiCPPf234N

Sheet Miniflex 16hrs for 25day CPP C (hidden)
G1: Back to menu
A2: Non-municipal | G2: Miniflex - Non-Local Authority
V4: Network capacity charge [R/kVA/m]
H5: Transmission zone
I6: Voltage
A7: Tariff | B7: Tariff nameBillcode | C7: Tx zone | D7: Voltage | E7: Billcode | W7: VAT incl
A8: Miniflex - CPP: 25 days / 16 hours (6:00-22:00) 400 critical peak hours per year CRITICAL PEAK DAY rates for CRITICAL PEAK days | B8: MiCPPf | C8: 0 | D8: 1 | E8: =B8&C8&D8&IF($A$2="Non-municipal","N",IF($A$2="Municiple","Y","error")) -> MiCPPf01N | H8: ≤ 300km | I8: < 500V | V8: 35.62 | W8: =ROUND(V8 * (1 + VAT), 2) -> 40.96
A9: Miniflex - CPP: 25 days / 16 hours (6:00-22:00) 400 critical peak hours per year CRITICAL PEAK DAY rates for CRITICAL PEAK days | B9: MiCPPf | C9: 0 | D9: 2 | E9: =B9&C9&D9&IF($A$2="Non-municipal","N",IF($A$2="Municiple","Y","error")) -> MiCPPf02N | I9: ≥ 500V & < 66kV | V9: 32.65 | W9: 37.55
A10: Miniflex - CPP: 25 days / 16 hours (6:00-22:00) 400 critical peak hours per year CRITICAL PEAK DAY rates for CRITICAL PEAK days | B10: MiCPPf | C10: 0 | D10: 3 | E10: MiCPPf03N | I10: ≥ 66kV & ≤ 132kV | V10: 18.34 | W10: 21.09
A11: Miniflex - CPP: 25 days / 16 hours (6:00-22:00) 400 critical peak hours per year CRITICAL PEAK DAY rates for CRITICAL PEAK days | B11: MiCPPf | C11: 0 | D11: 4 | E11: MiCPPf04N | I11: > 132kV* | V11: 13.37 | W11: 15.38
A12: Miniflex - CPP: 25 days / 16 hours (6:00-22:00) 400 critical peak hours per year CRITICAL PEAK DAY rates for CRITICAL PEAK days | B12: MiCPPf | C12: 1 | D12: 1 | E12: MiCPPf11N | H12: > 300km and ≤ 600km | I12: < 500V | V12: 35.71 | W12: 41.07
A13: Miniflex - CPP: 25 days / 16 hours (6:00-22:00) 400 critical peak hours per year CRITICAL PEAK DAY rates for CRITICAL PEAK days | B13: MiCPPf | C13: 1 | D13: 2 | E13: MiCPPf12N | I13: ≥ 500V & < 66kV | V13: 32.75 | W13: 37.66
A14: Miniflex - CPP: 25 days / 16 hours (6:00-22:00) 400 critical peak hours per year CRITICAL PEAK DAY rates for CRITICAL PEAK days | B14: MiCPPf | C14: 1 | D14: 3 | E14: MiCPPf13N | I14: ≥ 66kV & ≤ 132kV | V14: 18.41 | W14: 21.17
A15: Miniflex - CPP: 25 days / 16 hours (6:00-22:00) 400 critical peak hours per year CRITICAL PEAK DAY rates for CRITICAL PEAK days | B15: MiCPPf | C15: 1 | D15: 4 | E15: MiCPPf14N | I15: > 132kV* | V15: 13.51 | W15: 15.54
A16: Miniflex - CPP: 25 days / 16 hours (6:00-22:00) 400 critical peak hours per year CRITICAL PEAK DAY rates for CRITICAL PEAK days | B16: MiCPPf | C16: 2 | D16: 1 | E16: MiCPPf21N | H16: > 600km and ≤ 900km | I16: < 500V | V16: 35.88 | W16: 41.26
A17: Miniflex - CPP: 25 days / 16 hours (6:00-22:00) 400 critical peak hours per year CRITICAL PEAK DAY rates for CRITICAL PEAK days | B17: MiCPPf | C17: 2 | D17: 2 | E17: MiCPPf22N | I17: ≥ 500V & < 66kV | V17: 32.85 | W17: 37.78
A18: Miniflex - CPP: 25 days / 16 hours (6:00-22:00) 400 critical peak hours per year CRITICAL PEAK DAY rates for CRITICAL PEAK days | B18: MiCPPf | C18: 2 | D18: 3 | E18: MiCPPf23N | I18: ≥ 66kV & ≤ 132kV | V18: 18.52 | W18: 21.3
A19: Miniflex - CPP: 25 days / 16 hours (6:00-22:00) 400 critical peak hours per year CRITICAL PEAK DAY rates for CRITICAL PEAK days | B19: MiCPPf | C19: 2 | D19: 4 | E19: MiCPPf24N | I19: > 132kV* | V19: 13.7 | W19: 15.76
A20: Miniflex - CPP: 25 days / 16 hours (6:00-22:00) 400 critical peak hours per year CRITICAL PEAK DAY rates for CRITICAL PEAK days | B20: MiCPPf | C20: 3 | D20: 1 | E20: MiCPPf31N | H20: > 900km | I20: < 500V | V20: 35.91 | W20: 41.3
A21: Miniflex - CPP: 25 days / 16 hours (6:00-22:00) 400 critical peak hours per year CRITICAL PEAK DAY rates for CRITICAL PEAK days | B21: MiCPPf | C21: 3 | D21: 2 | E21: MiCPPf32N | I21: ≥ 500V & < 66kV | V21: 32.96 | W21: 37.9
A22: Miniflex - CPP: 25 days / 16 hours (6:00-22:00) 400 critical peak hours per year CRITICAL PEAK DAY rates for CRITICAL PEAK days | B22: MiCPPf | C22: 3 | D22: 3 | E22: MiCPPf33N | I22: ≥ 66kV & ≤ 132kV | V22: 18.59 | W22: 21.38
A23: Miniflex - CPP: 25 days / 16 hours (6:00-22:00) 400 critical peak hours per year CRITICAL PEAK DAY rates for CRITICAL PEAK days | B23: MiCPPf | C23: 3 | D23: 4 | E23: MiCPPf34N | I23: > 132kV* | V23: 13.8 | W23: 15.87
I24: * 132 kV or Transmission connected
H26: Customer categories | J26: Service charge [R/account/day] | L26: Administration charge [R/POD/day]
A28: Tariff | B28: Tariff nameBillcode | C28: Tx zone | D28: Voltage | E28: Billcode | K28: VAT incl | M28: VAT incl | P28: Ancillary service charge [c/kWh] | R28: Network demand charge [c/kWh] [Peak & Standard] | U28: Urban low voltage subsidy charge [R/kVA/m]
A29: Miniflex - CPP: 25 days / 16 hours (6:00-22:00) 400 critical peak hours per year CRITICAL PEAK DAY rates for CRITICAL PEAK days | B29: MiCPPf | C29: 0 | D29: 1 | E29: =B29&C29&D29&IF($A$2="Non-municipal","N",IF($A$2="Municiple","Y","error")) -> MiCPPf01N | H29: ≤ 100 kVA | J29: 19.39 | K29: =ROUND(J29 * (1 + VAT), 2) -> 22.3 | L29: 4.26 | M29: =ROUND(L29 * (1 + VAT), 2) -> 4.9 | O29: Voltage | Q29: VAT incl | S29: VAT incl | W29: VAT incl
A30: Miniflex - CPP: 25 days / 16 hours (6:00-22:00) 400 critical peak hours per year CRITICAL PEAK DAY rates for CRITICAL PEAK days | B30: MiCPPf | C30: 0 | D30: 1 | E30: =B30&C30&D30&IF($A$2="Non-municipal","N",IF($A$2="Municiple","Y","error")) -> MiCPPf01N | H30: > 100 kVA & ≤ 500 kVA | J30: 88.53 | K30: =ROUND(J30 * (1 + VAT), 2) -> 101.81 | L30: 24.83 | M30: =ROUND(L30 * (1 + VAT), 2) -> 28.55 | O30: < 500V | P30: 0.52 | Q30: =ROUND(P30 * (1 + VAT), 2) -> 0.6 | R30: 22.05 | S30: =ROUND(R30 * (1 + VAT), 2) -> 25.36 | U30: < 500V | V30: 19.17 | W30: =ROUND(V30 * (1 + VAT), 2) -> 22.05
A31: Miniflex - CPP: 25 days / 16 hours (6:00-22:00) 400 critical peak hours per year CRITICAL PEAK DAY rates for CRITICAL PEAK days | B31: MiCPPf | C31: 0 | D31: 1 | E31: =B31&C31&D31&IF($A$2="Non-municipal","N",IF($A$2="Municiple","Y","error")) -> MiCPPf01N | H31: > 500 kVA & ≤ 1 MVA | J31: 272.39 | K31: =ROUND(J31 * (1 + VAT), 2) -> 313.25 | L31: 49.3 | M31: =ROUND(L31 * (1 + VAT), 2) -> 56.7 | O31: ≥ 500V & < 66kV | P31: 0.48 | Q31: =ROUND(P31 * (1 + VAT), 2) -> 0.55 | R31: 9.24 | S31: =ROUND(R31 * (1 + VAT), 2) -> 10.63 | U31: ≥ 500V & < 66kV | V31: 19.17 | W31: =ROUND(V31 * (1 + VAT), 2) -> 22.05
A32: Miniflex - CPP: 25 days / 16 hours (6:00-22:00) 400 critical peak hours per year CRITICAL PEAK DAY rates for CRITICAL PEAK days | B32: MiCPPf | C32: 0 | D32: 1 | E32: =B32&C32&D32&IF($A$2="Non-municipal","N",IF($A$2="Municiple","Y","error")) -> MiCPPf01N | H32: > 1 MVA | J32: 272.39 | K32: =ROUND(J32 * (1 + VAT), 2) -> 313.25 | L32: 122.76 | M32: =ROUND(L32 * (1 + VAT), 2) -> 141.17 | O32: ≥ 66kV & ≤ 132kV | P32: 0.55 | Q32: =ROUND(P32 * (1 + VAT), 2) -> 0.63 | R32: 3.22 | S32: =ROUND(R32 * (1 + VAT), 2) -> 3.7 | U32: ≥ 66kV & ≤ 132kV | V32: 0 | W32: =ROUND(V32 * (1 + VAT), 2) -> 0
A33: Miniflex - CPP: 25 days / 16 hours (6:00-22:00) 400 critical peak hours per year CRITICAL PEAK DAY rates for CRITICAL PEAK days | B33: MiCPPf | C33: 0 | D33: 1 | E33: =B33&C33&D33&IF($A$2="Non-municipal","N",IF($A$2="Municiple","Y","error")) -> MiCPPf01N | H33: Key customers | J33: 5337.86 | K33: =ROUND(J33 * (1 + VAT), 2) -> 6138.54 | L33: 170.47 | M33: =ROUND(L33 * (1 + VAT), 2) -> 196.04 | O33: > 132kV* | P33: 0.54 | Q33: =ROUND(P33 * (1 + VAT), 2) -> 0.62 | R33: 0 | S33: =ROUND(R33 * (1 + VAT), 2) -> 0 | U33: > 132kV* | V33: 0 | W33: =ROUND(V33 * (1 + VAT), 2) -> 0
O34: * 132 kV or Transmission connected | U34: * 132 kV or Transmission connected
H36: Electrification and rural network subsidy charge [c/kWh] | J36: Affordability subsidy charge [c/kWh] Only payable by non-local authority tariffs | O36: Reactive energy charge [c/kVArh]
O38: High season | Q38: Low season
A39: Tariff | B39: Tariff nameBillcode | C39: Tx zone | D39: Voltage | E39: Billcode | I39: VAT incl | K39: VAT incl | P39: VAT incl | R39: VAT incl
A40: Miniflex - CPP: 25 days / 16 hours (6:00-22:00) 400 critical peak hours per year CRITICAL PEAK DAY rates for CRITICAL PEAK days | B40: MiCPPf | C40: 0 | D40: 1 | E40: =B40&C40&D40&IF($A$2="Non-municipal","N",IF($A$2="Municiple","Y","error")) -> MiCPPf01N | H40: 10.61 | I40: =ROUND(H40 * (1 + VAT), 2) -> 12.2 | J40: 4.98 | K40: =ROUND(J40 * (1 + VAT), 2) -> 5.73 | O40: 8.36 | P40: =ROUND(O40 * (1 + VAT), 2) -> 9.61 | Q40: 0 | R40: =ROUND(Q40 * (1 + VAT), 2) -> 0
A42: Miniflex - CPP: 25 days / 16 hours (6:00-22:00) 400 critical peak hours per year CRITICAL PEAK DAY rates for CRITICAL PEAK days | B42: MiCPPf | C42: 0 | D42: 1 | E42: =B42&C42&D42&IF($A$2="Non-municipal","N",IF($A$2="Municiple","Y","error")) -> MiCPPf01N
A43: Miniflex - CPP: 25 days / 16 hours (6:00-22:00) 400 critical peak hours per year CRITICAL PEAK DAY rates for CRITICAL PEAK days | B43: MiCPPf | C43: 1 | D43: 2 | E43: =B43&C43&D43&IF($A$2="Non-municipal","N",IF($A$2="Municiple","Y","error")) -> MiCPPf12N
A44: Miniflex - CPP: 25 days / 16 hours (6:00-22:00) 400 critical peak hours per year CRITICAL PEAK DAY rates for CRITICAL PEAK days | B44: MiCPPf | C44: 2 | D44: 3 | E44: =B44&C44&D44&IF($A$2="Non-municipal","N",IF($A$2="Municiple","Y","error")) -> MiCPPf23N
A45: Miniflex - CPP: 25 days / 16 hours (6:00-22:00) 400 critical peak hours per year CRITICAL PEAK DAY rates for CRITICAL PEAK days | B45: MiCPPf | C45: 3 | D45: 4 | E45: =B45&C45&D45&IF($A$2="Non-municipal","N",IF($A$2="Municiple","Y","error")) -> MiCPPf34N

Sheet Megaflex 8hrs for 50day CPP C (hidden)
G1: Back to menu
A2: Non-municipal | G2: Megaflex – Non-local Authority | AF2: =SUM(#REF!,V8:V23,#REF!,#REF!,#REF!,#REF!,H26:J26,L26) ->  | AG2: check value
V4: Transmission network charges [R/kVA/m]
H5: Transmission zone
I6: Voltage
A7: Tariff | B7: Tariff nameBillcode | C7: Tx zone | D7: Voltage | E7: Billcode | W7: VAT incl
A8: Megaflex - CPP: 50 days / 8 hours (6:00-14:00) 400 critical peak hours per year CRITICAL PEAK DAY rates for CRITICAL PEAK days | B8: MeCPPf2 | C8: 0 | D8: 1 | E8: =B8&C8&D8&IF($A$2="Non-municipal","N",IF($A$2="Municiple","Y","error")) -> MeCPPf201N | H8: ≤ 300km | I8: < 500V | V8: 11.94 | W8: =ROUND(V8 * (1 + VAT), 2) -> 13.73
A9: Megaflex - CPP: 50 days / 8 hours (6:00-14:00) 400 critical peak hours per year CRITICAL PEAK DAY rates for CRITICAL PEAK days | B9: MeCPPf2 | C9: 0 | D9: 2 | E9: MeCPPf202N | I9: ≥ 500V & < 66kV | V9: 10.91 | W9: 12.55
A10: Megaflex - CPP: 50 days / 8 hours (6:00-14:00) 400 critical peak hours per year CRITICAL PEAK DAY rates for CRITICAL PEAK days | B10: MeCPPf2 | C10: 0 | D10: 3 | E10: MeCPPf203N | I10: ≥ 66kV & ≤ 132kV | V10: 10.62 | W10: 12.21
A11: Megaflex - CPP: 50 days / 8 hours (6:00-14:00) 400 critical peak hours per year CRITICAL PEAK DAY rates for CRITICAL PEAK days | B11: MeCPPf2 | C11: 0 | D11: 4 | E11: MeCPPf204N | I11: > 132kV* | V11: 13.43 | W11: 15.44
A12: Megaflex - CPP: 50 days / 8 hours (6:00-14:00) 400 critical peak hours per year CRITICAL PEAK DAY rates for CRITICAL PEAK days | B12: MeCPPf2 | C12: 1 | D12: 1 | E12: MeCPPf211N | H12: > 300km and ≤ 600km | I12: < 500V | V12: 12.02 | W12: 13.82
A13: Megaflex - CPP: 50 days / 8 hours (6:00-14:00) 400 critical peak hours per year CRITICAL PEAK DAY rates for CRITICAL PEAK days | B13: MeCPPf2 | C13: 1 | D13: 2 | E13: MeCPPf212N | I13: ≥ 500V & < 66kV | V13: 11.01 | W13: 12.66
A14: Megaflex - CPP: 50 days / 8 hours (6:00-14:00) 400 critical peak hours per year CRITICAL PEAK DAY rates for CRITICAL PEAK days | B14: MeCPPf2 | C14: 1 | D14: 3 | E14: MeCPPf213N | I14: ≥ 66kV & ≤ 132kV | V14: 10.7 | W14: 12.31
A15: Megaflex - CPP: 50 days / 8 hours (6:00-14:00) 400 critical peak hours per year CRITICAL PEAK DAY rates for CRITICAL PEAK days | B15: MeCPPf2 | C15: 1 | D15: 4 | E15: MeCPPf214N | I15: > 132kV* | V15: 13.55 | W15: 15.58
A16: Megaflex - CPP: 50 days / 8 hours (6:00-14:00) 400 critical peak hours per year CRITICAL PEAK DAY rates for CRITICAL PEAK days | B16: MeCPPf2 | C16: 2 | D16: 1 | E16: MeCPPf221N | H16: > 600km and ≤ 900km | I16: < 500V | V16: 12.16 | W16: 13.98
A17: Megaflex - CPP: 50 days / 8 hours (6:00-14:00) 400 critical peak hours per year CRITICAL PEAK DAY rates for CRITICAL PEAK days | B17: MeCPPf2 | C17: 2 | D17: 2 | E17: MeCPPf222N | I17: ≥ 500V & < 66kV | V17: 11.11 | W17: 12.78
A18: Megaflex - CPP: 50 days / 8 hours (6:00-14:00) 400 critical peak hours per year CRITICAL PEAK DAY rates for CRITICAL PEAK days | B18: MeCPPf2 | C18: 2 | D18: 3 | E18: MeCPPf223N | I18: ≥ 66kV & ≤ 132kV | V18: 10.77 | W18: 12.39
A19: Megaflex - CPP: 50 days / 8 hours (6:00-14:00) 400 critical peak hours per year CRITICAL PEAK DAY rates for CRITICAL PEAK days | B19: MeCPPf2 | C19: 2 | D19: 4 | E19: MeCPPf224N | I19: > 132kV* | V19: 13.75 | W19: 15.81
A20: Megaflex - CPP: 50 days / 8 hours (6:00-14:00) 400 critical peak hours per year CRITICAL PEAK DAY rates for CRITICAL PEAK days | B20: MeCPPf2 | C20: 3 | D20: 1 | E20: MeCPPf231N | H20: > 900km | I20: < 500V | V20: 12.24 | W20: 14.08
A21: Megaflex - CPP: 50 days / 8 hours (6:00-14:00) 400 critical peak hours per year CRITICAL PEAK DAY rates for CRITICAL PEAK days | B21: MeCPPf2 | C21: 3 | D21: 2 | E21: MeCPPf232N | I21: ≥ 500V & < 66kV | V21: 11.24 | W21: 12.93
A22: Megaflex - CPP: 50 days / 8 hours (6:00-14:00) 400 critical peak hours per year CRITICAL PEAK DAY rates for CRITICAL PEAK days | B22: MeCPPf2 | C22: 3 | D22: 3 | E22: MeCPPf233N | I22: ≥ 66kV & ≤ 132kV | V22: 10.87 | W22: 12.5
A23: Megaflex - CPP: 50 days / 8 hours (6:00-14:00) 400 critical peak hours per year CRITICAL PEAK DAY rates for CRITICAL PEAK days | B23: MeCPPf2 | C23: 3 | D23: 4 | E23: MeCPPf234N | I23: > 132kV* | V23: 13.85 | W23: 15.93
I24: * 132 kV or Transmission connected
H26: Distribution network charges
J27: Network capacity charge [R/kVA/m] | L27: Network demand charge [R/kVA/m] | N27: Urban low voltage subsidy charge [R/kVA/m]
H28: Voltage | Q28: Voltage | S28: Ancillary service charge [c/kWh]
A29: Tariff | B29: Tariff nameBillcode | C29: Tx zone | D29: Voltage | E29: Billcode | K29: VAT incl | M29: VAT incl | O29: VAT incl | T29: VAT incl
A30: Megaflex - CPP: 50 days / 8 hours (6:00-14:00) 400 critical peak hours per year CRITICAL PEAK DAY rates for CRITICAL PEAK days | B30: MeCPPf2 | C30: 0 | D30: 1 | E30: =B30&C30&D30&IF($A$2="Non-municipal","N",IF($A$2="Municiple","Y","error")) -> MeCPPf201N | H30: < 500V | J30: 23.73 | K30: =ROUND(J30 * (1 + VAT), 2) -> 27.29 | L30: 44.99 | M30: =ROUND(L30 * (1 + VAT), 2) -> 51.74 | N30: 0 | O30: =ROUND(N30 * (1 + VAT), 2) -> 0 | Q30: < 500V | S30: 0.55 | T30: =ROUND(S30 * (1 + VAT), 2) -> 0.63
A31: Megaflex - CPP: 50 days / 8 hours (6:00-14:00) 400 critical peak hours per year CRITICAL PEAK DAY rates for CRITICAL PEAK days | B31: MeCPPf2 | C31: 0 | D31: 2 | E31: MeCPPf202N | H31: ≥ 500V & < 66kV | J31: 21.76 | K31: =ROUND(J31 * (1 + VAT), 2) -> 25.02 | L31: 41.27 | M31: =ROUND(L31 * (1 + VAT), 2) -> 47.46 | N31: 0 | O31: =ROUND(N31 * (1 + VAT), 2) -> 0 | Q31: ≥ 500V & < 66kV | S31: 0.54 | T31: =ROUND(S31 * (1 + VAT), 2) -> 0.62
A32: Megaflex - CPP: 50 days / 8 hours (6:00-14:00) 400 critical peak hours per year CRITICAL PEAK DAY rates for CRITICAL PEAK days | B32: MeCPPf2 | C32: 0 | D32: 3 | E32: MeCPPf203N | H32: ≥ 66kV & ≤ 132kV | J32: 7.77 | K32: =ROUND(J32 * (1 + VAT), 2) -> 8.94 | L32: 14.39 | M32: =ROUND(L32 * (1 + VAT), 2) -> 16.55 | N32: 19.17 | O32: =ROUND(N32 * (1 + VAT), 2) -> 22.05 | Q32: ≥ 66kV & ≤ 132kV | S32: 0.52 | T32: =ROUND(S32 * (1 + VAT), 2) -> 0.6
A33: Megaflex - CPP: 50 days / 8 hours (6:00-14:00) 400 critical peak hours per year CRITICAL PEAK DAY rates for CRITICAL PEAK days | B33: MeCPPf2 | C33: 0 | D33: 4 | E33: MeCPPf204N | H33: > 132kV* | J33: 0 | K33: =ROUND(J33 * (1 + VAT), 2) -> 0 | L33: 0 | M33: =ROUND(L33 * (1 + VAT), 2) -> 0 | N33: 19.17 | O33: =ROUND(N33 * (1 + VAT), 2) -> 22.05 | Q33: > 132kV* | S33: 0.48 | T33: =ROUND(S33 * (1 + VAT), 2) -> 0.55
H34: * 132 kV or Transmission connected | Q34: * 132 kV or Transmission connected
H36: Customer categories | J36: Service charge [R/account/day] | L36: Administration charge [R/POD/day] | Q36: Reactive energy charge [c/kVArh]
Q37: High season | S37: Low season
A38: Tariff | B38: Tariff nameBillcode | C38: Tx zone | D38: Voltage | E38: Billcode | K38: VAT incl | M38: VAT incl | R38: VAT incl | T38: VAT incl
A39: Megaflex - CPP: 50 days / 8 hours (6:00-14:00) 400 critical peak hours per year CRITICAL PEAK DAY rates for CRITICAL PEAK days | B39: MeCPPf2 | C39: 0 | D39: 1 | E39: =B39&C39&D39&IF($A$2="Non-municipal","N",IF($A$2="Municiple","Y","error")) -> MeCPPf201N | H39: > 1 MVA | J39: 272.39 | K39: =ROUND(J39 * (1 + VAT), 2) -> 313.25 | L39: 122.76 | M39: =ROUND(L39 * (1 + VAT), 2) -> 141.17 | Q39: 19.19 | R39: =ROUND(Q39 * (1 + VAT), 2) -> 22.07 | S39: 0 | T39: =ROUND(S39 * (1 + VAT), 2) -> 0
A40: Megaflex - CPP: 50 days / 8 hours (6:00-14:00) 400 critical peak hours per year CRITICAL PEAK DAY rates for CRITICAL PEAK days | B40: MeCPPf2 | C40: 0 | D40: 1 | E40: MeCPPf201N | H40: Key customers | J40: 5337.86 | K40: =ROUND(J40 * (1 + VAT), 2) -> 6138.54 | L40: 170.47 | M40: =ROUND(L40 * (1 + VAT), 2) -> 196.04
H42: Electrification and rural network subsidy charge [c/kWh] | J42: Affordability subsidy charge [c/kWh] Only payable by non-local authority tariffs
A45: Tariff | B45: Tariff nameBillcode | C45: Tx zone | D45: Voltage | E45: Billcode | I45: VAT incl | K45: VAT incl
A46: Megaflex - CPP: 50 days / 8 hours (6:00-14:00) 400 critical peak hours per year CRITICAL PEAK DAY rates for CRITICAL PEAK days | B46: MeCPPf2 | C46: 0 | D46: 1 | E46: =B46&C46&D46&IF($A$2="Non-municipal","N",IF($A$2="Municiple","Y","error")) -> MeCPPf201N | H46: 10.61 | I46: =ROUND(H46 * (1 + VAT), 2) -> 12.2 | J46: 4.98 | K46: =ROUND(J46 * (1 + VAT), 2) -> 5.73

Sheet Megaflex 16hrs for 25day CPP C (hidden)
G1: Back to menu
A2: Non-municipal | G2: Megaflex – Non-local Authority | AF2: =SUM(#REF!,V8:V23,#REF!,#REF!,#REF!,#REF!,H26:J26,L26) ->  | AG2: check value
V4: Transmission network charges [R/kVA/m]
H5: Transmission zone
I6: Voltage
A7: Tariff | B7: Tariff nameBillcode | C7: Tx zone | D7: Voltage | E7: Billcode | W7: VAT incl
A8: Megaflex - CPP: 25 days / 16 hours (6:00-22:00) 400 critical peak hours per year CRITICAL PEAK DAY rates for CRITICAL PEAK days | B8: MeCPPf | C8: 0 | D8: 1 | E8: =B8&C8&D8&IF($A$2="Non-municipal","N",IF($A$2="Municiple","Y","error")) -> MeCPPf01N | H8: ≤ 300km | I8: < 500V | V8: 11.94 | W8: =ROUND(V8 * (1 + VAT), 2) -> 13.73
A9: Megaflex - CPP: 25 days / 16 hours (6:00-22:00) 400 critical peak hours per year CRITICAL PEAK DAY rates for CRITICAL PEAK days | B9: MeCPPf | C9: 0 | D9: 2 | E9: =B9&C9&D9&IF($A$2="Non-municipal","N",IF($A$2="Municiple","Y","error")) -> MeCPPf02N | I9: ≥ 500V & < 66kV | V9: 10.91 | W9: 12.55
A10: Megaflex - CPP: 25 days / 16 hours (6:00-22:00) 400 critical peak hours per year CRITICAL PEAK DAY rates for CRITICAL PEAK days | B10: MeCPPf | C10: 0 | D10: 3 | E10: MeCPPf03N | I10: ≥ 66kV & ≤ 132kV | V10: 10.62 | W10: 12.21
A11: Megaflex - CPP: 25 days / 16 hours (6:00-22:00) 400 critical peak hours per year CRITICAL PEAK DAY rates for CRITICAL PEAK days | B11: MeCPPf | C11: 0 | D11: 4 | E11: MeCPPf04N | I11: > 132kV* | V11: 13.43 | W11: 15.44
A12: Megaflex - CPP: 25 days / 16 hours (6:00-22:00) 400 critical peak hours per year CRITICAL PEAK DAY rates for CRITICAL PEAK days | B12: MeCPPf | C12: 1 | D12: 1 | E12: MeCPPf11N | H12: > 300km and ≤ 600km | I12: < 500V | V12: 12.02 | W12: 13.82
A13: Megaflex - CPP: 25 days / 16 hours (6:00-22:00) 400 critical peak hours per year CRITICAL PEAK DAY rates for CRITICAL PEAK days | B13: MeCPPf | C13: 1 | D13: 2 | E13: MeCPPf12N | I13: ≥ 500V & < 66kV | V13: 11.01 | W13: 12.66
A14: Megaflex - CPP: 25 days / 16 hours (6:00-22:00) 400 critical peak hours per year CRITICAL PEAK DAY rates for CRITICAL PEAK days | B14: MeCPPf | C14: 1 | D14: 3 | E14: MeCPPf13N | I14: ≥ 66kV & ≤ 132kV | V14: 10.7 | W14: 12.31
A15: Megaflex - CPP: 25 days / 16 hours (6:00-22:00) 400 critical peak hours per year CRITICAL PEAK DAY rates for CRITICAL PEAK days | B15: MeCPPf | C15: 1 | D15: 4 | E15: MeCPPf14N | I15: > 132kV* | V15: 13.55 | W15: 15.58
A16: Megaflex - CPP: 25 days / 16 hours (6:00-22:00) 400 critical peak hours per year CRITICAL PEAK DAY rates for CRITICAL PEAK days | B16: MeCPPf | C16: 2 | D16: 1 | E16: MeCPPf21N | H16: > 600km and ≤ 900km | I16: < 500V | V16: 12.16 | W16: 13.98
A17: Megaflex - CPP: 25 days / 16 hours (6:00-22:00) 400 critical peak hours per year CRITICAL PEAK DAY rates for CRITICAL PEAK days | B17: MeCPPf | C17: 2 | D17: 2 | E17: MeCPPf22N | I17: ≥ 500V & < 66kV | V17: 11.11 | W17: 12.78
A18: Megaflex - CPP: 25 days / 16 hours (6:00-22:00) 400 critical peak hours per year CRITICAL PEAK DAY rates for CRITICAL PEAK days | B18: MeCPPf | C18: 2 | D18: 3 | E18: MeCPPf23N | I18: ≥ 66kV & ≤ 132kV | V18: 10.77 | W18: 12.39
A19: Megaflex - CPP: 25 days / 16 hours (6:00-22:00) 400 critical peak hours per year CRITICAL PEAK DAY rates for CRITICAL PEAK days | B19: MeCPPf | C19: 2 | D19: 4 | E19: MeCPPf24N | I19: > 132kV* | V19: 13.75 | W19: 15.81
A20: Megaflex - CPP: 25 days / 16 hours (6:00-22:00) 400 critical peak hours per year CRITICAL PEAK DAY rates for CRITICAL PEAK days | B20: MeCPPf | C20: 3 | D20: 1 | E20: MeCPPf31N | H20: > 900km | I20: < 500V | V20: 12.24 | W20: 14.08
A21: Megaflex - CPP: 25 days / 16 hours (6:00-22:00) 400 critical peak hours per year CRITICAL PEAK DAY rates for CRITICAL PEAK days | B21: MeCPPf | C21: 3 | D21: 2 | E21: MeCPPf32N | I21: ≥ 500V & < 66kV | V21: 11.24 | W21: 12.93
A22: Megaflex - CPP: 25 days / 16 hours (6:00-22:00) 400 critical peak hours per year CRITICAL PEAK DAY rates for CRITICAL PEAK days | B22: MeCPPf | C22: 3 | D22: 3 | E22: MeCPPf33N | I22: ≥ 66kV & ≤ 132kV | V22: 10.87 | W22: 12.5
A23: Megaflex - CPP: 25 days / 16 hours (6:00-22:00) 400 critical peak hours per year CRITICAL PEAK DAY rates for CRITICAL PEAK days | B23: MeCPPf | C23: 3 | D23: 4 | E23: MeCPPf34N | I23: > 132kV* | V23: 13.85 | W23: 15.93
I24: * 132 kV or Transmission connected
H26: Distribution network charges
J27: Network capacity charge [R/kVA/m] | L27: Network demand charge [R/kVA/m] | N27: Urban low voltage subsidy charge [R/kVA/m]
H28: Voltage | Q28: Voltage | S28: Ancillary service charge [c/kWh]
A29: Tariff | B29: Tariff nameBillcode | C29: Tx zone | D29: Voltage | E29: Billcode | K29: VAT incl | M29: VAT incl | O29: VAT incl | T29: VAT incl
A30: Megaflex - CPP: 25 days / 16 hours (6:00-22:00) 400 critical peak hours per year CRITICAL PEAK DAY rates for CRITICAL PEAK days | B30: MeCPPf | C30: 0 | D30: 1 | E30: =B30&C30&D30&IF($A$2="Non-municipal","N",IF($A$2="Municiple","Y","error")) -> MeCPPf01N | H30: < 500V | J30: 23.73 | K30: =ROUND(J30 * (1 + VAT), 2) -> 27.29 | L30: 44.99 | M30: =ROUND(L30 * (1 + VAT), 2) -> 51.74 | N30: 0 | O30: =ROUND(N30 * (1 + VAT), 2) -> 0 | Q30: < 500V | S30: 0.55 | T30: =ROUND(S30 * (1 + VAT), 2) -> 0.63
A31: Megaflex - CPP: 25 days / 16 hours (6:00-22:00) 400 critical peak hours per year CRITICAL PEAK DAY rates for CRITICAL PEAK days | B31: MeCPPf | C31: 0 | D31: 2 | E31: MeCPPf02N | H31: ≥ 500V & < 66kV | J31: 21.76 | K31: =ROUND(J31 * (1 + VAT), 2) -> 25.02 | L31: 41.27 | M31: =ROUND(L31 * (1 + VAT), 2) -> 47.46 | N31: 0 | O31: =ROUND(N31 * (1 + VAT), 2) -> 0 | Q31: ≥ 500V & < 66kV | S31: 0.54 | T31: =ROUND(S31 * (1 + VAT), 2) -> 0.62
A32: Megaflex - CPP: 25 days / 16 hours (6:00-22:00) 400 critical peak hours per year CRITICAL PEAK DAY rates for CRITICAL PEAK days | B32: MeCPPf | C32: 0 | D32: 3 | E32: MeCPPf03N | H32: ≥ 66kV & ≤ 132kV | J32: 7.77 | K32: =ROUND(J32 * (1 + VAT), 2) -> 8.94 | L32: 14.39 | M32: =ROUND(L32 * (1 + VAT), 2) -> 16.55 | N32: 19.17 | O32: =ROUND(N32 * (1 + VAT), 2) -> 22.05 | Q32: ≥ 66kV & ≤ 132kV | S32: 0.52 | T32: =ROUND(S32 * (1 + VAT), 2) -> 0.6
A33: Megaflex - CPP: 25 days / 16 hours (6:00-22:00) 400 critical peak hours per year CRITICAL PEAK DAY rates for CRITICAL PEAK days | B33: MeCPPf | C33: 0 | D33: 4 | E33: MeCPPf04N | H33: > 132kV* | J33: 0 | K33: =ROUND(J33 * (1 + VAT), 2) -> 0 | L33: 0 | M33: =ROUND(L33 * (1 + VAT), 2) -> 0 | N33: 19.17 | O33: =ROUND(N33 * (1 + VAT), 2) -> 22.05 | Q33: > 132kV* | S33: 0.48 | T33: =ROUND(S33 * (1 + VAT), 2) -> 0.55
H34: * 132 kV or Transmission connected | Q34: * 132 kV or Transmission connected
H36: Customer categories | J36: Service charge [R/account/day] | L36: Administration charge [R/POD/day] | Q36: Reactive energy charge [c/kVArh]
Q37: High season | S37: Low season
A38: Tariff | B38: Tariff nameBillcode | C38: Tx zone | D38: Voltage | E38: Billcode | K38: VAT incl | M38: VAT incl | R38: VAT incl | T38: VAT incl
A39: Megaflex - CPP: 25 days / 16 hours (6:00-22:00) 400 critical peak hours per year CRITICAL PEAK DAY rates for CRITICAL PEAK days | B39: MeCPPf | C39: 0 | D39: 1 | E39: =B39&C39&D39&IF($A$2="Non-municipal","N",IF($A$2="Municiple","Y","error")) -> MeCPPf01N | H39: > 1 MVA | J39: 272.39 | K39: =ROUND(J39 * (1 + VAT), 2) -> 313.25 | L39: 122.76 | M39: =ROUND(L39 * (1 + VAT), 2) -> 141.17 | Q39: 19.19 | R39: =ROUND(Q39 * (1 + VAT), 2) -> 22.07 | S39: 0 | T39: =ROUND(S39 * (1 + VAT), 2) -> 0
A40: Megaflex - CPP: 25 days / 16 hours (6:00-22:00) 400 critical peak hours per year CRITICAL PEAK DAY rates for CRITICAL PEAK days | B40: MeCPPf | C40: 0 | D40: 1 | E40: MeCPPf01N | H40: Key customers | J40: 5337.86 | K40: =ROUND(J40 * (1 + VAT), 2) -> 6138.54 | L40: 170.47 | M40: =ROUND(L40 * (1 + VAT), 2) -> 196.04
H42: Electrification and rural network subsidy charge [c/kWh] | J42: Affordability subsidy charge [c/kWh] Only payable by non-local authority tariffs
A45: Tariff | B45: Tariff nameBillcode | C45: Tx zone | D45: Voltage | E45: Billcode | I45: VAT incl | K45: VAT incl
